{"text_format":"1","workbook":"xlsx","n_sheets":7,"sheets":["Cover Sheet","Instructions","LA Table","High Needs Places Table","Early Years Proforma","Admin-Lists","Admin-MissingRowCheck"],"not_rendered":{"charts":0,"images":19,"macros":1,"external_links":3,"defined_names":97,"comments":1,"pivot_tables":0},"unopened":[],"bounds":{"document_bytes":16777216,"sheet_cells":100000,"rows_first":2000,"rows_last":500,"rows_between":2000,"halvings":0,"cell_chars":16384,"cell_head_chars":4096},"cells_cut":0,"cells_raw":0,"read":"whole","date_system":"1900"}

{"sheet":"Cover Sheet","index":0,"n_rows":24,"n_cols":5,"rows_kept":24,"cut":false,"hidden":false,"merged":[]}
[]
[]
[]
[]
[null,null,null,"Section 251 Budget 2022-23"]
[null,null,null,"XML Generator"]
[null,null,null,"Version 1.0"]
[]
[]
[]
[]
[null,"Local Authority Number:"]
[]
[null,"Local Authority Name:",{"$f":"IF(ISNA(VLOOKUP(C12,LA, 2, FALSE)),\"\",VLOOKUP(C12, LA, 2, FALSE))","v":""}]
[]
[null,"Contact Name:"]
[]
[null,"Contact Email:"]
[]
[null,"Contact Telephone:"]
[]
[null,null,null,null,{"$f":"LAErrorCount","v":0}]
[null,null,null,null,{"$f":"HNPErrorCount","v":0}]
[null,null,null,null,{"$f":"EYPErrorCount","v":0}]

{"sheet":"Instructions","index":1,"n_rows":314,"n_cols":2,"rows_kept":314,"cut":false,"hidden":false,"merged":[]}
[]
[null,"Completing the return"]
[]
[null,"Before you complete the return you are advised to read the guidance at https://gov.uk/government/publications/section-251-2022-to-2023."]
[]
[null,"LA Table"]
[]
[null,"This table is for local authorities to provide an overall picture of the funding being allocated direct to schools, the amount being spent on education centrally and the amount being spent on children’s and young people’s services."]
[]
[null,"Values should be entered in all red cells. If the value entered does not match the data validation restrictions for the cell, an error message will be displayed. You will still be able to submit your return, but you will be prompted to enter an explanation within COLLECT."]
[]
[null,"Error messages will be displayed in column O if the data entered does not match the validation restrictions applied to the table."]
[]
[null,"High Needs Places Table"]
[]
[null,"This table is for local authorities to enter details of the high needs places and funding in the schools that they maintain. Place numbers may be entered to two decimal places."]
[]
[null,"Clicking on the 'Click to Prepopulate Schools' button will populate the table with a list of expected schools. This is based on those schools listed on Get Information About Schools as maintained nursery schools or mainstream schools with an SEN unit and/or resourced provision, pupil referral units, special schools and hospital schools. Schools should be added and removed as required."]
[]
[null,"Error messages will be displayed in column T if the data entered does not match the validation restrictions applied to the table."]
[]
[null,"Early Years Table"]
[]
[null,"This table is to record the total local authority DSG spending on early years entitlements for disadvantaged two year olds and three and four year olds for both the universal 15 hours and the additional 15 hours for eligible working parents of three and four year olds. This section should also include any budget allocated for the early years special education needs inclusion fund and any other DSG expenditure on early years, including the early years pupil premium and disability access fund."]
[]
[null,"Rows may be added or deleted using the ‘Add/remove data rows’ button."]
[]
[null,"Error messages will be displayed in column U if the data entered does not match the validation restrictions applied to the table."]
[]
[]
[null,"Uploading the return to COLLECT"]
[]
[null,"When you have finished entering your data, click the ‘Convert to XML’ button on the Cover Sheet. This will create an XML file within the same folder as the XML generator for uploading to COLLECT."]
[]
[null,"Log into COLLECT."]
[]
[null,"On the Source page click on 'Upload Return from file…'"]
[]
[]
[]
[]
[]
[]
[]
[]
[]
[]
[]
[]
[]
[]
[]
[]
[]
[]
[]
[null,"To upload the return, click on the ‘Browse…’ button to navigate to the required XML file. You then need to select ‘Upload’ to load the data."]
[]
[]
[]
[]
[]
[]
[]
[]
[]
[]
[]
[null,"If data is already loaded you will be asked if you want to overwrite it. Answering no will stop the data load, answering yes will delete the existing data and load the new data."]
[]
[null,"Caution: Uploading a new XML file will cause the return to be revalidated and any errors/queries will need to be addressed again."]
[]
[null,"Once the file has been successfully loaded the following message will appear."]
[]
[]
[]
[]
[]
[]
[]
[]
[]
[]
[]
[]
[]
[]
[]
[]
[]
[null,"The data return has now been placed in a queue to be validated. When COLLECT is busy this process may take some time and users may come back later to view any validation errors present within the return."]
[]
[null,"When you click on ‘OK’ you will return to the ‘Source page’ and the status will be ‘Waiting_for_validation’. When the return reaches the front of the queue, the status on the ‘Source page’ will change to ‘Validation_in_progess’ and then ‘Loaded’ when it is finished."]
[]
[]
[null,"Addressing any errors/queries"]
[]
[null,"When a return has been uploaded, a number of validation checks are run against the data in that return and will trigger errors or queries."]
[]
[null,"All errors and queries are highlighted in red against the relevant data item."]
[]
[null,"To view all errors and queries on the return "]
[]
[null,"Click on ‘All Errors’ at the top of the screen."]
[]
[]
[]
[]
[]
[]
[null,"You will then be shown a list of all errors and queries relating to your return. You may also find it helpful to download an error report."]
[]
[]
[]
[]
[]
[]
[]
[]
[]
[null,"Correcting errors "]
[]
[null,"Click on the 'Details' button to see which data items the validation is checking, these will show to the right of the screen. If you click on one of the underlined fields you will be directed to the corresponding data item in the return."]
[]
[null,"Change the mode of the form to ‘edit’ and then click on the data item that needs to be changed and update it."]
[]
[null,"Providing clarification/ supplementary information"]
[]
[null,"If you are satisfied that the value is correct, please enter a brief but meaningful note next to the error/query (rather than ‘OK’ or ‘Correct’ etc.)."]
[]
[null,"To enter a note, first click on the pen icon next to the error/query."]
[]
[]
[]
[]
[]
[]
[]
[]
[]
[]
[]
[null,"Then click ‘Add New Note’."]
[]
[]
[]
[]
[]
[]
[]
[]
[]
[]
[null,"Type your note in the box provided and click ‘Create’."]
[]
[]
[]
[]
[]
[]
[]
[]
[]
[]
[]
[]
[]
[]
[]
[]
[]
[]
[]
[null,"You must enter a note for all errors/queries, except year-on-year queries (3.1.1 and 1007)."]
[]
[null,"For year-on-year queries you may either enter a note or choose an option from the drop-down menu at the bottom of the screen which will clear the query."]
[]
[]
[]
[]
[]
[null,"If you select ‘Other - please provide explanation’, this will not clear the query and you must enter a note next to the query."]
[]
[null,"To return to the list of errors, click on the 'Error' button."]
[]
[]
[]
[]
[]
[null,"Editing data within your return"]
[]
[null,"LA Table"]
[]
[null,"Use the blue hyperlinks at the bottom of the screen to navigate to the part of your return you wish to edit. Warning: Using the hyperlinks on the left-hand side may result in unexpected behaviour."]
[]
[]
[]
[]
[]
[]
[]
[]
[]
[]
[]
[]
[]
[]
[]
[]
[]
[]
[]
[]
[null,"Change the mode of the form to ‘edit’ and then click on the data item that needs to be changed and update it."]
[]
[null,"Click on 'View' followed by 'Drill Up' to return to the previous screen."]
[]
[null,"High Needs Places Table"]
[]
[null,"Click on the appropriate hyperlink to take you to the High Needs Places Table."]
[]
[null,"Use the 'Edit' button to edit the data or the 'Add' or 'Delete' buttons to add or remove schools from the table."]
[]
[]
[]
[]
[]
[]
[null,"Click on 'View' followed by 'Drill Up' to return to the previous screen."]
[]
[null,"EY Table"]
[]
[null,"Click on the appropriate hyperlink to take you to the required section of the EY Table."]
[]
[null,"Click on 'Click to view individual column descriptors'. This will allow you to view the data entered for this line."]
[]
[]
[]
[]
[]
[]
[]
[null,"Use the 'Edit' button to edit the data or the 'Add' or 'Delete' buttons to add or remove rows."]
[]
[]
[]
[]
[]
[null,"Click on 'View' followed by 'Drill Up' to return to the previous screen."]
[]
[]
[null,"Downloading Reports"]
[]
[null,"On the 'Source Page', click 'Launch Reports'. "]
[]
[]
[]
[]
[]
[]
[]
[]
[]
[]
[]
[]
[]
[]
[]
[]
[null,"Select the relevant report and click 'Launch Report'"]
[]
[]
[]
[]
[]
[]
[]
[]
[]
[]
[]
[]
[null,"Export the report in the desired format."]
[]
[]
[]
[]
[]
[]
[]
[]
[]
[]
[]
[]
[]
[]
[]
[]
[null,"Submitting the return"]
[]
[null,"Return to the ‘Source Page’ by clicking on ‘Back to My COLLECT page’ located at the top of the form."]
[]
[]
[]
[]
[]
[]
[]
[]
[]
[null,"Then select ‘Submit Return’."]

{"sheet":"LA Table","index":2,"n_rows":189,"n_cols":26,"rows_kept":189,"cut":false,"hidden":false,"merged":[[2,16,2,24],[74,4,74,5],[188,4,188,12]]}
[null,"S251 Budget 2022-23",null,null,null,null,null,null,null,null,null,null,null,null,null,null,"Count of headings:",{"$f":"COUNTIF(O:O,\"Error Cell Reference and Description\")","v":1}]
[null,"LA Table:  Local Authority Information",null,null,null,null,null,null,null,null,null,null,null,null,null,null,"Count of cells with errors:",{"$f":"COUNTIF(O:O,\"<>\")-R1-COUNTIF(LAErrorCell,\"<>\")","v":0}]
[null,null,null,null,null,null,null,null,null,null,null,null,null,null,null,null,"Rule Application (offset by 12 columns to data)"]
[null,null,"Description",null,"Early Years","Primary","Secondary","SEN/Special schools","AP/PRUs","\nPost school (e.g. Sixth Form & FE Colleges)\n\n","Gross","Income","Net",null,"Error Cell Reference and Description",null,"Early Years","Primary","Secondary","SEN/    Special schools","AP/    PRUs","Post school (e.g. Sixth Form & FE Colleges)\n","Gross","Income","Net","Notes"]
[null,null,null,null,{"$f":"IF(COUNTA(E9:L187)<456,\"PLEASE ENTER VALUES IN ALL CELLS\",\"\")","v":"PLEASE ENTER VALUES IN ALL CELLS"},null,null,null,null,null,null,null,null,null,null,null,"E","F","G","H","I","J","K","L","M"]
[null,null,null,null,null,null,null,null,null,null,null,null,"LA Table Errors:"]
[null,1,"SCHOOLS BUDGET"]
[]
[null,"1.0.1","Individual Schools Budget (i.e. school budget shares, before Academy recoupment), including 6th form grant for maintained schools, but excluding all high needs place funding ",null,null,null,null,null,null,null,{"$f":"SUM(E9,F9,G9)","v":0},null,{"$f":"K9-L9","v":0},null,null,null,"1.1,1.3,1.7","1.1,1.3,1.7","1.1,1.3,1.7",1.6,1.6,1.6,1001,1.6," "]
[null,"1.0.2","High needs place funding within Individual Schools Budget (i.e. within school budget shares, before Academy recoupment), including all pre- and post-16 place funding for maintained schools and academies",null,null,null,null,null,null,null,{"$f":"SUM(E10,F10,G10,H10,I10)","v":0},null,{"$f":"K10-L10","v":0},null,null,null,"1.1,1.3,1.7","1.1,1.3,1.7","1.1,1.3,1.7","1.1,1.3,1.7","1.1,1.3,1.7",1.6,"1001, 1022",1.6," "]
[]
[null,null,"DEDELEGATED ITEMS      "]
[null,"1.1.1","Contingencies      ",null,null,null,null," ",null,null,{"$f":"SUM(F13,G13)","v":0},null,{"$f":"K13-L13","v":0},null,null,null,1.6,"1.1,1.3,1.7","1.1,1.3,1.7",1.6,1.6,1.6,"3.1.1,1007","1.1,1.3,1.7"," "]
[null,"1.1.2","Behaviour support services",null,null,null,null,null,null,null,0,null,0,null,null,null,1.6,"1.1,1.3,1.7","1.1,1.3,1.7",1.6,1.6,1.6,"3.1.1,1007","1.1,1.3,1.7"," "]
[null,"1.1.3","Support to UPEG and bilingual learners  ",null,null,null,null,null,null,null,0,null,0,null,null,null,1.6,"1.1,1.3,1.7","1.1,1.3,1.7",1.6,1.6,1.6,"3.1.1,1007","1.1,1.3,1.7"," "]
[null,"1.1.4","Free school meals eligibility",null,null,null,null,null,null,null,0,null,0,null,null,null,1.6,"1.1,1.3,1.7","1.1,1.3,1.7",1.6,1.6,1.6,"3.1.1,1007","1.1,1.3,1.7"," "]
[null,"1.1.5","Insurance",null,null,null,null,null,null,null,0,null,0,null,null,null,1.6,"1.1,1.3,1.7","1.1,1.3,1.7",1.6,1.6,1.6,"3.1.1,1007","1.1,1.3,1.7"," "]
[null,"1.1.6","Museum and Library services",null,null,null,null,null,null,null,0,null,0,null,null,null,1.6,"1.1,1.3,1.7","1.1,1.3,1.7",1.6,1.6,1.6,"3.1.1,1007","1.1,1.3,1.7"," "]
[null,"1.1.7","Licences/subscriptions ",null,null,null,null,null,null,null,0,null,0,null,null,null,1.6,"1.1,1.3,1.7","1.1,1.3,1.7",1.6,1.6,1.6,"3.1.1,1007","1.1,1.3,1.7"," "]
[null,"1.1.8","Staff costs – supply cover excluding cover for facility time",null,null,null,null,null,null,null,0,null,0,null,null,null,1.6,"1.1,1.3,1.7","1.1,1.3,1.7",1.6,1.6,1.6,"3.1.1,1007","1.1,1.3,1.7"," "]
[null,"1.1.9","Staff costs – supply cover for facility time",null,null,null,null,null,null,null,0,null,0,null,null,null,1.6,"1.1,1.3,1.7","1.1,1.3,1.7",1.6,1.6,1.6,"3.1.1,1007","1.1,1.3,1.7"," "]
[]
[null,null,"HIGH NEEDS BUDGET "]
[null,"1.2.1","Top-up funding – maintained schools",null,null,null,null,null,null,null,{"$f":"SUM(E24,F24,G24,H24,I24)","v":0},null,{"$f":"K24-L24","v":0},null,null,null,"1.1,1.3,1.7","1.1,1.3,1.7","1.1,1.3,1.7","1.1,1.3,1.7","1.1,1.3,1.7",1.6,"3.1.1, 1007,1.7,1.7","1.1,1.3,1.7"," "]
[null,"1.2.2","Top-up funding – academies, free schools and colleges",null,null,null,null,null,null,null,{"$f":"SUM(E25,F25,G25,H25,I25,J25)","v":0},null,0,null,null,null,"1.1,1.3,1.7","1.1,1.3,1.7","1.1,1.3,1.7","1.1,1.3,1.7","1.1,1.3,1.7","1.1,1.3,1.7","3.1.1, 1007","1.1,1.3,1.7"," "]
[null,"1.2.3","Top-up and other funding – non-maintained and independent providers",null,null,null,null,null,null,null,{"$f":"SUM(E26,F26,G26,H26,I26,J26)","v":0},null,0,null,null,null,"1.1,1.3,1.7","1.1,1.3,1.7","1.1,1.3,1.7","1.1,1.3,1.7","1.1,1.3,1.7","1.1,1.3,1.7","3.1.1, 1007","1.1,1.3,1.7"," "]
[null,"1.2.4","Additional high needs targeted funding for mainstream schools and academies",null,null,null,null,null,null,null,{"$f":"SUM(E27,F27,G27)","v":0},null,0,null,null,null,"1.1,1.3,1.7","1.1,1.3,1.7","1.1,1.3,1.7",1.6,1.6,1.6,"3.1.1, 1007","1.1,1.3,1.7"," "]
[null,"1.2.5","SEN support services  ",null,null,null,null,null,null,null,{"$f":"SUM(E28,F28,G28,H28,I28,J28)","v":0},null,0,null,null,null,"1.1,1.3,1.7","1.1,1.3,1.7","1.1,1.3,1.7","1.1,1.3,1.7","1.1,1.3,1.7","1.1,1.3,1.7","3.1.1, 1007","1.1,1.3,1.7"," "]
[null,"1.2.6","Hospital education services",null,null,null,null,null,null,null,{"$f":"SUM(H29,I29)","v":0},null,0,null,null,null,1.6,1.6,1.6,"1.1,1.3,1.7,1013","1.1,1.3,1.7,1013",1.6,"3.1.1, 1007,1.7, 1013","1.1,1.3,1.7"," "]
[null,"1.2.7","Other alternative provision services",null,null,null,null,null,null,null,{"$f":"SUM(E30,F30,G30,H30,I30,J30)","v":0},null,0,null,null,null,"1.1,1.3,1.7","1.1,1.3,1.7","1.1,1.3,1.7","1.1,1.3,1.7","1.1,1.3,1.7","1.1,1.3,1.7","3.1.1, 1007","1.1,1.3,1.7"," "]
[null,"1.2.8","Support for inclusion  ",null,null,null,null,null,null,null,{"$f":"SUM(E31,F31,G31,H31,I31,J31)","v":0},null,0,null,null,null,"1.1,1.3,1.7","1.1,1.3,1.7","1.1,1.3,1.7","1.1,1.3,1.7","1.1,1.3,1.7","1.1,1.3,1.7","3.1.1, 1007","1.1,1.3,1.7"," "]
[null,"1.2.9","Special schools and PRUs in financial difficulty",null,null,null,null,null,null,null,{"$f":"SUM(H32,I32)","v":0},null,0,null,null,null,1.6,1.6,1.6,"1.1,1.3,1.7","1.1,1.3,1.7",1.6,"3.1.1, 1007","1.1,1.3,1.7"," "]
[null,"1.2.10","PFI/ BSF costs at special schools, AP/ PRUs and Post 16 institutions only",null,null,null,null,null,null,null,{"$f":"SUM(H33,I33,J33)","v":0},null,0,null,null,null,1.6,1.6,1.6,"1.1,1.3,1.7","1.1,1.3,1.7","1.1,1.3,1.7","3.1.1, 1007","1.1,1.3,1.7"," "]
[null,"1.2.11","Direct payments (SEN and disability)",null,null,null,null,null,null,null,{"$f":"SUM(E34,F34,G34,H34,I34,J34)","v":0},null,0,null,null,null,"1.1,1.3,1.7","1.1,1.3,1.7","1.1,1.3,1.7","1.1,1.3,1.7","1.1,1.3,1.7","1.1,1.3,1.7","3.1.1, 1007","1.1,1.3,1.7"," "]
[null,"1.2.12","Carbon reduction commitment allowances (PRUs)",null,null,null,null,null,null,null,{"$f":"SUM(E35,F35,G35,H35,I35,J35)","v":0},null,0,null,null,null,1.6,1.6,1.6,1.6,"1.1,1.3,1.7",1.6,"3.1.1, 1007","1.1,1.3,1.7"," "]
[null,"1.2.13","Therapies and other health related services",null,null,null,null,null,null,null,{"$f":"SUM(E36,F36,G36,H36,I36,J36)","v":0},null,0,null,null,null,"1.1,1.3,1.7","1.1,1.3,1.7","1.1,1.3,1.7","1.1,1.3,1.7","1.1,1.3,1.7","1.1,1.3,1.7","3.1.1, 1007","1.1,1.3,1.7"," "]
[]
[null,null,"EARLY YEARS BUDGET  "]
[null,"1.3.1","Central expenditure on early years entitlement ",null,null,null,null,null,null,null,{"$f":"E39","v":0},null,{"$f":"K39-L39","v":0},null,null,null,"1.1,1.3,1.7,5.0.9",1.6,1.6,1.6,1.6,1.6,"3.1.1, 1007, 5.0.9","1.1,1.3,1.7"," "]
[]
[null,null,"CENTRAL PROVISION WITHIN SCHOOLS BUDGET "]
[null,"1.4.1","Contribution to combined budgets ",null,null,null,null,null,null,null,{"$f":"SUM(E42,F42,G42,H42,I42)","v":0},null,{"$f":"K42-L42","v":0},null,null,null,"1.1,1.3,1.7","1.1,1.3,1.7","1.1,1.3,1.7","1.1,1.3,1.7","1.1,1.3,1.7",1.6,"3.1.1, 1007","1.1,1.3,1.7"," "]
[null,"1.4.2","School admissions",null,null,null,null,null,null,null,0,null,0,null,null,null,"1.1,1.3,1.7","1.1,1.3,1.7","1.1,1.3,1.7","1.1,1.3,1.7","1.1,1.3,1.7",1.6,"3.1.1, 1007","1.1,1.3,1.7"," "]
[null,"1.4.3","Servicing of schools forums",null,null,null,null,null,null,null,0,null,0,null,null,null,"1.1,1.3,1.7","1.1,1.3,1.7","1.1,1.3,1.7","1.1,1.3,1.7","1.1,1.3,1.7",1.6,"3.1.1, 1007","1.1,1.3,1.7"," "]
[null,"1.4.4","Termination of employment costs",null,null,null,null,null,null,null,0,null,0,null,null,null,"1.1,1.3,1.7","1.1,1.3,1.7","1.1,1.3,1.7","1.1,1.3,1.7","1.1,1.3,1.7",1.6,"3.1.1, 1007","1.1,1.3,1.7"," "]
[null,"1.4.5","Falling Rolls Fund",null,null,null,null,null,null,null,0,null,0,null,null,null,"1.1,1.3,1.7","1.1,1.3,1.7","1.1,1.3,1.7","1.1,1.3,1.7","1.1,1.3,1.7",1.6,"3.1.1, 1007","1.1,1.3,1.7"," "]
[null,"1.4.6","Capital expenditure from revenue (CERA)",null,null,null,null,null,null,null,0,null,0,null,null,null,"1.1,1.3,1.7","1.1,1.3,1.7","1.1,1.3,1.7","1.1,1.3,1.7","1.1,1.3,1.7",1.6,"3.1.1, 1007","1.1,1.3,1.7"," "]
[null,"1.4.7","Prudential borrowing costs",null,null,null,null,null,null,null,0,null,0,null,null,null,"1.1,1.3,1.7","1.1,1.3,1.7","1.1,1.3,1.7","1.1,1.3,1.7","1.1,1.3,1.7",1.6,"3.1.1, 1007","1.1,1.3,1.7"," "]
[null,"1.4.8","Fees to independent schools without SEN ",null,null,null,null,null,null,null,0,null,0,null,null,null,"1.1,1.3,1.7","1.1,1.3,1.7","1.1,1.3,1.7","1.1,1.3,1.7","1.1,1.3,1.7",1.6,"3.1.1, 1007","1.1,1.3,1.7"," "]
[null,"1.4.9","Equal pay - back pay   ",null,null,null,null,null,null,null,0,null,0,null,null,null,"1.1,1.3,1.7","1.1,1.3,1.7","1.1,1.3,1.7","1.1,1.3,1.7","1.1,1.3,1.7",1.6,"3.1.1, 1007","1.1,1.3,1.7"," "]
[null,"1.4.10","Pupil growth ",null,null,null,null,null,null,null,0,null,0,null,null,null,"1.1,1.3,1.7","1.1,1.3,1.7","1.1,1.3,1.7","1.1,1.3,1.7","1.1,1.3,1.7",1.6,"3.1.1, 1007","1.1,1.3,1.7"," "]
[null,"1.4.11","SEN transport",null,null,null,null,null,null,null,{"$f":"SUM(E52,F52,G52,H52,I52,J52)","v":0},null,0,null,null,null,"1.1,1.3,1.7","1.1,1.3,1.7","1.1,1.3,1.7","1.1,1.3,1.7","1.1,1.3,1.7","1.1,1.3,1.7","3.1.1, 1007","1.1,1.3,1.7"," "]
[null,"1.4.12","Exceptions agreed by Secretary of State ",null,null,null,null,null,null,null,{"$f":"SUM(E53,F53,G53,H53,I53,J53)","v":0},null,0,null,null,null,"1.1,1.3,1.7","1.1,1.3,1.7","1.1,1.3,1.7","1.1,1.3,1.7","1.1,1.3,1.7","1.1,1.3,1.7","3.1.1, 1007","1.1,1.3,1.7"," "]
[null,"1.4.13","Infant class sizes",null,null,null,null,null,null,null,{"$f":"F54","v":0},null,0,null,null,null,1.6,"1.1,1.3",1.6,1.6,1.6,1.6,"3.1.1, 1007","1.1,1.3,1.7"," "]
[null,"1.4.14","Other Items ",null,null,null,null,null,null,null,{"$f":"SUM(E55,F55,G55,H55,I55,J55)","v":0},null,0,null,null,null,"1.1,1.3,1.7","1.1,1.3,1.7","1.1,1.3,1.7","1.1,1.3,1.7","1.1,1.3,1.7","1.1,1.3,1.7","3.1.1, 1007",1.6," "]
[]
[null,null,"CENTRAL PROVISION WITHIN SCHOOLS BUDGET (FORMER ESG RETAINED DUTIES)"]
[null,"1.5.1","Education welfare service",null,null,null,null,null,null,null,null,null,{"$f":"K58-L58","v":0},null,null,null,null,null,null,null,null,null,"1.1,1.3, 3.1.1, 1.7","1.1,1.3,1.7"," "]
[null,"1.5.2","Asset management ",null,null,null,null,null,null,null,null,null,{"$f":"K59-L59","v":0},null,null,null,null,null,null,null,null,null,"1.1,1.3, 3.1.1, 1.7","1.1,1.3,1.7"," "]
[null,"1.5.3","Statutory/Regulatory duties",null,null,null,null,null,null,null,null,null,{"$f":"K60-L60","v":0},null,null,null,null,null,null,null,null,null,"1.1,1.3, 3.1.1, 1.7","1.1,1.3,1.7"," "]
[]
[null,null,"CENTRAL PROVISION FUNDED THROUGH MAINTAINED SCHOOLS BUDGET"]
[null,"1.6.1","Central support services ",null,null,null,null,null,null,null,null,null,{"$f":"K63-L63","v":0},null,null,null,null,null,null,null,null,null,"1.1,1.3, 3.1.1, 1.7","1.1,1.3,1.7"," "]
[null,"1.6.2","Education welfare service",null,null,null,null,null,null,null,null,null,0,null,null,null,null,null,null,null,null,null,"1.1,1.3, 3.1.1, 1.7","1.1,1.3,1.7"," "]
[null,"1.6.3","Asset management ",null,null,null,null,null,null,null,null,null,0,null,null,null,null,null,null,null,null,null,"1.1,1.3, 3.1.1, 1.7","1.1,1.3,1.7"," "]
[null,"1.6.4","Statutory/Regulatory duties",null,null,null,null,null,null,null,null,null,0,null,null,null,null,null,null,null,null,null,"1.1,1.3, 3.1.1, 1.7","1.1,1.3,1.7"," "]
[null,"1.6.5","Premature retirement cost / Redundancy costs (new provisions)",null,null,null,null,null,null,null,null,null,0,null,null,null,null,null,null,null,null,null,"1.1,1.3, 3.1.1, 1.7","1.1,1.3,1.7"]
[null,"1.6.6","Monitoring national curriculum assessment",null,null,null,null,null,null,null,null,null,0,null,null,null,null,null,null,null,null,null,"1.1,1.3, 3.1.1, 1.7","1.1,1.3,1.7"]
[null,"1.6.7","School Improvement",null,null,null,null,null,null,null,null,null,0,null,null,null,null,null,null,null,null,null,"1.1,1.3, 3.1.1, 1.7","1.1,1.3,1.7"]
[]
[null,"1.7.1","Other Specific Grants ",null,null,null,null,null,null,null,{"$f":"SUM(E71:J71)","v":0},null,{"$f":"K71-L71","v":0},null,null,null,"1.1,1.3,1.7,1021","1.1,1.3,1.7,1021","1.1,1.3,1.7,1021","1.1,1.3,1.7,1021","1.1,1.3,1.7,1021","1.1,1.3,1.7,1021","3.1.1, 1007","1.1,1.3,1.7,1021"]
[]
[null,"1.8.1","TOTAL SCHOOLS BUDGET (before Academy recoupment)  ",null,{"$f":"SUM(E9,E24:E28,E30:E31,E34:E36,E39,E42:E53,E55,E71)","v":0},{"$f":"SUM(F9:F10,F13:F21,F24:F28,F30:F31,F34:F36,F42:F55,F71)","v":0},{"$f":"SUM(G9:G10,G13:G21,G24:G28,G30:G31,G34:G36,G42:G53,G55,G71)","v":0},{"$f":"SUM(H9:H10,H24:H26,H28:H36,H42:H53,H55,H71)","v":0},{"$f":"SUM(I9:I10,I24:I26,I28:I36,I42:I53,I55,I71)","v":0},{"$f":"SUM(J25:J26,J28,J30:J31,J33:J36,J52:J53,J55,J71)","v":0},{"$f":"SUM(K9:K10,K13:K21,K24:K36,K39,K42:K55,K58:K60,K63:K69,K71)","v":0},{"$f":"SUM(L13:L21,L24:L36,L39,L42:L55,L58:L60,L63:L69,L71)","v":0},{"$f":"SUM(M9:M10,M13:M21,M24:M36,M39,M42:M55,M58:M60,M63:M69,M71)","v":0}]
[]
[null,"1.8.1a","DSG BLOCK PLANNED EXPENDITURE",null,"DSG Block\n",null,"Allocated DSG funding\n","Planned Spend\n","Net\n"]
[null,"Schools",null,null,"Schools (before Academy recoupment)",null,null,null,{"$f":"G76-H76","v":0},null,null,null,null,null,null,null,null,null,"1.1,1.7, 1.3, 1026","1.1,1.7, 1.3"]
[null,"Central School Services",null,null,"Central School Services",null,null,null,{"$f":"G77-H77","v":0},null,null,null,null,null,null,null,null,null,"1.1,1.7, 1.3, 1027","1.1,1.7, 1.3"]
[null,"High Needs",null,null,"High Needs (excluding post school)",null,null,null,{"$f":"G78-H78","v":0},null,null,null,null,null,null,null,null,null,"1.1,1.7, 1.3, 1028","1.1,1.7, 1.3"]
[null,"Early Years",null,null,"Early Years",null,null,null,{"$f":"G79-H79","v":0},null,null,null,null,null,null,null,null,null,"1.1,1.7, 1.3, 1029","1.1,1.7, 1.3"]
[null,null,null,null,"Total",null,{"$f":"SUM(G76:G79)","v":0},{"$f":"SUM(H76:H79)","v":0},{"$f":"SUM(I76:I79)","v":0}]
[]
[null,null,"RECONCILIATION OF SCHOOLS BUDGET   "]
[null,"1.9.1","Estimated Dedicated Schools Grant for 2022-23 (after deductions for post school high needs place funding, but including school and academy post-16 high needs place funding)",null,null,null,null,null,null,null,null,null,null,null,null,null,null,null,null,null,null,null,"1.1, 1.3, 3.1.1,1.7, 1030",null," "]
[null,"1.9.2","Dedicated Schools Grant brought forward from 2021-22 (please show a deficit as a negative)",null,null,null,null,null,null,null,null,null,null,null,null,null,null,null,null,null,null,null,"1.1,1.7,1031",null," "]
[null,"1.9.3","Dedicated Schools Grant carry forward to 2023-24 (please show a deficit as a positive)",null,null,null,null,null,null,null,null,null,null,null,null,null,null,null,null,null,null,null,"1.1,1.7, 1032",null," "]
[null,"1.9.4","Grant for maintained school 6th forms",null,null,null,null,null,null,null,null,null,null,null,null,null,null,null,null,null,null,null,"1.1,1.7, 1.3, 3.1.1,1.3",null," "]
[null,"1.9.5","Local Authority additional contribution",null,null,null,null,null,null,null,null,null,null,null,null,null,null,null,null,null,null,null,"1.1,1.7, 1.3"]
[null,"1.9.6","Total funding supporting the Schools Budget (the sum of lines 1.9.1 to 1.9.5 adjusted for any carry-forward to 2023-24 recorded in line 1.9.3)",null,null,null,null,null,null,null,{"$f":"SUM(K83:K84,K86,K87)+K85","v":0},null,null,null,null,null,null,null,null,null,null,null,null,null," "]
[]
[null,"1.10.1","Academy: recoupment from the Dedicated Schools Grant, excluding the recoupment of high needs place funding shown in line 1.0.2 above (please show as a negative)",null,null,null,null,null,null,null,null,null,null,null,null,null,null,null,null,null,null,null,"1.1,1.7,1.5",null," "]
[null,"1.10.2","Academy: recoupment from the Dedicated Schools Grant of high needs place funding shown under line 1.0.2 above (please show as a negative)",null,null,null,null,null,null,null,null,null,null,null,null,null,null,null,null,null,null,null,"1.1,1.7,1.5",null," "]
[]
[null,2,"OTHER EDUCATION AND COMMUNITY BUDGET"]
[]
[null,"2.0.1","Central support services ",null,null,null,null,null,null,null,null,null,{"$f":"K95-L95","v":0},null,null,null,null,null,null,null,null,null,"3.1.1,1.7, 1007,1.3","1.1,1.7, 1.3"," "]
[null,"2.0.2","Education welfare service",null,null,null,null,null,null,null,null,null,0,null,null,null,null,null,null,null,null,null,"3.1.1,1.7, 1007,1.3","1.1,1.7, 1.3"," "]
[null,"2.0.3","School improvement",null,null,null,null,null,null,null,null,null,0,null,null,null,null,null,null,null,null,null,"3.1.1,1.7, 1007,1.3","1.1,1.7, 1.3"]
[null,"2.0.4","Asset management - education",null,null,null,null,null,null,null,null,null,0,null,null,null,null,null,null,null,null,null,"3.1.1,1.7, 1007,1.3","1.1,1.7, 1.3"," "]
[null,"2.0.5","Statutory/ Regulatory duties - education",null,null,null,null,null,null,null,null,null,0,null,null,null,null,null,null,null,null,null,"3.1.1,1.7, 1007,1.3","1.1,1.7, 1.3"]
[null,"2.0.6","Premature retirement cost/ Redundancy costs (new provisions)",null,null,null,null,null,null,null,null,null,0,null,null,null,null,null,null,null,null,null,"3.1.1,1.7, 1007,1.3","1.1,1.7, 1.3"," "]
[null,"2.0.7","Monitoring national curriculum assessment",null,null,null,null,null,null,null,null,null,0,null,null,null,null,null,null,null,null,null,"3.1.1,1.7, 1007,1.3","1.1,1.7, 1.3"," "]
[]
[null,"2.1.1","Educational psychology service",null,null,null,null,null,null,null,null,null,{"$f":"K103-L103","v":0},null,null,null,null,null,null,null,null,null,"3.1.1,1.7, 1007,1.3","1.1,1.7, 1.3"," "]
[null,"2.1.2","SEN administration, assessment and coordination and monitoring",null,null,null,null,null,null,null,null,null,0,null,null,null,null,null,null,null,null,null,"3.1.1,1.7, 1007,1.3","1.1,1.7, 1.3"]
[null,"2.1.3","Independent Advice and Support Services (Parent partnership), guidance and information",null,null,null,null,null,null,null,null,null,0,null,null,null,null,null,null,null,null,null,"3.1.1,1.7, 1007,1.3","1.1,1.7, 1.3"]
[null,"2.1.4","Home to school transport (pre 16): SEN transport expenditure",null,null,null,null,null,null,null,{"$f":"SUM(E106,F106,G106,H106,I106,J106)","v":0},null,0,null,null,null,"1.1,1.7,1.3","1.1,1.7,1.3","1.1,1.7,1.3","1.1,1.7,1.3","1.1,1.7,1.3",1.6,"3.1.1,1.7, 1007","1.1,1.7, 1.3"," "]
[null,"2.1.5","Home to school transport (pre 16): mainstream home to school transport expenditure",null,null,null,null,null,null,null,{"$f":"SUM(E107,F107,G107,H107,I107,J107)","v":0},null,0,null,null,null,"1.1,1.7,1.3","1.1,1.7,1.3","1.1,1.7,1.3","1.1,1.7,1.3","1.1,1.7,1.3",1.6,"3.1.1,1.7, 1007","1.1,1.7, 1.3"]
[null,"2.1.6","Home to post-16 provision: SEN/ LLDD transport expenditure (aged 16-18)",null,null,null,null,null,null,null,{"$f":"SUM(E108,F108,G108,H108,I108,J108)","v":0},null,0,null,null,null,1.6,1.6,"1.1,1.7,1.3","1.1,1.7,1.3","1.1,1.7,1.3","1.1,1.7,1.3","3.1.1,1.7, 1007","1.1,1.7, 1.3"]
[null,"2.1.7","Home to post-16 provision: SEN/ LLDD transport expenditure (aged 19-25)",null,null,null,null,null,null,null,{"$f":"SUM(E109,F109,G109,H109,I109,J109)","v":0},null,0,null,null,null,1.6,1.6,"1.1,1.7,1.3","1.1,1.7,1.3","1.1,1.7,1.3","1.1,1.7,1.3","3.1.1,1.7, 1007","1.1,1.7, 1.3"]
[null,"2.1.8","Home to post-16 provision transport: mainstream home to post-16 transport expenditure",null,null,null,null,null,null,null,{"$f":"SUM(E110,F110,G110,H110,I110,J110)","v":0},null,0,null,null,null,1.6,1.6,"1.1,1.7,1.3","1.1,1.7,1.3","1.1,1.7,1.3","1.1,1.7,1.3","3.1.1,1.7, 1007","1.1,1.7, 1.3"," "]
[null,"2.1.9","Supply of school places",null,null,null,null,null,null,null,null,null,0,null,null,null,null,null,null,null,null,null,"3.1.1,1.7, 1007,1.3","1.1,1.7, 1.3"," "]
[]
[null,"2.2.1","Other spend not funded from the Schools Budget ",null,null,null,null,null,null,null,null,null,{"$f":"K113-L113","v":0},null,null,null,null,null,null,null,null,null,"3.1.1,1.7, 1007,1.3","1.1,1.7, 1.3"]
[]
[null,"2.3.1","Young people's learning and development",null,null,null,null,null,null,null,{"$f":"SUM(G115:J115)","v":0},null,{"$f":"K115-L115","v":0},null,null,null,1.6,1.6,"1.1,1.7,1.3","1.1,1.7,1.3","1.1,1.7,1.3","1.1,1.7,1.3","3.1.1,1.7, 1007","1.1,1.7, 1.3"," "]
[null,"2.3.2","Adult and Community learning",null,null,null,null,null,null,null,null,null,{"$f":"K116-L116","v":0},null,null,null,null,null,null,null,null,null,"3.1.1,1.7, 1007,1.3","1.1,1.7, 1.3"," "]
[null,"2.3.3","Pension costs",null,null,null,null,null,null,null,null,null,{"$f":"K117-L117","v":0},null,null,null,null,null,null,null,null,null,"3.1.1,1.7, 1007,1.3","1.1,1.7, 1.3"," "]
[null,"2.3.4","Joint use arrangements",null,null,null,null,null,null,null,null,null,{"$f":"K118-L118","v":0},null,null,null,null,null,null,null,null,null,"3.1.1,1.7, 1007,1.3","1.1,1.7, 1.3"," "]
[null,"2.3.5","Insurance",null,null,null,null,null,null,null,null,null,{"$f":"K119-L119","v":0},null,null,null,null,null,null,null,null,null,"3.1.1,1.7, 1007,1.3","1.1,1.7, 1.3"," "]
[]
[null,"2.4.1","Other Specific Grant ",null,null,null,null,null,null,null,null,null,{"$f":"K121-L121","v":0},null,null,null,null,null,null,null,null,null,"3.1.1,1.7, 1007,1021,1.3","1.1,1.7, 1.3,1021",1021]
[]
[null,"2.5.1","Total Other education and community budget",null,null,null,null,null,null,null,{"$f":"SUM(K95:K101,K103:K111,K113,K115:K119,K121)","v":0},{"$f":"SUM(L95:L101,L103:L111,L113,L115:L119,L121)","v":0},{"$f":"K123-L123","v":0},null,null,null,null,null,null,null,null,null,null,null," "]
[]
[null,3,"CHILDREN'S AND YOUNG PEOPLE'S SERVICES           "]
[]
[null,null,"SURE START CHILDREN'S CENTRES AND OTHER SPEND ON CHILDREN UNDER 5"]
[null,"3.0.1","Funding for individual Sure Start Children's Centres",null,null,null,null,null,null,null,null,null,{"$f":"K128-L128","v":0},null,null,null,null,null,null,null,null,null,"3.1.1,1.7, 1007,1.3","1.1,1.7, 1.3"]
[null,"3.0.2","Funding for local authority provided or commissioned area wide services delivered through Sure Start Children's Centres",null,null,null,null,null,null,null,null,null,{"$f":"K129-L129","v":0},null,null,null,null,null,null,null,null,null,"3.1.1,1.7, 1007,1.3","1.1,1.7, 1.3"]
[null,"3.0.3","Funding on local authority management costs relating to Sure Start Children's Centres",null,null,null,null,null,null,null,null,null,{"$f":"K130-L130","v":0},null,null,null,null,null,null,null,null,null,"3.1.1,1.7, 1007,1.3","1.1,1.7, 1.3"]
[null,"3.0.4","Other spend on children under 5",null,null,null,null,null,null,null,null,null,{"$f":"K131-L131","v":0},null,null,null,null,null,null,null,null,null,"3.1.1,1.7, 1007,1.3","1.1,1.7, 1.3"]
[null,"3.0.5","Total Sure Start children's centres and other spend on children under 5",null,null,null,null,null,null,null,{"$f":"SUM(K128:K131)","v":0},{"$f":"SUM(L128:L131)","v":0},{"$f":"SUM(M128:M131)","v":0}]
[]
[null,null,"CHILDREN LOOKED AFTER"]
[null,"3.1.1","Residential care",null,null,null,null,null,null,null,null,null,{"$f":"K135-L135","v":0},null,null,null,null,null,null,null,null,null,"3.1.1,1.7, 1007,1.3","1.1,1.7, 1.3"]
[null,"3.1.2a","Fostering services (excluding fees and allowances for LA foster carers)",null,null,null,null,null,null,null,null,null,0,null,null,null,null,null,null,null,null,null,"3.1.1,1.7, 1007,1.3","1.1,1.7, 1.3"]
[null,"3.1.2b","Fostering services (fees and allowances for LA foster carers)",null,null,null,null,null,null,null,null,null,0,null,null,null,null,null,null,null,null,null,"3.1.1,1.7, 1007,1.3","1.1,1.7, 1.3"]
[null,"3.1.3","Adoption services",null,null,null,null,null,null,null,null,null,0,null,null,null,null,null,null,null,null,null,"3.1.1,1.7, 1007,1.3","1.1,1.7, 1.3"]
[null,"3.1.4","Special guardianship support ",null,null,null,null,null,null,null,null,null,0,null,null,null,null,null,null,null,null,null,"3.1.1,1.7, 1007,1.3","1.1,1.7, 1.3"]
[null,"3.1.5","Other children looked after services",null,null,null,null,null,null,null,null,null,0,null,null,null,null,null,null,null,null,null,"3.1.1,1.7, 1007,1.3","1.1,1.7, 1.3"]
[null,"3.1.6","Short breaks (respite) for looked after disabled children",null,null,null,null,null,null,null,null,null,0,null,null,null,null,null,null,null,null,null,"3.1.1,1.7, 1007,1.3","1.1,1.7, 1.3"]
[null,"3.1.7","Children placed with family and friends",null,null,null,null,null,null,null,null,null,0,null,null,null,null,null,null,null,null,null,"3.1.1,1.7, 1007,1.3","1.1,1.7, 1.3"]
[null,"3.1.8","Education of looked after children ",null,null,null,null,null,null,null,{"$f":"SUM(E143,F143,G143,H143,I143)","v":0},null,0,null,null,null,"1.1,1.7,1.3","1.1,1.7,1.3","1.1,1.7,1.3","1.1,1.7,1.3","1.1,1.7,1.3",1.6,"3.1.1,1.7, 1007","1.1,1.7, 1.3"]
[null,"3.1.9","Leaving care support services",null,null,null,null,null,null,null,null,null,0,null,null,null,null,null,null,null,null,null,"3.1.1,1.7, 1007,1.3","1.1,1.7, 1.3"]
[null,"3.1.10","Asylum seeker services children",null,null,null,null,null,null,null,null,null,0,null,null,null,null,null,null,null,null,null,"3.1.1,1.7, 1007,1.3","1.1,1.7, 1.3"]
[null,"3.1.11","Total Children Looked After",null,{"$f":"SUM(E143)","v":0},{"$f":"SUM(F143)","v":0},{"$f":"SUM(G143)","v":0},{"$f":"SUM(H143)","v":0},{"$f":"SUM(I143)","v":0},null,{"$f":"SUM(K135:K145)","v":0},{"$f":"SUM(L135:L145)","v":0},{"$f":"SUM(M135:M145)","v":0}]
[]
[null,null,"OTHER CHILDREN AND FAMILY SERVICES"]
[null,"3.2.1","Other children and families services",null,null,null,null,null,null,null,null,null,{"$f":"K149-L149","v":0},null,null,null,null,null,null,null,null,null,"3.1.1,1.7, 1007,1.3","1.1,1.7, 1.3"]
[]
[null,null,"SAFEGUARDING CHILDREN AND YOUNG PEOPLE'S SERVICES"]
[null,"3.3.1","Social work (including LA functions in relation to child protection)",null,null,null,null,null,null,null,null,null,{"$f":"K152-L152","v":0},null,null,null,null,null,null,null,null,null,"3.1.1,1.7, 1007,1.3","1.1,1.7, 1.3"]
[null,"3.3.2","Commissioning and Children's Services Strategy",null,null,null,null,null,null,null,null,null,{"$f":"K153-L153","v":0},null,null,null,null,null,null,null,null,null,"3.1.1,1.7, 1007,1.3","1.1,1.7, 1.3"]
[null,"3.3.3","Local Safeguarding Children Board",null,null,null,null,null,null,null,null,null,{"$f":"K154-L154","v":0},null,null,null,null,null,null,null,null,null,"3.1.1,1.7, 1007,1.3","1.1,1.7, 1.3"]
[null,"3.3.4","Total Safeguarding Children and Young People's Services",null,null,null,null,null,null,null,{"$f":"SUM(K152:K154)","v":0},{"$f":"SUM(L152:L154)","v":0},{"$f":"SUM(M152:M154)","v":0}]
[]
[null,null,"FAMILY SUPPORT SERVICES"]
[null,"3.4.1","Direct payments",null,null,null,null,null,null,null,null,null,{"$f":"K158-L158","v":0},null,null,null,null,null,null,null,null,null,"3.1.1,1.7, 1007,1.3","1.1,1.7, 1.3"]
[null,"3.4.2","Short breaks (respite) for disabled children",null,null,null,null,null,null,null,null,null,{"$f":"K159-L159","v":0},null,null,null,null,null,null,null,null,null,"3.1.1,1.7, 1007,1.3","1.1,1.7, 1.3"]
[null,"3.4.3","Other support for disabled children",null,null,null,null,null,null,null,null,null,{"$f":"K160-L160","v":0},null,null,null,null,null,null,null,null,null,"3.1.1,1.7, 1007,1.3","1.1,1.7, 1.3"]
[null,"3.4.4","Targeted family support",null,null,null,null,null,null,null,null,null,{"$f":"K161-L161","v":0},null,null,null,null,null,null,null,null,null,"3.1.1,1.7, 1007,1.3","1.1,1.7, 1.3"]
[null,"3.4.5","Universal family support ",null,null,null,null,null,null,null,null,null,{"$f":"K162-L162","v":0},null,null,null,null,null,null,null,null,null,"3.1.1,1.7, 1007,1.3","1.1,1.7, 1.3"]
[null,"3.4.6","Total Family Support Services",null,null,null,null,null,null,null,{"$f":"SUM(K158:K162)","v":0},{"$f":"SUM(L158:L162)","v":0},{"$f":"SUM(M158:M162)","v":0}]
[]
[null,null,"SERVICES FOR YOUNG PEOPLE"]
[null,"3.5.1","Universal services for young people",null,null,null,null,null,null,null,null,null,{"$f":"K166-L166","v":0},null,null,null,null,null,null,null,null,null,"3.1.1,1.7, 1007,1.3","1.1,1.7, 1.3"]
[null,"3.5.2","Targeted services for young people ",null,null,null,null,null,null,null,null,null,{"$f":"K167-L167","v":0},null,null,null,null,null,null,null,null,null,"3.1.1,1.7, 1007,1.3","1.1,1.7, 1.3"]
[null,"3.5.3","Total Services for young people",null,null,null,null,null,null,null,{"$f":"SUM(K166:K167)","v":0},{"$f":"SUM(L166:L167)","v":0},{"$f":"SUM(M166:M167)","v":0}]
[]
[null,null,"YOUTH JUSTICE"]
[null,"3.6.1","Youth justice",null,null,null,null,null,null,null,null,null,{"$f":"K171-L171","v":0},null,null,null,null,null,null,null,null,null,"3.1.1,1.7, 1007,1.3","1.1,1.7, 1.3"]
[]
[null,"4.0.1","Capital Expenditure from Revenue (CERA) (Non-schools budget functions and Children's and young people services)",null,null,null,null,null,null,null,null,null,{"$f":"K173-L173","v":0},null,null,null,null,null,null,null,null,null,"3.1.1,1.7, 1007,1.3","1.1,1.7, 1.3"]
[]
[null,"5.0.1","Total Schools Budget and Other education and community budget (excluding CERA) (lines 1.8.1 and 2.5.1)",null,null,null,null,null,null,null,{"$f":"SUM(K73,K123)","v":0},{"$f":"SUM(L73,L123)","v":0},{"$f":"SUM(M73,M123)","v":0}]
[]
[null,"5.0.2","Total Children and Young People's Services and Youth Justice Budget (excluding CERA)(lines 3.0.5 + 3.1.11 + 3.2.1 + 3.3.4 + 3.4.6 + 3.5.3 + 3.6.1)",null,null,null,null,null,null,null,{"$f":"SUM(K132,K146,K149,K155,K163,K168,K171)","v":0},{"$f":"SUM(L132,L146,L149,L155,L163,L168,L171)","v":0},{"$f":"SUM(M132,M146,M149,M155,M163,M168,M171)","v":0}]
[]
[null,6,"Total Schools Budget, Other education and community budget, Children and Young People's Services and Youth Justice Budget (excluding CERA) (lines 5.0.1 + 5.0.2)",null,null,null,null,null,null,null,{"$f":"SUM(K175,K177)","v":0},{"$f":"SUM(L175,L177)","v":0},{"$f":"SUM(M175,M177)","v":0}]
[]
[null,7,"Capital Expenditure (excluding CERA)",null,null,null,null,null,null,null,{"$f":"SUM(E181,F181,G181,H181,I181)","v":0},null,{"$f":"K181-L181","v":0},null,null,null,"1.1,1.7, 1.3","1.1,1.7, 1.3","1.1,1.7, 1.3","1.1,1.7, 1.3","1.1,1.7, 1.3",null,"3.1.1,1.7, 1007","1.1,1.7, 1.3"]
[]
[null,null,"MEMORANDUM ITEMS"]
[]
[null,8,"Services for young people"]
[null,"8a.1","Substance misuse services (Drugs, Alcohol and Volatile substances) (included in 3.5.1 and 3.5.2 above)",null,null,null,null,null,null,null,null,null,{"$f":"K186-L186","v":0},null,null,null,null,null,null,null,null,null,"3.1.1,1.7, 1007, 6.1,1.3","1.1,1.7, 1.3, 6.1"]
[null,"8a.2","Teenage pregnancy services (included in 3.5.1 and 3.5.2 above)",null,null,null,null,null,null,null,null,null,{"$f":"K187-L187","v":0},null,null,null,null,null,null,null,null,null,"3.1.1,1.7, 1007, 6.2,1.3","1.1,1.7, 1.3, 6.2"]
[]
[null,null,null,"LA Table Notes:"]

{"sheet":"High Needs Places Table","index":3,"n_rows":209,"n_cols":40,"rows_kept":209,"cut":false,"hidden":false,"merged":[[3,5,3,16],[5,33,5,34],[5,37,6,37],[5,22,6,24],[5,25,6,25],[5,26,6,26],[5,27,5,28],[5,30,5,31],[5,19,6,19],[5,13,5,14],[5,17,6,17],[5,2,6,4],[5,5,6,5],[5,6,6,6],[5,7,5,8],[5,10,5,11]]}
[null,"S251 Budget 2022-23"]
[null,"Nursery, Pre-16 and Post-16 high needs places in maintained schools. Full-year data should be entered for schools becoming academies on or after 1 April 2022."]
[]
[null,null,null,null,"Schools Table Notes:",null,null,null,null,null,null,null,null,null,null,null,null,"HNP Table Errors:",null,null,null,null,"Count of headings:",{"$f":"COUNTIF(T:T,\"Error Cell Reference and Description\")","v":1}]
[null,null,null,null,null,null,null,null,null,null,null,null,null,null,null,null,null,null,null,null,null,null,"Count of cells with errors:",{"$f":"COUNTIF(T:T,\"<>\")-X4","v":0}]
[null,null,"Special Schools / Pupil Referral Units / Hospital Schools / Special units and resourced provision in mainstream schools",null,null,"Is School/Unit Opening/Closing In-Year?","Date Opening / Closing","Special Educational Needs (SEN) Places",null,"SEN place funding","Alternative provision (AP) places",null,"AP place funding","Hospital education places  ",null,"Hospital education place funding","Total place funding","Comments",null,"Error Cell Reference and Description",null,"Last Row with data entered:","Special Schools / Pupil Referral Units / Hospital Schools / Special units and resourced provision in mainstream schools",null,null,"Is School/Unit Opening/Closing In-Year?","Date Opening / Closing","Special Educational Needs (SEN) Places",null,"SEN place funding","Alternative provision (AP) places",null,"AP place funding","Hospital education places  ",null,"Hospital education place funding","Total Place funding         net ","Comments"]
[null,null,null,null,null,null,null,"April 2022 to August 2022       ","September 2022 to March 2023","April 2022 to March 2023","April 2022 to August 2022","September 2022 to March 2023","April 2022 to March 2023","April 2022 to August 2022","September 2022 to March 2023","April 2022 to March 2023","April 2022 to March 2023",null,null,null,null,{"$f":"IF(MAX(IF(V9:V1002=1, ROW(V9:V1002)-ROW(INDEX(V9:V1002,1,1))+1))+6>6,MAX(IF(V9:V1002=1, ROW(V9:V1002)-ROW(INDEX(V9:V1002,1,1))+1))+8,0)","v":0},null,null,null,null,null,"April 2022 to August 2022       ","September 2022 to March 2023","April 2022 to March 2023","April 2022 to August 2022","September 2022 to March 2023","April 2022 to March 2023","April 2022 to August 2022","September 2022 to March 2023","April 2022 to March 2023","April 2022 to March 2023"]
[null,"School number - for authorities own use","School Name","DfE Number","School Type","O or C","yyyy-mm-dd",null,null,"£",null,null,"£",null,null,"£","£",null,null,null,null,"Count if values are present","School Name","DfE Number","School Type","O or C",null,null,null,"£",null,null,"£",null,null,"£","£",null,"Error1002\nCalc","Error1003\nCalc"]
[null,null,null,null,null,null,null,null,null,null,null,null,null,null,null,null,{"$f":"SUM(J9,M9,P9)","v":0},null,null,null,null,{"$f":"IF(COUNTIF(B9:R9,\"<>\")-1>0,1,0)","v":0},2.12,"2.11, 2.5, 1.2,1.7",1025,"2.9.1","2.9.1,2.10.1","1002, 1012, 1.3,1.7","1002, 1012, 1.3,1.7","1003, 1024, 1034, 1035,1.7","1002, 1012, 1.3,1.7","1002, 1012, 1.3,1.7","1004, 1036,1.7","1002, 1012, 1.3,1.7","1002, 1012, 1.3,1.7","1005, 1012, 1013, 1037,1.7","1011, 1022,1.7",null,{"$f":"SUM(H9:I9,K9:L9,N9:O9)","v":0},{"$f":"ROUND(H9*5/12+I9*7/12*10000,2)","v":0}]
[null,null,null,null,null,null,null,null,null,null,null,null,null,null,null,null,{"$f":"SUM(J10,M10,P10)","v":0},null,null,null,null,{"$f":"IF(COUNTIF(B10:R10,\"<>\")-1>0,1,0)","v":0},2.12,"2.11, 2.5, 1.2,1.7",1025,"2.9.1","2.9.1,2.10.1","1002, 1012, 1.3,1.7","1002, 1012, 1.3,1.7","1003, 1024, 1034, 1035,1.7","1002, 1012, 1.3,1.7","1002, 1012, 1.3,1.7","1004, 1036,1.7","1002, 1012, 1.3,1.7","1002, 1012, 1.3,1.7","1005, 1012, 1013, 1037,1.7","1011, 1022,1.7",null,{"$f":"SUM(H10:I10,K10:L10,N10:O10)","v":0},{"$f":"ROUND(H10*5/12+I10*7/12*10000,2)","v":0}]
[null,null,null,null,null,null,null,null,null,null,null,null,null,null,null,null,0,null,null,null,null,0,2.12,"2.11, 2.5, 1.2,1.7",1025,"2.9.1","2.9.1,2.10.1","1002, 1012, 1.3,1.7","1002, 1012, 1.3,1.7","1003, 1024, 1034, 1035,1.7","1002, 1012, 1.3,1.7","1002, 1012, 1.3,1.7","1004, 1036,1.7","1002, 1012, 1.3,1.7","1002, 1012, 1.3,1.7","1005, 1012, 1013, 1037,1.7","1011, 1022,1.7",null,0,0]
[null,null,null,null,null,null,null,null,null,null,null,null,null,null,null,null,0,null,null,null,null,0,2.12,"2.11, 2.5, 1.2,1.7",1025,"2.9.1","2.9.1,2.10.1","1002, 1012, 1.3,1.7","1002, 1012, 1.3,1.7","1003, 1024, 1034, 1035,1.7","1002, 1012, 1.3,1.7","1002, 1012, 1.3,1.7","1004, 1036,1.7","1002, 1012, 1.3,1.7","1002, 1012, 1.3,1.7","1005, 1012, 1013, 1037,1.7","1011, 1022,1.7",null,0,0]
[null,null,null,null,null,null,null,null,null,null,null,null,null,null,null,null,0,null,null,null,null,0,2.12,"2.11, 2.5, 1.2,1.7",1025,"2.9.1","2.9.1,2.10.1","1002, 1012, 1.3,1.7","1002, 1012, 1.3,1.7","1003, 1024, 1034, 1035,1.7","1002, 1012, 1.3,1.7","1002, 1012, 1.3,1.7","1004, 1036,1.7","1002, 1012, 1.3,1.7","1002, 1012, 1.3,1.7","1005, 1012, 1013, 1037,1.7","1011, 1022,1.7",null,0,0]
[null,null,null,null,null,null,null,null,null,null,null,null,null,null,null,null,0,null,null,null,null,0,2.12,"2.11, 2.5, 1.2,1.7",1025,"2.9.1","2.9.1,2.10.1","1002, 1012, 1.3,1.7","1002, 1012, 1.3,1.7","1003, 1024, 1034, 1035,1.7","1002, 1012, 1.3,1.7","1002, 1012, 1.3,1.7","1004, 1036,1.7","1002, 1012, 1.3,1.7","1002, 1012, 1.3,1.7","1005, 1012, 1013, 1037,1.7","1011, 1022,1.7",null,0,0]
[null,null,null,null,null,null,null,null,null,null,null,null,null,null,null,null,0,null,null,null,null,0,2.12,"2.11, 2.5, 1.2,1.7",1025,"2.9.1","2.9.1,2.10.1","1002, 1012, 1.3,1.7","1002, 1012, 1.3,1.7","1003, 1024, 1034, 1035,1.7","1002, 1012, 1.3,1.7","1002, 1012, 1.3,1.7","1004, 1036,1.7","1002, 1012, 1.3,1.7","1002, 1012, 1.3,1.7","1005, 1012, 1013, 1037,1.7","1011, 1022,1.7",null,0,0]
[null,null,null,null,null,null,null,null,null,null,null,null,null,null,null,null,0,null,null,null,null,0,2.12,"2.11, 2.5, 1.2,1.7",1025,"2.9.1","2.9.1,2.10.1","1002, 1012, 1.3,1.7","1002, 1012, 1.3,1.7","1003, 1024, 1034, 1035,1.7","1002, 1012, 1.3,1.7","1002, 1012, 1.3,1.7","1004, 1036,1.7","1002, 1012, 1.3,1.7","1002, 1012, 1.3,1.7","1005, 1012, 1013, 1037,1.7","1011, 1022,1.7",null,0,0]
[null,null,null,null,null,null,null,null,null,null,null,null,null,null,null,null,0,null,null,null,null,0,2.12,"2.11, 2.5, 1.2,1.7",1025,"2.9.1","2.9.1,2.10.1","1002, 1012, 1.3,1.7","1002, 1012, 1.3,1.7","1003, 1024, 1034, 1035,1.7","1002, 1012, 1.3,1.7","1002, 1012, 1.3,1.7","1004, 1036,1.7","1002, 1012, 1.3,1.7","1002, 1012, 1.3,1.7","1005, 1012, 1013, 1037,1.7","1011, 1022,1.7",null,0,0]
[null,null,null,null,null,null,null,null,null,null,null,null,null,null,null,null,0,null,null,null,null,0,2.12,"2.11, 2.5, 1.2,1.7",1025,"2.9.1","2.9.1,2.10.1","1002, 1012, 1.3,1.7","1002, 1012, 1.3,1.7","1003, 1024, 1034, 1035,1.7","1002, 1012, 1.3,1.7","1002, 1012, 1.3,1.7","1004, 1036,1.7","1002, 1012, 1.3,1.7","1002, 1012, 1.3,1.7","1005, 1012, 1013, 1037,1.7","1011, 1022,1.7",null,0,0]
[null,null,null,null,null,null,null,null,null,null,null,null,null,null,null,null,0,null,null,null,null,0,2.12,"2.11, 2.5, 1.2,1.7",1025,"2.9.1","2.9.1,2.10.1","1002, 1012, 1.3,1.7","1002, 1012, 1.3,1.7","1003, 1024, 1034, 1035,1.7","1002, 1012, 1.3,1.7","1002, 1012, 1.3,1.7","1004, 1036,1.7","1002, 1012, 1.3,1.7","1002, 1012, 1.3,1.7","1005, 1012, 1013, 1037,1.7","1011, 1022,1.7",null,0,0]
[null,null,null,null,null,null,null,null,null,null,null,null,null,null,null,null,0,null,null,null,null,0,2.12,"2.11, 2.5, 1.2,1.7",1025,"2.9.1","2.9.1,2.10.1","1002, 1012, 1.3,1.7","1002, 1012, 1.3,1.7","1003, 1024, 1034, 1035,1.7","1002, 1012, 1.3,1.7","1002, 1012, 1.3,1.7","1004, 1036,1.7","1002, 1012, 1.3,1.7","1002, 1012, 1.3,1.7","1005, 1012, 1013, 1037,1.7","1011, 1022,1.7",null,0,0]
[null,null,null,null,null,null,null,null,null,null,null,null,null,null,null,null,0,null,null,null,null,0,2.12,"2.11, 2.5, 1.2,1.7",1025,"2.9.1","2.9.1,2.10.1","1002, 1012, 1.3,1.7","1002, 1012, 1.3,1.7","1003, 1024, 1034, 1035,1.7","1002, 1012, 1.3,1.7","1002, 1012, 1.3,1.7","1004, 1036,1.7","1002, 1012, 1.3,1.7","1002, 1012, 1.3,1.7","1005, 1012, 1013, 1037,1.7","1011, 1022,1.7",null,0,0]
[null,null,null,null,null,null,null,null,null,null,null,null,null,null,null,null,0,null,null,null,null,0,2.12,"2.11, 2.5, 1.2,1.7",1025,"2.9.1","2.9.1,2.10.1","1002, 1012, 1.3,1.7","1002, 1012, 1.3,1.7","1003, 1024, 1034, 1035,1.7","1002, 1012, 1.3,1.7","1002, 1012, 1.3,1.7","1004, 1036,1.7","1002, 1012, 1.3,1.7","1002, 1012, 1.3,1.7","1005, 1012, 1013, 1037,1.7","1011, 1022,1.7",null,0,0]
[null,null,null,null,null,null,null,null,null,null,null,null,null,null,null,null,0,null,null,null,null,0,2.12,"2.11, 2.5, 1.2,1.7",1025,"2.9.1","2.9.1,2.10.1","1002, 1012, 1.3,1.7","1002, 1012, 1.3,1.7","1003, 1024, 1034, 1035,1.7","1002, 1012, 1.3,1.7","1002, 1012, 1.3,1.7","1004, 1036,1.7","1002, 1012, 1.3,1.7","1002, 1012, 1.3,1.7","1005, 1012, 1013, 1037,1.7","1011, 1022,1.7",null,0,0]
[null,null,null,null,null,null,null,null,null,null,null,null,null,null,null,null,0,null,null,null,null,0,2.12,"2.11, 2.5, 1.2,1.7",1025,"2.9.1","2.9.1,2.10.1","1002, 1012, 1.3,1.7","1002, 1012, 1.3,1.7","1003, 1024, 1034, 1035,1.7","1002, 1012, 1.3,1.7","1002, 1012, 1.3,1.7","1004, 1036,1.7","1002, 1012, 1.3,1.7","1002, 1012, 1.3,1.7","1005, 1012, 1013, 1037,1.7","1011, 1022,1.7",null,0,0]
[null,null,null,null,null,null,null,null,null,null,null,null,null,null,null,null,0,null,null,null,null,0,2.12,"2.11, 2.5, 1.2,1.7",1025,"2.9.1","2.9.1,2.10.1","1002, 1012, 1.3,1.7","1002, 1012, 1.3,1.7","1003, 1024, 1034, 1035,1.7","1002, 1012, 1.3,1.7","1002, 1012, 1.3,1.7","1004, 1036,1.7","1002, 1012, 1.3,1.7","1002, 1012, 1.3,1.7","1005, 1012, 1013, 1037,1.7","1011, 1022,1.7",null,0,0]
[null,null,null,null,null,null,null,null,null,null,null,null,null,null,null,null,0,null,null,null,null,0,2.12,"2.11, 2.5, 1.2,1.7",1025,"2.9.1","2.9.1,2.10.1","1002, 1012, 1.3,1.7","1002, 1012, 1.3,1.7","1003, 1024, 1034, 1035,1.7","1002, 1012, 1.3,1.7","1002, 1012, 1.3,1.7","1004, 1036,1.7","1002, 1012, 1.3,1.7","1002, 1012, 1.3,1.7","1005, 1012, 1013, 1037,1.7","1011, 1022,1.7",null,0,0]
[null,null,null,null,null,null,null,null,null,null,null,null,null,null,null,null,0,null,null,null,null,0,2.12,"2.11, 2.5, 1.2,1.7",1025,"2.9.1","2.9.1,2.10.1","1002, 1012, 1.3,1.7","1002, 1012, 1.3,1.7","1003, 1024, 1034, 1035,1.7","1002, 1012, 1.3,1.7","1002, 1012, 1.3,1.7","1004, 1036,1.7","1002, 1012, 1.3,1.7","1002, 1012, 1.3,1.7","1005, 1012, 1013, 1037,1.7","1011, 1022,1.7",null,0,0]
[null,null,null,null,null,null,null,null,null,null,null,null,null,null,null,null,0,null,null,null,null,0,2.12,"2.11, 2.5, 1.2,1.7",1025,"2.9.1","2.9.1,2.10.1","1002, 1012, 1.3,1.7","1002, 1012, 1.3,1.7","1003, 1024, 1034, 1035,1.7","1002, 1012, 1.3,1.7","1002, 1012, 1.3,1.7","1004, 1036,1.7","1002, 1012, 1.3,1.7","1002, 1012, 1.3,1.7","1005, 1012, 1013, 1037,1.7","1011, 1022,1.7",null,0,0]
[null,null,null,null,null,null,null,null,null,null,null,null,null,null,null,null,0,null,null,null,null,0,2.12,"2.11, 2.5, 1.2,1.7",1025,"2.9.1","2.9.1,2.10.1","1002, 1012, 1.3,1.7","1002, 1012, 1.3,1.7","1003, 1024, 1034, 1035,1.7","1002, 1012, 1.3,1.7","1002, 1012, 1.3,1.7","1004, 1036,1.7","1002, 1012, 1.3,1.7","1002, 1012, 1.3,1.7","1005, 1012, 1013, 1037,1.7","1011, 1022,1.7",null,0,0]
[null,null,null,null,null,null,null,null,null,null,null,null,null,null,null,null,0,null,null,null,null,0,2.12,"2.11, 2.5, 1.2,1.7",1025,"2.9.1","2.9.1,2.10.1","1002, 1012, 1.3,1.7","1002, 1012, 1.3,1.7","1003, 1024, 1034, 1035,1.7","1002, 1012, 1.3,1.7","1002, 1012, 1.3,1.7","1004, 1036,1.7","1002, 1012, 1.3,1.7","1002, 1012, 1.3,1.7","1005, 1012, 1013, 1037,1.7","1011, 1022,1.7",null,0,0]
[null,null,null,null,null,null,null,null,null,null,null,null,null,null,null,null,0,null,null,null,null,0,2.12,"2.11, 2.5, 1.2,1.7",1025,"2.9.1","2.9.1,2.10.1","1002, 1012, 1.3,1.7","1002, 1012, 1.3,1.7","1003, 1024, 1034, 1035,1.7","1002, 1012, 1.3,1.7","1002, 1012, 1.3,1.7","1004, 1036,1.7","1002, 1012, 1.3,1.7","1002, 1012, 1.3,1.7","1005, 1012, 1013, 1037,1.7","1011, 1022,1.7",null,0,0]
[null,null,null,null,null,null,null,null,null,null,null,null,null,null,null,null,0,null,null,null,null,0,2.12,"2.11, 2.5, 1.2,1.7",1025,"2.9.1","2.9.1,2.10.1","1002, 1012, 1.3,1.7","1002, 1012, 1.3,1.7","1003, 1024, 1034, 1035,1.7","1002, 1012, 1.3,1.7","1002, 1012, 1.3,1.7","1004, 1036,1.7","1002, 1012, 1.3,1.7","1002, 1012, 1.3,1.7","1005, 1012, 1013, 1037,1.7","1011, 1022,1.7",null,0,0]
[null,null,null,null,null,null,null,null,null,null,null,null,null,null,null,null,0,null,null,null,null,0,2.12,"2.11, 2.5, 1.2,1.7",1025,"2.9.1","2.9.1,2.10.1","1002, 1012, 1.3,1.7","1002, 1012, 1.3,1.7","1003, 1024, 1034, 1035,1.7","1002, 1012, 1.3,1.7","1002, 1012, 1.3,1.7","1004, 1036,1.7","1002, 1012, 1.3,1.7","1002, 1012, 1.3,1.7","1005, 1012, 1013, 1037,1.7","1011, 1022,1.7",null,0,0]
[null,null,null,null,null,null,null,null,null,null,null,null,null,null,null,null,0,null,null,null,null,0,2.12,"2.11, 2.5, 1.2,1.7",1025,"2.9.1","2.9.1,2.10.1","1002, 1012, 1.3,1.7","1002, 1012, 1.3,1.7","1003, 1024, 1034, 1035,1.7","1002, 1012, 1.3,1.7","1002, 1012, 1.3,1.7","1004, 1036,1.7","1002, 1012, 1.3,1.7","1002, 1012, 1.3,1.7","1005, 1012, 1013, 1037,1.7","1011, 1022,1.7",null,0,0]
[null,null,null,null,null,null,null,null,null,null,null,null,null,null,null,null,0,null,null,null,null,0,2.12,"2.11, 2.5, 1.2,1.7",1025,"2.9.1","2.9.1,2.10.1","1002, 1012, 1.3,1.7","1002, 1012, 1.3,1.7","1003, 1024, 1034, 1035,1.7","1002, 1012, 1.3,1.7","1002, 1012, 1.3,1.7","1004, 1036,1.7","1002, 1012, 1.3,1.7","1002, 1012, 1.3,1.7","1005, 1012, 1013, 1037,1.7","1011, 1022,1.7",null,0,0]
[null,null,null,null,null,null,null,null,null,null,null,null,null,null,null,null,0,null,null,null,null,0,2.12,"2.11, 2.5, 1.2,1.7",1025,"2.9.1","2.9.1,2.10.1","1002, 1012, 1.3,1.7","1002, 1012, 1.3,1.7","1003, 1024, 1034, 1035,1.7","1002, 1012, 1.3,1.7","1002, 1012, 1.3,1.7","1004, 1036,1.7","1002, 1012, 1.3,1.7","1002, 1012, 1.3,1.7","1005, 1012, 1013, 1037,1.7","1011, 1022,1.7",null,0,0]
[null,null,null,null,null,null,null,null,null,null,null,null,null,null,null,null,0,null,null,null,null,0,2.12,"2.11, 2.5, 1.2,1.7",1025,"2.9.1","2.9.1,2.10.1","1002, 1012, 1.3,1.7","1002, 1012, 1.3,1.7","1003, 1024, 1034, 1035,1.7","1002, 1012, 1.3,1.7","1002, 1012, 1.3,1.7","1004, 1036,1.7","1002, 1012, 1.3,1.7","1002, 1012, 1.3,1.7","1005, 1012, 1013, 1037,1.7","1011, 1022,1.7",null,0,0]
[null,null,null,null,null,null,null,null,null,null,null,null,null,null,null,null,0,null,null,null,null,0,2.12,"2.11, 2.5, 1.2,1.7",1025,"2.9.1","2.9.1,2.10.1","1002, 1012, 1.3,1.7","1002, 1012, 1.3,1.7","1003, 1024, 1034, 1035,1.7","1002, 1012, 1.3,1.7","1002, 1012, 1.3,1.7","1004, 1036,1.7","1002, 1012, 1.3,1.7","1002, 1012, 1.3,1.7","1005, 1012, 1013, 1037,1.7","1011, 1022,1.7",null,0,0]
[null,null,null,null,null,null,null,null,null,null,null,null,null,null,null,null,0,null,null,null,null,0,2.12,"2.11, 2.5, 1.2,1.7",1025,"2.9.1","2.9.1,2.10.1","1002, 1012, 1.3,1.7","1002, 1012, 1.3,1.7","1003, 1024, 1034, 1035,1.7","1002, 1012, 1.3,1.7","1002, 1012, 1.3,1.7","1004, 1036,1.7","1002, 1012, 1.3,1.7","1002, 1012, 1.3,1.7","1005, 1012, 1013, 1037,1.7","1011, 1022,1.7",null,0,0]
[null,null,null,null,null,null,null,null,null,null,null,null,null,null,null,null,0,null,null,null,null,0,2.12,"2.11, 2.5, 1.2,1.7",1025,"2.9.1","2.9.1,2.10.1","1002, 1012, 1.3,1.7","1002, 1012, 1.3,1.7","1003, 1024, 1034, 1035,1.7","1002, 1012, 1.3,1.7","1002, 1012, 1.3,1.7","1004, 1036,1.7","1002, 1012, 1.3,1.7","1002, 1012, 1.3,1.7","1005, 1012, 1013, 1037,1.7","1011, 1022,1.7",null,0,0]
[null,null,null,null,null,null,null,null,null,null,null,null,null,null,null,null,0,null,null,null,null,0,2.12,"2.11, 2.5, 1.2,1.7",1025,"2.9.1","2.9.1,2.10.1","1002, 1012, 1.3,1.7","1002, 1012, 1.3,1.7","1003, 1024, 1034, 1035,1.7","1002, 1012, 1.3,1.7","1002, 1012, 1.3,1.7","1004, 1036,1.7","1002, 1012, 1.3,1.7","1002, 1012, 1.3,1.7","1005, 1012, 1013, 1037,1.7","1011, 1022,1.7",null,0,0]
[null,null,null,null,null,null,null,null,null,null,null,null,null,null,null,null,0,null,null,null,null,0,2.12,"2.11, 2.5, 1.2,1.7",1025,"2.9.1","2.9.1,2.10.1","1002, 1012, 1.3,1.7","1002, 1012, 1.3,1.7","1003, 1024, 1034, 1035,1.7","1002, 1012, 1.3,1.7","1002, 1012, 1.3,1.7","1004, 1036,1.7","1002, 1012, 1.3,1.7","1002, 1012, 1.3,1.7","1005, 1012, 1013, 1037,1.7","1011, 1022,1.7",null,0,0]
[null,null,null,null,null,null,null,null,null,null,null,null,null,null,null,null,0,null,null,null,null,0,2.12,"2.11, 2.5, 1.2,1.7",1025,"2.9.1","2.9.1,2.10.1","1002, 1012, 1.3,1.7","1002, 1012, 1.3,1.7","1003, 1024, 1034, 1035,1.7","1002, 1012, 1.3,1.7","1002, 1012, 1.3,1.7","1004, 1036,1.7","1002, 1012, 1.3,1.7","1002, 1012, 1.3,1.7","1005, 1012, 1013, 1037,1.7","1011, 1022,1.7",null,0,0]
[null,null,null,null,null,null,null,null,null,null,null,null,null,null,null,null,0,null,null,null,null,0,2.12,"2.11, 2.5, 1.2,1.7",1025,"2.9.1","2.9.1,2.10.1","1002, 1012, 1.3,1.7","1002, 1012, 1.3,1.7","1003, 1024, 1034, 1035,1.7","1002, 1012, 1.3,1.7","1002, 1012, 1.3,1.7","1004, 1036,1.7","1002, 1012, 1.3,1.7","1002, 1012, 1.3,1.7","1005, 1012, 1013, 1037,1.7","1011, 1022,1.7",null,0,0]
[null,null,null,null,null,null,null,null,null,null,null,null,null,null,null,null,0,null,null,null,null,0,2.12,"2.11, 2.5, 1.2,1.7",1025,"2.9.1","2.9.1,2.10.1","1002, 1012, 1.3,1.7","1002, 1012, 1.3,1.7","1003, 1024, 1034, 1035,1.7","1002, 1012, 1.3,1.7","1002, 1012, 1.3,1.7","1004, 1036,1.7","1002, 1012, 1.3,1.7","1002, 1012, 1.3,1.7","1005, 1012, 1013, 1037,1.7","1011, 1022,1.7",null,0,0]
[null,null,null,null,null,null,null,null,null,null,null,null,null,null,null,null,0,null,null,null,null,0,2.12,"2.11, 2.5, 1.2,1.7",1025,"2.9.1","2.9.1,2.10.1","1002, 1012, 1.3,1.7","1002, 1012, 1.3,1.7","1003, 1024, 1034, 1035,1.7","1002, 1012, 1.3,1.7","1002, 1012, 1.3,1.7","1004, 1036,1.7","1002, 1012, 1.3,1.7","1002, 1012, 1.3,1.7","1005, 1012, 1013, 1037,1.7","1011, 1022,1.7",null,0,0]
[null,null,null,null,null,null,null,null,null,null,null,null,null,null,null,null,0,null,null,null,null,0,2.12,"2.11, 2.5, 1.2,1.7",1025,"2.9.1","2.9.1,2.10.1","1002, 1012, 1.3,1.7","1002, 1012, 1.3,1.7","1003, 1024, 1034, 1035,1.7","1002, 1012, 1.3,1.7","1002, 1012, 1.3,1.7","1004, 1036,1.7","1002, 1012, 1.3,1.7","1002, 1012, 1.3,1.7","1005, 1012, 1013, 1037,1.7","1011, 1022,1.7",null,0,0]
[null,null,null,null,null,null,null,null,null,null,null,null,null,null,null,null,0,null,null,null,null,0,2.12,"2.11, 2.5, 1.2,1.7",1025,"2.9.1","2.9.1,2.10.1","1002, 1012, 1.3,1.7","1002, 1012, 1.3,1.7","1003, 1024, 1034, 1035,1.7","1002, 1012, 1.3,1.7","1002, 1012, 1.3,1.7","1004, 1036,1.7","1002, 1012, 1.3,1.7","1002, 1012, 1.3,1.7","1005, 1012, 1013, 1037,1.7","1011, 1022,1.7",null,0,0]
[null,null,null,null,null,null,null,null,null,null,null,null,null,null,null,null,0,null,null,null,null,0,2.12,"2.11, 2.5, 1.2,1.7",1025,"2.9.1","2.9.1,2.10.1","1002, 1012, 1.3,1.7","1002, 1012, 1.3,1.7","1003, 1024, 1034, 1035,1.7","1002, 1012, 1.3,1.7","1002, 1012, 1.3,1.7","1004, 1036,1.7","1002, 1012, 1.3,1.7","1002, 1012, 1.3,1.7","1005, 1012, 1013, 1037,1.7","1011, 1022,1.7",null,0,0]
[null,null,null,null,null,null,null,null,null,null,null,null,null,null,null,null,0,null,null,null,null,0,2.12,"2.11, 2.5, 1.2,1.7",1025,"2.9.1","2.9.1,2.10.1","1002, 1012, 1.3,1.7","1002, 1012, 1.3,1.7","1003, 1024, 1034, 1035,1.7","1002, 1012, 1.3,1.7","1002, 1012, 1.3,1.7","1004, 1036,1.7","1002, 1012, 1.3,1.7","1002, 1012, 1.3,1.7","1005, 1012, 1013, 1037,1.7","1011, 1022,1.7",null,0,0]
[null,null,null,null,null,null,null,null,null,null,null,null,null,null,null,null,0,null,null,null,null,0,2.12,"2.11, 2.5, 1.2,1.7",1025,"2.9.1","2.9.1,2.10.1","1002, 1012, 1.3,1.7","1002, 1012, 1.3,1.7","1003, 1024, 1034, 1035,1.7","1002, 1012, 1.3,1.7","1002, 1012, 1.3,1.7","1004, 1036,1.7","1002, 1012, 1.3,1.7","1002, 1012, 1.3,1.7","1005, 1012, 1013, 1037,1.7","1011, 1022,1.7",null,0,0]
[null,null,null,null,null,null,null,null,null,null,null,null,null,null,null,null,0,null,null,null,null,0,2.12,"2.11, 2.5, 1.2,1.7",1025,"2.9.1","2.9.1,2.10.1","1002, 1012, 1.3,1.7","1002, 1012, 1.3,1.7","1003, 1024, 1034, 1035,1.7","1002, 1012, 1.3,1.7","1002, 1012, 1.3,1.7","1004, 1036,1.7","1002, 1012, 1.3,1.7","1002, 1012, 1.3,1.7","1005, 1012, 1013, 1037,1.7","1011, 1022,1.7",null,0,0]
[null,null,null,null,null,null,null,null,null,null,null,null,null,null,null,null,0,null,null,null,null,0,2.12,"2.11, 2.5, 1.2,1.7",1025,"2.9.1","2.9.1,2.10.1","1002, 1012, 1.3,1.7","1002, 1012, 1.3,1.7","1003, 1024, 1034, 1035,1.7","1002, 1012, 1.3,1.7","1002, 1012, 1.3,1.7","1004, 1036,1.7","1002, 1012, 1.3,1.7","1002, 1012, 1.3,1.7","1005, 1012, 1013, 1037,1.7","1011, 1022,1.7",null,0,0]
[null,null,null,null,null,null,null,null,null,null,null,null,null,null,null,null,0,null,null,null,null,0,2.12,"2.11, 2.5, 1.2,1.7",1025,"2.9.1","2.9.1,2.10.1","1002, 1012, 1.3,1.7","1002, 1012, 1.3,1.7","1003, 1024, 1034, 1035,1.7","1002, 1012, 1.3,1.7","1002, 1012, 1.3,1.7","1004, 1036,1.7","1002, 1012, 1.3,1.7","1002, 1012, 1.3,1.7","1005, 1012, 1013, 1037,1.7","1011, 1022,1.7",null,0,0]
[null,null,null,null,null,null,null,null,null,null,null,null,null,null,null,null,0,null,null,null,null,0,2.12,"2.11, 2.5, 1.2,1.7",1025,"2.9.1","2.9.1,2.10.1","1002, 1012, 1.3,1.7","1002, 1012, 1.3,1.7","1003, 1024, 1034, 1035,1.7","1002, 1012, 1.3,1.7","1002, 1012, 1.3,1.7","1004, 1036,1.7","1002, 1012, 1.3,1.7","1002, 1012, 1.3,1.7","1005, 1012, 1013, 1037,1.7","1011, 1022,1.7",null,0,0]
[null,null,null,null,null,null,null,null,null,null,null,null,null,null,null,null,0,null,null,null,null,0,2.12,"2.11, 2.5, 1.2,1.7",1025,"2.9.1","2.9.1,2.10.1","1002, 1012, 1.3,1.7","1002, 1012, 1.3,1.7","1003, 1024, 1034, 1035,1.7","1002, 1012, 1.3,1.7","1002, 1012, 1.3,1.7","1004, 1036,1.7","1002, 1012, 1.3,1.7","1002, 1012, 1.3,1.7","1005, 1012, 1013, 1037,1.7","1011, 1022,1.7",null,0,0]
[null,null,null,null,null,null,null,null,null,null,null,null,null,null,null,null,0,null,null,null,null,0,2.12,"2.11, 2.5, 1.2,1.7",1025,"2.9.1","2.9.1,2.10.1","1002, 1012, 1.3,1.7","1002, 1012, 1.3,1.7","1003, 1024, 1034, 1035,1.7","1002, 1012, 1.3,1.7","1002, 1012, 1.3,1.7","1004, 1036,1.7","1002, 1012, 1.3,1.7","1002, 1012, 1.3,1.7","1005, 1012, 1013, 1037,1.7","1011, 1022,1.7",null,0,0]
[null,null,null,null,null,null,null,null,null,null,null,null,null,null,null,null,0,null,null,null,null,0,2.12,"2.11, 2.5, 1.2,1.7",1025,"2.9.1","2.9.1,2.10.1","1002, 1012, 1.3,1.7","1002, 1012, 1.3,1.7","1003, 1024, 1034, 1035,1.7","1002, 1012, 1.3,1.7","1002, 1012, 1.3,1.7","1004, 1036,1.7","1002, 1012, 1.3,1.7","1002, 1012, 1.3,1.7","1005, 1012, 1013, 1037,1.7","1011, 1022,1.7",null,0,0]
[null,null,null,null,null,null,null,null,null,null,null,null,null,null,null,null,0,null,null,null,null,0,2.12,"2.11, 2.5, 1.2,1.7",1025,"2.9.1","2.9.1,2.10.1","1002, 1012, 1.3,1.7","1002, 1012, 1.3,1.7","1003, 1024, 1034, 1035,1.7","1002, 1012, 1.3,1.7","1002, 1012, 1.3,1.7","1004, 1036,1.7","1002, 1012, 1.3,1.7","1002, 1012, 1.3,1.7","1005, 1012, 1013, 1037,1.7","1011, 1022,1.7",null,0,0]
[null,null,null,null,null,null,null,null,null,null,null,null,null,null,null,null,0,null,null,null,null,0,2.12,"2.11, 2.5, 1.2,1.7",1025,"2.9.1","2.9.1,2.10.1","1002, 1012, 1.3,1.7","1002, 1012, 1.3,1.7","1003, 1024, 1034, 1035,1.7","1002, 1012, 1.3,1.7","1002, 1012, 1.3,1.7","1004, 1036,1.7","1002, 1012, 1.3,1.7","1002, 1012, 1.3,1.7","1005, 1012, 1013, 1037,1.7","1011, 1022,1.7",null,0,0]
[null,null,null,null,null,null,null,null,null,null,null,null,null,null,null,null,0,null,null,null,null,0,2.12,"2.11, 2.5, 1.2,1.7",1025,"2.9.1","2.9.1,2.10.1","1002, 1012, 1.3,1.7","1002, 1012, 1.3,1.7","1003, 1024, 1034, 1035,1.7","1002, 1012, 1.3,1.7","1002, 1012, 1.3,1.7","1004, 1036,1.7","1002, 1012, 1.3,1.7","1002, 1012, 1.3,1.7","1005, 1012, 1013, 1037,1.7","1011, 1022,1.7",null,0,0]
[null,null,null,null,null,null,null,null,null,null,null,null,null,null,null,null,0,null,null,null,null,0,2.12,"2.11, 2.5, 1.2,1.7",1025,"2.9.1","2.9.1,2.10.1","1002, 1012, 1.3,1.7","1002, 1012, 1.3,1.7","1003, 1024, 1034, 1035,1.7","1002, 1012, 1.3,1.7","1002, 1012, 1.3,1.7","1004, 1036,1.7","1002, 1012, 1.3,1.7","1002, 1012, 1.3,1.7","1005, 1012, 1013, 1037,1.7","1011, 1022,1.7",null,0,0]
[null,null,null,null,null,null,null,null,null,null,null,null,null,null,null,null,0,null,null,null,null,0,2.12,"2.11, 2.5, 1.2,1.7",1025,"2.9.1","2.9.1,2.10.1","1002, 1012, 1.3,1.7","1002, 1012, 1.3,1.7","1003, 1024, 1034, 1035,1.7","1002, 1012, 1.3,1.7","1002, 1012, 1.3,1.7","1004, 1036,1.7","1002, 1012, 1.3,1.7","1002, 1012, 1.3,1.7","1005, 1012, 1013, 1037,1.7","1011, 1022,1.7",null,0,0]
[null,null,null,null,null,null,null,null,null,null,null,null,null,null,null,null,0,null,null,null,null,0,2.12,"2.11, 2.5, 1.2,1.7",1025,"2.9.1","2.9.1,2.10.1","1002, 1012, 1.3,1.7","1002, 1012, 1.3,1.7","1003, 1024, 1034, 1035,1.7","1002, 1012, 1.3,1.7","1002, 1012, 1.3,1.7","1004, 1036,1.7","1002, 1012, 1.3,1.7","1002, 1012, 1.3,1.7","1005, 1012, 1013, 1037,1.7","1011, 1022,1.7",null,0,0]
[null,null,null,null,null,null,null,null,null,null,null,null,null,null,null,null,0,null,null,null,null,0,2.12,"2.11, 2.5, 1.2,1.7",1025,"2.9.1","2.9.1,2.10.1","1002, 1012, 1.3,1.7","1002, 1012, 1.3,1.7","1003, 1024, 1034, 1035,1.7","1002, 1012, 1.3,1.7","1002, 1012, 1.3,1.7","1004, 1036,1.7","1002, 1012, 1.3,1.7","1002, 1012, 1.3,1.7","1005, 1012, 1013, 1037,1.7","1011, 1022,1.7",null,0,0]
[null,null,null,null,null,null,null,null,null,null,null,null,null,null,null,null,0,null,null,null,null,0,2.12,"2.11, 2.5, 1.2,1.7",1025,"2.9.1","2.9.1,2.10.1","1002, 1012, 1.3,1.7","1002, 1012, 1.3,1.7","1003, 1024, 1034, 1035,1.7","1002, 1012, 1.3,1.7","1002, 1012, 1.3,1.7","1004, 1036,1.7","1002, 1012, 1.3,1.7","1002, 1012, 1.3,1.7","1005, 1012, 1013, 1037,1.7","1011, 1022,1.7",null,0,0]
[null,null,null,null,null,null,null,null,null,null,null,null,null,null,null,null,0,null,null,null,null,0,2.12,"2.11, 2.5, 1.2,1.7",1025,"2.9.1","2.9.1,2.10.1","1002, 1012, 1.3,1.7","1002, 1012, 1.3,1.7","1003, 1024, 1034, 1035,1.7","1002, 1012, 1.3,1.7","1002, 1012, 1.3,1.7","1004, 1036,1.7","1002, 1012, 1.3,1.7","1002, 1012, 1.3,1.7","1005, 1012, 1013, 1037,1.7","1011, 1022,1.7",null,0,0]
[null,null,null,null,null,null,null,null,null,null,null,null,null,null,null,null,0,null,null,null,null,0,2.12,"2.11, 2.5, 1.2,1.7",1025,"2.9.1","2.9.1,2.10.1","1002, 1012, 1.3,1.7","1002, 1012, 1.3,1.7","1003, 1024, 1034, 1035,1.7","1002, 1012, 1.3,1.7","1002, 1012, 1.3,1.7","1004, 1036,1.7","1002, 1012, 1.3,1.7","1002, 1012, 1.3,1.7","1005, 1012, 1013, 1037,1.7","1011, 1022,1.7",null,0,0]
[null,null,null,null,null,null,null,null,null,null,null,null,null,null,null,null,0,null,null,null,null,0,2.12,"2.11, 2.5, 1.2,1.7",1025,"2.9.1","2.9.1,2.10.1","1002, 1012, 1.3,1.7","1002, 1012, 1.3,1.7","1003, 1024, 1034, 1035,1.7","1002, 1012, 1.3,1.7","1002, 1012, 1.3,1.7","1004, 1036,1.7","1002, 1012, 1.3,1.7","1002, 1012, 1.3,1.7","1005, 1012, 1013, 1037,1.7","1011, 1022,1.7",null,0,0]
[null,null,null,null,null,null,null,null,null,null,null,null,null,null,null,null,0,null,null,null,null,0,2.12,"2.11, 2.5, 1.2,1.7",1025,"2.9.1","2.9.1,2.10.1","1002, 1012, 1.3,1.7","1002, 1012, 1.3,1.7","1003, 1024, 1034, 1035,1.7","1002, 1012, 1.3,1.7","1002, 1012, 1.3,1.7","1004, 1036,1.7","1002, 1012, 1.3,1.7","1002, 1012, 1.3,1.7","1005, 1012, 1013, 1037,1.7","1011, 1022,1.7",null,0,0]
[null,null,null,null,null,null,null,null,null,null,null,null,null,null,null,null,0,null,null,null,null,0,2.12,"2.11, 2.5, 1.2,1.7",1025,"2.9.1","2.9.1,2.10.1","1002, 1012, 1.3,1.7","1002, 1012, 1.3,1.7","1003, 1024, 1034, 1035,1.7","1002, 1012, 1.3,1.7","1002, 1012, 1.3,1.7","1004, 1036,1.7","1002, 1012, 1.3,1.7","1002, 1012, 1.3,1.7","1005, 1012, 1013, 1037,1.7","1011, 1022,1.7",null,0,0]
[null,null,null,null,null,null,null,null,null,null,null,null,null,null,null,null,0,null,null,null,null,0,2.12,"2.11, 2.5, 1.2,1.7",1025,"2.9.1","2.9.1,2.10.1","1002, 1012, 1.3,1.7","1002, 1012, 1.3,1.7","1003, 1024, 1034, 1035,1.7","1002, 1012, 1.3,1.7","1002, 1012, 1.3,1.7","1004, 1036,1.7","1002, 1012, 1.3,1.7","1002, 1012, 1.3,1.7","1005, 1012, 1013, 1037,1.7","1011, 1022,1.7",null,0,0]
[null,null,null,null,null,null,null,null,null,null,null,null,null,null,null,null,0,null,null,null,null,0,2.12,"2.11, 2.5, 1.2,1.7",1025,"2.9.1","2.9.1,2.10.1","1002, 1012, 1.3,1.7","1002, 1012, 1.3,1.7","1003, 1024, 1034, 1035,1.7","1002, 1012, 1.3,1.7","1002, 1012, 1.3,1.7","1004, 1036,1.7","1002, 1012, 1.3,1.7","1002, 1012, 1.3,1.7","1005, 1012, 1013, 1037,1.7","1011, 1022,1.7",null,0,0]
[null,null,null,null,null,null,null,null,null,null,null,null,null,null,null,null,{"$f":"SUM(J74,M74,P74)","v":0},null,null,null,null,{"$f":"IF(COUNTIF(B74:R74,\"<>\")-1>0,1,0)","v":0},2.12,"2.11, 2.5, 1.2,1.7",1025,"2.9.1","2.9.1,2.10.1","1002, 1012, 1.3,1.7","1002, 1012, 1.3,1.7","1003, 1024, 1034, 1035,1.7","1002, 1012, 1.3,1.7","1002, 1012, 1.3,1.7","1004, 1036,1.7","1002, 1012, 1.3,1.7","1002, 1012, 1.3,1.7","1005, 1012, 1013, 1037,1.7","1011, 1022,1.7",null,{"$f":"SUM(H74:I74,K74:L74,N74:O74)","v":0},{"$f":"ROUND(H74*5/12+I74*7/12*10000,2)","v":0}]
[null,null,null,null,null,null,null,null,null,null,null,null,null,null,null,null,0,null,null,null,null,0,2.12,"2.11, 2.5, 1.2,1.7",1025,"2.9.1","2.9.1,2.10.1","1002, 1012, 1.3,1.7","1002, 1012, 1.3,1.7","1003, 1024, 1034, 1035,1.7","1002, 1012, 1.3,1.7","1002, 1012, 1.3,1.7","1004, 1036,1.7","1002, 1012, 1.3,1.7","1002, 1012, 1.3,1.7","1005, 1012, 1013, 1037,1.7","1011, 1022,1.7",null,0,0]
[null,null,null,null,null,null,null,null,null,null,null,null,null,null,null,null,0,null,null,null,null,0,2.12,"2.11, 2.5, 1.2,1.7",1025,"2.9.1","2.9.1,2.10.1","1002, 1012, 1.3,1.7","1002, 1012, 1.3,1.7","1003, 1024, 1034, 1035,1.7","1002, 1012, 1.3,1.7","1002, 1012, 1.3,1.7","1004, 1036,1.7","1002, 1012, 1.3,1.7","1002, 1012, 1.3,1.7","1005, 1012, 1013, 1037,1.7","1011, 1022,1.7",null,0,0]
[null,null,null,null,null,null,null,null,null,null,null,null,null,null,null,null,0,null,null,null,null,0,2.12,"2.11, 2.5, 1.2,1.7",1025,"2.9.1","2.9.1,2.10.1","1002, 1012, 1.3,1.7","1002, 1012, 1.3,1.7","1003, 1024, 1034, 1035,1.7","1002, 1012, 1.3,1.7","1002, 1012, 1.3,1.7","1004, 1036,1.7","1002, 1012, 1.3,1.7","1002, 1012, 1.3,1.7","1005, 1012, 1013, 1037,1.7","1011, 1022,1.7",null,0,0]
[null,null,null,null,null,null,null,null,null,null,null,null,null,null,null,null,0,null,null,null,null,0,2.12,"2.11, 2.5, 1.2,1.7",1025,"2.9.1","2.9.1,2.10.1","1002, 1012, 1.3,1.7","1002, 1012, 1.3,1.7","1003, 1024, 1034, 1035,1.7","1002, 1012, 1.3,1.7","1002, 1012, 1.3,1.7","1004, 1036,1.7","1002, 1012, 1.3,1.7","1002, 1012, 1.3,1.7","1005, 1012, 1013, 1037,1.7","1011, 1022,1.7",null,0,0]
[null,null,null,null,null,null,null,null,null,null,null,null,null,null,null,null,0,null,null,null,null,0,2.12,"2.11, 2.5, 1.2,1.7",1025,"2.9.1","2.9.1,2.10.1","1002, 1012, 1.3,1.7","1002, 1012, 1.3,1.7","1003, 1024, 1034, 1035,1.7","1002, 1012, 1.3,1.7","1002, 1012, 1.3,1.7","1004, 1036,1.7","1002, 1012, 1.3,1.7","1002, 1012, 1.3,1.7","1005, 1012, 1013, 1037,1.7","1011, 1022,1.7",null,0,0]
[null,null,null,null,null,null,null,null,null,null,null,null,null,null,null,null,0,null,null,null,null,0,2.12,"2.11, 2.5, 1.2,1.7",1025,"2.9.1","2.9.1,2.10.1","1002, 1012, 1.3,1.7","1002, 1012, 1.3,1.7","1003, 1024, 1034, 1035,1.7","1002, 1012, 1.3,1.7","1002, 1012, 1.3,1.7","1004, 1036,1.7","1002, 1012, 1.3,1.7","1002, 1012, 1.3,1.7","1005, 1012, 1013, 1037,1.7","1011, 1022,1.7",null,0,0]
[null,null,null,null,null,null,null,null,null,null,null,null,null,null,null,null,0,null,null,null,null,0,2.12,"2.11, 2.5, 1.2,1.7",1025,"2.9.1","2.9.1,2.10.1","1002, 1012, 1.3,1.7","1002, 1012, 1.3,1.7","1003, 1024, 1034, 1035,1.7","1002, 1012, 1.3,1.7","1002, 1012, 1.3,1.7","1004, 1036,1.7","1002, 1012, 1.3,1.7","1002, 1012, 1.3,1.7","1005, 1012, 1013, 1037,1.7","1011, 1022,1.7",null,0,0]
[null,null,null,null,null,null,null,null,null,null,null,null,null,null,null,null,0,null,null,null,null,0,2.12,"2.11, 2.5, 1.2,1.7",1025,"2.9.1","2.9.1,2.10.1","1002, 1012, 1.3,1.7","1002, 1012, 1.3,1.7","1003, 1024, 1034, 1035,1.7","1002, 1012, 1.3,1.7","1002, 1012, 1.3,1.7","1004, 1036,1.7","1002, 1012, 1.3,1.7","1002, 1012, 1.3,1.7","1005, 1012, 1013, 1037,1.7","1011, 1022,1.7",null,0,0]
[null,null,null,null,null,null,null,null,null,null,null,null,null,null,null,null,0,null,null,null,null,0,2.12,"2.11, 2.5, 1.2,1.7",1025,"2.9.1","2.9.1,2.10.1","1002, 1012, 1.3,1.7","1002, 1012, 1.3,1.7","1003, 1024, 1034, 1035,1.7","1002, 1012, 1.3,1.7","1002, 1012, 1.3,1.7","1004, 1036,1.7","1002, 1012, 1.3,1.7","1002, 1012, 1.3,1.7","1005, 1012, 1013, 1037,1.7","1011, 1022,1.7",null,0,0]
[null,null,null,null,null,null,null,null,null,null,null,null,null,null,null,null,0,null,null,null,null,0,2.12,"2.11, 2.5, 1.2,1.7",1025,"2.9.1","2.9.1,2.10.1","1002, 1012, 1.3,1.7","1002, 1012, 1.3,1.7","1003, 1024, 1034, 1035,1.7","1002, 1012, 1.3,1.7","1002, 1012, 1.3,1.7","1004, 1036,1.7","1002, 1012, 1.3,1.7","1002, 1012, 1.3,1.7","1005, 1012, 1013, 1037,1.7","1011, 1022,1.7",null,0,0]
[null,null,null,null,null,null,null,null,null,null,null,null,null,null,null,null,0,null,null,null,null,0,2.12,"2.11, 2.5, 1.2,1.7",1025,"2.9.1","2.9.1,2.10.1","1002, 1012, 1.3,1.7","1002, 1012, 1.3,1.7","1003, 1024, 1034, 1035,1.7","1002, 1012, 1.3,1.7","1002, 1012, 1.3,1.7","1004, 1036,1.7","1002, 1012, 1.3,1.7","1002, 1012, 1.3,1.7","1005, 1012, 1013, 1037,1.7","1011, 1022,1.7",null,0,0]
[null,null,null,null,null,null,null,null,null,null,null,null,null,null,null,null,0,null,null,null,null,0,2.12,"2.11, 2.5, 1.2,1.7",1025,"2.9.1","2.9.1,2.10.1","1002, 1012, 1.3,1.7","1002, 1012, 1.3,1.7","1003, 1024, 1034, 1035,1.7","1002, 1012, 1.3,1.7","1002, 1012, 1.3,1.7","1004, 1036,1.7","1002, 1012, 1.3,1.7","1002, 1012, 1.3,1.7","1005, 1012, 1013, 1037,1.7","1011, 1022,1.7",null,0,0]
[null,null,null,null,null,null,null,null,null,null,null,null,null,null,null,null,0,null,null,null,null,0,2.12,"2.11, 2.5, 1.2,1.7",1025,"2.9.1","2.9.1,2.10.1","1002, 1012, 1.3,1.7","1002, 1012, 1.3,1.7","1003, 1024, 1034, 1035,1.7","1002, 1012, 1.3,1.7","1002, 1012, 1.3,1.7","1004, 1036,1.7","1002, 1012, 1.3,1.7","1002, 1012, 1.3,1.7","1005, 1012, 1013, 1037,1.7","1011, 1022,1.7",null,0,0]
[null,null,null,null,null,null,null,null,null,null,null,null,null,null,null,null,0,null,null,null,null,0,2.12,"2.11, 2.5, 1.2,1.7",1025,"2.9.1","2.9.1,2.10.1","1002, 1012, 1.3,1.7","1002, 1012, 1.3,1.7","1003, 1024, 1034, 1035,1.7","1002, 1012, 1.3,1.7","1002, 1012, 1.3,1.7","1004, 1036,1.7","1002, 1012, 1.3,1.7","1002, 1012, 1.3,1.7","1005, 1012, 1013, 1037,1.7","1011, 1022,1.7",null,0,0]
[null,null,null,null,null,null,null,null,null,null,null,null,null,null,null,null,0,null,null,null,null,0,2.12,"2.11, 2.5, 1.2,1.7",1025,"2.9.1","2.9.1,2.10.1","1002, 1012, 1.3,1.7","1002, 1012, 1.3,1.7","1003, 1024, 1034, 1035,1.7","1002, 1012, 1.3,1.7","1002, 1012, 1.3,1.7","1004, 1036,1.7","1002, 1012, 1.3,1.7","1002, 1012, 1.3,1.7","1005, 1012, 1013, 1037,1.7","1011, 1022,1.7",null,0,0]
[null,null,null,null,null,null,null,null,null,null,null,null,null,null,null,null,0,null,null,null,null,0,2.12,"2.11, 2.5, 1.2,1.7",1025,"2.9.1","2.9.1,2.10.1","1002, 1012, 1.3,1.7","1002, 1012, 1.3,1.7","1003, 1024, 1034, 1035,1.7","1002, 1012, 1.3,1.7","1002, 1012, 1.3,1.7","1004, 1036,1.7","1002, 1012, 1.3,1.7","1002, 1012, 1.3,1.7","1005, 1012, 1013, 1037,1.7","1011, 1022,1.7",null,0,0]
[null,null,null,null,null,null,null,null,null,null,null,null,null,null,null,null,0,null,null,null,null,0,2.12,"2.11, 2.5, 1.2,1.7",1025,"2.9.1","2.9.1,2.10.1","1002, 1012, 1.3,1.7","1002, 1012, 1.3,1.7","1003, 1024, 1034, 1035,1.7","1002, 1012, 1.3,1.7","1002, 1012, 1.3,1.7","1004, 1036,1.7","1002, 1012, 1.3,1.7","1002, 1012, 1.3,1.7","1005, 1012, 1013, 1037,1.7","1011, 1022,1.7",null,0,0]
[null,null,null,null,null,null,null,null,null,null,null,null,null,null,null,null,0,null,null,null,null,0,2.12,"2.11, 2.5, 1.2,1.7",1025,"2.9.1","2.9.1,2.10.1","1002, 1012, 1.3,1.7","1002, 1012, 1.3,1.7","1003, 1024, 1034, 1035,1.7","1002, 1012, 1.3,1.7","1002, 1012, 1.3,1.7","1004, 1036,1.7","1002, 1012, 1.3,1.7","1002, 1012, 1.3,1.7","1005, 1012, 1013, 1037,1.7","1011, 1022,1.7",null,0,0]
[null,null,null,null,null,null,null,null,null,null,null,null,null,null,null,null,0,null,null,null,null,0,2.12,"2.11, 2.5, 1.2,1.7",1025,"2.9.1","2.9.1,2.10.1","1002, 1012, 1.3,1.7","1002, 1012, 1.3,1.7","1003, 1024, 1034, 1035,1.7","1002, 1012, 1.3,1.7","1002, 1012, 1.3,1.7","1004, 1036,1.7","1002, 1012, 1.3,1.7","1002, 1012, 1.3,1.7","1005, 1012, 1013, 1037,1.7","1011, 1022,1.7",null,0,0]
[null,null,null,null,null,null,null,null,null,null,null,null,null,null,null,null,0,null,null,null,null,0,2.12,"2.11, 2.5, 1.2,1.7",1025,"2.9.1","2.9.1,2.10.1","1002, 1012, 1.3,1.7","1002, 1012, 1.3,1.7","1003, 1024, 1034, 1035,1.7","1002, 1012, 1.3,1.7","1002, 1012, 1.3,1.7","1004, 1036,1.7","1002, 1012, 1.3,1.7","1002, 1012, 1.3,1.7","1005, 1012, 1013, 1037,1.7","1011, 1022,1.7",null,0,0]
[null,null,null,null,null,null,null,null,null,null,null,null,null,null,null,null,0,null,null,null,null,0,2.12,"2.11, 2.5, 1.2,1.7",1025,"2.9.1","2.9.1,2.10.1","1002, 1012, 1.3,1.7","1002, 1012, 1.3,1.7","1003, 1024, 1034, 1035,1.7","1002, 1012, 1.3,1.7","1002, 1012, 1.3,1.7","1004, 1036,1.7","1002, 1012, 1.3,1.7","1002, 1012, 1.3,1.7","1005, 1012, 1013, 1037,1.7","1011, 1022,1.7",null,0,0]
[null,null,null,null,null,null,null,null,null,null,null,null,null,null,null,null,0,null,null,null,null,0,2.12,"2.11, 2.5, 1.2,1.7",1025,"2.9.1","2.9.1,2.10.1","1002, 1012, 1.3,1.7","1002, 1012, 1.3,1.7","1003, 1024, 1034, 1035,1.7","1002, 1012, 1.3,1.7","1002, 1012, 1.3,1.7","1004, 1036,1.7","1002, 1012, 1.3,1.7","1002, 1012, 1.3,1.7","1005, 1012, 1013, 1037,1.7","1011, 1022,1.7",null,0,0]
[null,null,null,null,null,null,null,null,null,null,null,null,null,null,null,null,0,null,null,null,null,0,2.12,"2.11, 2.5, 1.2,1.7",1025,"2.9.1","2.9.1,2.10.1","1002, 1012, 1.3,1.7","1002, 1012, 1.3,1.7","1003, 1024, 1034, 1035,1.7","1002, 1012, 1.3,1.7","1002, 1012, 1.3,1.7","1004, 1036,1.7","1002, 1012, 1.3,1.7","1002, 1012, 1.3,1.7","1005, 1012, 1013, 1037,1.7","1011, 1022,1.7",null,0,0]
[null,null,null,null,null,null,null,null,null,null,null,null,null,null,null,null,0,null,null,null,null,0,2.12,"2.11, 2.5, 1.2,1.7",1025,"2.9.1","2.9.1,2.10.1","1002, 1012, 1.3,1.7","1002, 1012, 1.3,1.7","1003, 1024, 1034, 1035,1.7","1002, 1012, 1.3,1.7","1002, 1012, 1.3,1.7","1004, 1036,1.7","1002, 1012, 1.3,1.7","1002, 1012, 1.3,1.7","1005, 1012, 1013, 1037,1.7","1011, 1022,1.7",null,0,0]
[null,null,null,null,null,null,null,null,null,null,null,null,null,null,null,null,0,null,null,null,null,0,2.12,"2.11, 2.5, 1.2,1.7",1025,"2.9.1","2.9.1,2.10.1","1002, 1012, 1.3,1.7","1002, 1012, 1.3,1.7","1003, 1024, 1034, 1035,1.7","1002, 1012, 1.3,1.7","1002, 1012, 1.3,1.7","1004, 1036,1.7","1002, 1012, 1.3,1.7","1002, 1012, 1.3,1.7","1005, 1012, 1013, 1037,1.7","1011, 1022,1.7",null,0,0]
[null,null,null,null,null,null,null,null,null,null,null,null,null,null,null,null,0,null,null,null,null,0,2.12,"2.11, 2.5, 1.2,1.7",1025,"2.9.1","2.9.1,2.10.1","1002, 1012, 1.3,1.7","1002, 1012, 1.3,1.7","1003, 1024, 1034, 1035,1.7","1002, 1012, 1.3,1.7","1002, 1012, 1.3,1.7","1004, 1036,1.7","1002, 1012, 1.3,1.7","1002, 1012, 1.3,1.7","1005, 1012, 1013, 1037,1.7","1011, 1022,1.7",null,0,0]
[null,null,null,null,null,null,null,null,null,null,null,null,null,null,null,null,0,null,null,null,null,0,2.12,"2.11, 2.5, 1.2,1.7",1025,"2.9.1","2.9.1,2.10.1","1002, 1012, 1.3,1.7","1002, 1012, 1.3,1.7","1003, 1024, 1034, 1035,1.7","1002, 1012, 1.3,1.7","1002, 1012, 1.3,1.7","1004, 1036,1.7","1002, 1012, 1.3,1.7","1002, 1012, 1.3,1.7","1005, 1012, 1013, 1037,1.7","1011, 1022,1.7",null,0,0]
[null,null,null,null,null,null,null,null,null,null,null,null,null,null,null,null,0,null,null,null,null,0,2.12,"2.11, 2.5, 1.2,1.7",1025,"2.9.1","2.9.1,2.10.1","1002, 1012, 1.3,1.7","1002, 1012, 1.3,1.7","1003, 1024, 1034, 1035,1.7","1002, 1012, 1.3,1.7","1002, 1012, 1.3,1.7","1004, 1036,1.7","1002, 1012, 1.3,1.7","1002, 1012, 1.3,1.7","1005, 1012, 1013, 1037,1.7","1011, 1022,1.7",null,0,0]
[null,null,null,null,null,null,null,null,null,null,null,null,null,null,null,null,0,null,null,null,null,0,2.12,"2.11, 2.5, 1.2,1.7",1025,"2.9.1","2.9.1,2.10.1","1002, 1012, 1.3,1.7","1002, 1012, 1.3,1.7","1003, 1024, 1034, 1035,1.7","1002, 1012, 1.3,1.7","1002, 1012, 1.3,1.7","1004, 1036,1.7","1002, 1012, 1.3,1.7","1002, 1012, 1.3,1.7","1005, 1012, 1013, 1037,1.7","1011, 1022,1.7",null,0,0]
[null,null,null,null,null,null,null,null,null,null,null,null,null,null,null,null,0,null,null,null,null,0,2.12,"2.11, 2.5, 1.2,1.7",1025,"2.9.1","2.9.1,2.10.1","1002, 1012, 1.3,1.7","1002, 1012, 1.3,1.7","1003, 1024, 1034, 1035,1.7","1002, 1012, 1.3,1.7","1002, 1012, 1.3,1.7","1004, 1036,1.7","1002, 1012, 1.3,1.7","1002, 1012, 1.3,1.7","1005, 1012, 1013, 1037,1.7","1011, 1022,1.7",null,0,0]
[null,null,null,null,null,null,null,null,null,null,null,null,null,null,null,null,0,null,null,null,null,0,2.12,"2.11, 2.5, 1.2,1.7",1025,"2.9.1","2.9.1,2.10.1","1002, 1012, 1.3,1.7","1002, 1012, 1.3,1.7","1003, 1024, 1034, 1035,1.7","1002, 1012, 1.3,1.7","1002, 1012, 1.3,1.7","1004, 1036,1.7","1002, 1012, 1.3,1.7","1002, 1012, 1.3,1.7","1005, 1012, 1013, 1037,1.7","1011, 1022,1.7",null,0,0]
[null,null,null,null,null,null,null,null,null,null,null,null,null,null,null,null,0,null,null,null,null,0,2.12,"2.11, 2.5, 1.2,1.7",1025,"2.9.1","2.9.1,2.10.1","1002, 1012, 1.3,1.7","1002, 1012, 1.3,1.7","1003, 1024, 1034, 1035,1.7","1002, 1012, 1.3,1.7","1002, 1012, 1.3,1.7","1004, 1036,1.7","1002, 1012, 1.3,1.7","1002, 1012, 1.3,1.7","1005, 1012, 1013, 1037,1.7","1011, 1022,1.7",null,0,0]
[null,null,null,null,null,null,null,null,null,null,null,null,null,null,null,null,0,null,null,null,null,0,2.12,"2.11, 2.5, 1.2,1.7",1025,"2.9.1","2.9.1,2.10.1","1002, 1012, 1.3,1.7","1002, 1012, 1.3,1.7","1003, 1024, 1034, 1035,1.7","1002, 1012, 1.3,1.7","1002, 1012, 1.3,1.7","1004, 1036,1.7","1002, 1012, 1.3,1.7","1002, 1012, 1.3,1.7","1005, 1012, 1013, 1037,1.7","1011, 1022,1.7",null,0,0]
[null,null,null,null,null,null,null,null,null,null,null,null,null,null,null,null,0,null,null,null,null,0,2.12,"2.11, 2.5, 1.2,1.7",1025,"2.9.1","2.9.1,2.10.1","1002, 1012, 1.3,1.7","1002, 1012, 1.3,1.7","1003, 1024, 1034, 1035,1.7","1002, 1012, 1.3,1.7","1002, 1012, 1.3,1.7","1004, 1036,1.7","1002, 1012, 1.3,1.7","1002, 1012, 1.3,1.7","1005, 1012, 1013, 1037,1.7","1011, 1022,1.7",null,0,0]
[null,null,null,null,null,null,null,null,null,null,null,null,null,null,null,null,0,null,null,null,null,0,2.12,"2.11, 2.5, 1.2,1.7",1025,"2.9.1","2.9.1,2.10.1","1002, 1012, 1.3,1.7","1002, 1012, 1.3,1.7","1003, 1024, 1034, 1035,1.7","1002, 1012, 1.3,1.7","1002, 1012, 1.3,1.7","1004, 1036,1.7","1002, 1012, 1.3,1.7","1002, 1012, 1.3,1.7","1005, 1012, 1013, 1037,1.7","1011, 1022,1.7",null,0,0]
[null,null,null,null,null,null,null,null,null,null,null,null,null,null,null,null,0,null,null,null,null,0,2.12,"2.11, 2.5, 1.2,1.7",1025,"2.9.1","2.9.1,2.10.1","1002, 1012, 1.3,1.7","1002, 1012, 1.3,1.7","1003, 1024, 1034, 1035,1.7","1002, 1012, 1.3,1.7","1002, 1012, 1.3,1.7","1004, 1036,1.7","1002, 1012, 1.3,1.7","1002, 1012, 1.3,1.7","1005, 1012, 1013, 1037,1.7","1011, 1022,1.7",null,0,0]
[null,null,null,null,null,null,null,null,null,null,null,null,null,null,null,null,0,null,null,null,null,0,2.12,"2.11, 2.5, 1.2,1.7",1025,"2.9.1","2.9.1,2.10.1","1002, 1012, 1.3,1.7","1002, 1012, 1.3,1.7","1003, 1024, 1034, 1035,1.7","1002, 1012, 1.3,1.7","1002, 1012, 1.3,1.7","1004, 1036,1.7","1002, 1012, 1.3,1.7","1002, 1012, 1.3,1.7","1005, 1012, 1013, 1037,1.7","1011, 1022,1.7",null,0,0]
[null,null,null,null,null,null,null,null,null,null,null,null,null,null,null,null,0,null,null,null,null,0,2.12,"2.11, 2.5, 1.2,1.7",1025,"2.9.1","2.9.1,2.10.1","1002, 1012, 1.3,1.7","1002, 1012, 1.3,1.7","1003, 1024, 1034, 1035,1.7","1002, 1012, 1.3,1.7","1002, 1012, 1.3,1.7","1004, 1036,1.7","1002, 1012, 1.3,1.7","1002, 1012, 1.3,1.7","1005, 1012, 1013, 1037,1.7","1011, 1022,1.7",null,0,0]
[null,null,null,null,null,null,null,null,null,null,null,null,null,null,null,null,0,null,null,null,null,0,2.12,"2.11, 2.5, 1.2,1.7",1025,"2.9.1","2.9.1,2.10.1","1002, 1012, 1.3,1.7","1002, 1012, 1.3,1.7","1003, 1024, 1034, 1035,1.7","1002, 1012, 1.3,1.7","1002, 1012, 1.3,1.7","1004, 1036,1.7","1002, 1012, 1.3,1.7","1002, 1012, 1.3,1.7","1005, 1012, 1013, 1037,1.7","1011, 1022,1.7",null,0,0]
[null,null,null,null,null,null,null,null,null,null,null,null,null,null,null,null,0,null,null,null,null,0,2.12,"2.11, 2.5, 1.2,1.7",1025,"2.9.1","2.9.1,2.10.1","1002, 1012, 1.3,1.7","1002, 1012, 1.3,1.7","1003, 1024, 1034, 1035,1.7","1002, 1012, 1.3,1.7","1002, 1012, 1.3,1.7","1004, 1036,1.7","1002, 1012, 1.3,1.7","1002, 1012, 1.3,1.7","1005, 1012, 1013, 1037,1.7","1011, 1022,1.7",null,0,0]
[null,null,null,null,null,null,null,null,null,null,null,null,null,null,null,null,0,null,null,null,null,0,2.12,"2.11, 2.5, 1.2,1.7",1025,"2.9.1","2.9.1,2.10.1","1002, 1012, 1.3,1.7","1002, 1012, 1.3,1.7","1003, 1024, 1034, 1035,1.7","1002, 1012, 1.3,1.7","1002, 1012, 1.3,1.7","1004, 1036,1.7","1002, 1012, 1.3,1.7","1002, 1012, 1.3,1.7","1005, 1012, 1013, 1037,1.7","1011, 1022,1.7",null,0,0]
[null,null,null,null,null,null,null,null,null,null,null,null,null,null,null,null,0,null,null,null,null,0,2.12,"2.11, 2.5, 1.2,1.7",1025,"2.9.1","2.9.1,2.10.1","1002, 1012, 1.3,1.7","1002, 1012, 1.3,1.7","1003, 1024, 1034, 1035,1.7","1002, 1012, 1.3,1.7","1002, 1012, 1.3,1.7","1004, 1036,1.7","1002, 1012, 1.3,1.7","1002, 1012, 1.3,1.7","1005, 1012, 1013, 1037,1.7","1011, 1022,1.7",null,0,0]
[null,null,null,null,null,null,null,null,null,null,null,null,null,null,null,null,0,null,null,null,null,0,2.12,"2.11, 2.5, 1.2,1.7",1025,"2.9.1","2.9.1,2.10.1","1002, 1012, 1.3,1.7","1002, 1012, 1.3,1.7","1003, 1024, 1034, 1035,1.7","1002, 1012, 1.3,1.7","1002, 1012, 1.3,1.7","1004, 1036,1.7","1002, 1012, 1.3,1.7","1002, 1012, 1.3,1.7","1005, 1012, 1013, 1037,1.7","1011, 1022,1.7",null,0,0]
[null,null,null,null,null,null,null,null,null,null,null,null,null,null,null,null,0,null,null,null,null,0,2.12,"2.11, 2.5, 1.2,1.7",1025,"2.9.1","2.9.1,2.10.1","1002, 1012, 1.3,1.7","1002, 1012, 1.3,1.7","1003, 1024, 1034, 1035,1.7","1002, 1012, 1.3,1.7","1002, 1012, 1.3,1.7","1004, 1036,1.7","1002, 1012, 1.3,1.7","1002, 1012, 1.3,1.7","1005, 1012, 1013, 1037,1.7","1011, 1022,1.7",null,0,0]
[null,null,null,null,null,null,null,null,null,null,null,null,null,null,null,null,0,null,null,null,null,0,2.12,"2.11, 2.5, 1.2,1.7",1025,"2.9.1","2.9.1,2.10.1","1002, 1012, 1.3,1.7","1002, 1012, 1.3,1.7","1003, 1024, 1034, 1035,1.7","1002, 1012, 1.3,1.7","1002, 1012, 1.3,1.7","1004, 1036,1.7","1002, 1012, 1.3,1.7","1002, 1012, 1.3,1.7","1005, 1012, 1013, 1037,1.7","1011, 1022,1.7",null,0,0]
[null,null,null,null,null,null,null,null,null,null,null,null,null,null,null,null,0,null,null,null,null,0,2.12,"2.11, 2.5, 1.2,1.7",1025,"2.9.1","2.9.1,2.10.1","1002, 1012, 1.3,1.7","1002, 1012, 1.3,1.7","1003, 1024, 1034, 1035,1.7","1002, 1012, 1.3,1.7","1002, 1012, 1.3,1.7","1004, 1036,1.7","1002, 1012, 1.3,1.7","1002, 1012, 1.3,1.7","1005, 1012, 1013, 1037,1.7","1011, 1022,1.7",null,0,0]
[null,null,null,null,null,null,null,null,null,null,null,null,null,null,null,null,0,null,null,null,null,0,2.12,"2.11, 2.5, 1.2,1.7",1025,"2.9.1","2.9.1,2.10.1","1002, 1012, 1.3,1.7","1002, 1012, 1.3,1.7","1003, 1024, 1034, 1035,1.7","1002, 1012, 1.3,1.7","1002, 1012, 1.3,1.7","1004, 1036,1.7","1002, 1012, 1.3,1.7","1002, 1012, 1.3,1.7","1005, 1012, 1013, 1037,1.7","1011, 1022,1.7",null,0,0]
[null,null,null,null,null,null,null,null,null,null,null,null,null,null,null,null,0,null,null,null,null,0,2.12,"2.11, 2.5, 1.2,1.7",1025,"2.9.1","2.9.1,2.10.1","1002, 1012, 1.3,1.7","1002, 1012, 1.3,1.7","1003, 1024, 1034, 1035,1.7","1002, 1012, 1.3,1.7","1002, 1012, 1.3,1.7","1004, 1036,1.7","1002, 1012, 1.3,1.7","1002, 1012, 1.3,1.7","1005, 1012, 1013, 1037,1.7","1011, 1022,1.7",null,0,0]
[null,null,null,null,null,null,null,null,null,null,null,null,null,null,null,null,0,null,null,null,null,0,2.12,"2.11, 2.5, 1.2,1.7",1025,"2.9.1","2.9.1,2.10.1","1002, 1012, 1.3,1.7","1002, 1012, 1.3,1.7","1003, 1024, 1034, 1035,1.7","1002, 1012, 1.3,1.7","1002, 1012, 1.3,1.7","1004, 1036,1.7","1002, 1012, 1.3,1.7","1002, 1012, 1.3,1.7","1005, 1012, 1013, 1037,1.7","1011, 1022,1.7",null,0,0]
[null,null,null,null,null,null,null,null,null,null,null,null,null,null,null,null,0,null,null,null,null,0,2.12,"2.11, 2.5, 1.2,1.7",1025,"2.9.1","2.9.1,2.10.1","1002, 1012, 1.3,1.7","1002, 1012, 1.3,1.7","1003, 1024, 1034, 1035,1.7","1002, 1012, 1.3,1.7","1002, 1012, 1.3,1.7","1004, 1036,1.7","1002, 1012, 1.3,1.7","1002, 1012, 1.3,1.7","1005, 1012, 1013, 1037,1.7","1011, 1022,1.7",null,0,0]
[null,null,null,null,null,null,null,null,null,null,null,null,null,null,null,null,0,null,null,null,null,0,2.12,"2.11, 2.5, 1.2,1.7",1025,"2.9.1","2.9.1,2.10.1","1002, 1012, 1.3,1.7","1002, 1012, 1.3,1.7","1003, 1024, 1034, 1035,1.7","1002, 1012, 1.3,1.7","1002, 1012, 1.3,1.7","1004, 1036,1.7","1002, 1012, 1.3,1.7","1002, 1012, 1.3,1.7","1005, 1012, 1013, 1037,1.7","1011, 1022,1.7",null,0,0]
[null,null,null,null,null,null,null,null,null,null,null,null,null,null,null,null,0,null,null,null,null,0,2.12,"2.11, 2.5, 1.2,1.7",1025,"2.9.1","2.9.1,2.10.1","1002, 1012, 1.3,1.7","1002, 1012, 1.3,1.7","1003, 1024, 1034, 1035,1.7","1002, 1012, 1.3,1.7","1002, 1012, 1.3,1.7","1004, 1036,1.7","1002, 1012, 1.3,1.7","1002, 1012, 1.3,1.7","1005, 1012, 1013, 1037,1.7","1011, 1022,1.7",null,0,0]
[null,null,null,null,null,null,null,null,null,null,null,null,null,null,null,null,0,null,null,null,null,0,2.12,"2.11, 2.5, 1.2,1.7",1025,"2.9.1","2.9.1,2.10.1","1002, 1012, 1.3,1.7","1002, 1012, 1.3,1.7","1003, 1024, 1034, 1035,1.7","1002, 1012, 1.3,1.7","1002, 1012, 1.3,1.7","1004, 1036,1.7","1002, 1012, 1.3,1.7","1002, 1012, 1.3,1.7","1005, 1012, 1013, 1037,1.7","1011, 1022,1.7",null,0,0]
[null,null,null,null,null,null,null,null,null,null,null,null,null,null,null,null,0,null,null,null,null,0,2.12,"2.11, 2.5, 1.2,1.7",1025,"2.9.1","2.9.1,2.10.1","1002, 1012, 1.3,1.7","1002, 1012, 1.3,1.7","1003, 1024, 1034, 1035,1.7","1002, 1012, 1.3,1.7","1002, 1012, 1.3,1.7","1004, 1036,1.7","1002, 1012, 1.3,1.7","1002, 1012, 1.3,1.7","1005, 1012, 1013, 1037,1.7","1011, 1022,1.7",null,0,0]
[null,null,null,null,null,null,null,null,null,null,null,null,null,null,null,null,0,null,null,null,null,0,2.12,"2.11, 2.5, 1.2,1.7",1025,"2.9.1","2.9.1,2.10.1","1002, 1012, 1.3,1.7","1002, 1012, 1.3,1.7","1003, 1024, 1034, 1035,1.7","1002, 1012, 1.3,1.7","1002, 1012, 1.3,1.7","1004, 1036,1.7","1002, 1012, 1.3,1.7","1002, 1012, 1.3,1.7","1005, 1012, 1013, 1037,1.7","1011, 1022,1.7",null,0,0]
[null,null,null,null,null,null,null,null,null,null,null,null,null,null,null,null,0,null,null,null,null,0,2.12,"2.11, 2.5, 1.2,1.7",1025,"2.9.1","2.9.1,2.10.1","1002, 1012, 1.3,1.7","1002, 1012, 1.3,1.7","1003, 1024, 1034, 1035,1.7","1002, 1012, 1.3,1.7","1002, 1012, 1.3,1.7","1004, 1036,1.7","1002, 1012, 1.3,1.7","1002, 1012, 1.3,1.7","1005, 1012, 1013, 1037,1.7","1011, 1022,1.7",null,0,0]
[null,null,null,null,null,null,null,null,null,null,null,null,null,null,null,null,0,null,null,null,null,0,2.12,"2.11, 2.5, 1.2,1.7",1025,"2.9.1","2.9.1,2.10.1","1002, 1012, 1.3,1.7","1002, 1012, 1.3,1.7","1003, 1024, 1034, 1035,1.7","1002, 1012, 1.3,1.7","1002, 1012, 1.3,1.7","1004, 1036,1.7","1002, 1012, 1.3,1.7","1002, 1012, 1.3,1.7","1005, 1012, 1013, 1037,1.7","1011, 1022,1.7",null,0,0]
[null,null,null,null,null,null,null,null,null,null,null,null,null,null,null,null,0,null,null,null,null,0,2.12,"2.11, 2.5, 1.2,1.7",1025,"2.9.1","2.9.1,2.10.1","1002, 1012, 1.3,1.7","1002, 1012, 1.3,1.7","1003, 1024, 1034, 1035,1.7","1002, 1012, 1.3,1.7","1002, 1012, 1.3,1.7","1004, 1036,1.7","1002, 1012, 1.3,1.7","1002, 1012, 1.3,1.7","1005, 1012, 1013, 1037,1.7","1011, 1022,1.7",null,0,0]
[null,null,null,null,null,null,null,null,null,null,null,null,null,null,null,null,0,null,null,null,null,0,2.12,"2.11, 2.5, 1.2,1.7",1025,"2.9.1","2.9.1,2.10.1","1002, 1012, 1.3,1.7","1002, 1012, 1.3,1.7","1003, 1024, 1034, 1035,1.7","1002, 1012, 1.3,1.7","1002, 1012, 1.3,1.7","1004, 1036,1.7","1002, 1012, 1.3,1.7","1002, 1012, 1.3,1.7","1005, 1012, 1013, 1037,1.7","1011, 1022,1.7",null,0,0]
[null,null,null,null,null,null,null,null,null,null,null,null,null,null,null,null,0,null,null,null,null,0,2.12,"2.11, 2.5, 1.2,1.7",1025,"2.9.1","2.9.1,2.10.1","1002, 1012, 1.3,1.7","1002, 1012, 1.3,1.7","1003, 1024, 1034, 1035,1.7","1002, 1012, 1.3,1.7","1002, 1012, 1.3,1.7","1004, 1036,1.7","1002, 1012, 1.3,1.7","1002, 1012, 1.3,1.7","1005, 1012, 1013, 1037,1.7","1011, 1022,1.7",null,0,0]
[null,null,null,null,null,null,null,null,null,null,null,null,null,null,null,null,0,null,null,null,null,0,2.12,"2.11, 2.5, 1.2,1.7",1025,"2.9.1","2.9.1,2.10.1","1002, 1012, 1.3,1.7","1002, 1012, 1.3,1.7","1003, 1024, 1034, 1035,1.7","1002, 1012, 1.3,1.7","1002, 1012, 1.3,1.7","1004, 1036,1.7","1002, 1012, 1.3,1.7","1002, 1012, 1.3,1.7","1005, 1012, 1013, 1037,1.7","1011, 1022,1.7",null,0,0]
[null,null,null,null,null,null,null,null,null,null,null,null,null,null,null,null,0,null,null,null,null,0,2.12,"2.11, 2.5, 1.2,1.7",1025,"2.9.1","2.9.1,2.10.1","1002, 1012, 1.3,1.7","1002, 1012, 1.3,1.7","1003, 1024, 1034, 1035,1.7","1002, 1012, 1.3,1.7","1002, 1012, 1.3,1.7","1004, 1036,1.7","1002, 1012, 1.3,1.7","1002, 1012, 1.3,1.7","1005, 1012, 1013, 1037,1.7","1011, 1022,1.7",null,0,0]
[null,null,null,null,null,null,null,null,null,null,null,null,null,null,null,null,0,null,null,null,null,0,2.12,"2.11, 2.5, 1.2,1.7",1025,"2.9.1","2.9.1,2.10.1","1002, 1012, 1.3,1.7","1002, 1012, 1.3,1.7","1003, 1024, 1034, 1035,1.7","1002, 1012, 1.3,1.7","1002, 1012, 1.3,1.7","1004, 1036,1.7","1002, 1012, 1.3,1.7","1002, 1012, 1.3,1.7","1005, 1012, 1013, 1037,1.7","1011, 1022,1.7",null,0,0]
[null,null,null,null,null,null,null,null,null,null,null,null,null,null,null,null,{"$f":"SUM(J138,M138,P138)","v":0},null,null,null,null,{"$f":"IF(COUNTIF(B138:R138,\"<>\")-1>0,1,0)","v":0},2.12,"2.11, 2.5, 1.2,1.7",1025,"2.9.1","2.9.1,2.10.1","1002, 1012, 1.3,1.7","1002, 1012, 1.3,1.7","1003, 1024, 1034, 1035,1.7","1002, 1012, 1.3,1.7","1002, 1012, 1.3,1.7","1004, 1036,1.7","1002, 1012, 1.3,1.7","1002, 1012, 1.3,1.7","1005, 1012, 1013, 1037,1.7","1011, 1022,1.7",null,{"$f":"SUM(H138:I138,K138:L138,N138:O138)","v":0},{"$f":"ROUND(H138*5/12+I138*7/12*10000,2)","v":0}]
[null,null,null,null,null,null,null,null,null,null,null,null,null,null,null,null,0,null,null,null,null,0,2.12,"2.11, 2.5, 1.2,1.7",1025,"2.9.1","2.9.1,2.10.1","1002, 1012, 1.3,1.7","1002, 1012, 1.3,1.7","1003, 1024, 1034, 1035,1.7","1002, 1012, 1.3,1.7","1002, 1012, 1.3,1.7","1004, 1036,1.7","1002, 1012, 1.3,1.7","1002, 1012, 1.3,1.7","1005, 1012, 1013, 1037,1.7","1011, 1022,1.7",null,0,0]
[null,null,null,null,null,null,null,null,null,null,null,null,null,null,null,null,0,null,null,null,null,0,2.12,"2.11, 2.5, 1.2,1.7",1025,"2.9.1","2.9.1,2.10.1","1002, 1012, 1.3,1.7","1002, 1012, 1.3,1.7","1003, 1024, 1034, 1035,1.7","1002, 1012, 1.3,1.7","1002, 1012, 1.3,1.7","1004, 1036,1.7","1002, 1012, 1.3,1.7","1002, 1012, 1.3,1.7","1005, 1012, 1013, 1037,1.7","1011, 1022,1.7",null,0,0]
[null,null,null,null,null,null,null,null,null,null,null,null,null,null,null,null,0,null,null,null,null,0,2.12,"2.11, 2.5, 1.2,1.7",1025,"2.9.1","2.9.1,2.10.1","1002, 1012, 1.3,1.7","1002, 1012, 1.3,1.7","1003, 1024, 1034, 1035,1.7","1002, 1012, 1.3,1.7","1002, 1012, 1.3,1.7","1004, 1036,1.7","1002, 1012, 1.3,1.7","1002, 1012, 1.3,1.7","1005, 1012, 1013, 1037,1.7","1011, 1022,1.7",null,0,0]
[null,null,null,null,null,null,null,null,null,null,null,null,null,null,null,null,0,null,null,null,null,0,2.12,"2.11, 2.5, 1.2,1.7",1025,"2.9.1","2.9.1,2.10.1","1002, 1012, 1.3,1.7","1002, 1012, 1.3,1.7","1003, 1024, 1034, 1035,1.7","1002, 1012, 1.3,1.7","1002, 1012, 1.3,1.7","1004, 1036,1.7","1002, 1012, 1.3,1.7","1002, 1012, 1.3,1.7","1005, 1012, 1013, 1037,1.7","1011, 1022,1.7",null,0,0]
[null,null,null,null,null,null,null,null,null,null,null,null,null,null,null,null,0,null,null,null,null,0,2.12,"2.11, 2.5, 1.2,1.7",1025,"2.9.1","2.9.1,2.10.1","1002, 1012, 1.3,1.7","1002, 1012, 1.3,1.7","1003, 1024, 1034, 1035,1.7","1002, 1012, 1.3,1.7","1002, 1012, 1.3,1.7","1004, 1036,1.7","1002, 1012, 1.3,1.7","1002, 1012, 1.3,1.7","1005, 1012, 1013, 1037,1.7","1011, 1022,1.7",null,0,0]
[null,null,null,null,null,null,null,null,null,null,null,null,null,null,null,null,0,null,null,null,null,0,2.12,"2.11, 2.5, 1.2,1.7",1025,"2.9.1","2.9.1,2.10.1","1002, 1012, 1.3,1.7","1002, 1012, 1.3,1.7","1003, 1024, 1034, 1035,1.7","1002, 1012, 1.3,1.7","1002, 1012, 1.3,1.7","1004, 1036,1.7","1002, 1012, 1.3,1.7","1002, 1012, 1.3,1.7","1005, 1012, 1013, 1037,1.7","1011, 1022,1.7",null,0,0]
[null,null,null,null,null,null,null,null,null,null,null,null,null,null,null,null,0,null,null,null,null,0,2.12,"2.11, 2.5, 1.2,1.7",1025,"2.9.1","2.9.1,2.10.1","1002, 1012, 1.3,1.7","1002, 1012, 1.3,1.7","1003, 1024, 1034, 1035,1.7","1002, 1012, 1.3,1.7","1002, 1012, 1.3,1.7","1004, 1036,1.7","1002, 1012, 1.3,1.7","1002, 1012, 1.3,1.7","1005, 1012, 1013, 1037,1.7","1011, 1022,1.7",null,0,0]
[null,null,null,null,null,null,null,null,null,null,null,null,null,null,null,null,0,null,null,null,null,0,2.12,"2.11, 2.5, 1.2,1.7",1025,"2.9.1","2.9.1,2.10.1","1002, 1012, 1.3,1.7","1002, 1012, 1.3,1.7","1003, 1024, 1034, 1035,1.7","1002, 1012, 1.3,1.7","1002, 1012, 1.3,1.7","1004, 1036,1.7","1002, 1012, 1.3,1.7","1002, 1012, 1.3,1.7","1005, 1012, 1013, 1037,1.7","1011, 1022,1.7",null,0,0]
[null,null,null,null,null,null,null,null,null,null,null,null,null,null,null,null,0,null,null,null,null,0,2.12,"2.11, 2.5, 1.2,1.7",1025,"2.9.1","2.9.1,2.10.1","1002, 1012, 1.3,1.7","1002, 1012, 1.3,1.7","1003, 1024, 1034, 1035,1.7","1002, 1012, 1.3,1.7","1002, 1012, 1.3,1.7","1004, 1036,1.7","1002, 1012, 1.3,1.7","1002, 1012, 1.3,1.7","1005, 1012, 1013, 1037,1.7","1011, 1022,1.7",null,0,0]
[null,null,null,null,null,null,null,null,null,null,null,null,null,null,null,null,0,null,null,null,null,0,2.12,"2.11, 2.5, 1.2,1.7",1025,"2.9.1","2.9.1,2.10.1","1002, 1012, 1.3,1.7","1002, 1012, 1.3,1.7","1003, 1024, 1034, 1035,1.7","1002, 1012, 1.3,1.7","1002, 1012, 1.3,1.7","1004, 1036,1.7","1002, 1012, 1.3,1.7","1002, 1012, 1.3,1.7","1005, 1012, 1013, 1037,1.7","1011, 1022,1.7",null,0,0]
[null,null,null,null,null,null,null,null,null,null,null,null,null,null,null,null,0,null,null,null,null,0,2.12,"2.11, 2.5, 1.2,1.7",1025,"2.9.1","2.9.1,2.10.1","1002, 1012, 1.3,1.7","1002, 1012, 1.3,1.7","1003, 1024, 1034, 1035,1.7","1002, 1012, 1.3,1.7","1002, 1012, 1.3,1.7","1004, 1036,1.7","1002, 1012, 1.3,1.7","1002, 1012, 1.3,1.7","1005, 1012, 1013, 1037,1.7","1011, 1022,1.7",null,0,0]
[null,null,null,null,null,null,null,null,null,null,null,null,null,null,null,null,0,null,null,null,null,0,2.12,"2.11, 2.5, 1.2,1.7",1025,"2.9.1","2.9.1,2.10.1","1002, 1012, 1.3,1.7","1002, 1012, 1.3,1.7","1003, 1024, 1034, 1035,1.7","1002, 1012, 1.3,1.7","1002, 1012, 1.3,1.7","1004, 1036,1.7","1002, 1012, 1.3,1.7","1002, 1012, 1.3,1.7","1005, 1012, 1013, 1037,1.7","1011, 1022,1.7",null,0,0]
[null,null,null,null,null,null,null,null,null,null,null,null,null,null,null,null,0,null,null,null,null,0,2.12,"2.11, 2.5, 1.2,1.7",1025,"2.9.1","2.9.1,2.10.1","1002, 1012, 1.3,1.7","1002, 1012, 1.3,1.7","1003, 1024, 1034, 1035,1.7","1002, 1012, 1.3,1.7","1002, 1012, 1.3,1.7","1004, 1036,1.7","1002, 1012, 1.3,1.7","1002, 1012, 1.3,1.7","1005, 1012, 1013, 1037,1.7","1011, 1022,1.7",null,0,0]
[null,null,null,null,null,null,null,null,null,null,null,null,null,null,null,null,0,null,null,null,null,0,2.12,"2.11, 2.5, 1.2,1.7",1025,"2.9.1","2.9.1,2.10.1","1002, 1012, 1.3,1.7","1002, 1012, 1.3,1.7","1003, 1024, 1034, 1035,1.7","1002, 1012, 1.3,1.7","1002, 1012, 1.3,1.7","1004, 1036,1.7","1002, 1012, 1.3,1.7","1002, 1012, 1.3,1.7","1005, 1012, 1013, 1037,1.7","1011, 1022,1.7",null,0,0]
[null,null,null,null,null,null,null,null,null,null,null,null,null,null,null,null,0,null,null,null,null,0,2.12,"2.11, 2.5, 1.2,1.7",1025,"2.9.1","2.9.1,2.10.1","1002, 1012, 1.3,1.7","1002, 1012, 1.3,1.7","1003, 1024, 1034, 1035,1.7","1002, 1012, 1.3,1.7","1002, 1012, 1.3,1.7","1004, 1036,1.7","1002, 1012, 1.3,1.7","1002, 1012, 1.3,1.7","1005, 1012, 1013, 1037,1.7","1011, 1022,1.7",null,0,0]
[null,null,null,null,null,null,null,null,null,null,null,null,null,null,null,null,0,null,null,null,null,0,2.12,"2.11, 2.5, 1.2,1.7",1025,"2.9.1","2.9.1,2.10.1","1002, 1012, 1.3,1.7","1002, 1012, 1.3,1.7","1003, 1024, 1034, 1035,1.7","1002, 1012, 1.3,1.7","1002, 1012, 1.3,1.7","1004, 1036,1.7","1002, 1012, 1.3,1.7","1002, 1012, 1.3,1.7","1005, 1012, 1013, 1037,1.7","1011, 1022,1.7",null,0,0]
[null,null,null,null,null,null,null,null,null,null,null,null,null,null,null,null,0,null,null,null,null,0,2.12,"2.11, 2.5, 1.2,1.7",1025,"2.9.1","2.9.1,2.10.1","1002, 1012, 1.3,1.7","1002, 1012, 1.3,1.7","1003, 1024, 1034, 1035,1.7","1002, 1012, 1.3,1.7","1002, 1012, 1.3,1.7","1004, 1036,1.7","1002, 1012, 1.3,1.7","1002, 1012, 1.3,1.7","1005, 1012, 1013, 1037,1.7","1011, 1022,1.7",null,0,0]
[null,null,null,null,null,null,null,null,null,null,null,null,null,null,null,null,0,null,null,null,null,0,2.12,"2.11, 2.5, 1.2,1.7",1025,"2.9.1","2.9.1,2.10.1","1002, 1012, 1.3,1.7","1002, 1012, 1.3,1.7","1003, 1024, 1034, 1035,1.7","1002, 1012, 1.3,1.7","1002, 1012, 1.3,1.7","1004, 1036,1.7","1002, 1012, 1.3,1.7","1002, 1012, 1.3,1.7","1005, 1012, 1013, 1037,1.7","1011, 1022,1.7",null,0,0]
[null,null,null,null,null,null,null,null,null,null,null,null,null,null,null,null,0,null,null,null,null,0,2.12,"2.11, 2.5, 1.2,1.7",1025,"2.9.1","2.9.1,2.10.1","1002, 1012, 1.3,1.7","1002, 1012, 1.3,1.7","1003, 1024, 1034, 1035,1.7","1002, 1012, 1.3,1.7","1002, 1012, 1.3,1.7","1004, 1036,1.7","1002, 1012, 1.3,1.7","1002, 1012, 1.3,1.7","1005, 1012, 1013, 1037,1.7","1011, 1022,1.7",null,0,0]
[null,null,null,null,null,null,null,null,null,null,null,null,null,null,null,null,0,null,null,null,null,0,2.12,"2.11, 2.5, 1.2,1.7",1025,"2.9.1","2.9.1,2.10.1","1002, 1012, 1.3,1.7","1002, 1012, 1.3,1.7","1003, 1024, 1034, 1035,1.7","1002, 1012, 1.3,1.7","1002, 1012, 1.3,1.7","1004, 1036,1.7","1002, 1012, 1.3,1.7","1002, 1012, 1.3,1.7","1005, 1012, 1013, 1037,1.7","1011, 1022,1.7",null,0,0]
[null,null,null,null,null,null,null,null,null,null,null,null,null,null,null,null,0,null,null,null,null,0,2.12,"2.11, 2.5, 1.2,1.7",1025,"2.9.1","2.9.1,2.10.1","1002, 1012, 1.3,1.7","1002, 1012, 1.3,1.7","1003, 1024, 1034, 1035,1.7","1002, 1012, 1.3,1.7","1002, 1012, 1.3,1.7","1004, 1036,1.7","1002, 1012, 1.3,1.7","1002, 1012, 1.3,1.7","1005, 1012, 1013, 1037,1.7","1011, 1022,1.7",null,0,0]
[null,null,null,null,null,null,null,null,null,null,null,null,null,null,null,null,0,null,null,null,null,0,2.12,"2.11, 2.5, 1.2,1.7",1025,"2.9.1","2.9.1,2.10.1","1002, 1012, 1.3,1.7","1002, 1012, 1.3,1.7","1003, 1024, 1034, 1035,1.7","1002, 1012, 1.3,1.7","1002, 1012, 1.3,1.7","1004, 1036,1.7","1002, 1012, 1.3,1.7","1002, 1012, 1.3,1.7","1005, 1012, 1013, 1037,1.7","1011, 1022,1.7",null,0,0]
[null,null,null,null,null,null,null,null,null,null,null,null,null,null,null,null,0,null,null,null,null,0,2.12,"2.11, 2.5, 1.2,1.7",1025,"2.9.1","2.9.1,2.10.1","1002, 1012, 1.3,1.7","1002, 1012, 1.3,1.7","1003, 1024, 1034, 1035,1.7","1002, 1012, 1.3,1.7","1002, 1012, 1.3,1.7","1004, 1036,1.7","1002, 1012, 1.3,1.7","1002, 1012, 1.3,1.7","1005, 1012, 1013, 1037,1.7","1011, 1022,1.7",null,0,0]
[null,null,null,null,null,null,null,null,null,null,null,null,null,null,null,null,0,null,null,null,null,0,2.12,"2.11, 2.5, 1.2,1.7",1025,"2.9.1","2.9.1,2.10.1","1002, 1012, 1.3,1.7","1002, 1012, 1.3,1.7","1003, 1024, 1034, 1035,1.7","1002, 1012, 1.3,1.7","1002, 1012, 1.3,1.7","1004, 1036,1.7","1002, 1012, 1.3,1.7","1002, 1012, 1.3,1.7","1005, 1012, 1013, 1037,1.7","1011, 1022,1.7",null,0,0]
[null,null,null,null,null,null,null,null,null,null,null,null,null,null,null,null,0,null,null,null,null,0,2.12,"2.11, 2.5, 1.2,1.7",1025,"2.9.1","2.9.1,2.10.1","1002, 1012, 1.3,1.7","1002, 1012, 1.3,1.7","1003, 1024, 1034, 1035,1.7","1002, 1012, 1.3,1.7","1002, 1012, 1.3,1.7","1004, 1036,1.7","1002, 1012, 1.3,1.7","1002, 1012, 1.3,1.7","1005, 1012, 1013, 1037,1.7","1011, 1022,1.7",null,0,0]
[null,null,null,null,null,null,null,null,null,null,null,null,null,null,null,null,0,null,null,null,null,0,2.12,"2.11, 2.5, 1.2,1.7",1025,"2.9.1","2.9.1,2.10.1","1002, 1012, 1.3,1.7","1002, 1012, 1.3,1.7","1003, 1024, 1034, 1035,1.7","1002, 1012, 1.3,1.7","1002, 1012, 1.3,1.7","1004, 1036,1.7","1002, 1012, 1.3,1.7","1002, 1012, 1.3,1.7","1005, 1012, 1013, 1037,1.7","1011, 1022,1.7",null,0,0]
[null,null,null,null,null,null,null,null,null,null,null,null,null,null,null,null,0,null,null,null,null,0,2.12,"2.11, 2.5, 1.2,1.7",1025,"2.9.1","2.9.1,2.10.1","1002, 1012, 1.3,1.7","1002, 1012, 1.3,1.7","1003, 1024, 1034, 1035,1.7","1002, 1012, 1.3,1.7","1002, 1012, 1.3,1.7","1004, 1036,1.7","1002, 1012, 1.3,1.7","1002, 1012, 1.3,1.7","1005, 1012, 1013, 1037,1.7","1011, 1022,1.7",null,0,0]
[null,null,null,null,null,null,null,null,null,null,null,null,null,null,null,null,0,null,null,null,null,0,2.12,"2.11, 2.5, 1.2,1.7",1025,"2.9.1","2.9.1,2.10.1","1002, 1012, 1.3,1.7","1002, 1012, 1.3,1.7","1003, 1024, 1034, 1035,1.7","1002, 1012, 1.3,1.7","1002, 1012, 1.3,1.7","1004, 1036,1.7","1002, 1012, 1.3,1.7","1002, 1012, 1.3,1.7","1005, 1012, 1013, 1037,1.7","1011, 1022,1.7",null,0,0]
[null,null,null,null,null,null,null,null,null,null,null,null,null,null,null,null,0,null,null,null,null,0,2.12,"2.11, 2.5, 1.2,1.7",1025,"2.9.1","2.9.1,2.10.1","1002, 1012, 1.3,1.7","1002, 1012, 1.3,1.7","1003, 1024, 1034, 1035,1.7","1002, 1012, 1.3,1.7","1002, 1012, 1.3,1.7","1004, 1036,1.7","1002, 1012, 1.3,1.7","1002, 1012, 1.3,1.7","1005, 1012, 1013, 1037,1.7","1011, 1022,1.7",null,0,0]
[null,null,null,null,null,null,null,null,null,null,null,null,null,null,null,null,0,null,null,null,null,0,2.12,"2.11, 2.5, 1.2,1.7",1025,"2.9.1","2.9.1,2.10.1","1002, 1012, 1.3,1.7","1002, 1012, 1.3,1.7","1003, 1024, 1034, 1035,1.7","1002, 1012, 1.3,1.7","1002, 1012, 1.3,1.7","1004, 1036,1.7","1002, 1012, 1.3,1.7","1002, 1012, 1.3,1.7","1005, 1012, 1013, 1037,1.7","1011, 1022,1.7",null,0,0]
[null,null,null,null,null,null,null,null,null,null,null,null,null,null,null,null,0,null,null,null,null,0,2.12,"2.11, 2.5, 1.2,1.7",1025,"2.9.1","2.9.1,2.10.1","1002, 1012, 1.3,1.7","1002, 1012, 1.3,1.7","1003, 1024, 1034, 1035,1.7","1002, 1012, 1.3,1.7","1002, 1012, 1.3,1.7","1004, 1036,1.7","1002, 1012, 1.3,1.7","1002, 1012, 1.3,1.7","1005, 1012, 1013, 1037,1.7","1011, 1022,1.7",null,0,0]
[null,null,null,null,null,null,null,null,null,null,null,null,null,null,null,null,0,null,null,null,null,0,2.12,"2.11, 2.5, 1.2,1.7",1025,"2.9.1","2.9.1,2.10.1","1002, 1012, 1.3,1.7","1002, 1012, 1.3,1.7","1003, 1024, 1034, 1035,1.7","1002, 1012, 1.3,1.7","1002, 1012, 1.3,1.7","1004, 1036,1.7","1002, 1012, 1.3,1.7","1002, 1012, 1.3,1.7","1005, 1012, 1013, 1037,1.7","1011, 1022,1.7",null,0,0]
[null,null,null,null,null,null,null,null,null,null,null,null,null,null,null,null,0,null,null,null,null,0,2.12,"2.11, 2.5, 1.2,1.7",1025,"2.9.1","2.9.1,2.10.1","1002, 1012, 1.3,1.7","1002, 1012, 1.3,1.7","1003, 1024, 1034, 1035,1.7","1002, 1012, 1.3,1.7","1002, 1012, 1.3,1.7","1004, 1036,1.7","1002, 1012, 1.3,1.7","1002, 1012, 1.3,1.7","1005, 1012, 1013, 1037,1.7","1011, 1022,1.7",null,0,0]
[null,null,null,null,null,null,null,null,null,null,null,null,null,null,null,null,0,null,null,null,null,0,2.12,"2.11, 2.5, 1.2,1.7",1025,"2.9.1","2.9.1,2.10.1","1002, 1012, 1.3,1.7","1002, 1012, 1.3,1.7","1003, 1024, 1034, 1035,1.7","1002, 1012, 1.3,1.7","1002, 1012, 1.3,1.7","1004, 1036,1.7","1002, 1012, 1.3,1.7","1002, 1012, 1.3,1.7","1005, 1012, 1013, 1037,1.7","1011, 1022,1.7",null,0,0]
[null,null,null,null,null,null,null,null,null,null,null,null,null,null,null,null,0,null,null,null,null,0,2.12,"2.11, 2.5, 1.2,1.7",1025,"2.9.1","2.9.1,2.10.1","1002, 1012, 1.3,1.7","1002, 1012, 1.3,1.7","1003, 1024, 1034, 1035,1.7","1002, 1012, 1.3,1.7","1002, 1012, 1.3,1.7","1004, 1036,1.7","1002, 1012, 1.3,1.7","1002, 1012, 1.3,1.7","1005, 1012, 1013, 1037,1.7","1011, 1022,1.7",null,0,0]
[null,null,null,null,null,null,null,null,null,null,null,null,null,null,null,null,0,null,null,null,null,0,2.12,"2.11, 2.5, 1.2,1.7",1025,"2.9.1","2.9.1,2.10.1","1002, 1012, 1.3,1.7","1002, 1012, 1.3,1.7","1003, 1024, 1034, 1035,1.7","1002, 1012, 1.3,1.7","1002, 1012, 1.3,1.7","1004, 1036,1.7","1002, 1012, 1.3,1.7","1002, 1012, 1.3,1.7","1005, 1012, 1013, 1037,1.7","1011, 1022,1.7",null,0,0]
[null,null,null,null,null,null,null,null,null,null,null,null,null,null,null,null,0,null,null,null,null,0,2.12,"2.11, 2.5, 1.2,1.7",1025,"2.9.1","2.9.1,2.10.1","1002, 1012, 1.3,1.7","1002, 1012, 1.3,1.7","1003, 1024, 1034, 1035,1.7","1002, 1012, 1.3,1.7","1002, 1012, 1.3,1.7","1004, 1036,1.7","1002, 1012, 1.3,1.7","1002, 1012, 1.3,1.7","1005, 1012, 1013, 1037,1.7","1011, 1022,1.7",null,0,0]
[null,null,null,null,null,null,null,null,null,null,null,null,null,null,null,null,0,null,null,null,null,0,2.12,"2.11, 2.5, 1.2,1.7",1025,"2.9.1","2.9.1,2.10.1","1002, 1012, 1.3,1.7","1002, 1012, 1.3,1.7","1003, 1024, 1034, 1035,1.7","1002, 1012, 1.3,1.7","1002, 1012, 1.3,1.7","1004, 1036,1.7","1002, 1012, 1.3,1.7","1002, 1012, 1.3,1.7","1005, 1012, 1013, 1037,1.7","1011, 1022,1.7",null,0,0]
[null,null,null,null,null,null,null,null,null,null,null,null,null,null,null,null,0,null,null,null,null,0,2.12,"2.11, 2.5, 1.2,1.7",1025,"2.9.1","2.9.1,2.10.1","1002, 1012, 1.3,1.7","1002, 1012, 1.3,1.7","1003, 1024, 1034, 1035,1.7","1002, 1012, 1.3,1.7","1002, 1012, 1.3,1.7","1004, 1036,1.7","1002, 1012, 1.3,1.7","1002, 1012, 1.3,1.7","1005, 1012, 1013, 1037,1.7","1011, 1022,1.7",null,0,0]
[null,null,null,null,null,null,null,null,null,null,null,null,null,null,null,null,0,null,null,null,null,0,2.12,"2.11, 2.5, 1.2,1.7",1025,"2.9.1","2.9.1,2.10.1","1002, 1012, 1.3,1.7","1002, 1012, 1.3,1.7","1003, 1024, 1034, 1035,1.7","1002, 1012, 1.3,1.7","1002, 1012, 1.3,1.7","1004, 1036,1.7","1002, 1012, 1.3,1.7","1002, 1012, 1.3,1.7","1005, 1012, 1013, 1037,1.7","1011, 1022,1.7",null,0,0]
[null,null,null,null,null,null,null,null,null,null,null,null,null,null,null,null,0,null,null,null,null,0,2.12,"2.11, 2.5, 1.2,1.7",1025,"2.9.1","2.9.1,2.10.1","1002, 1012, 1.3,1.7","1002, 1012, 1.3,1.7","1003, 1024, 1034, 1035,1.7","1002, 1012, 1.3,1.7","1002, 1012, 1.3,1.7","1004, 1036,1.7","1002, 1012, 1.3,1.7","1002, 1012, 1.3,1.7","1005, 1012, 1013, 1037,1.7","1011, 1022,1.7",null,0,0]
[null,null,null,null,null,null,null,null,null,null,null,null,null,null,null,null,0,null,null,null,null,0,2.12,"2.11, 2.5, 1.2,1.7",1025,"2.9.1","2.9.1,2.10.1","1002, 1012, 1.3,1.7","1002, 1012, 1.3,1.7","1003, 1024, 1034, 1035,1.7","1002, 1012, 1.3,1.7","1002, 1012, 1.3,1.7","1004, 1036,1.7","1002, 1012, 1.3,1.7","1002, 1012, 1.3,1.7","1005, 1012, 1013, 1037,1.7","1011, 1022,1.7",null,0,0]
[null,null,null,null,null,null,null,null,null,null,null,null,null,null,null,null,0,null,null,null,null,0,2.12,"2.11, 2.5, 1.2,1.7",1025,"2.9.1","2.9.1,2.10.1","1002, 1012, 1.3,1.7","1002, 1012, 1.3,1.7","1003, 1024, 1034, 1035,1.7","1002, 1012, 1.3,1.7","1002, 1012, 1.3,1.7","1004, 1036,1.7","1002, 1012, 1.3,1.7","1002, 1012, 1.3,1.7","1005, 1012, 1013, 1037,1.7","1011, 1022,1.7",null,0,0]
[null,null,null,null,null,null,null,null,null,null,null,null,null,null,null,null,0,null,null,null,null,0,2.12,"2.11, 2.5, 1.2,1.7",1025,"2.9.1","2.9.1,2.10.1","1002, 1012, 1.3,1.7","1002, 1012, 1.3,1.7","1003, 1024, 1034, 1035,1.7","1002, 1012, 1.3,1.7","1002, 1012, 1.3,1.7","1004, 1036,1.7","1002, 1012, 1.3,1.7","1002, 1012, 1.3,1.7","1005, 1012, 1013, 1037,1.7","1011, 1022,1.7",null,0,0]
[null,null,null,null,null,null,null,null,null,null,null,null,null,null,null,null,0,null,null,null,null,0,2.12,"2.11, 2.5, 1.2,1.7",1025,"2.9.1","2.9.1,2.10.1","1002, 1012, 1.3,1.7","1002, 1012, 1.3,1.7","1003, 1024, 1034, 1035,1.7","1002, 1012, 1.3,1.7","1002, 1012, 1.3,1.7","1004, 1036,1.7","1002, 1012, 1.3,1.7","1002, 1012, 1.3,1.7","1005, 1012, 1013, 1037,1.7","1011, 1022,1.7",null,0,0]
[null,null,null,null,null,null,null,null,null,null,null,null,null,null,null,null,0,null,null,null,null,0,2.12,"2.11, 2.5, 1.2,1.7",1025,"2.9.1","2.9.1,2.10.1","1002, 1012, 1.3,1.7","1002, 1012, 1.3,1.7","1003, 1024, 1034, 1035,1.7","1002, 1012, 1.3,1.7","1002, 1012, 1.3,1.7","1004, 1036,1.7","1002, 1012, 1.3,1.7","1002, 1012, 1.3,1.7","1005, 1012, 1013, 1037,1.7","1011, 1022,1.7",null,0,0]
[null,null,null,null,null,null,null,null,null,null,null,null,null,null,null,null,0,null,null,null,null,0,2.12,"2.11, 2.5, 1.2,1.7",1025,"2.9.1","2.9.1,2.10.1","1002, 1012, 1.3,1.7","1002, 1012, 1.3,1.7","1003, 1024, 1034, 1035,1.7","1002, 1012, 1.3,1.7","1002, 1012, 1.3,1.7","1004, 1036,1.7","1002, 1012, 1.3,1.7","1002, 1012, 1.3,1.7","1005, 1012, 1013, 1037,1.7","1011, 1022,1.7",null,0,0]
[null,null,null,null,null,null,null,null,null,null,null,null,null,null,null,null,0,null,null,null,null,0,2.12,"2.11, 2.5, 1.2,1.7",1025,"2.9.1","2.9.1,2.10.1","1002, 1012, 1.3,1.7","1002, 1012, 1.3,1.7","1003, 1024, 1034, 1035,1.7","1002, 1012, 1.3,1.7","1002, 1012, 1.3,1.7","1004, 1036,1.7","1002, 1012, 1.3,1.7","1002, 1012, 1.3,1.7","1005, 1012, 1013, 1037,1.7","1011, 1022,1.7",null,0,0]
[null,null,null,null,null,null,null,null,null,null,null,null,null,null,null,null,0,null,null,null,null,0,2.12,"2.11, 2.5, 1.2,1.7",1025,"2.9.1","2.9.1,2.10.1","1002, 1012, 1.3,1.7","1002, 1012, 1.3,1.7","1003, 1024, 1034, 1035,1.7","1002, 1012, 1.3,1.7","1002, 1012, 1.3,1.7","1004, 1036,1.7","1002, 1012, 1.3,1.7","1002, 1012, 1.3,1.7","1005, 1012, 1013, 1037,1.7","1011, 1022,1.7",null,0,0]
[null,null,null,null,null,null,null,null,null,null,null,null,null,null,null,null,0,null,null,null,null,0,2.12,"2.11, 2.5, 1.2,1.7",1025,"2.9.1","2.9.1,2.10.1","1002, 1012, 1.3,1.7","1002, 1012, 1.3,1.7","1003, 1024, 1034, 1035,1.7","1002, 1012, 1.3,1.7","1002, 1012, 1.3,1.7","1004, 1036,1.7","1002, 1012, 1.3,1.7","1002, 1012, 1.3,1.7","1005, 1012, 1013, 1037,1.7","1011, 1022,1.7",null,0,0]
[null,null,null,null,null,null,null,null,null,null,null,null,null,null,null,null,0,null,null,null,null,0,2.12,"2.11, 2.5, 1.2,1.7",1025,"2.9.1","2.9.1,2.10.1","1002, 1012, 1.3,1.7","1002, 1012, 1.3,1.7","1003, 1024, 1034, 1035,1.7","1002, 1012, 1.3,1.7","1002, 1012, 1.3,1.7","1004, 1036,1.7","1002, 1012, 1.3,1.7","1002, 1012, 1.3,1.7","1005, 1012, 1013, 1037,1.7","1011, 1022,1.7",null,0,0]
[null,null,null,null,null,null,null,null,null,null,null,null,null,null,null,null,0,null,null,null,null,0,2.12,"2.11, 2.5, 1.2,1.7",1025,"2.9.1","2.9.1,2.10.1","1002, 1012, 1.3,1.7","1002, 1012, 1.3,1.7","1003, 1024, 1034, 1035,1.7","1002, 1012, 1.3,1.7","1002, 1012, 1.3,1.7","1004, 1036,1.7","1002, 1012, 1.3,1.7","1002, 1012, 1.3,1.7","1005, 1012, 1013, 1037,1.7","1011, 1022,1.7",null,0,0]
[null,null,null,null,null,null,null,null,null,null,null,null,null,null,null,null,0,null,null,null,null,0,2.12,"2.11, 2.5, 1.2,1.7",1025,"2.9.1","2.9.1,2.10.1","1002, 1012, 1.3,1.7","1002, 1012, 1.3,1.7","1003, 1024, 1034, 1035,1.7","1002, 1012, 1.3,1.7","1002, 1012, 1.3,1.7","1004, 1036,1.7","1002, 1012, 1.3,1.7","1002, 1012, 1.3,1.7","1005, 1012, 1013, 1037,1.7","1011, 1022,1.7",null,0,0]
[null,null,null,null,null,null,null,null,null,null,null,null,null,null,null,null,0,null,null,null,null,0,2.12,"2.11, 2.5, 1.2,1.7",1025,"2.9.1","2.9.1,2.10.1","1002, 1012, 1.3,1.7","1002, 1012, 1.3,1.7","1003, 1024, 1034, 1035,1.7","1002, 1012, 1.3,1.7","1002, 1012, 1.3,1.7","1004, 1036,1.7","1002, 1012, 1.3,1.7","1002, 1012, 1.3,1.7","1005, 1012, 1013, 1037,1.7","1011, 1022,1.7",null,0,0]
[null,null,null,null,null,null,null,null,null,null,null,null,null,null,null,null,0,null,null,null,null,0,2.12,"2.11, 2.5, 1.2,1.7",1025,"2.9.1","2.9.1,2.10.1","1002, 1012, 1.3,1.7","1002, 1012, 1.3,1.7","1003, 1024, 1034, 1035,1.7","1002, 1012, 1.3,1.7","1002, 1012, 1.3,1.7","1004, 1036,1.7","1002, 1012, 1.3,1.7","1002, 1012, 1.3,1.7","1005, 1012, 1013, 1037,1.7","1011, 1022,1.7",null,0,0]
[null,null,null,null,null,null,null,null,null,null,null,null,null,null,null,null,0,null,null,null,null,0,2.12,"2.11, 2.5, 1.2,1.7",1025,"2.9.1","2.9.1,2.10.1","1002, 1012, 1.3,1.7","1002, 1012, 1.3,1.7","1003, 1024, 1034, 1035,1.7","1002, 1012, 1.3,1.7","1002, 1012, 1.3,1.7","1004, 1036,1.7","1002, 1012, 1.3,1.7","1002, 1012, 1.3,1.7","1005, 1012, 1013, 1037,1.7","1011, 1022,1.7",null,0,0]
[null,null,null,null,null,null,null,null,null,null,null,null,null,null,null,null,0,null,null,null,null,0,2.12,"2.11, 2.5, 1.2,1.7",1025,"2.9.1","2.9.1,2.10.1","1002, 1012, 1.3,1.7","1002, 1012, 1.3,1.7","1003, 1024, 1034, 1035,1.7","1002, 1012, 1.3,1.7","1002, 1012, 1.3,1.7","1004, 1036,1.7","1002, 1012, 1.3,1.7","1002, 1012, 1.3,1.7","1005, 1012, 1013, 1037,1.7","1011, 1022,1.7",null,0,0]
[null,null,null,null,null,null,null,null,null,null,null,null,null,null,null,null,0,null,null,null,null,0,2.12,"2.11, 2.5, 1.2,1.7",1025,"2.9.1","2.9.1,2.10.1","1002, 1012, 1.3,1.7","1002, 1012, 1.3,1.7","1003, 1024, 1034, 1035,1.7","1002, 1012, 1.3,1.7","1002, 1012, 1.3,1.7","1004, 1036,1.7","1002, 1012, 1.3,1.7","1002, 1012, 1.3,1.7","1005, 1012, 1013, 1037,1.7","1011, 1022,1.7",null,0,0]
[null,null,null,null,null,null,null,null,null,null,null,null,null,null,null,null,0,null,null,null,null,0,2.12,"2.11, 2.5, 1.2,1.7",1025,"2.9.1","2.9.1,2.10.1","1002, 1012, 1.3,1.7","1002, 1012, 1.3,1.7","1003, 1024, 1034, 1035,1.7","1002, 1012, 1.3,1.7","1002, 1012, 1.3,1.7","1004, 1036,1.7","1002, 1012, 1.3,1.7","1002, 1012, 1.3,1.7","1005, 1012, 1013, 1037,1.7","1011, 1022,1.7",null,0,0]
[null,null,null,null,null,null,null,null,null,null,null,null,null,null,null,null,0,null,null,null,null,0,2.12,"2.11, 2.5, 1.2,1.7",1025,"2.9.1","2.9.1,2.10.1","1002, 1012, 1.3,1.7","1002, 1012, 1.3,1.7","1003, 1024, 1034, 1035,1.7","1002, 1012, 1.3,1.7","1002, 1012, 1.3,1.7","1004, 1036,1.7","1002, 1012, 1.3,1.7","1002, 1012, 1.3,1.7","1005, 1012, 1013, 1037,1.7","1011, 1022,1.7",null,0,0]
[null,null,null,null,null,null,null,null,null,null,null,null,null,null,null,null,0,null,null,null,null,0,2.12,"2.11, 2.5, 1.2,1.7",1025,"2.9.1","2.9.1,2.10.1","1002, 1012, 1.3,1.7","1002, 1012, 1.3,1.7","1003, 1024, 1034, 1035,1.7","1002, 1012, 1.3,1.7","1002, 1012, 1.3,1.7","1004, 1036,1.7","1002, 1012, 1.3,1.7","1002, 1012, 1.3,1.7","1005, 1012, 1013, 1037,1.7","1011, 1022,1.7",null,0,0]
[null,null,null,null,null,null,null,null,null,null,null,null,null,null,null,null,0,null,null,null,null,0,2.12,"2.11, 2.5, 1.2,1.7",1025,"2.9.1","2.9.1,2.10.1","1002, 1012, 1.3,1.7","1002, 1012, 1.3,1.7","1003, 1024, 1034, 1035,1.7","1002, 1012, 1.3,1.7","1002, 1012, 1.3,1.7","1004, 1036,1.7","1002, 1012, 1.3,1.7","1002, 1012, 1.3,1.7","1005, 1012, 1013, 1037,1.7","1011, 1022,1.7",null,0,0]
[null,null,null,null,null,null,null,null,null,null,null,null,null,null,null,null,0,null,null,null,null,0,2.12,"2.11, 2.5, 1.2,1.7",1025,"2.9.1","2.9.1,2.10.1","1002, 1012, 1.3,1.7","1002, 1012, 1.3,1.7","1003, 1024, 1034, 1035,1.7","1002, 1012, 1.3,1.7","1002, 1012, 1.3,1.7","1004, 1036,1.7","1002, 1012, 1.3,1.7","1002, 1012, 1.3,1.7","1005, 1012, 1013, 1037,1.7","1011, 1022,1.7",null,0,0]
[null,null,null,null,null,null,null,null,null,null,null,null,null,null,null,null,{"$f":"SUM(J202,M202,P202)","v":0},null,null,null,null,{"$f":"IF(COUNTIF(B202:R202,\"<>\")-1>0,1,0)","v":0},2.12,"2.11, 2.5, 1.2,1.7",1025,"2.9.1","2.9.1,2.10.1","1002, 1012, 1.3,1.7","1002, 1012, 1.3,1.7","1003, 1024, 1034, 1035,1.7","1002, 1012, 1.3,1.7","1002, 1012, 1.3,1.7","1004, 1036,1.7","1002, 1012, 1.3,1.7","1002, 1012, 1.3,1.7","1005, 1012, 1013, 1037,1.7","1011, 1022,1.7",null,{"$f":"SUM(H202:I202,K202:L202,N202:O202)","v":0},{"$f":"ROUND(H202*5/12+I202*7/12*10000,2)","v":0}]
[null,null,null,null,null,null,null,null,null,null,null,null,null,null,null,null,0,null,null,null,null,0,2.12,"2.11, 2.5, 1.2,1.7",1025,"2.9.1","2.9.1,2.10.1","1002, 1012, 1.3,1.7","1002, 1012, 1.3,1.7","1003, 1024, 1034, 1035,1.7","1002, 1012, 1.3,1.7","1002, 1012, 1.3,1.7","1004, 1036,1.7","1002, 1012, 1.3,1.7","1002, 1012, 1.3,1.7","1005, 1012, 1013, 1037,1.7","1011, 1022,1.7",null,0,0]
[null,null,null,null,null,null,null,null,null,null,null,null,null,null,null,null,0,null,null,null,null,0,2.12,"2.11, 2.5, 1.2,1.7",1025,"2.9.1","2.9.1,2.10.1","1002, 1012, 1.3,1.7","1002, 1012, 1.3,1.7","1003, 1024, 1034, 1035,1.7","1002, 1012, 1.3,1.7","1002, 1012, 1.3,1.7","1004, 1036,1.7","1002, 1012, 1.3,1.7","1002, 1012, 1.3,1.7","1005, 1012, 1013, 1037,1.7","1011, 1022,1.7",null,0,0]
[null,null,null,null,null,null,null,null,null,null,null,null,null,null,null,null,0,null,null,null,null,0,2.12,"2.11, 2.5, 1.2,1.7",1025,"2.9.1","2.9.1,2.10.1","1002, 1012, 1.3,1.7","1002, 1012, 1.3,1.7","1003, 1024, 1034, 1035,1.7","1002, 1012, 1.3,1.7","1002, 1012, 1.3,1.7","1004, 1036,1.7","1002, 1012, 1.3,1.7","1002, 1012, 1.3,1.7","1005, 1012, 1013, 1037,1.7","1011, 1022,1.7",null,0,0]
[null,null,null,null,null,null,null,null,null,null,null,null,null,null,null,null,0,null,null,null,null,0,2.12,"2.11, 2.5, 1.2,1.7",1025,"2.9.1","2.9.1,2.10.1","1002, 1012, 1.3,1.7","1002, 1012, 1.3,1.7","1003, 1024, 1034, 1035,1.7","1002, 1012, 1.3,1.7","1002, 1012, 1.3,1.7","1004, 1036,1.7","1002, 1012, 1.3,1.7","1002, 1012, 1.3,1.7","1005, 1012, 1013, 1037,1.7","1011, 1022,1.7",null,0,0]
[null,null,null,null,null,null,null,null,null,null,null,null,null,null,null,null,0,null,null,null,null,0,2.12,"2.11, 2.5, 1.2,1.7",1025,"2.9.1","2.9.1,2.10.1","1002, 1012, 1.3,1.7","1002, 1012, 1.3,1.7","1003, 1024, 1034, 1035,1.7","1002, 1012, 1.3,1.7","1002, 1012, 1.3,1.7","1004, 1036,1.7","1002, 1012, 1.3,1.7","1002, 1012, 1.3,1.7","1005, 1012, 1013, 1037,1.7","1011, 1022,1.7",null,0,0]
[null,null,null,null,null,null,null,null,null,null,null,null,null,null,null,null,0,null,null,null,null,0,2.12,"2.11, 2.5, 1.2,1.7",1025,"2.9.1","2.9.1,2.10.1","1002, 1012, 1.3,1.7","1002, 1012, 1.3,1.7","1003, 1024, 1034, 1035,1.7","1002, 1012, 1.3,1.7","1002, 1012, 1.3,1.7","1004, 1036,1.7","1002, 1012, 1.3,1.7","1002, 1012, 1.3,1.7","1005, 1012, 1013, 1037,1.7","1011, 1022,1.7",null,0,0]
[null,null,null,null,null,null,null,null,null,null,null,null,null,null,null,null,0,null,null,null,null,0,2.12,"2.11, 2.5, 1.2,1.7",1025,"2.9.1","2.9.1,2.10.1","1002, 1012, 1.3,1.7","1002, 1012, 1.3,1.7","1003, 1024, 1034, 1035,1.7","1002, 1012, 1.3,1.7","1002, 1012, 1.3,1.7","1004, 1036,1.7","1002, 1012, 1.3,1.7","1002, 1012, 1.3,1.7","1005, 1012, 1013, 1037,1.7","1011, 1022,1.7",null,0,0]

{"sheet":"Early Years Proforma","index":4,"n_rows":63,"n_cols":41,"rows_kept":63,"cut":false,"hidden":false,"merged":[[38,4,38,14],[38,25,38,35],[39,4,39,14],[39,25,39,35],[54,25,54,35],[50,4,50,14],[58,25,58,35],[41,4,41,14],[41,25,41,35],[42,4,42,14],[42,25,42,35],[46,4,46,14],[46,25,46,35],[47,4,47,14],[47,25,47,35],[49,4,49,14],[49,25,49,35],[50,25,50,35],[58,15,58,17],[45,3,45,14],[45,15,45,17],[48,1,48,2],[48,3,48,14],[48,15,48,17],[45,1,45,2],[62,4,62,18],[54,15,54,17],[57,3,57,14],[57,15,57,17],[53,1,53,2],[57,1,57,2],[53,3,53,14],[53,15,53,17],[35,15,35,18],[5,14,5,17],[35,20,36,20],[27,9,27,11],[27,20,28,20],[12,20,13,20],[7,20,8,20],[27,15,27,18],[28,12,28,14],[7,15,7,18],[20,15,20,17],[12,5,12,7],[12,9,12,14],[12,15,12,18],[22,12,22,14],[13,12,13,14],[12,8,13,8],[35,1,36,2],[35,3,36,14],[24,1,24,2],[27,1,28,2],[27,3,28,3],[27,4,28,4],[27,5,27,7],[27,8,28,8],[12,1,13,2],[12,3,13,3],[12,4,13,4],[30,1,30,3],[29,1,29,2],[23,1,23,2],[22,1,22,2],[14,1,14,3],[0,33,0,35],[0,36,0,39],[0,22,1,23],[0,24,1,24],[0,25,1,25],[0,26,0,28],[0,29,1,29],[0,30,0,32],[7,1,8,2],[7,3,8,3],[7,9,7,11],[7,12,7,14],[9,1,9,2],[7,5,7,7],[7,4,8,4],[7,8,8,8]]}
[null,"S251 Budget 2022-23",null,null,null,null,null,null,null,null,null,null,null,null,null,null,null,null,null,null,null,null,"EYSFF (3 & 4 year olds): \nBase rate",null,"Row No.","Description","Unit Value (£)",null,null,"Unit\nApplied","Number of Units (Universal 15 hours)",null,null,"Number of Units (Additional 15 hours)",null,null,"Anticipated Budget (£)"]
[null,"Early Years Proforma Table",null,null,null,null,null,null,null,null,null,null,null,null,null,null,null,null,null,null,null,null,null,null,null,null,"PVI","Nursery School","Primary Nursery Class",null,"PVI","Nursery School","Primary Nursery Class","PVI","Nursery School","Primary Nursery Class","PVI","Nursery School","Primary Nursery Class","TOTAL","Is Data Present on Row?"]
[null,null,null,null,null,null,null,null,null,null,null,null,null,null,null,null,null,null,"EYP Errors:",null,null,null,null,null,"Count of headings:",{"$f":"COUNTIF(U:U,\"Error Cell Reference and Description\")","v":11}]
[null,null,null,null,null,null,null,null,null,null,null,null,null,null,null,null,null,null,null,null,null,null,null,null,"Count of cells with errors:",{"$f":"COUNTIF(U:U,\"<>\")-Z3","v":0}]
[null,null,null,null,null,null,null,null,null,null,null,null,null,null,null,null,null,null,null,null,"Error Cell Reference and Description"]
[null,null,null,null,null,null,null,null,null,null,null,null,null,null,"Pass-through rate for delivering government funded hours:",null,null,null,{"$f":"IF(AND(LANumber<>\"\",LANumber<> 201,LANumber<> 420,SUM(Total1a)<>0),(SUM(Total1, Total2, Total37a8)-VLOOKUP(LANumber,'Admin-Lists'!A:D,4,FALSE))/SUM(Total1a)/VLOOKUP(LANumber,'Admin-Lists'!A:D,3,FALSE),\"\")","v":""},null,null,null,null,null,null,null,null,null,null,null,null,null,null,null,null,null,null,null,null,1023]
[]
[null,"EYSFF (3 & 4 year olds): \nBase rate",null,"Row No.","Description","Unit Value (£)",null,null,"Unit\nApplied","Number of Units (Universal 15 hours)",null,null,"Number of Units (Additional 15 hours)",null,null,"Anticipated Budget (£)",null,null,null,null,"Error Cell Reference and Description"]
[null,null,null,null,null,"PVI","Nursery School","Primary Nursery Class",null,"PVI","Nursery School","Primary Nursery Class","PVI","Nursery School","Primary Nursery Class","PVI","Nursery School","Primary Nursery Class","TOTAL"]
["EY1","1. Base Rate(s) per hour, per provider type  ",null,1,null,null,null,null,null,null,null,null,null,null,null,{"$f":"IF(AND(F10=\"\",J10=\"\",M10=\"\"),\"\",F10*(J10+M10))","v":""},{"$f":"IF(AND(G10=\"\",K10=\"\",N10=\"\"),\"\",G10*(K10+N10))","v":""},{"$f":"IF(AND(H10=\"\",L10=\"\",O10=\"\"),\"\",H10*(L10+O10))","v":""},{"$f":"IF(AND(P10=\"\",Q10=\"\",R10=\"\"),\"\",SUM(P10:R10))","v":""},null,null,null,1.1000000000000001,null,1.1000000000000001,"5.0.13, 5.0.14, 1009, 1010","5.0.0, 5.07, 5.0.8, 5.0.11, 1038, 1039","5.0.0, 5.07, 5.0.8, 5.0.11, 1038, 1039","5.0.0, 5.07, 5.0.8, 5.0.11, 1038, 1039","5.0.0, 5.07,  5.0.11, 5.0.12, 1039","5.0.0, 5.0.10, 5.0.12, 1040, 1039","5.0.0, 5.0.10, 5.0.12, 1040, 1039","5.0.0, 5.0.10, 5.0.12, 1040, 1039","5.0.0, 5.0.10, 5.0.12, 1040, 1039","5.0.0, 5.0.10, 5.0.12, 1040, 1039","5.0.0, 5.0.10, 5.0.12, 1040, 1039",null,null,null,null,{"$f":"IF(F10&G10&H10&I10&J10&K10&L10&M10&N10&O10&P10&Q10&R10&S10=\"\",0,1)","v":0}]
[null,null,"End of section 1"]
[]
[null,"EYSFF (3 & 4 year olds):\nOther formula factors",null,null,"Description","Unit Value (£)",null,null,"Unit\nApplied","Number of Units (Universal & Additional 15 hours)",null,null,null,null,null,"Anticipated Budget (£)",null,null,null,null,"Error Cell Reference and Description"]
[null,null,null,null,null,"PVI","Nursery School","Primary Nursery Class",null,"PVI","Nursery School","Primary Nursery Class","Not used",null,null,"PVI","Nursery School","Primary Nursery Class","TOTAL"]
[null,"2. Supplements (please provide in written format a short explanation of your supplement payments)"]
["EY2a",null,"(a) Deprivation (Mandatory)",1,null,null,null,null,null,null,null,null,null,null,null,{"$f":"IF(AND(F16=\"\",J16=\"\",M16=\"\"),\"\",F16*(J16+M16))","v":""},{"$f":"IF(AND(G16=\"\",K16=\"\",N16=\"\"),\"\",G16*(K16+N16))","v":""},{"$f":"IF(AND(H16=\"\",L16=\"\",O16=\"\"),\"\",H16*(L16+O16))","v":""},{"$f":"IF(AND(P16=\"\",Q16=\"\",R16=\"\"),\"\",SUM(P16:R16))","v":""},null,null,null,1.1000000000000001,null,1.1000000000000001,"5.0.13, 5.0.14, 1009, 1010","5.0.0, 5.07, 5.0.8, 5.0.11, 1038, 1039","5.0.0, 5.07, 5.0.8, 5.0.11, 1038, 1039","5.0.0, 5.07, 5.0.8, 5.0.11, 1038, 1039","5.0.0, 5.07,  5.0.11, 5.0.12, 1039","5.0.0, 5.0.10, 5.0.12, 1040, 1039","5.0.0, 5.0.10, 5.0.12, 1040, 1039","5.0.0, 5.0.10, 5.0.12, 1040, 1039","5.0.0, 5.0.10, 5.0.12, 1040, 1039","5.0.0, 5.0.10, 5.0.12, 1040, 1039","5.0.0, 5.0.10, 5.0.12, 1040, 1039",null,null,null,null,{"$f":"IF(F16&G16&H16&I16&J16&K16&L16&M16&N16&O16&P16&Q16&R16&S16=\"\",0,1)","v":0}]
["EY2b",null,"(b) Quality (if applicable)",1,null,null,null,null,null,null,null,null,null,null,null,"","","","",null,null,null,1.1000000000000001,null,1.1000000000000001,"5.0.13, 5.0.14, 1009, 1010","5.0.0, 5.07, 5.0.8, 5.0.11, 1038, 1039","5.0.0, 5.07, 5.0.8, 5.0.11, 1038, 1039","5.0.0, 5.07, 5.0.8, 5.0.11, 1038, 1039","5.0.0, 5.07,  5.0.11, 5.0.12, 1039","5.0.0, 5.0.10, 5.0.12, 1040, 1039","5.0.0, 5.0.10, 5.0.12, 1040, 1039","5.0.0, 5.0.10, 5.0.12, 1040, 1039","5.0.0, 5.0.10, 5.0.12, 1040, 1039","5.0.0, 5.0.10, 5.0.12, 1040, 1039","5.0.0, 5.0.10, 5.0.12, 1040, 1039",null,null,null,null,{"$f":"IF(F17&G17&H17&I17&J17&K17&L17&M17&N17&O17&P17&Q17&R17&S17=\"\",0,1)","v":0}]
["EY2c",null,"(c) Flexibility (if applicable)",1,null,null,null,null,null,null,null,null,null,null,null,{"$f":"IF(AND(F18=\"\",J18=\"\",M18=\"\"),\"\",F18*(J18+M18))","v":""},{"$f":"IF(AND(G18=\"\",K18=\"\",N18=\"\"),\"\",G18*(K18+N18))","v":""},{"$f":"IF(AND(H18=\"\",L18=\"\",O18=\"\"),\"\",H18*(L18+O18))","v":""},{"$f":"IF(AND(P18=\"\",Q18=\"\",R18=\"\"),\"\",SUM(P18:R18))","v":""},null,null,null,1.1000000000000001,null,1.1000000000000001,"5.0.13, 5.0.14, 1009, 1010","5.0.0, 5.07, 5.0.8, 5.0.11, 1038, 1039","5.0.0, 5.07, 5.0.8, 5.0.11, 1038, 1039","5.0.0, 5.07, 5.0.8, 5.0.11, 1038, 1039","5.0.0, 5.07,  5.0.11, 5.0.12, 1039","5.0.0, 5.0.10, 5.0.12, 1040, 1039","5.0.0, 5.0.10, 5.0.12, 1040, 1039","5.0.0, 5.0.10, 5.0.12, 1040, 1039","5.0.0, 5.0.10, 5.0.12, 1040, 1039","5.0.0, 5.0.10, 5.0.12, 1040, 1039","5.0.0, 5.0.10, 5.0.12, 1040, 1039",null,null,null,null,{"$f":"IF(F18&G18&H18&I18&J18&K18&L18&M18&N18&O18&P18&Q18&R18&S18=\"\",0,1)","v":0}]
["EY2d",null,"(d) Rurality / Sparsity (if applicable) ",1,null,null,null,null,null,null,null,null,null,null,null,{"$f":"IF(AND(F19=\"\",J19=\"\",M19=\"\"),\"\",F19*(J19+M19))","v":""},{"$f":"IF(AND(G19=\"\",K19=\"\",N19=\"\"),\"\",G19*(K19+N19))","v":""},{"$f":"IF(AND(H19=\"\",L19=\"\",O19=\"\"),\"\",H19*(L19+O19))","v":""},{"$f":"IF(AND(P19=\"\",Q19=\"\",R19=\"\"),\"\",SUM(P19:R19))","v":""},null,null,null,1.1000000000000001,null,1.1000000000000001,"5.0.13, 5.0.14, 1009, 1010","5.0.0, 5.07, 5.0.8, 5.0.11, 1038, 1039","5.0.0, 5.07, 5.0.8, 5.0.11, 1038, 1039","5.0.0, 5.07, 5.0.8, 5.0.11, 1038, 1039","5.0.0, 5.07,  5.0.11, 5.0.12, 1039","5.0.0, 5.0.10, 5.0.12, 1040, 1039","5.0.0, 5.0.10, 5.0.12, 1040, 1039","5.0.0, 5.0.10, 5.0.12, 1040, 1039","5.0.0, 5.0.10, 5.0.12, 1040, 1039","5.0.0, 5.0.10, 5.0.12, 1040, 1039","5.0.0, 5.0.10, 5.0.12, 1040, 1039",null,null,null,null,0]
["EY2e",null,"(e) EAL (if applicable)",1,null,null,null,null,null,null,null,null,null,null,null,{"$f":"IF(AND(F20=\"\",J20=\"\",M20=\"\"),\"\",F20*(J20+M20))","v":""},"","",{"$f":"IF(AND(P20=\"\",Q20=\"\",R20=\"\"),\"\",SUM(P20:R20))","v":""},null,null,null,1.1000000000000001,null,1.1000000000000001,"5.0.13, 5.0.14, 1009, 1010","5.0.0, 5.07, 5.0.8, 5.0.11, 1038, 1039","5.0.0, 5.07, 5.0.8, 5.0.11, 1038, 1039","5.0.0, 5.07, 5.0.8, 5.0.11, 1038, 1039","5.0.0, 5.07,  5.0.11, 5.0.12, 1039","5.0.0, 5.0.10, 5.0.12, 1040, 1039","5.0.0, 5.0.10, 5.0.12, 1040, 1039","5.0.0, 5.0.10, 5.0.12, 1040, 1039","5.0.0, 5.0.10, 5.0.12, 1040, 1039","5.0.0, 5.0.10, 5.0.12, 1040, 1039","5.0.0, 5.0.10, 5.0.12, 1040, 1039",null,null,null,null,0]
[null,null,null,null,null,null,null,null,null,null,null,null,null,null,null,"Funding provided through supplements:",null,null,{"$f":"IF(SUM(Total1,Total2)<>0, SUM(Total2)/SUM(Total1,Total2), 0)","v":0}]
[]
[null,null,null,null,"Description","PVI","Nursery School","Primary Nursery Class","Unit\nApplied","PVI","Nursery School","Primary Nursery Class","Not used",null,null,"PVI","Nursery School","Primary Nursery Class","TOTAL",null,"Error Cell Reference and Description"]
["EY3","3. Maintained nursery school (MNS) lump sums (if applicable)",null,1,null,null,null,null,null,null,null,null,null,null,null,null,{"$f":"IF(AND(G24=\"\",K24=\"\",N24=\"\"),\"\",G24*(K24+N24))","v":""},null,{"$f":"IF(AND(P24=\"\",Q24=\"\",R24=\"\"),\"\",SUM(P24:R24))","v":""},null,null,null,1.1000000000000001,null,1.1000000000000001,"5.0.13, 5.0.14, 1009, 1010","5.0.0, 5.07, 5.0.8, 5.0.11, 1038, 1039","5.0.0, 5.07, 5.0.8, 5.0.11, 1038, 1039","5.0.0, 5.07, 5.0.8, 5.0.11, 1038, 1039","5.0.0, 5.07,  5.0.11, 5.0.12, 1039","5.0.0, 5.0.10, 5.0.12, 1040, 1039","5.0.0, 5.0.10, 5.0.12, 1040, 1039","5.0.0, 5.0.10, 5.0.12, 1040, 1039","5.0.0, 5.0.10, 5.0.12, 1040, 1039","5.0.0, 5.0.10, 5.0.12, 1040, 1039","5.0.0, 5.0.10, 5.0.12, 1040, 1039",null,null,null,null,{"$f":"IF(F24&G24&H24&I24&J24&K24&L24&M24&N24&O24&P24&Q24&R24&S24=\"\",0,1)","v":0}]
["EY4","4. Hours above universal/ additional 15 hours (if applicable)",null,1,null,null,null,null,null,null,null,null,null,null,null,{"$f":"IF(AND(F25=\"\",J25=\"\",M25=\"\"),\"\",F25*(J25+M25))","v":""},{"$f":"IF(AND(G25=\"\",K25=\"\",N25=\"\"),\"\",G25*(K25+N25))","v":""},{"$f":"IF(AND(H25=\"\",L25=\"\",O25=\"\"),\"\",H25*(L25+O25))","v":""},{"$f":"IF(AND(P25=\"\",Q25=\"\",R25=\"\"),\"\",SUM(P25:R25))","v":""},null,null,null,1.1000000000000001,null,1.1000000000000001,"5.0.13, 5.0.14, 1009, 1010","5.0.0, 5.07, 5.0.8, 5.0.11, 1038, 1039","5.0.0, 5.07, 5.0.8, 5.0.11, 1038, 1039","5.0.0, 5.07, 5.0.8, 5.0.11, 1038, 1039","5.0.0, 5.07,  5.0.11, 5.0.12, 1039","5.0.0, 5.0.10, 5.0.12, 1040, 1039","5.0.0, 5.0.10, 5.0.12, 1040, 1039","5.0.0, 5.0.10, 5.0.12, 1040, 1039","5.0.0, 5.0.10, 5.0.12, 1040, 1039","5.0.0, 5.0.10, 5.0.12, 1040, 1039","5.0.0, 5.0.10, 5.0.12, 1040, 1039",null,null,null,null,0]
[null,null,"End of Section 3 ",null,"Description",null,null,null,null,null,null,null,null,null,null,null,null,"TOTAL FUNDING FOR EARLY YEARS SINGLE FUNDING FORMULA (3 & 4 YEAR OLDS):",{"$f":"SUM(Total1)+SUM(Total2)+SUM(Total3)","v":0}]
[]
[null,"EYSFF (2 year olds)",null,null,"Description","Unit Value (£)",null,null,"Unit\nApplied","Number of Units",null,null,null,null,null,"Anticipated Budget (£)",null,null,null,null,"Error Cell Reference and Description"]
[null,null,null,null,null,"PVI","Nursery School","Primary Nursery Class",null,"PVI","Nursery School","Primary Nursery Class","Not used",null,null,"PVI","Nursery School","Primary Nursery Class","TOTAL"]
["EY5","5. Base Rate(s) per hour, per provider type",null,1,null,null,null,null,null,null,null,null,null,null,null,{"$f":"IF(AND(F30=\"\",J30=\"\",K30=\"\"),\"\",F30*J30)","v":""},{"$f":"IF(AND(G30=\"\",K30=\"\",L30=\"\"),\"\",G30*K30)","v":""},{"$f":"IF(AND(H30=\"\",L30=\"\",O30=\"\"),\"\",H30*(L30+O30))","v":""},{"$f":"IF(AND(P30=\"\",Q30=\"\",R30=\"\"),\"\",SUM(P30:R30))","v":""},null,null,null,1.1000000000000001,null,1.1000000000000001,"5.0.13, 5.0.14, 1009, 1010","5.0.0, 5.07, 5.0.8, 5.0.11, 1038, 1039","5.0.0, 5.07, 5.0.8, 5.0.11, 1038, 1039","5.0.0, 5.07, 5.0.8, 5.0.11, 1038, 1039","5.0.0, 5.07,  5.0.11, 5.0.12, 1039","5.0.0, 5.0.10, 5.0.12, 1040, 1039","5.0.0, 5.0.10, 5.0.12, 1040, 1039","5.0.0, 5.0.10, 5.0.12, 1040, 1039","5.0.0, 5.0.10, 5.0.12, 1040, 1039","5.0.0, 5.0.10, 5.0.12, 1040, 1039","5.0.0, 5.0.10, 5.0.12, 1040, 1039",null,null,null,null,{"$f":"IF(F30&G30&H30&I30&J30&K30&L30&M30&N30&O30&P30&Q30&R30&S30=\"\",0,1)","v":0}]
[null,"6. Supplements (please provide a short explanation of your supplement payments)"]
["EY6a",null,"(a) Quality (if applicable)",1,null,null,null,null,null,null,null,null,null,null,null,{"$f":"IF(AND(F32=\"\",J32=\"\",K32=\"\"),\"\",F32*J32)","v":""},{"$f":"IF(AND(G32=\"\",K32=\"\",L32=\"\"),\"\",(G32*K32))","v":""},{"$f":"IF(AND(H32=\"\",L32=\"\",O32=\"\"),\"\",(H32*L32))","v":""},{"$f":"IF(AND(P32=\"\",Q32=\"\",R32=\"\"),\"\",SUM(P32:R32))","v":""},null,null,null,1.1000000000000001,null,1.1000000000000001,"5.0.13, 5.0.14, 1009, 1010","5.0.0, 5.07, 5.0.8, 5.0.11, 1038, 1039","5.0.0, 5.07, 5.0.8, 5.0.11, 1038, 1039","5.0.0, 5.07, 5.0.8, 5.0.11, 1038, 1039","5.0.0, 5.07,  5.0.11, 5.0.12, 1039","5.0.0, 5.0.10, 5.0.12, 1040, 1039","5.0.0, 5.0.10, 5.0.12, 1040, 1039","5.0.0, 5.0.10, 5.0.12, 1040, 1039","5.0.0, 5.0.10, 5.0.12, 1040, 1039","5.0.0, 5.0.10, 5.0.12, 1040, 1039","5.0.0, 5.0.10, 5.0.12, 1040, 1039",null,null,null,null,0]
["EY6b",null,"(b) Other supplements (if applicable)",1,null,null,null,null,null,null,null,null,null,null,null,{"$f":"IF(AND(F33=\"\",J33=\"\",K33=\"\"),\"\",F33*J33)","v":""},{"$f":"IF(AND(G33=\"\",K33=\"\",L33=\"\"),\"\",(G33*K33))","v":""},{"$f":"IF(AND(H33=\"\",L33=\"\",O33=\"\"),\"\",(H33*L33))","v":""},{"$f":"IF(AND(P33=\"\",Q33=\"\",R33=\"\"),\"\",SUM(P33:R33))","v":""},null,null,null,1.1000000000000001,null,1.1000000000000001,"5.0.13, 5.0.14, 1009, 1010","5.0.0, 5.07, 5.0.8, 5.0.11, 1038, 1039","5.0.0, 5.07, 5.0.8, 5.0.11, 1038, 1039","5.0.0, 5.07, 5.0.8, 5.0.11, 1038, 1039","5.0.0, 5.07,  5.0.11, 5.0.12, 1039","5.0.0, 5.0.10, 5.0.12, 1040, 1039","5.0.0, 5.0.10, 5.0.12, 1040, 1039","5.0.0, 5.0.10, 5.0.12, 1040, 1039","5.0.0, 5.0.10, 5.0.12, 1040, 1039","5.0.0, 5.0.10, 5.0.12, 1040, 1039","5.0.0, 5.0.10, 5.0.12, 1040, 1039",null,null,null,null,0]
[null,null,null,null,null,null,null,null,null,null,null,null,null,null,null,null,null,"TOTAL FUNDING FOR EARLY YEARS SINGLE FUNDING FORMULA (2 YEAR OLDS):",{"$f":"SUM(S29:S33)","v":0},null,null,null,null,null,null,null,null,null,null,null,null,null,null,null,null,null,null,null,null,1015]
[]
[null,"7. SEN Inclusion Fund (funded directly to providers) ",null,"Description ",null,null,null,null,null,null,null,null,null,null,null,"Anticipated total budget (£)",null,null,null,null,"Error Cell Reference and Description"]
[null,null,null,null,null,null,null,null,null,null,null,null,null,null,null,"PVI","Nursery School","Primary Nursery Class","TOTAL"]
[null,"(a) 3 & 4 Year Olds (Mandatory)"]
["EY7ai",null,"(ai) Funding allocated from EY Block",1,null,null,null,null,null,null,null,null,null,null,null,null,null,null,{"$f":"IF(AND(P39=\"\",Q39=\"\",R39=\"\"),\"\",SUM(P39:R39))","v":""},null,null,null,1.1000000000000001,null,1.1000000000000001,null,null,null,null,null,null,null,null,null,null,null,null,null,null,null,{"$f":"IF(F39&G39&H39&I39&J39&K39&L39&M39&N39&O39&P39&Q39&R39&S39=\"\",0,1)","v":0}]
["EY7aii",null,"(aii) Funding allocated from HN Block",1,null,null,null,null,null,null,null,null,null,null,null,null,null,null,{"$f":"IF(AND(P40=\"\",Q40=\"\",R40=\"\"),\"\",SUM(P40:R40))","v":""},null,null,null,1.1000000000000001,null,1.1000000000000001,null,null,null,null,null,null,null,null,null,null,null,null,null,null,null,{"$f":"IF(F40&G40&H40&I40&J40&K40&L40&M40&N40&O40&P40&Q40&R40&S40=\"\",0,1)","v":0}]
[null,"(b) 2 Year Olds (if applicable)"]
["EY7bi",null,"(bi) Funding allocated from EY Block",1,null,null,null,null,null,null,null,null,null,null,null,null,null,null,{"$f":"IF(AND(P42=\"\",Q42=\"\",R42=\"\"),\"\",SUM(P42:R42))","v":""},null,null,null,1.1000000000000001,null,1.1000000000000001,null,null,null,null,null,null,null,null,null,null,null,null,null,null,null,{"$f":"IF(F42&G42&H42&I42&J42&K42&L42&M42&N42&O42&P42&Q42&R42&S42=\"\",0,1)","v":0}]
["EY7bii",null,"(bii) Funding allocated from HN Block",1,null,null,null,null,null,null,null,null,null,null,null,null,null,null,{"$f":"IF(AND(P43=\"\",Q43=\"\",R43=\"\"),\"\",SUM(P43:R43))","v":""},null,null,null,1.1000000000000001,null,1.1000000000000001,null,null,null,null,null,null,null,null,null,null,null,null,null,null,null,{"$f":"IF(F43&G43&H43&I43&J43&K43&L43&M43&N43&O43&P43&Q43&R43&S43=\"\",0,1)","v":0}]
[null,null,null,null,null,null,null,null,null,null,null,null,null,null,null,null,null,"TOTAL FUNDING FOR SEN INCLUSION FUND (TOP-UP GRANT ELEMENT):",{"$f":"SUM(S38:S43)","v":0}]
[]
[null,"8. Early years contingency funding ",null,"Description ",null,null,null,null,null,null,null,null,null,null,null,"Anticipated total budget (£)",null,null,"Total",null,"Error Cell Reference and Description"]
["EY8a","(a) 3 & 4 Year Olds",null,1,null,null,null,null,null,null,null,null,null,null,null,null,null,null,null,null,null,null,null,null,null,null,null,null,null,null,null,null,null,null,null,null,null,null,null,1.3,{"$f":"IF(F47&G47&H47&I47&J47&K47&L47&M47&N47&O47&P47&Q47&R47&S47=\"\",0,1)","v":0}]
["EY8b","(b) 2 Year Olds",null,1,null,null,null,null,null,null,null,null,null,null,null,null,null,null,null,null,null,null,null,null,null,null,null,null,null,null,null,null,null,null,null,null,null,null,null,1.3,{"$f":"IF(F48&G48&H48&I48&J48&K48&L48&M48&N48&O48&P48&Q48&R48&S48=\"\",0,1)","v":0}]
[null,"9. Early years centrally retained funding",null,"Description ",null,null,null,null,null,null,null,null,null,null,null,"Anticipated total budget (£)",null,null,"Total",null,"Error Cell Reference and Description"]
["EY9a","(a) 3 & 4 Year Olds",null,1,null,null,null,null,null,null,null,null,null,null,null,null,null,null,null,null,null,null,null,null,null,null,null,null,null,null,null,null,null,null,null,null,null,null,null,1.3,{"$f":"IF(F50&G50&H50&I50&J50&K50&L50&M50&N50&O50&P50&Q50&R50&S50=\"\",0,1)","v":0}]
["EY9b","(b) 2 Year Olds",null,1,null,null,null,null,null,null,null,null,null,null,null,null,null,null,null,null,null,null,null,null,null,null,null,null,null,null,null,null,null,null,null,null,null,null,null,1.3,{"$f":"IF(F51&G51&H51&I51&J51&K51&L51&M51&N51&O51&P51&Q51&R51&S51=\"\",0,1)","v":0}]
[null,null,null,null,null,null,null,null,null,null,null,null,null,null,null,null,null,"TOTAL FUNDING FOR EARLY YEARS CENTRAL EXPENDITURE:",{"$f":"SUM(Total6, Total7)","v":0}]
[]
[null,"10. Early years pupil premium",null,null,null,null,null,null,null,null,null,null,null,null,null,"Anticipated total budget (£)",null,null,"Total",null,"Error Cell Reference and Description"]
["EY10","3 & 4 Year Olds",null,null,null,null,null,null,null,null,null,null,null,null,null,null,null,null,null,null,null,null,1.1000000000000001,null,1.1000000000000001,null,null,null,null,null,null,null,null,null,null,null,null,null,null,1.3,{"$f":"IF(F55&G55&H55&I55&J55&K55&L55&M55&N55&O55&P55&Q55&R55&S55=\"\",0,1)","v":0}]
[null,null,null,null,null,null,null,null,null,null,null,null,null,null,null,null,null,"TOTAL FUNDING FOR EARLY YEARS PUPIL PREMIUM:",{"$f":"Total10","v":0}]
[]
[null,"11. Disability access fund",null,null,null,null,null,null,null,null,null,null,null,null,null,"Anticipated total budget (£)",null,null,"Total",null,"Error Cell Reference and Description"]
["EY11","3 & 4 Year Olds",null,null,null,null,null,null,null,null,null,null,null,null,null,null,null,null,null,null,null,null,1.1000000000000001,null,1.1000000000000001,null,null,null,null,null,null,null,null,null,null,null,null,null,null,1.3,{"$f":"IF(F59&G59&H59&I59&J59&K59&L59&M59&N59&O59&P59&Q59&R59&S59=\"\",0,1)","v":0}]
[null,null,null,null,null,null,null,null,null,null,null,null,null,null,null,null,null,"TOTAL FUNDING FOR EARLY YEARS DISABILITY ACCESS FUND:",{"$f":"Total11","v":0}]
[]
[null,null,null,null,null,null,null,null,null,null,null,null,null,null,null,null,null,null,null,null,"Error Cell Reference and Description"]
[null,null,null,"Early Years Table Notes:"]

{"sheet":"Admin-Lists","index":5,"n_rows":1676,"n_cols":18,"rows_kept":1676,"cut":false,"hidden":true,"merged":[[0,16,0,17],[0,9,0,14]]}
["Local Authority List",null,"EYNFF_Hourly_Rate","MNS_Supp_Funding",null,"School States",null,"SchoolTypes",null,"School List for Pre-population",null,null,null,null,null,null,"Section Names For EY Dropdowns"]
[201,"City of London",0,0,null,"Open",null,"Mainstream",null,"LA Number","School Name","DFE Number","School Type\n","O/C","O/C Date",null,"Section Name","Abbreviation"]
[202,"Camden",8.51,0,null,"Closed",null,"Hospital",null,202,"CCfL Key Stage 4 PRU",1100,"Pupil Referral Unit","O","1999-09-01",null,"1 - EYSFF (3 and 4 year olds) base rate(s) per hour","EY1"]
[203,"Greenwich",6.48,630306,null,"Converter",null,"Pupil Referral Unit",null,202,"Camden Primary Pupil Referral Unit",1101,"Pupil Referral Unit","O",null,null,"2a - Supplements: deprivation","EY2a"]
[204,"Hackney",6.14,525198,null,null,null,"Special",null,202,"CCfL Key Stage 3 PRU",1103,"Pupil Referral Unit","O","2003-09-01",null,"2b - Supplements: quality","EY2b"]
[205,"Hammersmith and Fulham",8.23,733134,null,null,null,null,null,202,"Netley Primary School & Centre for Autism",2436,"Mainstream","O",null,null,"2c - Supplements: flexibility","EY2c"]
[206,"Islington",7.81,334659,null,null,null,null,null,202,"Primrose Hill School",2475,"Mainstream","O",null,null,"2d - Supplements: rurality/sparsity","EY2d"]
[207,"Kensington and Chelsea",8.1999999999999993,561266,null,null,null,"RED = OLD DATA",null,202,"Rhyl Community Primary School",2502,"Mainstream","O",null,null,"2e - Supplements: EAL","EY2e"]
[208,"Lambeth",7.32,523805,null,null,null,null,null,202,"Torriano Primary School",2603,"Mainstream","O",null,null,"3 - Maintained nursery school (MNS) lump sums","EY3"]
[209,"Lewisham",5.93,407984,null,null,null,null,null,202,"Kentish Town Church of England Primary School",3370,"Mainstream","O",null,null,"4 - Hours above universal/additional 15 hours","EY4"]
[210,"Southwark",6.86,1354987,null,null,null,null,null,202,"Regent High School",4196,"Mainstream","O",null,null,"5 - EYSFF (2 year olds) base rate(s) per hour","EY5"]
[211,"Tower Hamlets",8.06,525449,null,null,null,null,null,202,"Acland Burghley School",4285,"Mainstream","O",null,null,"6a - Quality supplements","EY6a"]
[212,"Wandsworth",6.79,406450,null,null,null,null,null,202,"Children's Hospital School at Gt Ormond Street and UCH",5950,"Hospital ","O",null,null,"6b - Other supplements","EY6b"]
[213,"Westminster",7.86,1389182,null,null,null,null,null,202,"Frank Barnes School for Deaf Children",7008,"Special","O",null,null,"7ai - SEN Inclusion (3 and 4 year olds) funding allocated from EY block","EY7ai"]
[301,"Barking and Dagenham",5.81,0,null,null,null,null,null,202,"Camden Centre for Learning (CCfL) Special School",7137,"Special","O",null,null,"7aii - SEN Inclusion (3 and 4 year olds) funding allocated from HN block","EY7aii"]
[302,"Barnet",6.24,0,null,null,null,null,null,202,"Royal Free Hospital Children's School",7201,"Hospital ","O",null,null,"7bi - SEN Inclusion (2 year olds) funding allocated from EY block","EY7bi"]
[303,"Bexley",5.42,0,null,null,null,null,null,202,"Swiss Cottage School - Development & Research Centre",7205,"Special","O",null,null,"7bii - SEN Inclusion (2 year olds) funding allocated from HN block","EY7bii"]
[304,"Brent",5.68,732279,null,null,null,null,null,203,"Newhaven Pupil Referral Unit",1101,"Pupil Referral Unit","O",null,null,"8a - Early years contingency funding: 3 & 4 year olds","EY8a"]
[305,"Bromley",5.22,0,null,null,null,null,null,203,"Meridian Primary School",2410,"Mainstream","O",null,null,"8b - Early years contingency funding: 2 year olds","EY8b"]
[306,"Croydon",5.44,452307,null,null,null,null,null,203,"Mulgrave Primary School",2916,"Mainstream","O",null,null,"9a - Early years centrally retained funding: 3 & 4 year olds","EY9a"]
[307,"Ealing",5.83,728495,null,null,null,null,null,203,"James Wolfe Primary School and Centre for the Deaf",2921,"Mainstream","O","1997-09-01",null,"9b - Early years centrally retained funding: 2 year olds","EY9b"]
[308,"Enfield",5.93,0,null,null,null,null,null,203,"Discovery Primary School",3670,"Mainstream","O","2007-09-01"]
[309,"Haringey",5.97,1261279,null,null,null,null,null,203,"Plumstead Manor School",4130,"Mainstream","O"]
[310,"Harrow",5.89,0,null,null,null,null,null,203,"Thomas Tallis School",4294,"Mainstream","O"]
[311,"Havering",5.59,0,null,null,null,null,null,203,"King's Oak School",7118,"Special","O"]
[312,"Hillingdon",6.14,275430,null,null,null,null,null,203,"Waterside School",7200,"Special","O","2001-09-01"]
[313,"Hounslow",6.22,0,null,null,null,null,null,204,"New Regent's College",1103,"Pupil Referral Unit","O","2010-09-01"]
[314,"Kingston upon Thames",6.08,55621,null,null,null,null,null,204,"Gainsborough Primary School",2238,"Mainstream","O"]
[315,"Merton",5.95,0,null,null,null,null,null,204,"Millfields Community School",2421,"Mainstream","O"]
[316,"Newham",5.88,1884996,null,null,null,null,null,204,"Queensbridge Primary School",2487,"Mainstream","O"]
[317,"Redbridge",5.52,0,null,null,null,null,null,204,"Thomas Fairchild Community School",2592,"Mainstream","O"]
[318,"Richmond upon Thames",6,98354,null,null,null,null,null,204,"Oldhill Community School",2615,"Mainstream","O"]
[319,"Sutton",5.77,330740,null,null,null,null,null,204,"Shoreditch Park Primary School",2636,"Mainstream","O"]
[320,"Waltham Forest",5.83,206785,null,null,null,null,null,204,"Sir Thomas Abney School",2795,"Mainstream","O"]
[330,"Birmingham",5.0199999999999996,4192829,null,null,null,null,null,204,"Stormont House School",7097,"Special","O"]
[331,"Coventry",4.7300000000000004,180394,null,null,null,null,null,204,"The Garden School",7161,"Special","O"]
[332,"Dudley",4.6100000000000003,329136,null,null,null,null,null,204,"Ickburgh School",7171,"Special","O"]
[333,"Sandwell",4.74,0,null,null,null,null,null,205,"Miles Coverdale Primary School",2134,"Mainstream","O"]
[334,"Solihull",4.67,0,null,null,null,null,null,205,"Woodlane High School",7153,"Special","O"]
[335,"Walsall",4.83,1399182,null,null,null,null,null,205,"Jack Tizard School",7203,"Special","O"]
[336,"Wolverhampton",4.99,919391,null,null,null,null,null,205,"Cambridge School",7204,"Special","O","1900-01-01"]
[340,"Knowsley",5.03,0,null,null,null,null,null,206,"New River College Primary",1101,"Pupil Referral Unit","O"]
[341,"Liverpool",4.8600000000000003,1537290,null,null,null,null,null,206,"New River College Secondary",1104,"Pupil Referral Unit","O"]
[342,"St. Helens",4.78,71706,null,null,null,null,null,206,"New River College Medical",1110,"Pupil Referral Unit","O","2003-09-01"]
[343,"Sefton",4.6100000000000003,415029,null,null,null,null,null,206,"Laycock Primary School",2379,"Mainstream","O"]
[344,"Wirral",4.62,513912,null,null,null,null,null,206,"Richard Cloudesley School",7030,"Special","O"]
[350,"Bolton",4.68,200555,null,null,null,null,null,206,"Samuel Rhodes MLD School",7146,"Special","O"]
[351,"Bury",4.6100000000000003,173964,null,null,null,null,null,207,"Barlby Primary School",2030,"Mainstream","O"]
[352,"Manchester",5.18,269633,null,null,null,null,null,207,"Marlborough Primary School",2399,"Mainstream","O"]
[353,"Oldham",4.66,0,null,null,null,null,null,207,"Chelsea  Community Hospital  School",7165,"Hospital ","O"]
[354,"Rochdale",4.7300000000000004,213135,null,null,null,null,null,208,"Triangle Nursery School",1027,"Mainstream","O"]
[355,"Salford",4.8099999999999996,0,null,null,null,null,null,208,"Larkhall Primary Campus",2371,"Mainstream","O"]
[356,"Stockport",4.6100000000000003,529451,null,null,null,null,null,208,"Richard Atkins Primary School",2504,"Mainstream","O"]
[357,"Tameside",4.82,0,null,null,null,null,null,208,"Wyvil Primary School and Resource Bases for Speech, Language and Communication Needs, and Autism",2664,"Mainstream","O"]
[358,"Trafford",4.6100000000000003,0,null,null,null,null,null,208,"Crown Lane Primary School",2783,"Mainstream","O"]
[359,"Wigan",4.6100000000000003,195643,null,null,null,null,null,208,"Allen Edwards Primary School",2808,"Mainstream","O"]
[370,"Barnsley",4.6100000000000003,0,null,null,null,null,null,208,"Hill Mead Primary School",2898,"Mainstream","O"]
[371,"Doncaster",4.7699999999999996,0,null,null,null,null,null,208,"Jubilee Primary School",3000,"Mainstream","O","2002-09-01"]
[372,"Rotherham",4.6100000000000003,939421,null,null,null,null,null,208,"Archbishop Sumner Church of England Primary School",3307,"Mainstream","O"]
[373,"Sheffield",4.88,26574,null,null,null,null,null,208,"London Nautical School",5405,"Mainstream","O"]
[380,"Bradford",4.8600000000000003,1189519,null,null,null,null,null,208,"Turney Primary and Secondary Special School",5950,"Special","O"]
[381,"Calderdale",4.6100000000000003,0,null,null,null,null,null,208,"Lansdowne School",7001,"Special","O"]
[382,"Kirklees",4.6100000000000003,116132,null,null,null,null,null,208,"Elm Court School",7115,"Special","O"]
[383,"Leeds",5.12,0,null,null,null,null,null,208,"The Livity School",7194,"Special","O","2001-09-01"]
[384,"Wakefield",4.62,335846,null,null,null,null,null,208,"The Michael Tippett School",7195,"Special","O","2001-09-01"]
[390,"Gateshead",4.84,140562,null,null,null,null,null,209,"Abbey Manor College",1103,"Pupil Referral Unit","O","2005-09-01"]
[391,"Newcastle upon Tyne",5.22,313324,null,null,null,null,null,209,"Athelney Primary School",2023,"Mainstream","O"]
[392,"North Tyneside",4.87,11187,null,null,null,null,null,209,"Cooper's Lane Primary School",2127,"Mainstream","O"]
[393,"South Tyneside",4.93,353492,null,null,null,null,null,209,"Kelvin Grove Primary School",2347,"Mainstream","O"]
[394,"Sunderland",5.04,652405,null,null,null,null,null,209,"Rushey Green Primary School",2529,"Mainstream","O"]
[420,"Isles Of Scilly",0,0,null,null,null,null,null,209,"Torridon Primary School",2606,"Mainstream","O"]
[800,"Bath and North East Somerset",4.6100000000000003,0,null,null,null,null,null,209,"Perrymount Primary School",2871,"Mainstream","O"]
[801,"Bristol, City of",5.69,541787,null,null,null,null,null,209,"Deptford Green School",4047,"Mainstream","O"]
[802,"North Somerset",4.6100000000000003,0,null,null,null,null,null,209,"Conisborough College",4249,"Mainstream","O"]
[803,"South Gloucestershire",4.6500000000000004,0,null,null,null,null,null,209,"Addey and Stanhope School",4600,"Mainstream","O"]
[805,"Hartlepool",4.8,0,null,null,null,null,null,209,"Brent Knoll School",7038,"Special","O"]
[806,"Middlesbrough",4.97,0,null,null,null,null,null,209,"New Woodlands School",7141,"Special","O"]
[807,"Redcar and Cleveland",4.6100000000000003,0,null,null,null,null,null,209,"Greenvale School",7180,"Special","O"]
[808,"Stockton-on-Tees",4.76,0,null,null,null,null,null,209,"Watergate School",7182,"Special","O"]
[810,"Kingston upon Hull, City of",4.6100000000000003,209943,null,null,null,null,null,209,"Drumbeat School and ASD Service",7183,"Special","O","2012-09-01"]
[811,"East Riding of Yorkshire",4.6100000000000003,288512,null,null,null,null,null,210,"Southwark Inclusive Learning Service (Sils)",1104,"Pupil Referral Unit","O","2008-09-01"]
[812,"North East Lincolnshire",4.6100000000000003,118697,null,null,null,null,null,210,"John Ruskin Primary School and Language Classes",2339,"Mainstream","O"]
[813,"North Lincolnshire",4.6100000000000003,0,null,null,null,null,null,210,"Snowsfields Primary School",2560,"Mainstream","O"]
[815,"North Yorkshire",4.6100000000000003,244448,null,null,null,null,null,210,"Brunswick Park Primary School",2858,"Mainstream","O","1998-09-01"]
[816,"York",4.6100000000000003,84368,null,null,null,null,null,210,"St John's and St Clement's Church of England Primary School",3460,"Mainstream","O"]
[821,"Luton",5.1100000000000003,1522417,null,null,null,null,null,210,"Rye Oak Primary School",3670,"Mainstream","O","2005-04-01"]
[822,"Bedford",4.87,104467,null,null,null,null,null,210,"Highshore School",7007,"Special","O"]
[823,"Central Bedfordshire",4.6100000000000003,197887,null,null,null,null,null,210,"Evelina Hospital School",7066,"Hospital ","O"]
[825,"Buckinghamshire",4.95,194022,null,null,null,null,null,210,"Bethlem and Maudsley Hospital School",7073,"Hospital ","O"]
[826,"Milton Keynes",5.55,118783,null,null,null,null,null,210,"Haymerle School",7126,"Special","O"]
[830,"Derbyshire",4.6100000000000003,983646,null,null,null,null,null,210,"Beormund Primary School",7167,"Special","O"]
[831,"Derby",4.92,1136977,null,null,null,null,null,210,"Tuke School",7174,"Special","O"]
[838,"Dorset",4.6100000000000003,0,null,null,null,null,null,210,"Cherry Garden School",7186,"Special","O"]
[839,"Bournemouth, Christchurch and Poole",4.6100000000000003,0,null,null,null,null,null,211,"Childrens House Nursery School",1012,"Mainstream","O"]
[840,"County Durham",4.62,1022109,null,null,null,null,null,211,"London East Alternative Provision",1100,"Pupil Referral Unit","O"]
[841,"Darlington",4.75,200070,null,null,null,null,null,211,"Globe Primary School",2254,"Mainstream","O"]
[845,"East Sussex",4.6100000000000003,0,null,null,null,null,null,211,"Hague Primary School",2270,"Mainstream","O"]
[846,"Brighton and Hove",4.76,157092,null,null,null,null,null,211,"Bangabandhu Primary School",2912,"Mainstream","O"]
[850,"Hampshire",4.92,1568436,null,null,null,null,null,211,"George Green's School",4505,"Mainstream","O"]
[851,"Portsmouth",5,0,null,null,null,null,null,211,"Bowden House School",7084,"Special","O"]
[852,"Southampton",5.42,56807,null,null,null,null,null,211,"Phoenix School",7095,"Special","O"]
[855,"Leicestershire",4.6100000000000003,135307,null,null,null,null,null,211,"Beatrice Tate School",7168,"Special","O"]
[856,"Leicester",4.87,0,null,null,null,null,null,211,"Stephen Hawking School",7169,"Special","O","1996-09-01"]
[857,"Rutland",4.6100000000000003,0,null,null,null,null,null,212,"Eastwood Nursery School",1036,"Mainstream","O"]
[860,"Staffordshire",4.6100000000000003,104310,null,null,null,null,null,212,"Francis Barber Pupil Referral Unit",1101,"Pupil Referral Unit","O"]
[861,"Stoke-on-Trent",4.82,77498,null,null,null,null,null,212,"Victoria Drive Primary Pupil Referral Unit",1102,"Pupil Referral Unit","O","1999-09-01"]
[865,"Wiltshire",4.6100000000000003,0,null,null,null,null,null,212,"Wandsworth Hospital and Home Tuition Service",1103,"Pupil Referral Unit","O","2005-09-01"]
[866,"Swindon",4.8499999999999996,0,null,null,null,null,null,212,"Riversdale Primary School",2511,"Mainstream","O"]
[867,"Bracknell Forest",5.24,0,null,null,null,null,null,212,"Sellincourt Primary School",2541,"Mainstream","O"]
[868,"Windsor and Maidenhead",5.31,192063,null,null,null,null,null,212,"Smallwood Primary School and Language Unit",2558,"Mainstream","O"]
[869,"West Berkshire",5.01,218225,null,null,null,null,null,212,"Southmead Primary School",2780,"Mainstream","O"]
[870,"Reading",5.45,152323,null,null,null,null,null,212,"Sacred Heart Catholic Primary School, Battersea",3645,"Mainstream","O","1998-09-01"]
[871,"Slough",6.1,698758,null,null,null,null,null,212,"Saint John Bosco College",4008,"Mainstream","O","2011-09-01"]
[872,"Wokingham",5.28,2018,null,null,null,null,null,212,"Hillbrook School",5201,"Mainstream","O"]
[873,"Cambridgeshire",4.7300000000000004,1000991,null,null,null,null,null,212,"Oak Lodge School",7068,"Special","O"]
[874,"Peterborough",5.22,224406,null,null,null,null,null,212,"Bradstow School",7077,"Special","O"]
[876,"Halton",5.12,88225,null,null,null,null,null,212,"Greenmead School",7123,"Special","O"]
[877,"Warrington",4.6100000000000003,56613,null,null,null,null,null,212,"Paddock School",7183,"Special","O"]
[878,"Devon",4.6100000000000003,97134,null,null,null,null,null,212,"Garratt Park School",7207,"Special","O"]
[879,"Plymouth",4.88,328509,null,null,null,null,null,213,"Edward Wilson Primary School",2189,"Mainstream","O"]
[880,"Torbay",4.6100000000000003,0,null,null,null,null,null,213,"Hallfield Primary School",2799,"Mainstream","O"]
[881,"Essex",4.78,272413,null,null,null,null,null,213,"All Souls CofE Primary School",3306,"Mainstream","O"]
[882,"Southend-on-Sea",4.71,0,null,null,null,null,null,213,"St Augustine's Federated Schools: CE High School",4723,"Mainstream","O"]
[883,"Thurrock",4.7699999999999996,0,null,null,null,null,null,213,"College Park School",7042,"Special","O"]
[884,"Herefordshire, County of",4.6100000000000003,0,null,null,null,null,null,213,"Queen Elizabeth II Jubilee School",7184,"Special","O"]
[885,"Worcestershire",4.6100000000000003,89348,null,null,null,null,null,301,"Mayesbrook Park School",1100,"Pupil Referral Unit","O","2001-01-04"]
[886,"Kent",4.79,168179,null,null,null,null,null,301,"Dorothy Barley Infants' School",2005,"Mainstream","O"]
[887,"Medway",4.8,0,null,null,null,null,null,301,"Manor Infants' School/Manor Longbridge",2010,"Mainstream","O"]
[888,"Lancashire",4.6100000000000003,3444941,null,null,null,null,null,301,"Ripple Primary School",2015,"Mainstream","O"]
[889,"Blackburn with Darwen",4.93,136253,null,null,null,null,null,301,"Grafton Primary School",2033,"Mainstream","O"]
[890,"Blackpool",4.67,0,null,null,null,null,null,301,"Thomas Arnold Primary School",2056,"Mainstream","O"]
[891,"Nottinghamshire",4.6100000000000003,0,null,null,null,null,null,301,"Valence Primary School",2059,"Mainstream","O"]
[892,"Nottingham",5.23,134116,null,null,null,null,null,301,"Rose Lane Primary School",2061,"Mainstream","O"]
[893,"Shropshire",4.6100000000000003,0,null,null,null,null,null,301,"William Bellamy Primary School",2063,"Mainstream","O"]
[894,"Telford and Wrekin",4.67,328024,null,null,null,null,null,301,"Five Elms Primary School",2065,"Mainstream","O"]
[895,"Cheshire East",4.6100000000000003,140494,null,null,null,null,null,301,"Becontree Primary School",2068,"Mainstream","O"]
[896,"Cheshire West and Chester",4.6100000000000003,35124,null,null,null,null,null,301,"John Perry Primary School",2069,"Mainstream","O"]
[908,"Cornwall",4.6100000000000003,314326,null,null,null,null,null,301,"Richard Alibon Primary School with ARP for Cognitive and Learning Difficulties : SEN Base",2070,"Mainstream","O","1995-09-01"]
[909,"Cumbria",4.6100000000000003,424618,null,null,null,null,null,301,"Monteagle Primary School",2071,"Mainstream","O","1995-09-01"]
[916,"Gloucestershire",4.6100000000000003,0,null,null,null,null,null,301,"Godwin Primary School",2072,"Mainstream","O","1996-09-01"]
[919,"Hertfordshire",5.69,1761395,null,null,null,null,null,301,"Hunters Hall Primary School",2073,"Mainstream","O","1998-11-25"]
[921,"Isle of Wight",4.6100000000000003,0,null,null,null,null,null,301,"Gascoigne Primary School",2075,"Mainstream","O","1999-01-01"]
[925,"Lincolnshire",4.6100000000000003,416234,null,null,null,null,null,301,"St Peter's Catholic Primary School",3503,"Mainstream","O"]
[926,"Norfolk",4.6100000000000003,284182,null,null,null,null,null,301,"George Carey Church of England Primary School",3507,"Mainstream","O","2011-09-01"]
[929,"Northumberland",4.6100000000000003,0,null,null,null,null,null,301,"Barking Abbey School, A Specialist Sports and Humanities College",4021,"Mainstream","O"]
[931,"Oxfordshire",4.7,497652,null,null,null,null,null,301,"Eastbrook School",4023,"Mainstream","O"]
[933,"Somerset",4.6100000000000003,0,null,null,null,null,null,301,"Eastbury Community School",4024,"Mainstream","O"]
[935,"Suffolk",4.6100000000000003,127645,null,null,null,null,null,301,"Robert Clack School",4027,"Mainstream","O"]
[936,"Surrey",5.49,911195,null,null,null,null,null,301,"Jo Richardson Community School",4029,"Mainstream","O","2002-09-01"]
[937,"Warwickshire",4.6100000000000003,658450,null,null,null,null,null,301,"All Saints Catholic School and Technology College",4703,"Mainstream","O"]
[938,"West Sussex",5.09,556121,null,null,null,null,null,301,"Dagenham Park CofE School",4704,"Mainstream","O","2010-01-01"]
[940,"North Northamptonshire",4.66,933309,null,null,null,null,null,301,"Trinity School",7005,"Special","O","1997-11-03"]
[941,"West Northamptonshire",4.66,766421,null,null,null,null,null,302,"Pavilion Study Centre",1100,"Pupil Referral Unit","O"]
[null,null,null,null,null,null,null,null,null,302,"Northgate School",1102,"Pupil Referral Unit","O","2002-09-02"]
[null,null,null,null,null,null,null,null,null,302,"Colindale Primary School",2014,"Mainstream","O"]
[null,null,null,null,null,null,null,null,null,302,"Coppetts Wood Primary School",2015,"Mainstream","O"]
[null,null,null,null,null,null,null,null,null,302,"Livingstone Primary and Nursery School",2036,"Mainstream","O"]
[null,null,null,null,null,null,null,null,null,302,"Chalgrove Primary School",2067,"Mainstream","O"]
[null,null,null,null,null,null,null,null,null,302,"The Orion Primary School",2077,"Mainstream","O","1999-09-01"]
[null,null,null,null,null,null,null,null,null,302,"JCoSS",5427,"Mainstream","O","2010-09-01"]
[null,null,null,null,null,null,null,null,null,302,"Northway School",7005,"Special","O"]
[null,null,null,null,null,null,null,null,null,302,"Oakleigh School & Acorn Assessment Centre",7009,"Special","O"]
[null,null,null,null,null,null,null,null,null,302,"Mapledown School",7010,"Special","O"]
[null,null,null,null,null,null,null,null,null,303,"Crook Log Primary School",2001,"Mainstream","O"]
[null,null,null,null,null,null,null,null,null,303,"Upton Primary School",2016,"Mainstream","O"]
[null,null,null,null,null,null,null,null,null,303,"Parkway Primary School",2059,"Mainstream","O"]
[null,null,null,null,null,null,null,null,null,303,"Marlborough School",7002,"Special","O","1900-01-01"]
[null,null,null,null,null,null,null,null,null,304,"Fawood Nursery School & Family Wellbeing Centre",1001,"Mainstream","O"]
[null,null,null,null,null,null,null,null,null,304,"Granville Plus Nursery School",1004,"Mainstream","O"]
[null,null,null,null,null,null,null,null,null,304,"Brent River College",1105,"Pupil Referral Unit","O","2002-10-02"]
[null,null,null,null,null,null,null,null,null,304,"Ashley College",1110,"Pupil Referral Unit","O","2004-10-18"]
[null,null,null,null,null,null,null,null,null,304,"Carlton Vale Infant School",2007,"Mainstream","O"]
[null,null,null,null,null,null,null,null,null,304,"Kingsbury Green Primary School",2024,"Mainstream","O"]
[null,null,null,null,null,null,null,null,null,304,"Fryent Primary School",2074,"Mainstream","O"]
[null,null,null,null,null,null,null,null,null,304,"The Kilburn Park School Foundation",5204,"Mainstream","O"]
[null,null,null,null,null,null,null,null,null,304,"Phoenix Arch School",7005,"Special","O"]
[null,null,null,null,null,null,null,null,null,305,"Poverest Primary School",2080,"Mainstream","O"]
[null,null,null,null,null,null,null,null,null,305,"Marjorie McClure School",7005,"Special","O"]
[null,null,null,null,null,null,null,null,null,305,"Riverside School",7012,"Special","O","2007-09-01"]
[null,null,null,null,null,null,null,null,null,306,"Saffron Valley Collegiate",1100,"Pupil Referral Unit","O"]
[null,null,null,null,null,null,null,null,null,306,"Winterbourne Nursery and Infants' School",2051,"Mainstream","O"]
[null,null,null,null,null,null,null,null,null,306,"Norbury Manor Primary School",2105,"Mainstream","O"]
[null,null,null,null,null,null,null,null,null,306,"Bensham Manor School",7000,"Special","O"]
[null,null,null,null,null,null,null,null,null,306,"St Giles School",7001,"Special","O"]
[null,null,null,null,null,null,null,null,null,306,"St Nicholas School",7005,"Special","O"]
[null,null,null,null,null,null,null,null,null,306,"Red Gates School",7006,"Special","O"]
[null,null,null,null,null,null,null,null,null,306,"Priory School",7008,"Special","O"]
[null,null,null,null,null,null,null,null,null,307,"South Acton Childrens Centre",1003,"Mainstream","O"]
[null,null,null,null,null,null,null,null,null,307,"Ealing Alternative Provision",1103,"Pupil Referral Unit","O","1998-09-01"]
[null,null,null,null,null,null,null,null,null,307,"Ealing Primary Centre",1104,"Pupil Referral Unit","O","2003-09-01"]
[null,null,null,null,null,null,null,null,null,307,"St John's Primary School",2058,"Mainstream","O"]
[null,null,null,null,null,null,null,null,null,307,"West Acton Primary School",2071,"Mainstream","O"]
[null,null,null,null,null,null,null,null,null,307,"Beaconsfield Primary and Nursery School",2083,"Mainstream","O"]
[null,null,null,null,null,null,null,null,null,307,"Coston Primary School",2088,"Mainstream","O"]
[null,null,null,null,null,null,null,null,null,307,"Downe Manor Primary School",2092,"Mainstream","O"]
[null,null,null,null,null,null,null,null,null,307,"Drayton Green Primary School",2094,"Mainstream","O"]
[null,null,null,null,null,null,null,null,null,307,"Selborne Primary School",2125,"Mainstream","O"]
[null,null,null,null,null,null,null,null,null,307,"Allenby Primary School",2161,"Mainstream","O"]
[null,null,null,null,null,null,null,null,null,307,"Gifford Primary School",2168,"Mainstream","O"]
[null,null,null,null,null,null,null,null,null,307,"Havelock Primary School and Nursery",2170,"Mainstream","O"]
[null,null,null,null,null,null,null,null,null,307,"Willow Tree Primary School",2172,"Mainstream","O"]
[null,null,null,null,null,null,null,null,null,307,"Villiers High School",4020,"Mainstream","O"]
[null,null,null,null,null,null,null,null,null,307,"Elthorne Park High School",4036,"Mainstream","O","1998-09-01"]
[null,null,null,null,null,null,null,null,null,307,"Greenford High School",5401,"Mainstream","O"]
[null,null,null,null,null,null,null,null,null,307,"Belvue School",7005,"Special","O"]
[null,null,null,null,null,null,null,null,null,307,"Castlebar School",7007,"Special","O"]
[null,null,null,null,null,null,null,null,null,307,"Mandeville School",7010,"Special","O"]
[null,null,null,null,null,null,null,null,null,307,"John Chilton School",7012,"Special","O"]
[null,null,null,null,null,null,null,null,null,307,"Springhallow School",7013,"Special","O"]
[null,null,null,null,null,null,null,null,null,307,"St Ann's School",7014,"Special","O"]
[null,null,null,null,null,null,null,null,null,308,"Orchardside School",1100,"Pupil Referral Unit","O","1996-09-01"]
[null,null,null,null,null,null,null,null,null,308,"Eldon Primary School",2025,"Mainstream","O"]
[null,null,null,null,null,null,null,null,null,308,"Firs Farm Primary School",2028,"Mainstream","O"]
[null,null,null,null,null,null,null,null,null,308,"Suffolks Primary School",2061,"Mainstream","O"]
[null,null,null,null,null,null,null,null,null,308,"De Bohun Primary School",2082,"Mainstream","O"]
[null,null,null,null,null,null,null,null,null,308,"Starks Field Primary School",2094,"Mainstream","O","2004-09-01"]
[null,null,null,null,null,null,null,null,null,308,"Chace Community School",4037,"Mainstream","O"]
[null,null,null,null,null,null,null,null,null,308,"Highlands School",4043,"Mainstream","O","2000-09-01"]
[null,null,null,null,null,null,null,null,null,308,"Durants School",7000,"Special","O"]
[null,null,null,null,null,null,null,null,null,308,"West Lea School",7002,"Special","O"]
[null,null,null,null,null,null,null,null,null,308,"Oaktree School",7005,"Special","O"]
[null,null,null,null,null,null,null,null,null,308,"Waverley School",7007,"Special","O"]
[null,null,null,null,null,null,null,null,null,308,"Russet House School",7008,"Special","O","1996-09-01"]
[null,null,null,null,null,null,null,null,null,309,"Haringey Learning Partnership",1101,"Pupil Referral Unit","O","2006-04-01"]
[null,null,null,null,null,null,null,null,null,309,"West Green Primary School",2051,"Mainstream","O"]
[null,null,null,null,null,null,null,null,null,309,"Bruce Grove Primary School",2083,"Mainstream","O","1999-04-11"]
[null,null,null,null,null,null,null,null,null,309,"The Mulberry Primary School",3001,"Mainstream","O","2002-09-01"]
[null,null,null,null,null,null,null,null,null,309,"Blanche Nevile School",7000,"Special","O"]
[null,null,null,null,null,null,null,null,null,309,"Vale School",7001,"Special","O"]
[null,null,null,null,null,null,null,null,null,309,"The Brook Special Primary School",7005,"Special","O"]
[null,null,null,null,null,null,null,null,null,309,"Riverside School",7006,"Special","O"]
[null,null,null,null,null,null,null,null,null,310,"Hillview Nursery School",1003,"Mainstream","O","2002-09-01"]
[null,null,null,null,null,null,null,null,null,310,"The Helix Education Centre",1101,"Pupil Referral Unit","O"]
[null,null,null,null,null,null,null,null,null,310,"Belmont School",2055,"Mainstream","O"]
[null,null,null,null,null,null,null,null,null,310,"Elmgrove Primary School & Nursery",2082,"Mainstream","O"]
[null,null,null,null,null,null,null,null,null,310,"West Lodge Primary School",2087,"Mainstream","O"]
[null,null,null,null,null,null,null,null,null,310,"Cedars Manor School",3514,"Mainstream","O","2007-09-01"]
[null,null,null,null,null,null,null,null,null,310,"Whitmore High School",4026,"Mainstream","O"]
[null,null,null,null,null,null,null,null,null,310,"Shaftesbury High School",7002,"Special","O"]
[null,null,null,null,null,null,null,null,null,310,"Kingsley High School",7005,"Special","O","2001-09-01"]
[null,null,null,null,null,null,null,null,null,310,"Woodlands School",7006,"Special","O","2001-09-01"]
[null,null,null,null,null,null,null,null,null,311,"Clockhouse Primary School",2038,"Mainstream","O"]
[null,null,null,null,null,null,null,null,null,311,"Nelmes Primary School",2086,"Mainstream","O"]
[null,null,null,null,null,null,null,null,null,311,"Mead Primary School",2087,"Mainstream","O"]
[null,null,null,null,null,null,null,null,null,311,"The R J Mitchell Primary School",2093,"Mainstream","O","1999-01-01"]
[null,null,null,null,null,null,null,null,null,311,"Corbets Tey School",7000,"Special","O"]
[null,null,null,null,null,null,null,null,null,312,"Coteford Infant School",2012,"Mainstream","O"]
[null,null,null,null,null,null,null,null,null,312,"Deanesfield Primary School",2016,"Mainstream","O"]
[null,null,null,null,null,null,null,null,null,312,"Glebe Primary School",2020,"Mainstream","O"]
[null,null,null,null,null,null,null,null,null,312,"Cherry Lane Primary School",2084,"Mainstream","O","1999-01-01"]
[null,null,null,null,null,null,null,null,null,312,"Hayes Park School",5211,"Mainstream","O"]
[null,null,null,null,null,null,null,null,null,312,"Oak Wood School",5409,"Mainstream","O"]
[null,null,null,null,null,null,null,null,null,312,"Harlington School",5411,"Mainstream","O"]
[null,null,null,null,null,null,null,null,null,312,"Meadow High School",7004,"Special","O"]
[null,null,null,null,null,null,null,null,null,312,"Hedgewood School",7009,"Special","O"]
[null,null,null,null,null,null,null,null,null,313,"The Woodbridge Park Education Service",1100,"Pupil Referral Unit","O","1996-10-01"]
[null,null,null,null,null,null,null,null,null,313,"Cardinal Road Infant and Nursery School",2006,"Mainstream","O"]
[null,null,null,null,null,null,null,null,null,313,"Feltham Hill Infant and Nursery School",2021,"Mainstream","O"]
[null,null,null,null,null,null,null,null,null,313,"Hounslow Heath Junior School",2031,"Mainstream","O"]
[null,null,null,null,null,null,null,null,null,313,"Hounslow Heath Infant and Nursery School",2032,"Mainstream","O"]
[null,null,null,null,null,null,null,null,null,313,"Hounslow Town Primary School",2033,"Mainstream","O"]
[null,null,null,null,null,null,null,null,null,313,"Lionel Primary School",2036,"Mainstream","O"]
[null,null,null,null,null,null,null,null,null,313,"Norwood Green Infant and Nursery School",2039,"Mainstream","O"]
[null,null,null,null,null,null,null,null,null,313,"Strand-on-the-Green Junior School",2047,"Mainstream","O"]
[null,null,null,null,null,null,null,null,null,313,"Strand-on-the-Green Infant and Nursery School",2048,"Mainstream","O"]
[null,null,null,null,null,null,null,null,null,313,"Worple Primary School",2051,"Mainstream","O"]
[null,null,null,null,null,null,null,null,null,313,"The Smallberry Green Primary School",2064,"Mainstream","O"]
[null,null,null,null,null,null,null,null,null,313,"Grove Road Primary School",2071,"Mainstream","O"]
[null,null,null,null,null,null,null,null,null,313,"Crane Park Primary School",2078,"Mainstream","O","2001-09-01"]
[null,null,null,null,null,null,null,null,null,313,"Marjory Kinnon School",7005,"Special","O"]
[null,null,null,null,null,null,null,null,null,313,"Oaklands School",7006,"Special","O"]
[null,null,null,null,null,null,null,null,null,313,"Lindon Bennett School",7007,"Special","O"]
[null,null,null,null,null,null,null,null,null,313,"The Cedars Primary School",7010,"Special","O"]
[null,null,null,null,null,null,null,null,null,314,"Surbiton Children's Centre Nursery",1001,"Mainstream","O"]
[null,null,null,null,null,null,null,null,null,314,"Malden Oaks School and Tuition Service",1101,"Pupil Referral Unit","O"]
[null,null,null,null,null,null,null,null,null,314,"Lime Tree Primary School",2006,"Mainstream","O","2012-09-03"]
[null,null,null,null,null,null,null,null,null,314,"Tolworth Junior School",2024,"Mainstream","O"]
[null,null,null,null,null,null,null,null,null,314,"Tolworth Infant and Nursery School",2025,"Mainstream","O"]
[null,null,null,null,null,null,null,null,null,314,"Alexandra Primary School",2031,"Mainstream","O"]
[null,null,null,null,null,null,null,null,null,314,"King Athelstan Primary School",2032,"Mainstream","O"]
[null,null,null,null,null,null,null,null,null,314,"Grand Avenue Primary and Nursery School",2033,"Mainstream","O"]
[null,null,null,null,null,null,null,null,null,314,"King's Oak Primary School",2035,"Mainstream","O"]
[null,null,null,null,null,null,null,null,null,314,"Corpus Christi Catholic Primary School",3500,"Mainstream","O"]
[null,null,null,null,null,null,null,null,null,315,"Canterbury Campus",1100,"Pupil Referral Unit","O","2002-09-05"]
[null,null,null,null,null,null,null,null,null,315,"Hatfeild Primary School",2059,"Mainstream","O"]
[null,null,null,null,null,null,null,null,null,315,"West Wimbledon Primary School",2081,"Mainstream","O"]
[null,null,null,null,null,null,null,null,null,315,"Wimbledon Chase Primary School",2091,"Mainstream","O"]
[null,null,null,null,null,null,null,null,null,315,"The Priory CofE School",3506,"Mainstream","O"]
[null,null,null,null,null,null,null,null,null,315,"Ricards Lodge High School",4050,"Mainstream","O"]
[null,null,null,null,null,null,null,null,null,315,"Raynes Park High School",4052,"Mainstream","O","1900-01-01"]
[null,null,null,null,null,null,null,null,null,315,"Rutlish School",4500,"Mainstream","O"]
[null,null,null,null,null,null,null,null,null,315,"Melrose School",7003,"Special","O"]
[null,null,null,null,null,null,null,null,null,315,"Perseid School",7004,"Special","O"]
[null,null,null,null,null,null,null,null,null,315,"Cricket Green School",7006,"Special","O"]
[null,null,null,null,null,null,null,null,null,316,"Ronald Openshaw Nursery School",1003,"Mainstream","O"]
[null,null,null,null,null,null,null,null,null,316,"Tunmarsh School",1100,"Pupil Referral Unit","O","1994-06-01"]
[null,null,null,null,null,null,null,null,null,316,"New Directions",1101,"Pupil Referral Unit","O","2004-09-01"]
[null,null,null,null,null,null,null,null,null,316,"Brampton Primary School",2004,"Mainstream","O"]
[null,null,null,null,null,null,null,null,null,316,"Calverton Primary School",2089,"Mainstream","O"]
[null,null,null,null,null,null,null,null,null,316,"Essex Primary School",2095,"Mainstream","O"]
[null,null,null,null,null,null,null,null,null,316,"Sandringham Primary School",2096,"Mainstream","O","1996-01-01"]
[null,null,null,null,null,null,null,null,null,316,"Sir John Heron Primary School",2101,"Mainstream","O","2001-09-01"]
[null,null,null,null,null,null,null,null,null,316,"Little Ilford School",4015,"Mainstream","O"]
[null,null,null,null,null,null,null,null,null,317,"The Constance Bridgeman Centre",1100,"Pupil Referral Unit","O"]
[null,null,null,null,null,null,null,null,null,317,"Redbridge Alternative Provision",1101,"Pupil Referral Unit","O","2002-10-01"]
[null,null,null,null,null,null,null,null,null,317,"Roding Primary School",2051,"Mainstream","O"]
[null,null,null,null,null,null,null,null,null,317,"Mayespark Primary School",2071,"Mainstream","O","1998-09-14"]
[null,null,null,null,null,null,null,null,null,317,"Churchfields Infants' School",3521,"Mainstream","O","2001-09-01"]
[null,null,null,null,null,null,null,null,null,317,"Cranbrook Primary School",3528,"Mainstream","O","2007-09-01"]
[null,null,null,null,null,null,null,null,null,317,"Caterham High School",4006,"Mainstream","O"]
[null,null,null,null,null,null,null,null,null,317,"Seven Kings School",4032,"Mainstream","O"]
[null,null,null,null,null,null,null,null,null,317,"Little Heath School",5950,"Special","O"]
[null,null,null,null,null,null,null,null,null,317,"New Rush Hall School",7004,"Special","O"]
[null,null,null,null,null,null,null,null,null,317,"Hatton School and Special Needs Centre",7007,"Special","O"]
[null,null,null,null,null,null,null,null,null,318,"Windham Nursery School",1001,"Mainstream","O"]
[null,null,null,null,null,null,null,null,null,318,"Darell Primary and Nursery School",2004,"Mainstream","O"]
[null,null,null,null,null,null,null,null,null,318,"East Sheen Primary School",2006,"Mainstream","O"]
[null,null,null,null,null,null,null,null,null,318,"Hampton Hill Junior School",2007,"Mainstream","O"]
[null,null,null,null,null,null,null,null,null,318,"Heathfield Junior School",2011,"Mainstream","O"]
[null,null,null,null,null,null,null,null,null,318,"Heathfield Infant School",2012,"Mainstream","O"]
[null,null,null,null,null,null,null,null,null,318,"Stanley  Primary School",2021,"Mainstream","O"]
[null,null,null,null,null,null,null,null,null,318,"St James's Roman Catholic Primary School",3316,"Mainstream","O"]
[null,null,null,null,null,null,null,null,null,318,"Christ's Church of England Comprehensive Secondary School",4603,"Mainstream","O"]
[null,null,null,null,null,null,null,null,null,319,"Thomas Wall Nursery School",1001,"Mainstream","O"]
[null,null,null,null,null,null,null,null,null,319,"Sutton Tuition and Reintegration Service",1102,"Pupil Referral Unit","O","2004-03-01"]
[null,null,null,null,null,null,null,null,null,319,"Foresters Primary School",2043,"Mainstream","O"]
[null,null,null,null,null,null,null,null,null,319,"Muschamp Primary School and Language Opportunity Base",2049,"Mainstream","O","1996-09-01"]
[null,null,null,null,null,null,null,null,null,319,"Sherwood Park School",7002,"Special","O"]
[null,null,null,null,null,null,null,null,null,320,"Low Hall Nursery School",1000,"Mainstream","O"]
[null,null,null,null,null,null,null,null,null,320,"Hawkswood Primary PRU",1105,"Pupil Referral Unit","O","2004-09-01"]
[null,null,null,null,null,null,null,null,null,320,"Burnside Secondary PRU",1107,"Pupil Referral Unit","O","2011-09-12"]
[null,null,null,null,null,null,null,null,null,320,"Hawkswood  (Therapeutic)",1109,"Pupil Referral Unit","O","2011-12-01"]
[null,null,null,null,null,null,null,null,null,320,"Whitehall Primary School",2006,"Mainstream","O"]
[null,null,null,null,null,null,null,null,null,320,"Oakhill Primary School",2062,"Mainstream","O"]
[null,null,null,null,null,null,null,null,null,320,"South Grove Primary School",2066,"Mainstream","O"]
[null,null,null,null,null,null,null,null,null,320,"Buxton School",4000,"Mainstream","O"]
[null,null,null,null,null,null,null,null,null,320,"Frederick Bremer School",4060,"Mainstream","O"]
[null,null,null,null,null,null,null,null,null,320,"Heathcote School & Science College",4063,"Mainstream","O"]
[null,null,null,null,null,null,null,null,null,320,"Belmont Park School",7011,"Special","O"]
[null,null,null,null,null,null,null,null,null,330,"Garretts Green Nursery School",1006,"Mainstream","O"]
[null,null,null,null,null,null,null,null,null,330,"Allens Croft Nursery School",1017,"Mainstream","O"]
[null,null,null,null,null,null,null,null,null,330,"City of Birmingham School",1100,"Pupil Referral Unit","O"]
[null,null,null,null,null,null,null,null,null,330,"Kings Heath Primary School",2005,"Mainstream","O","2004-01-01"]
[null,null,null,null,null,null,null,null,null,330,"Cherry Orchard Primary School",2040,"Mainstream","O"]
[null,null,null,null,null,null,null,null,null,330,"Hawthorn Primary School",2099,"Mainstream","O"]
[null,null,null,null,null,null,null,null,null,330,"Lyndon Green Junior School",2128,"Mainstream","O"]
[null,null,null,null,null,null,null,null,null,330,"Lyndon Green Infant School",2129,"Mainstream","O"]
[null,null,null,null,null,null,null,null,null,330,"Paget Primary School",2149,"Mainstream","O"]
[null,null,null,null,null,null,null,null,null,330,"Allens Croft Primary School",2153,"Mainstream","O"]
[null,null,null,null,null,null,null,null,null,330,"World's End Junior School",2225,"Mainstream","O"]
[null,null,null,null,null,null,null,null,null,330,"Welsh House Farm Community School and Special Needs Resources Base",2245,"Mainstream","O"]
[null,null,null,null,null,null,null,null,null,330,"The Meadows Primary School",2246,"Mainstream","O"]
[null,null,null,null,null,null,null,null,null,330,"Hollywood Primary School",2288,"Mainstream","O"]
[null,null,null,null,null,null,null,null,null,330,"Welford Primary School",2308,"Mainstream","O"]
[null,null,null,null,null,null,null,null,null,330,"World's End Infant and Nursery School",2317,"Mainstream","O"]
[null,null,null,null,null,null,null,null,null,330,"Boldmere Junior School",2401,"Mainstream","O"]
[null,null,null,null,null,null,null,null,null,330,"Boldmere Infant School and Nursery",2402,"Mainstream","O"]
[null,null,null,null,null,null,null,null,null,330,"Nelson Mandela School",2457,"Mainstream","O"]
[null,null,null,null,null,null,null,null,null,330,"Anglesey Primary School",2479,"Mainstream","O","2000-09-01"]
[null,null,null,null,null,null,null,null,null,330,"Christ The King Catholic Primary School",3319,"Mainstream","O"]
[null,null,null,null,null,null,null,null,null,330,"Bordesley Green Girls' School & Sixth Form",4115,"Mainstream","O"]
[null,null,null,null,null,null,null,null,null,330,"Hamilton School",7006,"Special","O","1997-02-26"]
[null,null,null,null,null,null,null,null,null,330,"Victoria School",7009,"Special","O"]
[null,null,null,null,null,null,null,null,null,330,"Longwill A Primary School for Deaf Children",7012,"Special","O"]
[null,null,null,null,null,null,null,null,null,330,"Uffculme School",7014,"Special","O"]
[null,null,null,null,null,null,null,null,null,330,"Baskerville School",7016,"Special","O"]
[null,null,null,null,null,null,null,null,null,330,"Braidwood School for the Deaf",7030,"Special","O"]
[null,null,null,null,null,null,null,null,null,330,"Selly Oak Trust School",7033,"Special","O"]
[null,null,null,null,null,null,null,null,null,330,"Priestley Smith School",7034,"Special","O"]
[null,null,null,null,null,null,null,null,null,330,"The Dame Ellen Pinsent School",7035,"Special","O"]
[null,null,null,null,null,null,null,null,null,330,"The Pines Special School",7045,"Special","O","1900-01-01"]
[null,null,null,null,null,null,null,null,null,330,"Springfield House Community Special School",7047,"Special","O"]
[null,null,null,null,null,null,null,null,null,330,"Fox Hollies School and Performing Arts College",7050,"Special","O"]
[null,null,null,null,null,null,null,null,null,330,"Cherry Oak School",7051,"Special","O"]
[null,null,null,null,null,null,null,null,null,330,"Beaufort School",7052,"Special","O"]
[null,null,null,null,null,null,null,null,null,330,"Oscott Manor School",7053,"Special","O"]
[null,null,null,null,null,null,null,null,null,330,"Langley School",7060,"Special","O"]
[null,null,null,null,null,null,null,null,null,330,"Lindsworth School",7062,"Special","O"]
[null,null,null,null,null,null,null,null,null,331,"Coventry Extended Learning Centre",1106,"Pupil Referral Unit","O","2003-09-01"]
[null,null,null,null,null,null,null,null,null,331,"Hospital Education Service",1107,"Pupil Referral Unit","O","2005-03-10"]
[null,null,null,null,null,null,null,null,null,331,"Aldermoor Farm Primary School",2131,"Mainstream","O"]
[null,null,null,null,null,null,null,null,null,331,"Whitmore Park Primary School",2135,"Mainstream","O"]
[null,null,null,null,null,null,null,null,null,331,"Moseley Primary School",2147,"Mainstream","O"]
[null,null,null,null,null,null,null,null,null,331,"Longford Park Primary School",2150,"Mainstream","O"]
[null,null,null,null,null,null,null,null,null,331,"Howes Community Primary School",3437,"Mainstream","O","2003-09-01"]
[null,null,null,null,null,null,null,null,null,331,"Sherbourne Fields School",7009,"Special","O"]
[null,null,null,null,null,null,null,null,null,331,"Tiverton School",7017,"Special","O"]
[null,null,null,null,null,null,null,null,null,331,"Baginton Fields School",7019,"Special","O"]
[null,null,null,null,null,null,null,null,null,331,"Woodfield",7021,"Special","O","2006-04-01"]
[null,null,null,null,null,null,null,null,null,331,"Corley Centre",7022,"Special","O","2006-09-01"]
[null,null,null,null,null,null,null,null,null,331,"Castle Wood Special School",7024,"Special","O","2008-04-01"]
[null,null,null,null,null,null,null,null,null,332,"Sycamore Short Stay School",1104,"Pupil Referral Unit","O","2010-09-01"]
[null,null,null,null,null,null,null,null,null,332,"Brockmoor Primary School",2024,"Mainstream","O"]
[null,null,null,null,null,null,null,null,null,332,"Caslon Primary Community  School",2112,"Mainstream","O"]
[null,null,null,null,null,null,null,null,null,332,"Ashwood Park Primary School",2141,"Mainstream","O"]
[null,null,null,null,null,null,null,null,null,332,"Hawbush Primary School",2143,"Mainstream","O"]
[null,null,null,null,null,null,null,null,null,332,"Gig Mill Primary School",2145,"Mainstream","O"]
[null,null,null,null,null,null,null,null,null,332,"Sutton School",7001,"Special","O"]
[null,null,null,null,null,null,null,null,null,332,"The Brier School",7002,"Special","O"]
[null,null,null,null,null,null,null,null,null,332,"Woodsetton School",7003,"Special","O"]
[null,null,null,null,null,null,null,null,null,332,"The Old Park School",7004,"Special","O"]
[null,null,null,null,null,null,null,null,null,332,"Halesbury School",7005,"Special","O"]
[null,null,null,null,null,null,null,null,null,332,"Rosewood School",7008,"Special","O"]
[null,null,null,null,null,null,null,null,null,332,"Pens Meadow School",7009,"Special","O"]
[null,null,null,null,null,null,null,null,null,333,"Albright Education Centre",1100,"Pupil Referral Unit","O","1994-06-01"]
[null,null,null,null,null,null,null,null,null,333,"The Primrose Centre",1106,"Pupil Referral Unit","O","2007-05-28"]
[null,null,null,null,null,null,null,null,null,333,"Sandwell Community School",1107,"Pupil Referral Unit","O","2007-05-14"]
[null,null,null,null,null,null,null,null,null,333,"Hargate Primary School",2041,"Mainstream","O"]
[null,null,null,null,null,null,null,null,null,333,"Great Bridge Primary School",2056,"Mainstream","O"]
[null,null,null,null,null,null,null,null,null,333,"Crocketts Community Primary School",2123,"Mainstream","O"]
[null,null,null,null,null,null,null,null,null,333,"Grace Mary Primary School",2127,"Mainstream","O"]
[null,null,null,null,null,null,null,null,null,333,"Ferndale Primary School",2177,"Mainstream","O"]
[null,null,null,null,null,null,null,null,null,333,"Uplands Manor Primary School",2180,"Mainstream","O","1997-09-01"]
[null,null,null,null,null,null,null,null,null,333,"St Martin's CofE Primary School",3003,"Mainstream","O"]
[null,null,null,null,null,null,null,null,null,333,"St James CofE Primary School",3006,"Mainstream","O","1999-09-01"]
[null,null,null,null,null,null,null,null,null,333,"Christ Church CofE Primary School",3400,"Mainstream","O"]
[null,null,null,null,null,null,null,null,null,333,"Galton Valley Primary School",3409,"Mainstream","O","2007-09-01"]
[null,null,null,null,null,null,null,null,null,333,"Holly Lodge High School College of Science",4138,"Mainstream","O"]
[null,null,null,null,null,null,null,null,null,333,"St Michael's Church of England High School",4500,"Mainstream","O"]
[null,null,null,null,null,null,null,null,null,333,"The Meadows School",7017,"Special","O","2000-09-01"]
[null,null,null,null,null,null,null,null,null,333,"The Orchard School",7018,"Special","O","2000-09-01"]
[null,null,null,null,null,null,null,null,null,333,"The Westminster School",7019,"Special","O","2000-09-01"]
[null,null,null,null,null,null,null,null,null,334,"Triple Crown Centre",1102,"Pupil Referral Unit","O"]
[null,null,null,null,null,null,null,null,null,334,"Summerfield Education Centre",1104,"Pupil Referral Unit","O","2001-06-04"]
[null,null,null,null,null,null,null,null,null,334,"Valley Primary",2024,"Mainstream","O"]
[null,null,null,null,null,null,null,null,null,334,"Widney Junior School",2028,"Mainstream","O"]
[null,null,null,null,null,null,null,null,null,334,"Mill Lodge Primary School",2031,"Mainstream","O"]
[null,null,null,null,null,null,null,null,null,334,"Windy Arbor Primary School",2066,"Mainstream","O"]
[null,null,null,null,null,null,null,null,null,334,"Dickens Heath Community Primary School",2098,"Mainstream","O","2002-09-01"]
[null,null,null,null,null,null,null,null,null,334,"Bishop Wilson Church of England Primary School",3512,"Mainstream","O"]
[null,null,null,null,null,null,null,null,null,334,"Hazel Oak School",7001,"Special","O"]
[null,null,null,null,null,null,null,null,null,334,"Reynalds Cross School",7002,"Special","O"]
[null,null,null,null,null,null,null,null,null,334,"Forest Oak School",7005,"Special","O"]
[null,null,null,null,null,null,null,null,null,334,"Merstone School",7007,"Special","O"]
[null,null,null,null,null,null,null,null,null,335,"Shepwell  Short Stay School (PRU-Medical)",1101,"Pupil Referral Unit","O","1997-10-01"]
[null,null,null,null,null,null,null,null,null,335,"New Leaf Centre",1104,"Pupil Referral Unit","O","2004-01-01"]
[null,null,null,null,null,null,null,null,null,335,"Bentley West Primary School Additionally Resourced for Hearing Impaired",2101,"Mainstream","O"]
[null,null,null,null,null,null,null,null,null,335,"Rushall Primary School",2205,"Mainstream","O"]
[null,null,null,null,null,null,null,null,null,335,"Lindens Primary School",2235,"Mainstream","O"]
[null,null,null,null,null,null,null,null,null,335,"St Francis of Assisi Catholic College",4606,"Mainstream","O"]
[null,null,null,null,null,null,null,null,null,335,"Castle School",7002,"Special","O"]
[null,null,null,null,null,null,null,null,null,335,"The Jane Lane School,  A College for Cognition & Learning",7004,"Special","O","1900-01-01"]
[null,null,null,null,null,null,null,null,null,335,"Mary Elliot School",7005,"Special","O"]
[null,null,null,null,null,null,null,null,null,335,"Old Hall School",7007,"Special","O"]
[null,null,null,null,null,null,null,null,null,335,"Oakwood School",7011,"Special","O"]
[null,null,null,null,null,null,null,null,null,335,"Elmwood School",7014,"Special","O","2008-01-01"]
[null,null,null,null,null,null,null,null,null,336,"Low Hill Nursery School",1002,"Mainstream","O"]
[null,null,null,null,null,null,null,null,null,336,"Windsor Nursery School",1007,"Mainstream","O"]
[null,null,null,null,null,null,null,null,null,336,"Bushbury Nursery School",1009,"Mainstream","O"]
[null,null,null,null,null,null,null,null,null,336,"Bilston Nursery School",1010,"Mainstream","O","1999-09-01"]
[null,null,null,null,null,null,null,null,null,336,"The Orchard Centre (Home and Hospital PRU)",1102,"Pupil Referral Unit","O"]
[null,null,null,null,null,null,null,null,null,336,"Midpoint Centre (Key Stage 4 PRU)",1103,"Pupil Referral Unit","O","2003-09-01"]
[null,null,null,null,null,null,null,null,null,336,"The Braybrook Centre (Key Stage 3 PRU)",1104,"Pupil Referral Unit","O","2003-09-01"]
[null,null,null,null,null,null,null,null,null,336,"Springdale Primary  School",2032,"Mainstream","O"]
[null,null,null,null,null,null,null,null,null,336,"Castlecroft Primary School",2043,"Mainstream","O"]
[null,null,null,null,null,null,null,null,null,336,"Warstones Primary School",2105,"Mainstream","O"]
[null,null,null,null,null,null,null,null,null,336,"St Matthias School",4115,"Mainstream","O"]
[null,null,null,null,null,null,null,null,null,336,"Colton Hills Community School",4133,"Mainstream","O"]
[null,null,null,null,null,null,null,null,null,336,"Penn Fields School",7004,"Special","O"]
[null,null,null,null,null,null,null,null,null,336,"Tettenhall Wood School",7007,"Special","O"]
[null,null,null,null,null,null,null,null,null,336,"Green Park School",7008,"Special","O"]
[null,null,null,null,null,null,null,null,null,336,"Penn Hall School",7012,"Special","O"]
[null,null,null,null,null,null,null,null,null,340,"Meadow Park School",1100,"Pupil Referral Unit","O","1994-09-01"]
[null,null,null,null,null,null,null,null,null,340,"Northwood Community Primary School (With Designated Special Provision)",3364,"Mainstream","O","2011-04-14"]
[null,null,null,null,null,null,null,null,null,340,"Bluebell Park School",7005,"Special","O"]
[null,null,null,null,null,null,null,null,null,340,"Alt Bridge School",7013,"Special","O"]
[null,null,null,null,null,null,null,null,null,340,"Knowsley Central School",7015,"Special","O"]
[null,null,null,null,null,null,null,null,null,341,"New Heights High School",1108,"Pupil Referral Unit","O","2008-09-01"]
[null,null,null,null,null,null,null,null,null,341,"All Saints' Catholic Voluntary Aided Primary School",2006,"Mainstream","O","2003-09-01"]
[null,null,null,null,null,null,null,null,null,341,"Springwood Heath Primary School",2065,"Mainstream","O"]
[null,null,null,null,null,null,null,null,null,341,"Knotty Ash Primary School",2086,"Mainstream","O"]
[null,null,null,null,null,null,null,null,null,341,"Matthew Arnold Primary School",2098,"Mainstream","O"]
[null,null,null,null,null,null,null,null,null,341,"Pleasant Street Primary School",2123,"Mainstream","O"]
[null,null,null,null,null,null,null,null,null,341,"Mab Lane Junior Mixed and Infant School",2226,"Mainstream","O","1998-09-01"]
[null,null,null,null,null,null,null,null,null,341,"St Michael-in-the-Hamlet Community Primary School",2237,"Mainstream","O","2003-09-01"]
[null,null,null,null,null,null,null,null,null,341,"Phoenix Primary School",3026,"Mainstream","O","2002-09-01"]
[null,null,null,null,null,null,null,null,null,341,"Our Lady and St Swithin's Catholic Primary School",3511,"Mainstream","O"]
[null,null,null,null,null,null,null,null,null,341,"St Francis de Sales Catholic Infant and Nursery School",3553,"Mainstream","O"]
[null,null,null,null,null,null,null,null,null,341,"Notre Dame Catholic College",4782,"Mainstream","O"]
[null,null,null,null,null,null,null,null,null,341,"Abbot's Lea School",7025,"Special","O"]
[null,null,null,null,null,null,null,null,null,341,"Woolton High School",7039,"Special","O"]
[null,null,null,null,null,null,null,null,null,341,"Clifford Holroyde Specialist Sen College",7042,"Special","O"]
[null,null,null,null,null,null,null,null,null,341,"Ernest Cookson School",7045,"Special","O"]
[null,null,null,null,null,null,null,null,null,341,"Palmerston School",7051,"Special","O"]
[null,null,null,null,null,null,null,null,null,341,"Redbridge High School",7052,"Special","O"]
[null,null,null,null,null,null,null,null,null,341,"Millstead School",7054,"Special","O"]
[null,null,null,null,null,null,null,null,null,341,"Sandfield Park School",7059,"Special","O","1996-09-01"]
[null,null,null,null,null,null,null,null,null,341,"Princes School",7063,"Special","O"]
[null,null,null,null,null,null,null,null,null,341,"Hope School",7065,"Special","O","2002-09-01"]
[null,null,null,null,null,null,null,null,null,341,"Childwall Abbey School",7069,"Special","O","2004-09-01"]
[null,null,null,null,null,null,null,null,null,341,"Bank View High School",7070,"Special","O","2006-09-01"]
[null,null,null,null,null,null,null,null,null,342,"Pace",1100,"Pupil Referral Unit","O"]
[null,null,null,null,null,null,null,null,null,342,"Launchpad Centre",1101,"Pupil Referral Unit","O","1999-09-01"]
[null,null,null,null,null,null,null,null,null,342,"Rectory CofE Primary School",3320,"Mainstream","O"]
[null,null,null,null,null,null,null,null,null,342,"De La Salle School",4714,"Mainstream","O"]
[null,null,null,null,null,null,null,null,null,342,"Penkford School",7005,"Special","O"]
[null,null,null,null,null,null,null,null,null,342,"Mill Green School",7007,"Special","O","1996-09-01"]
[null,null,null,null,null,null,null,null,null,342,"Lansbury Bridge School",7008,"Special","O","2005-04-01"]
[null,null,null,null,null,null,null,null,null,343,"Cambridge Nursery School",1004,"Mainstream","O"]
[null,null,null,null,null,null,null,null,null,343,"Greenacre Community Nursery School",1005,"Mainstream","O"]
[null,null,null,null,null,null,null,null,null,343,"IMPACT",1100,"Pupil Referral Unit","O","1995-09-01"]
[null,null,null,null,null,null,null,null,null,343,"Jigsaw Primary Pupil Referral Unit",1101,"Pupil Referral Unit","O","1995-09-01"]
[null,null,null,null,null,null,null,null,null,343,"The Grange Primary School",2023,"Mainstream","O"]
[null,null,null,null,null,null,null,null,null,343,"Hudson Primary School",2053,"Mainstream","O"]
[null,null,null,null,null,null,null,null,null,343,"Waterloo Primary School",2054,"Mainstream","O"]
[null,null,null,null,null,null,null,null,null,343,"Freshfield Primary School",2078,"Mainstream","O"]
[null,null,null,null,null,null,null,null,null,343,"Redgate Community Primary School",2086,"Mainstream","O"]
[null,null,null,null,null,null,null,null,null,343,"Kings Meadow Primary School and Early Years Education Centre",2087,"Mainstream","O"]
[null,null,null,null,null,null,null,null,null,343,"Holy Spirit Catholic Primary School",3322,"Mainstream","O"]
[null,null,null,null,null,null,null,null,null,343,"Our Lady of Lourdes Catholic Primary School",3337,"Mainstream","O"]
[null,null,null,null,null,null,null,null,null,343,"Meols Cop High School",4110,"Mainstream","O"]
[null,null,null,null,null,null,null,null,null,343,"Presfield High School and Specialist College",7004,"Special","O"]
[null,null,null,null,null,null,null,null,null,343,"Merefield School",7006,"Special","O"]
[null,null,null,null,null,null,null,null,null,343,"Crosby High School",7009,"Special","O"]
[null,null,null,null,null,null,null,null,null,343,"Newfield School",7011,"Special","O"]
[null,null,null,null,null,null,null,null,null,343,"Rowan Park School",7013,"Special","O"]
[null,null,null,null,null,null,null,null,null,344,"Bidston Village CofE (Controlled) Primary School",2001,"Mainstream","O","2006-09-01"]
[null,null,null,null,null,null,null,null,null,344,"Devonshire Park Primary School",2048,"Mainstream","O"]
[null,null,null,null,null,null,null,null,null,344,"New Brighton Primary School",2100,"Mainstream","O"]
[null,null,null,null,null,null,null,null,null,344,"Riverside Primary School",2107,"Mainstream","O"]
[null,null,null,null,null,null,null,null,null,344,"Eastway Primary School",2112,"Mainstream","O"]
[null,null,null,null,null,null,null,null,null,344,"Fender Primary School",2252,"Mainstream","O"]
[null,null,null,null,null,null,null,null,null,344,"Leasowe Primary School",2268,"Mainstream","O"]
[null,null,null,null,null,null,null,null,null,344,"West Kirby St Bridget's CofE Primary School",3009,"Mainstream","O"]
[null,null,null,null,null,null,null,null,null,344,"St John's Catholic Junior School",3360,"Mainstream","O"]
[null,null,null,null,null,null,null,null,null,344,"The Priory Parish CofE Primary School",3366,"Mainstream","O"]
[null,null,null,null,null,null,null,null,null,344,"St Michael and All Angels Catholic Primary School",3371,"Mainstream","O"]
[null,null,null,null,null,null,null,null,null,344,"Hayfield School",7000,"Special","O"]
[null,null,null,null,null,null,null,null,null,344,"Clare Mount Specialist Sports College",7001,"Special","O"]
[null,null,null,null,null,null,null,null,null,344,"Kilgarth School",7003,"Special","O"]
[null,null,null,null,null,null,null,null,null,344,"Foxfield School",7004,"Special","O"]
[null,null,null,null,null,null,null,null,null,344,"Elleray Park School",7005,"Special","O"]
[null,null,null,null,null,null,null,null,null,344,"Meadowside School",7007,"Special","O"]
[null,null,null,null,null,null,null,null,null,344,"Gilbrook School",7010,"Special","O"]
[null,null,null,null,null,null,null,null,null,344,"Stanley School",7017,"Special","O"]
[null,null,null,null,null,null,null,null,null,344,"Wirral Hospitals' School",7019,"Hospital ","O"]
[null,null,null,null,null,null,null,null,null,344,"Orrets Meadow School",7020,"Special","O"]
[null,null,null,null,null,null,null,null,null,344,"The Observatory School",7215,"Special","O","2005-09-01"]
[null,null,null,null,null,null,null,null,null,350,"Alexandra Nursery School",1002,"Mainstream","O"]
[null,null,null,null,null,null,null,null,null,350,"Grosvenor Nursery School",1005,"Mainstream","O"]
[null,null,null,null,null,null,null,null,null,350,"Sharples Primary School",2024,"Mainstream","O"]
[null,null,null,null,null,null,null,null,null,350,"Moorgate Primary School",2038,"Mainstream","O"]
[null,null,null,null,null,null,null,null,null,350,"Queensbridge Primary School",2084,"Mainstream","O","2002-09-01"]
[null,null,null,null,null,null,null,null,null,350,"Blackrod Anglican/Methodist Primary School",3023,"Mainstream","O"]
[null,null,null,null,null,null,null,null,null,350,"St Teresa's RC Primary School",3364,"Mainstream","O"]
[null,null,null,null,null,null,null,null,null,350,"St Joseph's RC High School",4609,"Mainstream","O"]
[null,null,null,null,null,null,null,null,null,350,"Thomasson Memorial School",7002,"Special","O"]
[null,null,null,null,null,null,null,null,null,350,"Rumworth School",7003,"Special","O"]
[null,null,null,null,null,null,null,null,null,350,"Green Fold School",7008,"Special","O"]
[null,null,null,null,null,null,null,null,null,351,"Hoyle Nursery School",1003,"Mainstream","O"]
[null,null,null,null,null,null,null,null,null,351,"Bury Secondary PRU Spring Lane School",1100,"Pupil Referral Unit","O","1997-09-01"]
[null,null,null,null,null,null,null,null,null,351,"Mersey Drive Community Primary School",2029,"Mainstream","O"]
[null,null,null,null,null,null,null,null,null,351,"Cloughside College",7009,"Special","O"]
[null,null,null,null,null,null,null,null,null,351,"Millwood Primary Special School",7010,"Special","O"]
[null,null,null,null,null,null,null,null,null,352,"Bridgelea Pupil Referral Unit",1102,"Pupil Referral Unit","O","2002-09-02"]
[null,null,null,null,null,null,null,null,null,352,"Manchester Secondary PRU",1105,"Pupil Referral Unit","O","2011-05-01"]
[null,null,null,null,null,null,null,null,null,352,"Alma Park Primary School",2006,"Mainstream","O"]
[null,null,null,null,null,null,null,null,null,352,"Ashbury Meadow Primary School",2010,"Mainstream","O","2003-09-01"]
[null,null,null,null,null,null,null,null,null,352,"Bowker Vale Primary School",2039,"Mainstream","O"]
[null,null,null,null,null,null,null,null,null,352,"Rack House Primary School",2232,"Mainstream","O"]
[null,null,null,null,null,null,null,null,null,352,"Broad Oak Primary School",2298,"Mainstream","O"]
[null,null,null,null,null,null,null,null,null,352,"Pike Fold Primary School",2302,"Mainstream","O"]
[null,null,null,null,null,null,null,null,null,352,"St Paul's CofE Primary School",3039,"Mainstream","O"]
[null,null,null,null,null,null,null,null,null,352,"St Andrew's CofE Primary School",3310,"Mainstream","O"]
[null,null,null,null,null,null,null,null,null,352,"St Willibrord's RC Primary School",3472,"Mainstream","O"]
[null,null,null,null,null,null,null,null,null,352,"Abraham Moss Community School",4271,"Mainstream","O"]
[null,null,null,null,null,null,null,null,null,352,"St Peter's RC High School",4770,"Mainstream","O","1999-09-01"]
[null,null,null,null,null,null,null,null,null,352,"Manchester Hospital School",7007,"Hospital ","O"]
[null,null,null,null,null,null,null,null,null,352,"Camberwell Park Specialist Support School",7023,"Special","O"]
[null,null,null,null,null,null,null,null,null,352,"Lancasterian School",7029,"Special","O"]
[null,null,null,null,null,null,null,null,null,352,"The Birches School",7041,"Special","O"]
[null,null,null,null,null,null,null,null,null,352,"Meade Hill School",7042,"Special","O"]
[null,null,null,null,null,null,null,null,null,352,"Rodney House School",7047,"Special","O"]
[null,null,null,null,null,null,null,null,null,352,"Southern Cross School",7056,"Special","O"]
[null,null,null,null,null,null,null,null,null,352,"North Ridge High School",7061,"Special","O","2006-09-01"]
[null,null,null,null,null,null,null,null,null,352,"Ashgate Specialist Support Primary School",7749,"Special","O","2005-09-01"]
[null,null,null,null,null,null,null,null,null,353,"Kingsland School",1100,"Pupil Referral Unit","O","2004-04-01"]
[null,null,null,null,null,null,null,null,null,353,"St Paul's CofE Primary School",3503,"Mainstream","O","1998-01-01"]
[null,null,null,null,null,null,null,null,null,354,"Rochdale Pupil Referral Service",1100,"Pupil Referral Unit","O","2001-09-01"]
[null,null,null,null,null,null,null,null,null,354,"Marland Hill Community Primary School",2025,"Mainstream","O"]
[null,null,null,null,null,null,null,null,null,354,"Little Heaton Church of England Primary School",3016,"Mainstream","O"]
[null,null,null,null,null,null,null,null,null,354,"Cardinal Langley Roman Catholic High School",4611,"Mainstream","O"]
[null,null,null,null,null,null,null,null,null,354,"Brownhill School",7006,"Special","O"]
[null,null,null,null,null,null,null,null,null,354,"Springside",7013,"Special","O","2007-09-01"]
[null,null,null,null,null,null,null,null,null,354,"Newlands School",7014,"Special","O","2007-09-01"]
[null,null,null,null,null,null,null,null,null,354,"Redwood",7015,"Special","O","2007-09-01"]
[null,null,null,null,null,null,null,null,null,355,"The New Broadwalk PRU",1101,"Pupil Referral Unit","O","2000-04-01"]
[null,null,null,null,null,null,null,null,null,355,"Alder Brook",1103,"Pupil Referral Unit","O","2002-04-01"]
[null,null,null,null,null,null,null,null,null,355,"The Clifton Centre",1105,"Pupil Referral Unit","O","2008-07-01"]
[null,null,null,null,null,null,null,null,null,355,"The Canterbury Centre",1106,"Pupil Referral Unit","O","2009-09-01"]
[null,null,null,null,null,null,null,null,null,355,"Brentnall Primary School",2036,"Mainstream","O"]
[null,null,null,null,null,null,null,null,null,355,"The Friars Primary School",2040,"Mainstream","O"]
[null,null,null,null,null,null,null,null,null,355,"River View Community Primary School",2041,"Mainstream","O","2011-09-01"]
[null,null,null,null,null,null,null,null,null,355,"Lewis Street Primary School",2059,"Mainstream","O","2000-01-01"]
[null,null,null,null,null,null,null,null,null,355,"Monton Green Primary School",2061,"Mainstream","O"]
[null,null,null,null,null,null,null,null,null,355,"Mesne Lea Primary School",2072,"Mainstream","O"]
[null,null,null,null,null,null,null,null,null,355,"Moorfield Community Primary School",2076,"Mainstream","O"]
[null,null,null,null,null,null,null,null,null,355,"Irlam Endowed Primary School",3040,"Mainstream","O"]
[null,null,null,null,null,null,null,null,null,355,"St Philip's CofE Primary School",3317,"Mainstream","O"]
[null,null,null,null,null,null,null,null,null,355,"All Hallows RC High School",4620,"Mainstream","O","1998-09-01"]
[null,null,null,null,null,null,null,null,null,355,"Springwood Primary School",7029,"Special","O","2001-09-01"]
[null,null,null,null,null,null,null,null,null,356,"Hollywood Park Nursery School",1002,"Mainstream","O"]
[null,null,null,null,null,null,null,null,null,356,"The Pendlebury Centre",1100,"Pupil Referral Unit","O"]
[null,null,null,null,null,null,null,null,null,356,"Moat House",1101,"Pupil Referral Unit","O"]
[null,null,null,null,null,null,null,null,null,356,"Highfields College",1103,"Pupil Referral Unit","O","2004-04-19"]
[null,null,null,null,null,null,null,null,null,356,"Brookside Primary School",2017,"Mainstream","O"]
[null,null,null,null,null,null,null,null,null,356,"Etchells Primary School",2030,"Mainstream","O"]
[null,null,null,null,null,null,null,null,null,356,"Ladybridge Primary School",2048,"Mainstream","O"]
[null,null,null,null,null,null,null,null,null,356,"Queensgate Primary School",2080,"Mainstream","O"]
[null,null,null,null,null,null,null,null,null,356,"Rose Hill Primary School",2084,"Mainstream","O"]
[null,null,null,null,null,null,null,null,null,356,"Vernon Park Primary School",2090,"Mainstream","O"]
[null,null,null,null,null,null,null,null,null,356,"Bradshaw Hall Primary School",2116,"Mainstream","O","1999-04-02"]
[null,null,null,null,null,null,null,null,null,356,"Moorfield Primary School",3526,"Mainstream","O","2005-09-01"]
[null,null,null,null,null,null,null,null,null,356,"Vale View Primary School",3529,"Mainstream","O","2011-09-01"]
[null,null,null,null,null,null,null,null,null,356,"Valley School",7504,"Special","O"]
[null,null,null,null,null,null,null,null,null,356,"Lisburne School",7506,"Special","O"]
[null,null,null,null,null,null,null,null,null,356,"Castle Hill High School",7508,"Special","O"]
[null,null,null,null,null,null,null,null,null,356,"Heaton School",7509,"Special","O"]
[null,null,null,null,null,null,null,null,null,356,"Oakgrove School",7510,"Special","O","1999-09-01"]
[null,null,null,null,null,null,null,null,null,356,"Windlehurst School",7511,"Special","O","2000-01-01"]
[null,null,null,null,null,null,null,null,null,357,"Tameside Pupil Referral Service",1103,"Pupil Referral Unit","O","2011-09-01"]
[null,null,null,null,null,null,null,null,null,357,"Russell Scott Primary School",2042,"Mainstream","O"]
[null,null,null,null,null,null,null,null,null,357,"St John Fisher RC Primary School, Denton",3325,"Mainstream","O"]
[null,null,null,null,null,null,null,null,null,357,"Hyde High School",4025,"Mainstream","O"]
[null,null,null,null,null,null,null,null,null,357,"St Thomas More RC College",4603,"Mainstream","O"]
[null,null,null,null,null,null,null,null,null,357,"Thomas Ashton School",7002,"Special","O"]
[null,null,null,null,null,null,null,null,null,357,"Cromwell High School",7005,"Special","O"]
[null,null,null,null,null,null,null,null,null,357,"Samuel Laycock School",7006,"Special","O"]
[null,null,null,null,null,null,null,null,null,357,"Oakdale School",7009,"Special","O"]
[null,null,null,null,null,null,null,null,null,358,"Trafford Alternative Education Provision",1103,"Pupil Referral Unit","O","2005-09-01"]
[null,null,null,null,null,null,null,null,null,358,"Firs Primary School",2025,"Mainstream","O"]
[null,null,null,null,null,null,null,null,null,358,"Wellfield Junior School",2026,"Mainstream","O"]
[null,null,null,null,null,null,null,null,null,358,"Moorlands Junior School",2033,"Mainstream","O"]
[null,null,null,null,null,null,null,null,null,358,"Wellfield Infant and Nursery School",2039,"Mainstream","O"]
[null,null,null,null,null,null,null,null,null,358,"All Saints' Catholic Primary School",3311,"Mainstream","O"]
[null,null,null,null,null,null,null,null,null,358,"Lostock High School",4015,"Mainstream","O"]
[null,null,null,null,null,null,null,null,null,358,"Sale High School",5402,"Mainstream","O"]
[null,null,null,null,null,null,null,null,null,358,"Brentwood School",7001,"Special","O"]
[null,null,null,null,null,null,null,null,null,358,"Delamere School",7005,"Special","O","2002-04-01"]
[null,null,null,null,null,null,null,null,null,358,"Egerton High School",7009,"Special","O","1999-09-01"]
[null,null,null,null,null,null,null,null,null,359,"Hindley Nursery School",1000,"Mainstream","O"]
[null,null,null,null,null,null,null,null,null,359,"Marsh Green Primary School",2009,"Mainstream","O"]
[null,null,null,null,null,null,null,null,null,359,"Hindley Junior and Infant School",2031,"Mainstream","O"]
[null,null,null,null,null,null,null,null,null,359,"Meadowbank Primary School & Children's Centre",2045,"Mainstream","O"]
[null,null,null,null,null,null,null,null,null,359,"Garrett Hall Primary School",2058,"Mainstream","O"]
[null,null,null,null,null,null,null,null,null,359,"Westfield Community School",3437,"Mainstream","O","2005-09-01"]
[null,null,null,null,null,null,null,null,null,359,"Landgate School, Bryn",7001,"Special","O","2003-09-01"]
[null,null,null,null,null,null,null,null,null,359,"Hope School",7002,"Special","O"]
[null,null,null,null,null,null,null,null,null,359,"Willow Grove Primary School",7018,"Special","O","2000-08-01"]
[null,null,null,null,null,null,null,null,null,359,"Rowan Tree Primary School",7020,"Special","O","2006-09-01"]
[null,null,null,null,null,null,null,null,null,359,"Oakfield High School and College",7022,"Special","O","2006-09-01"]
[null,null,null,null,null,null,null,null,null,359,"Newbridge Learning Community",7023,"Special","O","2008-09-01"]
[null,null,null,null,null,null,null,null,null,370,"Penistone Grammar School",4027,"Mainstream","O"]
[null,null,null,null,null,null,null,null,null,371,"The Levett School",1103,"Pupil Referral Unit","O","1994-04-01"]
[null,null,null,null,null,null,null,null,null,371,"Maple Medical PRU",1110,"Pupil Referral Unit","O","2008-04-01"]
[null,null,null,null,null,null,null,null,null,371,"Stone Hill School",7015,"Special","O","2008-09-01"]
[null,null,null,null,null,null,null,null,null,372,"The Rowan Centre",1107,"Pupil Referral Unit","O","2008-11-03"]
[null,null,null,null,null,null,null,null,null,372,"Rotherham Aspire",1112,"Pupil Referral Unit","O","2012-01-10"]
[null,null,null,null,null,null,null,null,null,372,"Newman School",7000,"Special","O"]
[null,null,null,null,null,null,null,null,null,372,"The Willows School",7009,"Special","O"]
[null,null,null,null,null,null,null,null,null,373,"Sheffield Inclusion Centre",1100,"Pupil Referral Unit","O","2011-10-24"]
[null,null,null,null,null,null,null,null,null,373,"Nether Green Junior School",2087,"Mainstream","O"]
[null,null,null,null,null,null,null,null,null,373,"Angram Bank Primary School",2342,"Mainstream","O"]
[null,null,null,null,null,null,null,null,null,373,"Stradbroke Primary School",2350,"Mainstream","O"]
[null,null,null,null,null,null,null,null,null,373,"Greystones Primary School",2356,"Mainstream","O"]
[null,null,null,null,null,null,null,null,null,373,"Arbourthorne Community Primary School",3429,"Mainstream","O","2003-01-01"]
[null,null,null,null,null,null,null,null,null,373,"Broomhill Infant School",5204,"Mainstream","O"]
[null,null,null,null,null,null,null,null,null,373,"Bents Green School",7010,"Special","O"]
[null,null,null,null,null,null,null,null,null,373,"The Rowan School",7013,"Special","O"]
[null,null,null,null,null,null,null,null,null,373,"Archdale School",7023,"Special","O"]
[null,null,null,null,null,null,null,null,null,373,"Talbot Specialist School",7024,"Special","O"]
[null,null,null,null,null,null,null,null,null,373,"Woolley Wood School",7026,"Special","O"]
[null,null,null,null,null,null,null,null,null,373,"Mossbrook School",7036,"Special","O"]
[null,null,null,null,null,null,null,null,null,373,"Heritage Park School",7040,"Special","O","2005-09-01"]
[null,null,null,null,null,null,null,null,null,373,"Holgate Meadows School",7041,"Special","O","2005-09-01"]
[null,null,null,null,null,null,null,null,null,373,"Seven Hills School",7043,"Special","O","2008-09-01"]
[null,null,null,null,null,null,null,null,null,380,"Strong Close Nursery School",1000,"Mainstream","O"]
[null,null,null,null,null,null,null,null,null,380,"Abbey Green Nursery School",1008,"Mainstream","O"]
[null,null,null,null,null,null,null,null,null,380,"Midland Road Nursery School",1009,"Mainstream","O"]
[null,null,null,null,null,null,null,null,null,380,"St Edmund's Nursery School & Children's Centre",1010,"Mainstream","O"]
[null,null,null,null,null,null,null,null,null,380,"Canterbury Nursery School and Centre for Children and Families",1012,"Mainstream","O","2001-01-01"]
[null,null,null,null,null,null,null,null,null,380,"Primary Pupil Referral Unit",1103,"Pupil Referral Unit","O","2001-09-01"]
[null,null,null,null,null,null,null,null,null,380,"Tracks",1107,"Pupil Referral Unit","O","2005-12-01"]
[null,null,null,null,null,null,null,null,null,380,"Swain House Primary School",2057,"Mainstream","O"]
[null,null,null,null,null,null,null,null,null,380,"Carrwood Primary School",2087,"Mainstream","O"]
[null,null,null,null,null,null,null,null,null,380,"Fagley Primary School",2103,"Mainstream","O"]
[null,null,null,null,null,null,null,null,null,380,"Crossflatts Primary School",2111,"Mainstream","O"]
[null,null,null,null,null,null,null,null,null,380,"Long Lee Primary School",2128,"Mainstream","O"]
[null,null,null,null,null,null,null,null,null,380,"Girlington Primary School",2182,"Mainstream","O"]
[null,null,null,null,null,null,null,null,null,380,"Miriam Lord Community Primary School",2185,"Mainstream","O"]
[null,null,null,null,null,null,null,null,null,380,"Titus Salt School",4074,"Mainstream","O"]
[null,null,null,null,null,null,null,null,null,380,"Parkside School",4112,"Mainstream","O","2000-09-01"]
[null,null,null,null,null,null,null,null,null,380,"The Holy Family Catholic School",4610,"Mainstream","O","1900-01-01"]
[null,null,null,null,null,null,null,null,null,380,"Hanson School",5401,"Mainstream","O","1900-01-01"]
[null,null,null,null,null,null,null,null,null,380,"Oastlers School",7000,"Special","O","2013-09-02"]
[null,null,null,null,null,null,null,null,null,380,"Chellow Heights Special School",7031,"Special","O","2010-04-19"]
[null,null,null,null,null,null,null,null,null,380,"Beechcliffe Special School",7032,"Special","O","2010-04-19"]
[null,null,null,null,null,null,null,null,null,381,"Copley Primary School",2006,"Mainstream","O"]
[null,null,null,null,null,null,null,null,null,381,"Central Street Infant and Nursery School",2054,"Mainstream","O"]
[null,null,null,null,null,null,null,null,null,381,"Cliffe Hill Community Primary School",2076,"Mainstream","O"]
[null,null,null,null,null,null,null,null,null,381,"Wood Bank School",7008,"Special","O"]
[null,null,null,null,null,null,null,null,null,381,"Ravenscliffe High School",7009,"Special","O"]
[null,null,null,null,null,null,null,null,null,381,"Highbury School",7010,"Special","O"]
[null,null,null,null,null,null,null,null,null,382,"Windmill CofE (VC) Primary School",2016,"Mainstream","O","2014-04-01"]
[null,null,null,null,null,null,null,null,null,382,"Dalton School",2157,"Mainstream","O","1998-09-01"]
[null,null,null,null,null,null,null,null,null,382,"Lowerhouses CofE (Voluntary Controlled) Junior Infant and Early Years School",3000,"Mainstream","O"]
[null,null,null,null,null,null,null,null,null,382,"Woodley School and College",7001,"Special","O"]
[null,null,null,null,null,null,null,null,null,382,"Ravenshall School",7005,"Special","O"]
[null,null,null,null,null,null,null,null,null,382,"Southgate School",7010,"Special","O"]
[null,null,null,null,null,null,null,null,null,382,"Fairfield School",7011,"Special","O"]
[null,null,null,null,null,null,null,null,null,383,"Ireland Wood Primary School",2420,"Mainstream","O"]
[null,null,null,null,null,null,null,null,null,383,"Gledhow Primary School",2428,"Mainstream","O"]
[null,null,null,null,null,null,null,null,null,383,"Moor Allerton Hall Primary School",2439,"Mainstream","O"]
[null,null,null,null,null,null,null,null,null,383,"Grimes Dyke Primary School",2448,"Mainstream","O"]
[null,null,null,null,null,null,null,null,null,383,"Parklands Primary School",2467,"Mainstream","O"]
[null,null,null,null,null,null,null,null,null,383,"Beeston Hill St Luke's Church of England Primary School",3913,"Mainstream","O"]
[null,null,null,null,null,null,null,null,null,383,"The New Bewerley Community Primary School",3927,"Mainstream","O","2005-09-01"]
[null,null,null,null,null,null,null,null,null,383,"Allerton High School",4032,"Mainstream","O"]
[null,null,null,null,null,null,null,null,null,383,"Allerton Grange School",4040,"Mainstream","O","1992-09-01"]
[null,null,null,null,null,null,null,null,null,383,"Carr Manor Community School",4041,"Mainstream","O"]
[null,null,null,null,null,null,null,null,null,383,"Ralph Thoresby School",4062,"Mainstream","O"]
[null,null,null,null,null,null,null,null,null,383,"John Jamieson School",7015,"Special","O","1900-01-01"]
[null,null,null,null,null,null,null,null,null,383,"Broomfield South SILC",7062,"Special","O","1900-01-01"]
[null,null,null,null,null,null,null,null,null,383,"West Oaks School",7072,"Special","O"]
[null,null,null,null,null,null,null,null,null,383,"West Specialist Inclusive Learning Centre",7074,"Special","O","2005-01-01"]
[null,null,null,null,null,null,null,null,null,384,"The Springfield Centre",1100,"Pupil Referral Unit","O"]
[null,null,null,null,null,null,null,null,null,384,"Pinderfields Hospital PRU",1102,"Pupil Referral Unit","O","2013-04-01"]
[null,null,null,null,null,null,null,null,null,384,"Northfield Primary School: With Communication Resource",2189,"Mainstream","O","1996-09-01"]
[null,null,null,null,null,null,null,null,null,384,"Newlands Primary School",2206,"Mainstream","O","2001-09-01"]
[null,null,null,null,null,null,null,null,null,384,"Methodist Voluntary Controlled Junior, Infant and Nursery School: With Communication Resource",3021,"Mainstream","O"]
[null,null,null,null,null,null,null,null,null,384,"Highfield School",7002,"Special","O"]
[null,null,null,null,null,null,null,null,null,384,"Kingsland Primary School",7054,"Special","O","2002-09-01"]
[null,null,null,null,null,null,null,null,null,384,"Oakfield Park School",7055,"Special","O","2002-09-01"]
[null,null,null,null,null,null,null,null,null,384,"High Well School",7056,"Special","O","2005-09-01"]
[null,null,null,null,null,null,null,null,null,390,"High Spen Primary School",2168,"Mainstream","O"]
[null,null,null,null,null,null,null,null,null,390,"Swalwell Primary School",2172,"Mainstream","O"]
[null,null,null,null,null,null,null,null,null,390,"Brandling Primary School",2200,"Mainstream","O"]
[null,null,null,null,null,null,null,null,null,390,"Roman Road Primary School",2229,"Mainstream","O"]
[null,null,null,null,null,null,null,null,null,390,"Rowlands Gill Community Primary School",2239,"Mainstream","O","2006-09-01"]
[null,null,null,null,null,null,null,null,null,390,"Furrowfield School",7006,"Special","O"]
[null,null,null,null,null,null,null,null,null,390,"Gibside School",7007,"Special","O","1997-09-01"]
[null,null,null,null,null,null,null,null,null,390,"Hill Top School",7008,"Special","O","1997-09-01"]
[null,null,null,null,null,null,null,null,null,390,"Dryden School",7009,"Special","O","1997-09-01"]
[null,null,null,null,null,null,null,null,null,390,"Eslington Primary School",7010,"Special","O","2001-09-01"]
[null,null,null,null,null,null,null,null,null,391,"Regent Farm First School",2003,"Mainstream","O"]
[null,null,null,null,null,null,null,null,null,391,"Benton Park Primary School",2050,"Mainstream","O"]
[null,null,null,null,null,null,null,null,null,391,"Hawthorn Primary School",2080,"Mainstream","O"]
[null,null,null,null,null,null,null,null,null,391,"Bridgewater Primary School",2210,"Mainstream","O"]
[null,null,null,null,null,null,null,null,null,391,"Broadwood Primary School",2225,"Mainstream","O"]
[null,null,null,null,null,null,null,null,null,391,"Hadrian School",7034,"Special","O","1999-09-01"]
[null,null,null,null,null,null,null,null,null,391,"Sir Charles Parsons School",7035,"Special","O","1999-09-01"]
[null,null,null,null,null,null,null,null,null,392,"Moorbridge",1100,"Pupil Referral Unit","O"]
[null,null,null,null,null,null,null,null,null,392,"Waterville Primary School",2004,"Mainstream","O"]
[null,null,null,null,null,null,null,null,null,392,"Whitehouse Primary School",2024,"Mainstream","O"]
[null,null,null,null,null,null,null,null,null,392,"Whitley Lodge First School",2074,"Mainstream","O"]
[null,null,null,null,null,null,null,null,null,392,"Benton Dene Primary School",2078,"Mainstream","O"]
[null,null,null,null,null,null,null,null,null,392,"Marden High School",4006,"Mainstream","O"]
[null,null,null,null,null,null,null,null,null,392,"Norham High School",4008,"Mainstream","O"]
[null,null,null,null,null,null,null,null,null,392,"Valley Gardens Middle School",4026,"Mainstream","O"]
[null,null,null,null,null,null,null,null,null,392,"Whitley Bay High School",4029,"Mainstream","O"]
[null,null,null,null,null,null,null,null,null,392,"George Stephenson High School",4030,"Mainstream","O"]
[null,null,null,null,null,null,null,null,null,392,"Burnside College",4032,"Mainstream","O"]
[null,null,null,null,null,null,null,null,null,392,"John Spence Community High School",4038,"Mainstream","O"]
[null,null,null,null,null,null,null,null,null,392,"Woodlawn School",7001,"Special","O"]
[null,null,null,null,null,null,null,null,null,392,"Southlands School",7002,"Special","O"]
[null,null,null,null,null,null,null,null,null,392,"Benton Dene School",7004,"Special","O"]
[null,null,null,null,null,null,null,null,null,392,"Silverdale School",7007,"Special","O","2001-09-01"]
[null,null,null,null,null,null,null,null,null,392,"Beacon Hill School",7008,"Special","O","2006-09-01"]
[null,null,null,null,null,null,null,null,null,393,"The Sue Hedley Nursery School",1021,"Mainstream","O","2000-10-02"]
[null,null,null,null,null,null,null,null,null,393,"Alternative Education Service - The Beacon Centre",1100,"Pupil Referral Unit","O","1994-04-01"]
[null,null,null,null,null,null,null,null,null,393,"Valley View Primary School",2056,"Mainstream","O"]
[null,null,null,null,null,null,null,null,null,393,"Hedworthfield Primary School",2075,"Mainstream","O"]
[null,null,null,null,null,null,null,null,null,393,"Fellgate Primary School",2085,"Mainstream","O"]
[null,null,null,null,null,null,null,null,null,393,"Hebburn Lakes Primary School",3319,"Mainstream","O","2012-09-01"]
[null,null,null,null,null,null,null,null,null,393,"Boldon School",4019,"Mainstream","O"]
[null,null,null,null,null,null,null,null,null,393,"Jarrow School",4033,"Mainstream","O","2003-01-06"]
[null,null,null,null,null,null,null,null,null,393,"Bamburgh School",7000,"Special","O"]
[null,null,null,null,null,null,null,null,null,393,"Epinay Business and Enterprise School",7004,"Special","O"]
[null,null,null,null,null,null,null,null,null,393,"Park View School",7006,"Special","O","2004-09-01"]
[null,null,null,null,null,null,null,null,null,393,"Keelman's Way School",7007,"Special","O","2012-09-01"]
[null,null,null,null,null,null,null,null,null,394,"Oxclose Nursery School",1009,"Mainstream","O"]
[null,null,null,null,null,null,null,null,null,394,"The Link School",1102,"Pupil Referral Unit","O","2008-09-01"]
[null,null,null,null,null,null,null,null,null,394,"Northern Saints CofE Voluntary Aided Primary School",2006,"Mainstream","O","2013-09-01"]
[null,null,null,null,null,null,null,null,null,394,"Usworth Colliery Primary School",2115,"Mainstream","O"]
[null,null,null,null,null,null,null,null,null,394,"Thorney Close Primary School",2174,"Mainstream","O"]
[null,null,null,null,null,null,null,null,null,394,"Hetton School",4059,"Mainstream","O"]
[null,null,null,null,null,null,null,null,null,394,"Columbia Grange School",7001,"Special","O","2003-09-01"]
[null,null,null,null,null,null,null,null,null,394,"Sunningdale School",7016,"Special","O"]
[null,null,null,null,null,null,null,null,null,801,"Ilminster Avenue Specialist Nursery School",1005,"Mainstream","O"]
[null,null,null,null,null,null,null,null,null,801,"Bristol Hospital Education Service",1101,"Pupil Referral Unit","O","2002-09-01"]
[null,null,null,null,null,null,null,null,null,801,"Shirehampton Primary School",2027,"Mainstream","O","2000-09-01"]
[null,null,null,null,null,null,null,null,null,801,"Broomhill Infant & Nursery School",2115,"Mainstream","O"]
[null,null,null,null,null,null,null,null,null,801,"Elmfield School for Deaf Children",7000,"Special","O"]
[null,null,null,null,null,null,null,null,null,801,"Kingsweston School",7002,"Special","O"]
[null,null,null,null,null,null,null,null,null,801,"Claremont School",7011,"Special","O"]
[null,null,null,null,null,null,null,null,null,801,"New Fosseway School",7014,"Special","O"]
[null,null,null,null,null,null,null,null,null,801,"Briarwood School",7042,"Special","O"]
[null,null,null,null,null,null,null,null,null,802,"Voyage Learning Campus",1102,"Pupil Referral Unit","O","2012-07-20"]
[null,null,null,null,null,null,null,null,null,802,"Westhaven School",7036,"Special","O"]
[null,null,null,null,null,null,null,null,null,802,"Ravenswood School",7037,"Special","O"]
[null,null,null,null,null,null,null,null,null,802,"Baytree School",7039,"Special","O"]
[null,null,null,null,null,null,null,null,null,803,"Pathways Learning Centre",1100,"Pupil Referral Unit","O","1998-09-01"]
[null,null,null,null,null,null,null,null,null,803,"Emersons Green Primary School",2007,"Mainstream","O","2000-09-01"]
[null,null,null,null,null,null,null,null,null,803,"Blackhorse Primary School",2317,"Mainstream","O"]
[null,null,null,null,null,null,null,null,null,803,"Brimsham Green School",4146,"Mainstream","O"]
[null,null,null,null,null,null,null,null,null,803,"Warmley Park School",7028,"Special","O"]
[null,null,null,null,null,null,null,null,null,803,"New Horizons Learning Centre",7032,"Special","O","2011-09-01"]
[null,null,null,null,null,null,null,null,null,805,"The Horizon School, Hartlepool",1100,"Pupil Referral Unit","O","1997-06-01"]
[null,null,null,null,null,null,null,null,null,805,"Kingsley Primary School",2189,"Mainstream","O"]
[null,null,null,null,null,null,null,null,null,805,"Rossmere Primary School",2342,"Mainstream","O"]
[null,null,null,null,null,null,null,null,null,805,"Grange Primary School",2364,"Mainstream","O"]
[null,null,null,null,null,null,null,null,null,805,"High Tunstall College of Science",4133,"Mainstream","O"]
[null,null,null,null,null,null,null,null,null,805,"Springwell School",7027,"Special","O"]
[null,null,null,null,null,null,null,null,null,806,"Beech Grove Primary School",2120,"Mainstream","O"]
[null,null,null,null,null,null,null,null,null,806,"Priory Woods School",7000,"Special","O"]
[null,null,null,null,null,null,null,null,null,806,"Beverley School",7003,"Special","O"]
[null,null,null,null,null,null,null,null,null,806,"Holmwood School",7005,"Special","O"]
[null,null,null,null,null,null,null,null,null,807,"South Bank Community Primary School",3394,"Mainstream","O","2005-09-01"]
[null,null,null,null,null,null,null,null,null,807,"Kirkleatham Hall School",7008,"Special","O"]
[null,null,null,null,null,null,null,null,null,808,"Myton Park Primary School",2003,"Mainstream","O","2003-09-01"]
[null,null,null,null,null,null,null,null,null,808,"Billingham South Community Primary School",2005,"Mainstream","O"]
[null,null,null,null,null,null,null,null,null,808,"Mill Lane Primary School",2030,"Mainstream","O"]
[null,null,null,null,null,null,null,null,null,808,"Whitehouse Primary School",2056,"Mainstream","O"]
[null,null,null,null,null,null,null,null,null,808,"Mandale Mill Primary School",2371,"Mainstream","O","1996-01-01"]
[null,null,null,null,null,null,null,null,null,808,"St John the Baptist Church of England Voluntary Controlled Primary School",3001,"Mainstream","O"]
[null,null,null,null,null,null,null,null,null,808,"Northfield School and Sports College",4102,"Mainstream","O"]
[null,null,null,null,null,null,null,null,null,810,"Northcott School",7000,"Special","O"]
[null,null,null,null,null,null,null,null,null,810,"Oakfield",7007,"Special","O"]
[null,null,null,null,null,null,null,null,null,811,"The Hub School",1102,"Pupil Referral Unit","O","2015-09-01"]
[null,null,null,null,null,null,null,null,null,811,"Brough Primary School",2721,"Mainstream","O"]
[null,null,null,null,null,null,null,null,null,811,"Hornsea Community Primary School",2733,"Mainstream","O"]
[null,null,null,null,null,null,null,null,null,811,"Springhead Primary School",2770,"Mainstream","O"]
[null,null,null,null,null,null,null,null,null,811,"Inmans Primary School",2881,"Mainstream","O"]
[null,null,null,null,null,null,null,null,null,811,"The Market Weighton School",4055,"Mainstream","O"]
[null,null,null,null,null,null,null,null,null,811,"Bridlington School",4500,"Mainstream","O"]
[null,null,null,null,null,null,null,null,null,811,"Kings Mill School",7016,"Special","O"]
[null,null,null,null,null,null,null,null,null,811,"St Anne's School and Sixth Form College",7018,"Special","O"]
[null,null,null,null,null,null,null,null,null,811,"Riverside Special School",7025,"Special","O"]
[null,null,null,null,null,null,null,null,null,812,"Western Primary School",2899,"Mainstream","O"]
[null,null,null,null,null,null,null,null,null,813,"Westcliffe Primary School",2001,"Mainstream","O","1997-09-01"]
[null,null,null,null,null,null,null,null,null,813,"St Hugh's Special School",7019,"Special","O"]
[null,null,null,null,null,null,null,null,null,813,"St Luke's Primary School",7020,"Special","O"]
[null,null,null,null,null,null,null,null,null,815,"Scarborough Pupil Referral Unit",1100,"Pupil Referral Unit","O","2000-01-01"]
[null,null,null,null,null,null,null,null,null,815,"Hambleton/Richmondshire Pupil Referral Service",1102,"Pupil Referral Unit","O","2009-09-01"]
[null,null,null,null,null,null,null,null,null,815,"Craven Pupil Referral Service",1103,"Pupil Referral Unit","O","2009-09-01"]
[null,null,null,null,null,null,null,null,null,815,"The Rubicon Centre",1104,"Pupil Referral Unit","O","2012-09-01"]
[null,null,null,null,null,null,null,null,null,815,"Alverton Primary School",2242,"Mainstream","O"]
[null,null,null,null,null,null,null,null,null,815,"Harrogate, Grove Road Community Primary School",2329,"Mainstream","O"]
[null,null,null,null,null,null,null,null,null,815,"Beckwithshaw Community Primary School",2348,"Mainstream","O"]
[null,null,null,null,null,null,null,null,null,815,"Thorpe Willoughby Community Primary School",2381,"Mainstream","O"]
[null,null,null,null,null,null,null,null,null,815,"Bedale Church of England Primary School",3010,"Mainstream","O"]
[null,null,null,null,null,null,null,null,null,815,"Grewelthorpe Church of England Primary School",3243,"Mainstream","O"]
[null,null,null,null,null,null,null,null,null,815,"Spofforth Church of England Controlled Primary School",3275,"Mainstream","O"]
[null,null,null,null,null,null,null,null,null,815,"The Wensleydale School & Sixth Form",4075,"Mainstream","O"]
[null,null,null,null,null,null,null,null,null,815,"Selby High School Specialist School for the Arts and Science",4225,"Mainstream","O"]
[null,null,null,null,null,null,null,null,null,815,"Brompton Hall School",7000,"Special","O"]
[null,null,null,null,null,null,null,null,null,815,"Welburn Hall School",7004,"Special","O"]
[null,null,null,null,null,null,null,null,null,815,"The Dales School",7015,"Special","O"]
[null,null,null,null,null,null,null,null,null,815,"Springhead School",7017,"Special","O"]
[null,null,null,null,null,null,null,null,null,815,"Springwater School",7024,"Special","O"]
[null,null,null,null,null,null,null,null,null,815,"Brooklands School",7027,"Special","O"]
[null,null,null,null,null,null,null,null,null,815,"Mowbray School",7029,"Special","O"]
[null,null,null,null,null,null,null,null,null,816,"St Paul's Nursery School",1000,"Mainstream","O"]
[null,null,null,null,null,null,null,null,null,816,"Danesgate Community",1100,"Pupil Referral Unit","O"]
[null,null,null,null,null,null,null,null,null,816,"St Oswald's Church of England Voluntary Controlled Primary School",3156,"Mainstream","O"]
[null,null,null,null,null,null,null,null,null,816,"Joseph Rowntree School",4508,"Mainstream","O"]
[null,null,null,null,null,null,null,null,null,816,"Applefields School",7032,"Special","O","2004-09-01"]
[null,null,null,null,null,null,null,null,null,821,"Hart Hill Nursery School",1012,"Mainstream","O"]
[null,null,null,null,null,null,null,null,null,821,"Rothesay Nursery School",1014,"Mainstream","O"]
[null,null,null,null,null,null,null,null,null,821,"Grasmere Nursery School",1015,"Mainstream","O"]
[null,null,null,null,null,null,null,null,null,821,"Chapel Street Nursery School",1016,"Mainstream","O"]
[null,null,null,null,null,null,null,null,null,821,"Pastures Way Nursery School",1018,"Mainstream","O"]
[null,null,null,null,null,null,null,null,null,821,"The Gill Blowers Nursery School",1023,"Mainstream","O","1994-04-01"]
[null,null,null,null,null,null,null,null,null,821,"Avenue Centre for Education",1102,"Pupil Referral Unit","O","2004-01-01"]
[null,null,null,null,null,null,null,null,null,821,"Downside Primary School",2259,"Mainstream","O"]
[null,null,null,null,null,null,null,null,null,821,"Icknield Primary School",2272,"Mainstream","O"]
[null,null,null,null,null,null,null,null,null,821,"Bramingham Primary School",2293,"Mainstream","O"]
[null,null,null,null,null,null,null,null,null,821,"Lea Manor High School Performing Arts College",5405,"Mainstream","O"]
[null,null,null,null,null,null,null,null,null,821,"Richmond Hill School",7014,"Special","O"]
[null,null,null,null,null,null,null,null,null,821,"Woodlands Secondary School",7015,"Special","O"]
[null,null,null,null,null,null,null,null,null,821,"Lady Zia Wernher School",7016,"Special","O"]
[null,null,null,null,null,null,null,null,null,822,"Ridgeway School",7012,"Special","O"]
[null,null,null,null,null,null,null,null,null,823,"Heathwood Lower School",2184,"Mainstream","O"]
[null,null,null,null,null,null,null,null,null,823,"St Andrew's CofE VC Lower School",3001,"Mainstream","O"]
[null,null,null,null,null,null,null,null,null,823,"St Swithun's Church of England VC Primary School",3012,"Mainstream","O"]
[null,null,null,null,null,null,null,null,null,823,"Silsoe CofE VC Lower School",3013,"Mainstream","O"]
[null,null,null,null,null,null,null,null,null,823,"Ivel Valley School",7009,"Special","O"]
[null,null,null,null,null,null,null,null,null,823,"The Chiltern School",7017,"Special","O"]
[null,null,null,null,null,null,null,null,null,825,"Kite Ridge School",1105,"Pupil Referral Unit","O","2012-09-01"]
[null,null,null,null,null,null,null,null,null,825,"The Buckinghamshire Primary Pupil Referral Unit",1112,"Pupil Referral Unit","O","2011-09-01"]
[null,null,null,null,null,null,null,null,null,825,"The Disraeli School",2000,"Mainstream","O","1999-01-01"]
[null,null,null,null,null,null,null,null,null,825,"Oak Green School",2001,"Mainstream","O"]
[null,null,null,null,null,null,null,null,null,825,"Stoke Mandeville Combined School",2108,"Mainstream","O"]
[null,null,null,null,null,null,null,null,null,825,"Carrington Junior School",2157,"Mainstream","O"]
[null,null,null,null,null,null,null,null,null,825,"Carrington Infant School",2176,"Mainstream","O"]
[null,null,null,null,null,null,null,null,null,825,"Juniper Hill School",2199,"Mainstream","O"]
[null,null,null,null,null,null,null,null,null,825,"Claytons Primary School",2235,"Mainstream","O"]
[null,null,null,null,null,null,null,null,null,825,"Aston Clinton School",2250,"Mainstream","O"]
[null,null,null,null,null,null,null,null,null,825,"William Harding School",2288,"Mainstream","O"]
[null,null,null,null,null,null,null,null,null,825,"Holtspur School & Pre-School",2345,"Mainstream","O"]
[null,null,null,null,null,null,null,null,null,825,"Highworth Combined School and Nursery",2352,"Mainstream","O"]
[null,null,null,null,null,null,null,null,null,825,"Kings Wood School and Nursery",3377,"Mainstream","O","2002-09-01"]
[null,null,null,null,null,null,null,null,null,825,"Pebble Brook School",7010,"Special","O"]
[null,null,null,null,null,null,null,null,null,825,"Chiltern Wood School",7013,"Special","O"]
[null,null,null,null,null,null,null,null,null,825,"Stony Dean School",7014,"Special","O"]
[null,null,null,null,null,null,null,null,null,825,"Stocklake Park Community School",7016,"Special","O"]
[null,null,null,null,null,null,null,null,null,825,"Heritage House School",7018,"Special","O"]
[null,null,null,null,null,null,null,null,null,825,"Furze Down School",7023,"Special","O"]
[null,null,null,null,null,null,null,null,null,825,"Booker Park Community School",7028,"Special","O"]
[null,null,null,null,null,null,null,null,null,825,"Westfield School",7035,"Special","O","1996-09-01"]
[null,null,null,null,null,null,null,null,null,826,"Milton Keynes Primary Pupil Referral Unit",1107,"Pupil Referral Unit","O","2003-09-01"]
[null,null,null,null,null,null,null,null,null,826,"Caroline Haslett Primary School",2336,"Mainstream","O"]
[null,null,null,null,null,null,null,null,null,826,"St Paul's Catholic School",4702,"Mainstream","O"]
[null,null,null,null,null,null,null,null,null,826,"The Radcliffe School",5406,"Mainstream","O"]
[null,null,null,null,null,null,null,null,null,826,"White Spire School",7009,"Special","O"]
[null,null,null,null,null,null,null,null,null,826,"Romans Field School",7015,"Special","O"]
[null,null,null,null,null,null,null,null,null,826,"The Walnuts School",7021,"Special","O"]
[null,null,null,null,null,null,null,null,null,826,"Slated Row School",7026,"Special","O"]
[null,null,null,null,null,null,null,null,null,826,"The Redway School",7034,"Special","O"]
[null,null,null,null,null,null,null,null,null,830,"Brampton Primary School",2011,"Mainstream","O","2001-01-01"]
[null,null,null,null,null,null,null,null,null,830,"Chapel-en-le-Frith CofE VC Primary School",2013,"Mainstream","O","2002-04-01"]
[null,null,null,null,null,null,null,null,null,830,"Pilsley Primary School",2190,"Mainstream","O"]
[null,null,null,null,null,null,null,null,null,830,"Whaley Bridge Primary School",2268,"Mainstream","O"]
[null,null,null,null,null,null,null,null,null,830,"Spire Nursery and Infant School",2285,"Mainstream","O"]
[null,null,null,null,null,null,null,null,null,830,"Ashbourne Hilltop Primary and Nursery School",2333,"Mainstream","O"]
[null,null,null,null,null,null,null,null,null,830,"Mundy CofE Junior School",3050,"Mainstream","O"]
[null,null,null,null,null,null,null,null,null,830,"Chapel-en-le-Frith High School",4019,"Mainstream","O"]
[null,null,null,null,null,null,null,null,null,830,"William Allitt School",4074,"Mainstream","O"]
[null,null,null,null,null,null,null,null,null,830,"Aldercar High School",4089,"Mainstream","O"]
[null,null,null,null,null,null,null,null,null,830,"Tibshelf Community School",4173,"Mainstream","O"]
[null,null,null,null,null,null,null,null,null,830,"Holly House Special School",7000,"Special","O","1997-09-01"]
[null,null,null,null,null,null,null,null,null,830,"Brackenfield Special School",7005,"Special","O"]
[null,null,null,null,null,null,null,null,null,830,"Swanwick School and Sports College",7009,"Special","O"]
[null,null,null,null,null,null,null,null,null,830,"Alfreton Park Community Special School",7018,"Special","O"]
[null,null,null,null,null,null,null,null,null,831,"Central Community Nursery School",1006,"Mainstream","O"]
[null,null,null,null,null,null,null,null,null,831,"The Kingsmead School",1103,"Pupil Referral Unit","O","2000-09-01"]
[null,null,null,null,null,null,null,null,null,831,"Newton's Walk",1104,"Pupil Referral Unit","O","2009-11-02"]
[null,null,null,null,null,null,null,null,null,831,"Markeaton Primary School",2436,"Mainstream","O"]
[null,null,null,null,null,null,null,null,null,831,"The Bemrose School",4177,"Mainstream","O"]
[null,null,null,null,null,null,null,null,null,831,"Murray Park Community School",5406,"Mainstream","O"]
[null,null,null,null,null,null,null,null,null,831,"Kingsmead School",7029,"Special","O","2007-09-01"]
[null,null,null,null,null,null,null,null,null,838,"The Forum Centre",1100,"Pupil Referral Unit","O","1999-02-01"]
[null,null,null,null,null,null,null,null,null,838,"Dorchester Learning Centre",1101,"Pupil Referral Unit","O","2001-02-26"]
[null,null,null,null,null,null,null,null,null,838,"The Compass",1105,"Pupil Referral Unit","O","2003-09-01"]
[null,null,null,null,null,null,null,null,null,838,"Gillingham Primary School",2017,"Mainstream","O"]
[null,null,null,null,null,null,null,null,null,838,"Bincombe Valley Primary School",2213,"Mainstream","O"]
[null,null,null,null,null,null,null,null,null,838,"The Prince of Wales School",2262,"Mainstream","O"]
[null,null,null,null,null,null,null,null,null,838,"West Moors Middle School",4033,"Mainstream","O"]
[null,null,null,null,null,null,null,null,null,838,"Lytchett Minster School",4035,"Mainstream","O"]
[null,null,null,null,null,null,null,null,null,838,"Beaminster School",4505,"Mainstream","O"]
[null,null,null,null,null,null,null,null,null,838,"Beaucroft Foundation School",5950,"Special","O"]
[null,null,null,null,null,null,null,null,null,838,"Westfield Arts College",5953,"Special","O"]
[null,null,null,null,null,null,null,null,null,838,"Mountjoy School",7007,"Special","O"]
[null,null,null,null,null,null,null,null,null,838,"Yewstock School",7019,"Special","O"]
[null,null,null,null,null,null,null,null,null,839,"Christchurch Learning Centre",1106,"Pupil Referral Unit","O","2003-09-01"]
[null,null,null,null,null,null,null,null,null,839,"Winchelsea School",7005,"Special","O"]
[null,null,null,null,null,null,null,null,null,839,"Linwood School",7012,"Special","O"]
[null,null,null,null,null,null,null,null,null,840,"Horden Nursery School",1035,"Mainstream","O"]
[null,null,null,null,null,null,null,null,null,840,"Rosemary Lane Nursery School",1038,"Mainstream","O"]
[null,null,null,null,null,null,null,null,null,840,"The Woodlands",1100,"Pupil Referral Unit","O","1994-04-01"]
[null,null,null,null,null,null,null,null,null,840,"Burnopfield Primary School",2234,"Mainstream","O"]
[null,null,null,null,null,null,null,null,null,840,"Timothy Hackworth Primary School",2438,"Mainstream","O"]
[null,null,null,null,null,null,null,null,null,840,"Belmont Cheveley Park Primary School",2498,"Mainstream","O"]
[null,null,null,null,null,null,null,null,null,840,"Wheatley Hill Community Primary School",2526,"Mainstream","O"]
[null,null,null,null,null,null,null,null,null,840,"Howletch Lane Primary School",2734,"Mainstream","O"]
[null,null,null,null,null,null,null,null,null,840,"Durham Gilesgate Primary School",2747,"Mainstream","O"]
[null,null,null,null,null,null,null,null,null,840,"Belmont CofE (Controlled) Primary School",3161,"Mainstream","O"]
[null,null,null,null,null,null,null,null,null,840,"Belmont Community School",4185,"Mainstream","O"]
[null,null,null,null,null,null,null,null,null,840,"Durham Community Business College for Technology and Enterprise",4192,"Mainstream","O"]
[null,null,null,null,null,null,null,null,null,840,"The Meadows School",7000,"Special","O","1999-09-01"]
[null,null,null,null,null,null,null,null,null,840,"Elemore Hall School",7006,"Special","O"]
[null,null,null,null,null,null,null,null,null,840,"Croft Community School",7013,"Special","O"]
[null,null,null,null,null,null,null,null,null,840,"Walworth School",7014,"Special","O"]
[null,null,null,null,null,null,null,null,null,840,"Villa Real School",7028,"Special","O"]
[null,null,null,null,null,null,null,null,null,840,"Durham Trinity School & Sports College",7032,"Special","O"]
[null,null,null,null,null,null,null,null,null,840,"The Oaks Secondary School",7033,"Special","O","2005-09-01"]
[null,null,null,null,null,null,null,null,null,840,"Evergreen Primary School",7034,"Special","O","2005-09-01"]
[null,null,null,null,null,null,null,null,null,841,"Rise Carr College",1100,"Pupil Referral Unit","O","2003-09-11"]
[null,null,null,null,null,null,null,null,null,841,"Red Hall Primary School",2669,"Mainstream","O"]
[null,null,null,null,null,null,null,null,null,845,"Grovelands Community Primary School",2059,"Mainstream","O"]
[null,null,null,null,null,null,null,null,null,845,"Wallands Community Primary and Nursery School",2072,"Mainstream","O"]
[null,null,null,null,null,null,null,null,null,845,"Willingdon Primary School",2090,"Mainstream","O"]
[null,null,null,null,null,null,null,null,null,845,"Manor Primary School",2107,"Mainstream","O"]
[null,null,null,null,null,null,null,null,null,845,"Heathfield Community College",4028,"Mainstream","O"]
[null,null,null,null,null,null,null,null,null,845,"Robertsbridge Community College",4035,"Mainstream","O"]
[null,null,null,null,null,null,null,null,null,845,"Willingdon Community School",4039,"Mainstream","O"]
[null,null,null,null,null,null,null,null,null,845,"Priory School",4047,"Mainstream","O"]
[null,null,null,null,null,null,null,null,null,845,"Grove Park School",7021,"Special","O"]
[null,null,null,null,null,null,null,null,null,846,"Central Hub Brighton",1105,"Pupil Referral Unit","O","2012-08-12"]
[null,null,null,null,null,null,null,null,null,846,"Carden Nursery and Primary School",2001,"Mainstream","O","1999-09-01"]
[null,null,null,null,null,null,null,null,null,846,"West Blatchington Primary and Nursery School",2093,"Mainstream","O"]
[null,null,null,null,null,null,null,null,null,846,"Bevendean Primary School and Nursery",2163,"Mainstream","O"]
[null,null,null,null,null,null,null,null,null,846,"Longhill High School",4018,"Mainstream","O"]
[null,null,null,null,null,null,null,null,null,846,"Hove Park School and Sixth Form Centre",4068,"Mainstream","O"]
[null,null,null,null,null,null,null,null,null,846,"Homewood College",7004,"Special","O"]
[null,null,null,null,null,null,null,null,null,846,"Downs View Special School",7006,"Special","O"]
[null,null,null,null,null,null,null,null,null,846,"Hill Park School",7018,"Special","O"]
[null,null,null,null,null,null,null,null,null,850,"Haven Early Years Centre",1001,"Mainstream","O"]
[null,null,null,null,null,null,null,null,null,850,"Bushy Leaze Early Years Centre",1004,"Mainstream","O","1996-09-01"]
[null,null,null,null,null,null,null,null,null,850,"Lanterns Nursery School and Extended Services",1005,"Mainstream","O","2005-09-12"]
[null,null,null,null,null,null,null,null,null,850,"Rowhill School",1103,"Pupil Referral Unit","O"]
[null,null,null,null,null,null,null,null,null,850,"Smannell Field School",1104,"Pupil Referral Unit","O"]
[null,null,null,null,null,null,null,null,null,850,"The Bridge Education Centre",1105,"Pupil Referral Unit","O"]
[null,null,null,null,null,null,null,null,null,850,"Greenwood School",1115,"Pupil Referral Unit","O"]
[null,null,null,null,null,null,null,null,null,850,"The Key Education Centre",1118,"Pupil Referral Unit","O","2002-04-08"]
[null,null,null,null,null,null,null,null,null,850,"Ashley Infant School",2005,"Mainstream","O"]
[null,null,null,null,null,null,null,null,null,850,"Great Binfields Primary School",2011,"Mainstream","O","2001-09-01"]
[null,null,null,null,null,null,null,null,null,850,"South View Junior School",2013,"Mainstream","O"]
[null,null,null,null,null,null,null,null,null,850,"Stoke Park Infant School",2018,"Mainstream","O"]
[null,null,null,null,null,null,null,null,null,850,"Stoke Park Junior School",2030,"Mainstream","O"]
[null,null,null,null,null,null,null,null,null,850,"Wildground Junior School",2055,"Mainstream","O"]
[null,null,null,null,null,null,null,null,null,850,"Wildground Infant School",2057,"Mainstream","O"]
[null,null,null,null,null,null,null,null,null,850,"Cherbourg Primary School",2062,"Mainstream","O"]
[null,null,null,null,null,null,null,null,null,850,"Trosnant Junior School",2103,"Mainstream","O"]
[null,null,null,null,null,null,null,null,null,850,"Tiptoe Primary School",2111,"Mainstream","O"]
[null,null,null,null,null,null,null,null,null,850,"Liss Junior School",2127,"Mainstream","O"]
[null,null,null,null,null,null,null,null,null,850,"New Milton Infant School",2137,"Mainstream","O"]
[null,null,null,null,null,null,null,null,null,850,"Vigo Primary School",2220,"Mainstream","O"]
[null,null,null,null,null,null,null,null,null,850,"South View Infant and Nursery School",2228,"Mainstream","O"]
[null,null,null,null,null,null,null,null,null,850,"Hiltingbury Infant School",2237,"Mainstream","O"]
[null,null,null,null,null,null,null,null,null,850,"Hiltingbury Junior School",2274,"Mainstream","O"]
[null,null,null,null,null,null,null,null,null,850,"Liss Infant School",2291,"Mainstream","O"]
[null,null,null,null,null,null,null,null,null,850,"Kings Copse Primary School",2347,"Mainstream","O"]
[null,null,null,null,null,null,null,null,null,850,"Shakespeare Junior School",2377,"Mainstream","O"]
[null,null,null,null,null,null,null,null,null,850,"Manor Junior School",2520,"Mainstream","O"]
[null,null,null,null,null,null,null,null,null,850,"Manor Infant School",2524,"Mainstream","O"]
[null,null,null,null,null,null,null,null,null,850,"South Farnborough Junior School",2531,"Mainstream","O"]
[null,null,null,null,null,null,null,null,null,850,"Guillemont Junior School",2533,"Mainstream","O"]
[null,null,null,null,null,null,null,null,null,850,"Pinewood Infant School",2534,"Mainstream","O"]
[null,null,null,null,null,null,null,null,null,850,"Park View Primary School",2732,"Mainstream","O"]
[null,null,null,null,null,null,null,null,null,850,"Morelands Primary School",2774,"Mainstream","O"]
[null,null,null,null,null,null,null,null,null,850,"Bedenham Primary School",2776,"Mainstream","O","1996-09-01"]
[null,null,null,null,null,null,null,null,null,850,"Holbrook Primary School",2777,"Mainstream","O","1996-09-01"]
[null,null,null,null,null,null,null,null,null,850,"Medstead Church of England Primary School",3101,"Mainstream","O"]
[null,null,null,null,null,null,null,null,null,850,"Pennington Church of England Junior School",3124,"Mainstream","O"]
[null,null,null,null,null,null,null,null,null,850,"Ringwood Church of England Infant School",3132,"Mainstream","O"]
[null,null,null,null,null,null,null,null,null,850,"St Mark's Church of England Primary School",3665,"Mainstream","O"]
[null,null,null,null,null,null,null,null,null,850,"The Toynbee School",4113,"Mainstream","O"]
[null,null,null,null,null,null,null,null,null,850,"Portchester Community School",4133,"Mainstream","O"]
[null,null,null,null,null,null,null,null,null,850,"Aldworth School",4156,"Mainstream","O"]
[null,null,null,null,null,null,null,null,null,850,"Cranbourne",4164,"Mainstream","O"]
[null,null,null,null,null,null,null,null,null,850,"Horndean Technology College",4173,"Mainstream","O"]
[null,null,null,null,null,null,null,null,null,850,"Henry Beaufort School",4174,"Mainstream","O"]
[null,null,null,null,null,null,null,null,null,850,"The Vyne Community School",4180,"Mainstream","O"]
[null,null,null,null,null,null,null,null,null,850,"Crestwood Community School",4191,"Mainstream","O"]
[null,null,null,null,null,null,null,null,null,850,"Cove School",4203,"Mainstream","O"]
[null,null,null,null,null,null,null,null,null,850,"The Wavell School",4206,"Mainstream","O"]
[null,null,null,null,null,null,null,null,null,850,"Kings' School",4310,"Mainstream","O"]
[null,null,null,null,null,null,null,null,null,850,"Ashley Junior School",5208,"Mainstream","O"]
[null,null,null,null,null,null,null,null,null,850,"Crofton School",5405,"Mainstream","O"]
[null,null,null,null,null,null,null,null,null,850,"Applemore College",5412,"Mainstream","O"]
[null,null,null,null,null,null,null,null,null,850,"Osborne School",5950,"Special","O"]
[null,null,null,null,null,null,null,null,null,850,"Henry Tyndale School",7000,"Special","O"]
[null,null,null,null,null,null,null,null,null,850,"Prospect School",7001,"Special","O","2002-01-01"]
[null,null,null,null,null,null,null,null,null,850,"Riverside Community Special School",7009,"Special","O"]
[null,null,null,null,null,null,null,null,null,850,"Lakeside School",7014,"Special","O"]
[null,null,null,null,null,null,null,null,null,850,"Norman Gate School",7015,"Special","O"]
[null,null,null,null,null,null,null,null,null,850,"Maple Ridge School",7016,"Special","O"]
[null,null,null,null,null,null,null,null,null,850,"Heathfield Special School",7018,"Special","O"]
[null,null,null,null,null,null,null,null,null,850,"Icknield School",7020,"Special","O"]
[null,null,null,null,null,null,null,null,null,850,"Rachel Madocks School",7023,"Special","O"]
[null,null,null,null,null,null,null,null,null,850,"Limington House School",7026,"Special","O"]
[null,null,null,null,null,null,null,null,null,850,"Baycroft School",7032,"Special","O"]
[null,null,null,null,null,null,null,null,null,850,"St Francis Special School",7033,"Special","O"]
[null,null,null,null,null,null,null,null,null,850,"Forest Park School",7041,"Special","O","2009-09-01"]
[null,null,null,null,null,null,null,null,null,850,"The Waterloo School",7051,"Special","O"]
[null,null,null,null,null,null,null,null,null,850,"Saxon Wood School",7053,"Special","O"]
[null,null,null,null,null,null,null,null,null,850,"Wolverdene Special School",7067,"Special","O"]
[null,null,null,null,null,null,null,null,null,850,"Oak Lodge School",7070,"Special","O"]
[null,null,null,null,null,null,null,null,null,850,"Glenwood School",7072,"Special","O"]
[null,null,null,null,null,null,null,null,null,850,"Samuel Cody School",7073,"Special","O"]
[null,null,null,null,null,null,null,null,null,850,"The Mark Way School",7075,"Special","O"]
[null,null,null,null,null,null,null,null,null,850,"Shepherds Down Special School",7076,"Special","O"]
[null,null,null,null,null,null,null,null,null,850,"Hollywater School",7079,"Special","O","2006-09-01"]
[null,null,null,null,null,null,null,null,null,851,"Devonshire Infant School",2648,"Mainstream","O"]
[null,null,null,null,null,null,null,null,null,851,"Southsea Infant School",2680,"Mainstream","O"]
[null,null,null,null,null,null,null,null,null,851,"Portsdown Primary School",2765,"Mainstream","O"]
[null,null,null,null,null,null,null,null,null,851,"St Edmund's Catholic School",5413,"Mainstream","O"]
[null,null,null,null,null,null,null,null,null,852,"Compass School",1100,"Pupil Referral Unit","O","2002-04-01"]
[null,null,null,null,null,null,null,null,null,852,"Holy Family Catholic Primary School",3657,"Mainstream","O"]
[null,null,null,null,null,null,null,null,null,852,"Redbridge Community School",4270,"Mainstream","O"]
[null,null,null,null,null,null,null,null,null,852,"Bitterne Park School",4278,"Mainstream","O","1995-09-01"]
[null,null,null,null,null,null,null,null,null,852,"Cantell School",4311,"Mainstream","O"]
[null,null,null,null,null,null,null,null,null,852,"Saint George Catholic Voluntary Aided College Southampton",5415,"Mainstream","O"]
[null,null,null,null,null,null,null,null,null,852,"Springwell School",7035,"Special","O"]
[null,null,null,null,null,null,null,null,null,852,"The Cedar School",7037,"Special","O"]
[null,null,null,null,null,null,null,null,null,852,"The Polygon School",7039,"Special","O"]
[null,null,null,null,null,null,null,null,null,852,"Vermont School",7040,"Special","O"]
[null,null,null,null,null,null,null,null,null,855,"Oakfield School",1102,"Pupil Referral Unit","O","2011-04-01"]
[null,null,null,null,null,null,null,null,null,855,"Hugglescote Community Primary School",2024,"Mainstream","O"]
[null,null,null,null,null,null,null,null,null,855,"Westfield Junior School",2045,"Mainstream","O"]
[null,null,null,null,null,null,null,null,null,855,"Westfield Infant School",2046,"Mainstream","O"]
[null,null,null,null,null,null,null,null,null,855,"Newbold Verdon Primary School",2078,"Mainstream","O"]
[null,null,null,null,null,null,null,null,null,855,"Thorpe Acre Junior School",2116,"Mainstream","O"]
[null,null,null,null,null,null,null,null,null,855,"Woodcote Primary School",2373,"Mainstream","O"]
[null,null,null,null,null,null,null,null,null,855,"St Denys Church of England Infant School, Ibstock",3047,"Mainstream","O"]
[null,null,null,null,null,null,null,null,null,855,"Iveshead School",4056,"Mainstream","O"]
[null,null,null,null,null,null,null,null,null,855,"Maplewell Hall School",7002,"Special","O"]
[null,null,null,null,null,null,null,null,null,855,"Ashmount School",7006,"Special","O"]
[null,null,null,null,null,null,null,null,null,855,"Birch Wood (Melton Area Special School)",7215,"Special","O","2004-09-01"]
[null,null,null,null,null,null,null,null,null,856,"Leicester City Primary PRU",1100,"Pupil Referral Unit","O","2000-11-13"]
[null,null,null,null,null,null,null,null,null,856,"Leicester Partnership School",1103,"Pupil Referral Unit","O","2006-04-24"]
[null,null,null,null,null,null,null,null,null,856,"Catherine Infant School",2213,"Mainstream","O"]
[null,null,null,null,null,null,null,null,null,856,"Rushey Mead Primary School",2231,"Mainstream","O"]
[null,null,null,null,null,null,null,null,null,856,"Imperial Avenue Infant School",2238,"Mainstream","O"]
[null,null,null,null,null,null,null,null,null,856,"Inglehurst Junior School",2240,"Mainstream","O"]
[null,null,null,null,null,null,null,null,null,856,"King Richard III Infant and Nursery School",2241,"Mainstream","O"]
[null,null,null,null,null,null,null,null,null,856,"Sandfield Close Primary School",2317,"Mainstream","O"]
[null,null,null,null,null,null,null,null,null,856,"Barley Croft Primary School",2320,"Mainstream","O"]
[null,null,null,null,null,null,null,null,null,856,"The Children's Hospital School",5951,"Hospital ","O"]
[null,null,null,null,null,null,null,null,null,856,"Nether Hall School",7213,"Special","O"]
[null,null,null,null,null,null,null,null,null,856,"Oaklands School",7217,"Special","O","1995-09-01"]
[null,null,null,null,null,null,null,null,null,856,"Ellesmere College",7218,"Special","O","1995-09-01"]
[null,null,null,null,null,null,null,null,null,856,"West Gate School",7221,"Special","O","2006-01-01"]
[null,null,null,null,null,null,null,null,null,857,"Oakham CofE Primary School",3115,"Mainstream","O"]
[null,null,null,null,null,null,null,null,null,857,"The Parks School",7015,"Special","O"]
[null,null,null,null,null,null,null,null,null,860,"Hednesford Nursery School",1022,"Mainstream","O"]
[null,null,null,null,null,null,null,null,null,860,"Bridge Short Stay School",1105,"Pupil Referral Unit","O","1997-11-01"]
[null,null,null,null,null,null,null,null,null,860,"Cedars - Newcastle, Moorlands and Darwin Bases",1106,"Pupil Referral Unit","O","1998-03-01"]
[null,null,null,null,null,null,null,null,null,860,"Kettlebrook Short Stay School",1109,"Pupil Referral Unit","O","2002-01-01"]
[null,null,null,null,null,null,null,null,null,860,"Burton PRU",1111,"Pupil Referral Unit","O","2005-01-01"]
[null,null,null,null,null,null,null,null,null,860,"Victoria Community School",2132,"Mainstream","O"]
[null,null,null,null,null,null,null,null,null,860,"The John Bamford Primary School",2360,"Mainstream","O"]
[null,null,null,null,null,null,null,null,null,860,"Cheslyn Hay Primary School",2393,"Mainstream","O"]
[null,null,null,null,null,null,null,null,null,860,"Tillington Manor Primary School",2400,"Mainstream","O"]
[null,null,null,null,null,null,null,null,null,860,"St Margaret's CofE (VC) Junior School",3094,"Mainstream","O"]
[null,null,null,null,null,null,null,null,null,860,"Norton Canes High School",4066,"Mainstream","O"]
[null,null,null,null,null,null,null,null,null,860,"Cardinal Griffin Catholic College",5403,"Mainstream","O"]
[null,null,null,null,null,null,null,null,null,860,"Chasetown Community School",7000,"Special","O","2001-04-01"]
[null,null,null,null,null,null,null,null,null,860,"Horton Lodge Community Special School",7003,"Special","O"]
[null,null,null,null,null,null,null,null,null,860,"Hednesford Valley High School",7023,"Special","O"]
[null,null,null,null,null,null,null,null,null,860,"Sherbrook Primary School",7032,"Special","O"]
[null,null,null,null,null,null,null,null,null,860,"Marshlands School",7037,"Special","O"]
[null,null,null,null,null,null,null,null,null,860,"Greenhall Nursery",7750,"Special","O"]
[null,null,null,null,null,null,null,null,null,861,"Merit Hospital School and Medical Pupil Referral Unit",1111,"Pupil Referral Unit","O","2003-01-01"]
[null,null,null,null,null,null,null,null,null,861,"The Willows Primary School",2059,"Mainstream","O"]
[null,null,null,null,null,null,null,null,null,861,"Portland School and Specialist College",7005,"Special","O"]
[null,null,null,null,null,null,null,null,null,861,"Abbey Hill School and College",7007,"Special","O","1900-01-01"]
[null,null,null,null,null,null,null,null,null,865,"Marlborough St Mary's CE Primary School",2027,"Mainstream","O","2016-09-01"]
[null,null,null,null,null,null,null,null,null,865,"Westbury Infant School",2136,"Mainstream","O"]
[null,null,null,null,null,null,null,null,null,865,"Salisbury, Manor Fields Primary School",2191,"Mainstream","O"]
[null,null,null,null,null,null,null,null,null,865,"Charter Primary School",2226,"Mainstream","O"]
[null,null,null,null,null,null,null,null,null,865,"Westbury Church of England Junior School",3192,"Mainstream","O"]
[null,null,null,null,null,null,null,null,null,865,"Sarum St Paul's CofE (VA) Primary School",3383,"Mainstream","O"]
[null,null,null,null,null,null,null,null,null,865,"Christ The King Catholic School, Amesbury",3412,"Mainstream","O"]
[null,null,null,null,null,null,null,null,null,865,"Frogwell Primary School",5205,"Mainstream","O"]
[null,null,null,null,null,null,null,null,null,865,"Studley Green Primary School",5206,"Mainstream","O"]
[null,null,null,null,null,null,null,null,null,865,"Matravers School",5415,"Mainstream","O"]
[null,null,null,null,null,null,null,null,null,865,"Silverwood School",7003,"Special","O","2020-09-01"]
[null,null,null,null,null,null,null,null,null,865,"Downland School",7007,"Special","O","1900-01-01"]
[null,null,null,null,null,null,null,null,null,866,"EOTAS Swindon",1100,"Pupil Referral Unit","O","1999-11-01"]
[null,null,null,null,null,null,null,null,null,866,"Eldene Nursery and Primary School",2009,"Mainstream","O","2000-08-31"]
[null,null,null,null,null,null,null,null,null,866,"Even Swindon Primary School",2103,"Mainstream","O"]
[null,null,null,null,null,null,null,null,null,866,"Robert Le Kyng Primary School",2211,"Mainstream","O"]
[null,null,null,null,null,null,null,null,null,866,"Crowdys Hill School",7006,"Special","O"]
[null,null,null,null,null,null,null,null,null,867,"College Hall",1105,"Pupil Referral Unit","O","1999-09-01"]
[null,null,null,null,null,null,null,null,null,867,"Meadow Vale Primary School",2251,"Mainstream","O"]
[null,null,null,null,null,null,null,null,null,867,"Sandy Lane Primary School",2814,"Mainstream","O","2002-09-01"]
[null,null,null,null,null,null,null,null,null,867,"The Pines School",3357,"Mainstream","O","2005-09-01"]
[null,null,null,null,null,null,null,null,null,867,"Garth Hill College",4059,"Mainstream","O"]
[null,null,null,null,null,null,null,null,null,867,"Kennel Lane School",7032,"Special","O"]
[null,null,null,null,null,null,null,null,null,868,"RBWM Alternative Learning Provision",1103,"Pupil Referral Unit","O","1998-09-01"]
[null,null,null,null,null,null,null,null,null,868,"Riverside Primary School and Nursery",2074,"Mainstream","O"]
[null,null,null,null,null,null,null,null,null,868,"Wessex Primary School",2077,"Mainstream","O"]
[null,null,null,null,null,null,null,null,null,868,"Manor Green School",7009,"Special","O"]
[null,null,null,null,null,null,null,null,null,869,"Icollege Alternative Provision",1111,"Pupil Referral Unit","O","2005-10-31"]
[null,null,null,null,null,null,null,null,null,869,"Westwood Farm Junior School",2111,"Mainstream","O"]
[null,null,null,null,null,null,null,null,null,869,"Westwood Farm Infant School",2131,"Mainstream","O"]
[null,null,null,null,null,null,null,null,null,869,"Theale C.E. Primary School",3045,"Mainstream","O"]
[null,null,null,null,null,null,null,null,null,869,"The Winchcombe School",3359,"Mainstream","O","2005-09-01"]
[null,null,null,null,null,null,null,null,null,869,"The Castle School",7007,"Special","O"]
[null,null,null,null,null,null,null,null,null,869,"Brookfields Special School",7028,"Special","O"]
[null,null,null,null,null,null,null,null,null,870,"Blagdon Nursery School",1000,"Mainstream","O"]
[null,null,null,null,null,null,null,null,null,870,"New Bridge Nursery School",1006,"Mainstream","O"]
[null,null,null,null,null,null,null,null,null,870,"E P Collier Primary School",2006,"Mainstream","O"]
[null,null,null,null,null,null,null,null,null,870,"Southcote Primary School",2027,"Mainstream","O"]
[null,null,null,null,null,null,null,null,null,870,"Christ The King Catholic Primary School",3305,"Mainstream","O"]
[null,null,null,null,null,null,null,null,null,870,"Blessed Hugh Faringdon Catholic School",5411,"Mainstream","O"]
[null,null,null,null,null,null,null,null,null,870,"The Holy Brook School",7036,"Special","O"]
[null,null,null,null,null,null,null,null,null,871,"Slough Centre Nursery School",1020,"Mainstream","O"]
[null,null,null,null,null,null,null,null,null,871,"Baylis Court Nursery School",1021,"Mainstream","O"]
[null,null,null,null,null,null,null,null,null,871,"Chalvey Nursery School & Early Years Centre",1025,"Mainstream","O"]
[null,null,null,null,null,null,null,null,null,871,"Wexham School",4089,"Mainstream","O"]
[null,null,null,null,null,null,null,null,null,871,"Priory School",5201,"Mainstream","O"]
[null,null,null,null,null,null,null,null,null,872,"The Ambleside Centre",1017,"Mainstream","O"]
[null,null,null,null,null,null,null,null,null,872,"Foundry College",1108,"Pupil Referral Unit","O","2005-04-02"]
[null,null,null,null,null,null,null,null,null,872,"Willow House Hospital Education",1109,"Pupil Referral Unit","O","2005-05-01"]
[null,null,null,null,null,null,null,null,null,872,"Lambs Lane Primary School",2089,"Mainstream","O"]
[null,null,null,null,null,null,null,null,null,872,"Emmbrook Infant School",2121,"Mainstream","O"]
[null,null,null,null,null,null,null,null,null,872,"Emmbrook Junior School",2130,"Mainstream","O"]
[null,null,null,null,null,null,null,null,null,872,"Highwood Primary School",2246,"Mainstream","O","1999-09-01"]
[null,null,null,null,null,null,null,null,null,872,"All Saints CofE (Aided) Primary School",3372,"Mainstream","O","2008-09-01"]
[null,null,null,null,null,null,null,null,null,872,"Addington School",7029,"Special","O"]
[null,null,null,null,null,null,null,null,null,873,"Pilgrim Pathways School",1105,"Pupil Referral Unit","O","2004-09-01"]
[null,null,null,null,null,null,null,null,null,873,"Colville Primary School",2119,"Mainstream","O"]
[null,null,null,null,null,null,null,null,null,873,"Mayfield Primary School",2121,"Mainstream","O","1900-01-01"]
[null,null,null,null,null,null,null,null,null,873,"Spring Meadow Infant School",2329,"Mainstream","O"]
[null,null,null,null,null,null,null,null,null,873,"Huntingdon Primary School",3945,"Mainstream","O","2009-01-01"]
[null,null,null,null,null,null,null,null,null,873,"Samuel Pepys School",7023,"Special","O"]
[null,null,null,null,null,null,null,null,null,873,"Granta School",7025,"Special","O","2006-09-01"]
[null,null,null,null,null,null,null,null,null,873,"Castle School, Cambridge",7026,"Special","O","2006-09-01"]
[null,null,null,null,null,null,null,null,null,874,"Southfields Primary School",2223,"Mainstream","O"]
[null,null,null,null,null,null,null,null,null,874,"Saint Michael CofE Primary School (Voluntary Aided)",3386,"Mainstream","O","2012-09-01"]
[null,null,null,null,null,null,null,null,null,874,"St John Fisher Catholic High School",5413,"Mainstream","O"]
[null,null,null,null,null,null,null,null,null,874,"Marshfields School",7013,"Special","O"]
[null,null,null,null,null,null,null,null,null,874,"Heltwate School",7020,"Special","O"]
[null,null,null,null,null,null,null,null,null,874,"Nene Gate",7025,"Special","O","2008-01-02"]
[null,null,null,null,null,null,null,null,null,876,"The Bridge School",1100,"Pupil Referral Unit","O","2003-09-01"]
[null,null,null,null,null,null,null,null,null,876,"Weston Point Community Primary School",2118,"Mainstream","O"]
[null,null,null,null,null,null,null,null,null,876,"The Brow Community Primary School",2295,"Mainstream","O"]
[null,null,null,null,null,null,null,null,null,876,"Woodside Primary School",2297,"Mainstream","O"]
[null,null,null,null,null,null,null,null,null,876,"Beechwood Primary School",2382,"Mainstream","O"]
[null,null,null,null,null,null,null,null,null,876,"Halton Lodge Primary School",2712,"Mainstream","O"]
[null,null,null,null,null,null,null,null,null,876,"Oakfield Community Primary School",2727,"Mainstream","O","2001-09-01"]
[null,null,null,null,null,null,null,null,null,876,"Chesnut Lodge Special School",7200,"Special","O"]
[null,null,null,null,null,null,null,null,null,876,"Ashley High School",7202,"Special","O"]
[null,null,null,null,null,null,null,null,null,877,"Sandy Lane Nursery and Forest School",1004,"Mainstream","O"]
[null,null,null,null,null,null,null,null,null,877,"Bewsey Lodge Primary School",2013,"Mainstream","O"]
[null,null,null,null,null,null,null,null,null,877,"Dallam Community Primary School",2015,"Mainstream","O"]
[null,null,null,null,null,null,null,null,null,877,"St Gregory's Catholic High School",4622,"Mainstream","O"]
[null,null,null,null,null,null,null,null,null,877,"Green Lane Community Special School",7001,"Special","O"]
[null,null,null,null,null,null,null,null,null,877,"Fox Wood Special School",7002,"Special","O"]
[null,null,null,null,null,null,null,null,null,877,"Woolston Brook School",7103,"Special","O"]
[null,null,null,null,null,null,null,null,null,878,"Devon Hospitals' Short Stay School",1110,"Pupil Referral Unit","O","2004-11-08"]
[null,null,null,null,null,null,null,null,null,878,"Countess Wear Community School",2025,"Mainstream","O"]
[null,null,null,null,null,null,null,null,null,878,"Marpool Primary School",2045,"Mainstream","O"]
[null,null,null,null,null,null,null,null,null,878,"Ilfracombe Infant and Nursery School",2232,"Mainstream","O"]
[null,null,null,null,null,null,null,null,null,878,"Castle Primary School",2720,"Mainstream","O"]
[null,null,null,null,null,null,null,null,null,878,"Littleham Church of England Primary School",3028,"Mainstream","O"]
[null,null,null,null,null,null,null,null,null,878,"Great Torrington Bluecoat Church of England Primary School",3061,"Mainstream","O"]
[null,null,null,null,null,null,null,null,null,878,"Ilfracombe Church of England Junior School",3065,"Mainstream","O"]
[null,null,null,null,null,null,null,null,null,878,"Wynstream School",3375,"Mainstream","O","2005-04-11"]
[null,null,null,null,null,null,null,null,null,878,"Tiverton High School",4192,"Mainstream","O"]
[null,null,null,null,null,null,null,null,null,878,"Ellen Tinkham School",7002,"Special","O"]
[null,null,null,null,null,null,null,null,null,878,"Southbrook School",7005,"Special","O"]
[null,null,null,null,null,null,null,null,null,878,"Mill Water School",7006,"Special","O"]
[null,null,null,null,null,null,null,null,null,878,"Barley Lane School",7008,"Special","O"]
[null,null,null,null,null,null,null,null,null,878,"The Lampard Community School",7020,"Special","O"]
[null,null,null,null,null,null,null,null,null,878,"Pathfield School",7021,"Special","O"]
[null,null,null,null,null,null,null,null,null,878,"Bidwell Brook School",7044,"Special","O"]
[null,null,null,null,null,null,null,null,null,878,"Marland School",7088,"Special","O","1998-09-01"]
[null,null,null,null,null,null,null,null,null,879,"Plym Bridge Nursery and Day Care",1009,"Mainstream","O"]
[null,null,null,null,null,null,null,null,null,879,"Woodlands School",7062,"Special","O"]
[null,null,null,null,null,null,null,null,null,879,"Cann Bridge School",7063,"Special","O"]
[null,null,null,null,null,null,null,null,null,879,"Brook Green Centre for Learning",7066,"Special","O"]
[null,null,null,null,null,null,null,null,null,879,"Mount Tamar School",7067,"Special","O"]
[null,null,null,null,null,null,null,null,null,879,"Longcause Community Special School",7068,"Special","O"]
[null,null,null,null,null,null,null,null,null,879,"Mill Ford School",7069,"Special","O"]
[null,null,null,null,null,null,null,null,null,880,"The Spires College",4117,"Mainstream","O"]
[null,null,null,null,null,null,null,null,null,880,"Mayfield School",7042,"Special","O"]
[null,null,null,null,null,null,null,null,null,881,"The St Aubyn Centre Education Department",1108,"Pupil Referral Unit","O","2003-09-01"]
[null,null,null,null,null,null,null,null,null,881,"Poplar Adolescent Unit",1115,"Pupil Referral Unit","O","2009-02-23"]
[null,null,null,null,null,null,null,null,null,881,"Children's Support Service Langdon Hills Basildon",1120,"Pupil Referral Unit","O","2010-01-01"]
[null,null,null,null,null,null,null,null,null,881,"Lexden Primary School with Unit for Hearing Impaired Pupils",2006,"Mainstream","O"]
[null,null,null,null,null,null,null,null,null,881,"Trinity Road Primary School",2210,"Mainstream","O"]
[null,null,null,null,null,null,null,null,null,881,"Ghyllgrove Primary School",2611,"Mainstream","O"]
[null,null,null,null,null,null,null,null,null,881,"West Horndon Primary School",2624,"Mainstream","O"]
[null,null,null,null,null,null,null,null,null,881,"Bentfield Primary School and Nursery",2747,"Mainstream","O"]
[null,null,null,null,null,null,null,null,null,881,"Wells Park School",7022,"Special","O"]
[null,null,null,null,null,null,null,null,null,881,"Cedar Hall School",7036,"Special","O"]
[null,null,null,null,null,null,null,null,null,881,"The Edith Borthwick School",7048,"Special","O"]
[null,null,null,null,null,null,null,null,null,881,"Glenwood School",7054,"Special","O"]
[null,null,null,null,null,null,null,null,null,881,"Shorefields School",7060,"Special","O"]
[null,null,null,null,null,null,null,null,null,881,"Lexden Springs School",7069,"Special","O"]
[null,null,null,null,null,null,null,null,null,881,"Harlow Fields School and College",7070,"Special","O","1999-04-01"]
[null,null,null,null,null,null,null,null,null,882,"Fairways Primary School",2407,"Mainstream","O"]
[null,null,null,null,null,null,null,null,null,884,"Herefordshire Pupil Referral Service",1109,"Pupil Referral Unit","O","1994-09-01"]
[null,null,null,null,null,null,null,null,null,884,"Hampton Dene Primary School",2057,"Mainstream","O"]
[null,null,null,null,null,null,null,null,null,884,"The Bishop of Hereford's Bluecoat School",4600,"Mainstream","O"]
[null,null,null,null,null,null,null,null,null,884,"Blackmarston School",7004,"Special","O"]
[null,null,null,null,null,null,null,null,null,884,"Westfield School",7007,"Special","O"]
[null,null,null,null,null,null,null,null,null,885,"Perryfields Primary Pupil Referral Unit",1103,"Pupil Referral Unit","O","1994-09-01"]
[null,null,null,null,null,null,null,null,null,885,"The Beacon Primary Pupil Referral Unit",1105,"Pupil Referral Unit","O","1994-09-01"]
[null,null,null,null,null,null,null,null,null,885,"The Forge Secondary Short Stay School",1121,"Pupil Referral Unit","O","2010-09-01"]
[null,null,null,null,null,null,null,null,null,885,"Meadows First School",2019,"Mainstream","O"]
[null,null,null,null,null,null,null,null,null,885,"Batchley First and Nursery School",2128,"Mainstream","O"]
[null,null,null,null,null,null,null,null,null,885,"Beaconside Primary and Nursery School",2197,"Mainstream","O"]
[null,null,null,null,null,null,null,null,null,885,"Lickey Hills Primary School and Nursery",2901,"Mainstream","O"]
[null,null,null,null,null,null,null,null,null,885,"Abbey Park Middle School",2906,"Mainstream","O"]
[null,null,null,null,null,null,null,null,null,885,"Chaddesley Corbett Endowed Primary School",3330,"Mainstream","O","2007-09-01"]
[null,null,null,null,null,null,null,null,null,885,"North Bromsgrove High School",4002,"Mainstream","O","1900-01-01"]
[null,null,null,null,null,null,null,null,null,885,"Parkside Middle School",4403,"Mainstream","O"]
[null,null,null,null,null,null,null,null,null,885,"Rigby Hall Day Special School",7001,"Special","O"]
[null,null,null,null,null,null,null,null,null,885,"Pitcheroak School",7009,"Special","O"]
[null,null,null,null,null,null,null,null,null,885,"Chadsgrove School",7015,"Special","O"]
[null,null,null,null,null,null,null,null,null,885,"Fort Royal",7025,"Special","O","2007-09-01"]
[null,null,null,null,null,null,null,null,null,885,"Wyre Forest School",7026,"Special","O","2011-09-01"]
[null,null,null,null,null,null,null,null,null,886,"The Rosewood School",1123,"Pupil Referral Unit","O","2007-11-01"]
[null,null,null,null,null,null,null,null,null,886,"Birchwood",1124,"Pupil Referral Unit","O","2008-01-01"]
[null,null,null,null,null,null,null,null,null,886,"Maidstone and Malling Alternative Provision",1127,"Pupil Referral Unit","O","2008-01-01"]
[null,null,null,null,null,null,null,null,null,886,"Enterprise Learning Alliance",1128,"Pupil Referral Unit","O","2008-01-01"]
[null,null,null,null,null,null,null,null,null,886,"Two Bridges School",1129,"Pupil Referral Unit","O","2008-01-01"]
[null,null,null,null,null,null,null,null,null,886,"Slade Primary School and Attached Unit for Children with Hearing Impairment",2155,"Mainstream","O"]
[null,null,null,null,null,null,null,null,null,886,"Willesborough Infant School",2276,"Mainstream","O"]
[null,null,null,null,null,null,null,null,null,886,"River Primary School",2312,"Mainstream","O"]
[null,null,null,null,null,null,null,null,null,886,"Whitfield Aspen School",2471,"Mainstream","O"]
[null,null,null,null,null,null,null,null,null,886,"Bishops Down Primary School",2490,"Mainstream","O"]
[null,null,null,null,null,null,null,null,null,886,"Bromstone Primary School, Broadstairs",2603,"Mainstream","O"]
[null,null,null,null,null,null,null,null,null,886,"King's Farm Primary School",2674,"Mainstream","O"]
[null,null,null,null,null,null,null,null,null,886,"Ulcombe Church of England Primary School",3083,"Mainstream","O"]
[null,null,null,null,null,null,null,null,null,886,"Nonington Church of England Primary School",3171,"Mainstream","O"]
[null,null,null,null,null,null,null,null,null,886,"Langafel Church of England Voluntary Controlled Primary School",3296,"Mainstream","O"]
[null,null,null,null,null,null,null,null,null,886,"The John Wesley Church of England Methodist Voluntary Aided Primary School",3299,"Mainstream","O","2007-09-01"]
[null,null,null,null,null,null,null,null,null,886,"Hythe Bay CofE Primary School",3902,"Mainstream","O","2006-09-01"]
[null,null,null,null,null,null,null,null,null,886,"Castle Hill Community Primary School",3904,"Mainstream","O","2007-01-01"]
[null,null,null,null,null,null,null,null,null,886,"Ashford Oaks Community Primary School",3909,"Mainstream","O","2008-09-01"]
[null,null,null,null,null,null,null,null,null,886,"Joy Lane Primary Foundation School",3910,"Mainstream","O","2007-09-01"]
[null,null,null,null,null,null,null,null,null,886,"Green Park Community Primary School",3916,"Mainstream","O","2007-08-01"]
[null,null,null,null,null,null,null,null,null,886,"Garlinge Primary School and Nursery",3917,"Mainstream","O","2007-09-01"]
[null,null,null,null,null,null,null,null,null,886,"The Holmesdale School",4065,"Mainstream","O","1900-01-01"]
[null,null,null,null,null,null,null,null,null,886,"The Judd School",4622,"Mainstream","O"]
[null,null,null,null,null,null,null,null,null,886,"Wincheap Foundation Primary School",5221,"Mainstream","O"]
[null,null,null,null,null,null,null,null,null,886,"Thamesview School",5407,"Mainstream","O"]
[null,null,null,null,null,null,null,null,null,886,"Simon Langton Grammar School for Boys",5412,"Mainstream","O"]
[null,null,null,null,null,null,null,null,null,886,"The Malling School",5425,"Mainstream","O"]
[null,null,null,null,null,null,null,null,null,886,"The Archbishop's School",5426,"Mainstream","O"]
[null,null,null,null,null,null,null,null,null,886,"Hugh Christie School",5431,"Mainstream","O"]
[null,null,null,null,null,null,null,null,null,886,"St John's Catholic Comprehensive",5461,"Mainstream","O"]
[null,null,null,null,null,null,null,null,null,886,"Broomhill Bank School",7002,"Special","O"]
[null,null,null,null,null,null,null,null,null,886,"Valence School",7021,"Special","O"]
[null,null,null,null,null,null,null,null,null,886,"Bower Grove School",7032,"Special","O"]
[null,null,null,null,null,null,null,null,null,886,"St Anthony's School",7033,"Special","O"]
[null,null,null,null,null,null,null,null,null,886,"Ifield School",7039,"Special","O"]
[null,null,null,null,null,null,null,null,null,886,"Foreland Fields School",7040,"Special","O"]
[null,null,null,null,null,null,null,null,null,886,"Goldwyn School",7041,"Special","O"]
[null,null,null,null,null,null,null,null,null,886,"The Beacon Folkestone",7043,"Special","O"]
[null,null,null,null,null,null,null,null,null,886,"Rowhill School",7044,"Special","O"]
[null,null,null,null,null,null,null,null,null,886,"Elms School",7045,"Special","O"]
[null,null,null,null,null,null,null,null,null,886,"Nexus Foundation Special School",7051,"Special","O"]
[null,null,null,null,null,null,null,null,null,886,"Grange Park School",7052,"Special","O","2009-09-01"]
[null,null,null,null,null,null,null,null,null,886,"Five Acre Wood School",7056,"Special","O"]
[null,null,null,null,null,null,null,null,null,886,"Stone Bay School",7058,"Special","O"]
[null,null,null,null,null,null,null,null,null,886,"The Orchard School",7062,"Special","O"]
[null,null,null,null,null,null,null,null,null,886,"St Nicholas' School",7063,"Special","O"]
[null,null,null,null,null,null,null,null,null,886,"Portal House School",7067,"Special","O"]
[null,null,null,null,null,null,null,null,null,886,"The Wyvern School (Buxford)",7069,"Special","O","1999-04-01"]
[null,null,null,null,null,null,null,null,null,886,"Oakley School",7070,"Special","O","2000-09-01"]
[null,null,null,null,null,null,null,null,null,886,"Meadowfield School",7072,"Special","O","2004-09-06"]
[null,null,null,null,null,null,null,null,null,886,"Laleham Gap School",7073,"Special","O","2005-04-11"]
[null,null,null,null,null,null,null,null,null,887,"Will Adams Centre",1108,"Pupil Referral Unit","O","2002-09-01"]
[null,null,null,null,null,null,null,null,null,887,"Abbey Court Foundation Special School",7053,"Special","O"]
[null,null,null,null,null,null,null,null,null,888,"Basnett Street Nursery School",1047,"Mainstream","O"]
[null,null,null,null,null,null,null,null,null,888,"Stepping Stones School",1100,"Pupil Referral Unit","O"]
[null,null,null,null,null,null,null,null,null,888,"Golden Hill Pupil Referral Unit",1103,"Pupil Referral Unit","O"]
[null,null,null,null,null,null,null,null,null,888,"Larches High School",1109,"Pupil Referral Unit","O","1999-11-01"]
[null,null,null,null,null,null,null,null,null,888,"Oswaldtwistle School",1113,"Pupil Referral Unit","O","2003-04-01"]
[null,null,null,null,null,null,null,null,null,888,"Shaftesbury High School",1116,"Pupil Referral Unit","O","2003-04-01"]
[null,null,null,null,null,null,null,null,null,888,"McKee College House",1117,"Pupil Referral Unit","O","2003-04-01"]
[null,null,null,null,null,null,null,null,null,888,"The Acorns School",1118,"Pupil Referral Unit","O","2004-09-01"]
[null,null,null,null,null,null,null,null,null,888,"Chadwick High School",1121,"Pupil Referral Unit","O","2006-09-01"]
[null,null,null,null,null,null,null,null,null,888,"Oswaldtwistle Moor End Primary School",2107,"Mainstream","O"]
[null,null,null,null,null,null,null,null,null,888,"Holme Slack Community Primary School",2193,"Mainstream","O"]
[null,null,null,null,null,null,null,null,null,888,"Moorside Primary School",2370,"Mainstream","O"]
[null,null,null,null,null,null,null,null,null,888,"Walton-le-Dale Community Primary School",2437,"Mainstream","O"]
[null,null,null,null,null,null,null,null,null,888,"Holland Moor Primary School",2656,"Mainstream","O"]
[null,null,null,null,null,null,null,null,null,888,"Ashton Community Science College",4000,"Mainstream","O"]
[null,null,null,null,null,null,null,null,null,888,"Bleasdale School",7007,"Special","O"]
[null,null,null,null,null,null,null,null,null,888,"Moorbrook School",7014,"Special","O"]
[null,null,null,null,null,null,null,null,null,888,"Wennington Hall School",7028,"Special","O"]
[null,null,null,null,null,null,null,null,null,888,"Morecambe Road School",7034,"Special","O"]
[null,null,null,null,null,null,null,null,null,888,"Chorley Astley Park School",7037,"Special","O"]
[null,null,null,null,null,null,null,null,null,888,"Great Arley School",7040,"Special","O"]
[null,null,null,null,null,null,null,null,null,888,"Rawtenstall Cribden House Community Special School",7044,"Special","O"]
[null,null,null,null,null,null,null,null,null,888,"Lostock Hall Moor Hey School",7049,"Special","O"]
[null,null,null,null,null,null,null,null,null,888,"Broadfield Specialist School",7060,"Special","O"]
[null,null,null,null,null,null,null,null,null,888,"Kirkham Pear Tree School",7076,"Special","O"]
[null,null,null,null,null,null,null,null,null,888,"Mayfield School",7089,"Special","O"]
[null,null,null,null,null,null,null,null,null,888,"The Loyne Specialist School",7097,"Special","O"]
[null,null,null,null,null,null,null,null,null,888,"The Coppice School",7098,"Special","O"]
[null,null,null,null,null,null,null,null,null,888,"Oswaldtwistle White Ash School",7099,"Special","O"]
[null,null,null,null,null,null,null,null,null,888,"Brookfield School",7100,"Special","O"]
[null,null,null,null,null,null,null,null,null,888,"Thornton-Cleveleys Red Marsh School",7102,"Special","O"]
[null,null,null,null,null,null,null,null,null,888,"Hope High School",7104,"Special","O"]
[null,null,null,null,null,null,null,null,null,888,"Hillside Specialist School and College",7109,"Special","O"]
[null,null,null,null,null,null,null,null,null,888,"Royal Cross Primary School",7110,"Special","O","2001-09-01"]
[null,null,null,null,null,null,null,null,null,888,"The Rose School",7111,"Special","O","2005-01-01"]
[null,null,null,null,null,null,null,null,null,888,"Pendle View Primary School",7112,"Special","O","2005-08-01"]
[null,null,null,null,null,null,null,null,null,888,"Ridgewood Community High School",7113,"Special","O","2005-09-02"]
[null,null,null,null,null,null,null,null,null,888,"Holly Grove School",7114,"Special","O","2005-09-02"]
[null,null,null,null,null,null,null,null,null,888,"Pendle Community High School & College",7115,"Special","O","2005-08-01"]
[null,null,null,null,null,null,null,null,null,888,"West Lancashire Community High School",7116,"Special","O","2006-09-01"]
[null,null,null,null,null,null,null,null,null,888,"Kingsbury Primary Special School",7117,"Special","O","2006-09-01"]
[null,null,null,null,null,null,null,null,null,888,"Sir Tom Finney Community High School",7118,"Special","O","2008-09-01"]
[null,null,null,null,null,null,null,null,null,888,"Acorns Primary School",7119,"Special","O","2008-09-01"]
[null,null,null,null,null,null,null,null,null,888,"Elm Tree Community Primary School",7120,"Special","O","2008-09-01"]
[null,null,null,null,null,null,null,null,null,889,"St Thomas's Centre",1100,"Pupil Referral Unit","O","2000-04-01"]
[null,null,null,null,null,null,null,null,null,889,"Lower Darwen Primary School",2008,"Mainstream","O"]
[null,null,null,null,null,null,null,null,null,889,"St Cuthbert's Church of England Primary School",3675,"Mainstream","O"]
[null,null,null,null,null,null,null,null,null,889,"Our Lady and St John Catholic College",4629,"Mainstream","O"]
[null,null,null,null,null,null,null,null,null,889,"Newfield School",7107,"Special","O","2000-08-31"]
[null,null,null,null,null,null,null,null,null,890,"Educational Diversity",1100,"Pupil Referral Unit","O","1999-02-01"]
[null,null,null,null,null,null,null,null,null,890,"Boundary Primary School",2835,"Mainstream","O","2001-09-01"]
[null,null,null,null,null,null,null,null,null,890,"Highfurlong School",7020,"Special","O"]
[null,null,null,null,null,null,null,null,null,890,"Woodlands School",7025,"Special","O"]
[null,null,null,null,null,null,null,null,null,891,"Holgate Primary and Nursery School",2018,"Mainstream","O","2014-09-01"]
[null,null,null,null,null,null,null,null,null,891,"Prospect Hill Infant and Nursery School",2925,"Mainstream","O"]
[null,null,null,null,null,null,null,null,null,891,"Selston CofE Infant and Nursery School",3031,"Mainstream","O"]
[null,null,null,null,null,null,null,null,null,891,"Sutton Road Primary School",3775,"Mainstream","O","2001-09-01"]
[null,null,null,null,null,null,null,null,null,891,"Derrymount School",7012,"Special","O"]
[null,null,null,null,null,null,null,null,null,891,"Carlton Digby School",7019,"Special","O"]
[null,null,null,null,null,null,null,null,null,891,"St Giles School",7021,"Special","O"]
[null,null,null,null,null,null,null,null,null,891,"Ash Lea School",7023,"Special","O"]
[null,null,null,null,null,null,null,null,null,891,"Bracken Hill School",7032,"Special","O"]
[null,null,null,null,null,null,null,null,null,891,"Newark Orchard School",7041,"Special","O","1996-04-16"]
[null,null,null,null,null,null,null,null,null,892,"Hospital and Home Education PRU",1109,"Pupil Referral Unit","O"]
[null,null,null,null,null,null,null,null,null,892,"Rosehill School",7035,"Special","O"]
[null,null,null,null,null,null,null,null,null,892,"Oak Field School",7042,"Special","O","2009-09-01"]
[null,null,null,null,null,null,null,null,null,893,"Tuition, Medical and Behaviour Support Service",1100,"Pupil Referral Unit","O","2002-04-01"]
[null,null,null,null,null,null,null,null,null,893,"St Lawrence CofE Primary School",3024,"Mainstream","O"]
[null,null,null,null,null,null,null,null,null,893,"St Andrew's CofE Primary School",3044,"Mainstream","O"]
[null,null,null,null,null,null,null,null,null,893,"Kinnerley Church of England Controlled Primary School",3058,"Mainstream","O"]
[null,null,null,null,null,null,null,null,null,893,"St Mary's Bluecoat CofE (VA) Primary School",3305,"Mainstream","O"]
[null,null,null,null,null,null,null,null,null,893,"Whittington CofE (VA) Primary School",3329,"Mainstream","O"]
[null,null,null,null,null,null,null,null,null,893,"Shrewsbury Cathedral Catholic Primary School and Nursery",3354,"Mainstream","O"]
[null,null,null,null,null,null,null,null,null,894,"The Linden Centre",1100,"Pupil Referral Unit","O"]
[null,null,null,null,null,null,null,null,null,894,"Wombridge Primary School",2112,"Mainstream","O"]
[null,null,null,null,null,null,null,null,null,894,"Haughton School",7001,"Special","O"]
[null,null,null,null,null,null,null,null,null,894,"Southall School",7012,"Special","O"]
[null,null,null,null,null,null,null,null,null,894,"The Bridge at HLC",7017,"Special","O"]
[null,null,null,null,null,null,null,null,null,895,"Oakfield Lodge School",1100,"Pupil Referral Unit","O","2011-04-01"]
[null,null,null,null,null,null,null,null,null,895,"Lindow Community Primary School",2161,"Mainstream","O","1900-01-01"]
[null,null,null,null,null,null,null,null,null,895,"Middlewich Primary School",2731,"Mainstream","O","1999-09-01"]
[null,null,null,null,null,null,null,null,null,895,"Wilmslow High School",4225,"Mainstream","O","1900-01-01"]
[null,null,null,null,null,null,null,null,null,895,"Springfield School",7111,"Special","O"]
[null,null,null,null,null,null,null,null,null,895,"Park Lane School",7112,"Special","O"]
[null,null,null,null,null,null,null,null,null,896,"The Bridge Short Stay School",1100,"Pupil Referral Unit","O","2012-08-31"]
[null,null,null,null,null,null,null,null,null,896,"Ancora House School",1103,"Pupil Referral Unit","O","2004-09-01"]
[null,null,null,null,null,null,null,null,null,896,"Upton Westlea Primary School",2260,"Mainstream","O"]
[null,null,null,null,null,null,null,null,null,896,"Frodsham Weaver Vale Primary School",2282,"Mainstream","O"]
[null,null,null,null,null,null,null,null,null,896,"Darnhall Primary School",2311,"Mainstream","O"]
[null,null,null,null,null,null,null,null,null,896,"Dee Point Primary School",2701,"Mainstream","O"]
[null,null,null,null,null,null,null,null,null,896,"Lache Primary School",2729,"Mainstream","O","1998-01-01"]
[null,null,null,null,null,null,null,null,null,896,"Willow Wood Community Nursery & Primary School",3817,"Mainstream","O","2007-09-01"]
[null,null,null,null,null,null,null,null,null,896,"St Nicholas Catholic High School",4610,"Mainstream","O"]
[null,null,null,null,null,null,null,null,null,896,"Dee Banks School",7000,"Special","O"]
[null,null,null,null,null,null,null,null,null,896,"Greenbank School",7106,"Special","O"]
[null,null,null,null,null,null,null,null,null,896,"Oaklands School",7108,"Special","O"]
[null,null,null,null,null,null,null,null,null,896,"Hebden Green Community School",7109,"Special","O"]
[null,null,null,null,null,null,null,null,null,896,"Hinderton School",7115,"Special","O"]
[null,null,null,null,null,null,null,null,null,896,"Dorin Park School & Specialist SEN College",7118,"Special","O"]
[null,null,null,null,null,null,null,null,null,896,"Rosebank School",7120,"Special","O"]
[null,null,null,null,null,null,null,null,null,896,"Archers Brook SEMH Residential School",7208,"Special","O"]
[null,null,null,null,null,null,null,null,null,908,"Camborne Nursery School",1000,"Mainstream","O"]
[null,null,null,null,null,null,null,null,null,908,"Burraton Community Primary School",2730,"Mainstream","O"]
[null,null,null,null,null,null,null,null,null,908,"Redruth School",4159,"Mainstream","O"]
[null,null,null,null,null,null,null,null,null,908,"Richard Lander School",4160,"Mainstream","O"]
[null,null,null,null,null,null,null,null,null,909,"Parkview Nursery School",1002,"Mainstream","O"]
[null,null,null,null,null,null,null,null,null,909,"Gillford Centre",1100,"Pupil Referral Unit","O"]
[null,null,null,null,null,null,null,null,null,909,"West Cumbria Learning Centre",1103,"Pupil Referral Unit","O"]
[null,null,null,null,null,null,null,null,null,909,"Newbridge House PRU",1105,"Pupil Referral Unit","O"]
[null,null,null,null,null,null,null,null,null,909,"North Lakes School",2046,"Mainstream","O"]
[null,null,null,null,null,null,null,null,null,909,"Thomlinson Junior School",2069,"Mainstream","O"]
[null,null,null,null,null,null,null,null,null,909,"Wigton Infant School",2070,"Mainstream","O"]
[null,null,null,null,null,null,null,null,null,909,"Ashfield Junior School",2148,"Mainstream","O"]
[null,null,null,null,null,null,null,null,null,909,"Bransty Primary School",2228,"Mainstream","O"]
[null,null,null,null,null,null,null,null,null,909,"Vickerstown School",2513,"Mainstream","O"]
[null,null,null,null,null,null,null,null,null,909,"All Saints' CofE School",3102,"Mainstream","O"]
[null,null,null,null,null,null,null,null,null,909,"Ullswater Community College",4310,"Mainstream","O"]
[null,null,null,null,null,null,null,null,null,909,"Appleby Primary School",5206,"Mainstream","O"]
[null,null,null,null,null,null,null,null,null,909,"Beaconside CofE Primary School",5221,"Mainstream","O"]
[null,null,null,null,null,null,null,null,null,909,"Mayfield School",7002,"Special","O"]
[null,null,null,null,null,null,null,null,null,909,"Sandgate School",7006,"Special","O"]
[null,null,null,null,null,null,null,null,null,909,"Sandside Lodge School",7013,"Special","O"]
[null,null,null,null,null,null,null,null,null,916,"Gloucestershire Hospital Education Service",1104,"Pupil Referral Unit","O","2006-03-06"]
[null,null,null,null,null,null,null,null,null,916,"Cheltenham and Tewkesbury Alternative Provision School",1105,"Pupil Referral Unit","O","2007-09-01"]
[null,null,null,null,null,null,null,null,null,916,"Gloucester and Forest Alternative Provision School",1106,"Pupil Referral Unit","O","2007-09-01"]
[null,null,null,null,null,null,null,null,null,916,"Severn Valley School",1107,"Pupil Referral Unit","O","2007-09-01"]
[null,null,null,null,null,null,null,null,null,916,"Gastrells Community Primary School",2137,"Mainstream","O"]
[null,null,null,null,null,null,null,null,null,916,"Ruardean Church of England Primary School",3065,"Mainstream","O"]
[null,null,null,null,null,null,null,null,null,916,"Bettridge School",7015,"Special","O"]
[null,null,null,null,null,null,null,null,null,916,"The Shrubberies School",7017,"Special","O"]
[null,null,null,null,null,null,null,null,null,916,"Alderman Knight School",7019,"Special","O"]
[null,null,null,null,null,null,null,null,null,916,"Heart of the Forest Community Special School",7025,"Special","O","2005-09-01"]
[null,null,null,null,null,null,null,null,null,919,"North Herts Education Support Centre",1101,"Pupil Referral Unit","O","1995-09-01"]
[null,null,null,null,null,null,null,null,null,919,"Stevenage Education Support Centre",1102,"Pupil Referral Unit","O","1995-09-01"]
[null,null,null,null,null,null,null,null,null,919,"Chessbrook Education Support Centre",1105,"Pupil Referral Unit","O","1995-09-01"]
[null,null,null,null,null,null,null,null,null,919,"Dacorum Education Support Centre",1108,"Pupil Referral Unit","O","1995-09-01"]
[null,null,null,null,null,null,null,null,null,919,"Rivers Education Support Centre",1109,"Pupil Referral Unit","O","2009-09-01"]
[null,null,null,null,null,null,null,null,null,919,"Cowley Hill School",2030,"Mainstream","O"]
[null,null,null,null,null,null,null,null,null,919,"Sauncey Wood Primary School",2033,"Mainstream","O"]
[null,null,null,null,null,null,null,null,null,919,"Hillshott Infant School and Nursery",2069,"Mainstream","O"]
[null,null,null,null,null,null,null,null,null,919,"Central Primary School",2116,"Mainstream","O"]
[null,null,null,null,null,null,null,null,null,919,"Summerswood Primary School",2154,"Mainstream","O"]
[null,null,null,null,null,null,null,null,null,919,"Chaulden Infants' and Nursery",2193,"Mainstream","O"]
[null,null,null,null,null,null,null,null,null,919,"Peartree Spring Primary School",2198,"Mainstream","O"]
[null,null,null,null,null,null,null,null,null,919,"Eastbury Farm Primary School",2266,"Mainstream","O"]
[null,null,null,null,null,null,null,null,null,919,"Downfield Primary School",2289,"Mainstream","O"]
[null,null,null,null,null,null,null,null,null,919,"Moss Bury Primary School and Nursery",2312,"Mainstream","O"]
[null,null,null,null,null,null,null,null,null,919,"Maple Primary School",2364,"Mainstream","O"]
[null,null,null,null,null,null,null,null,null,919,"Round Diamond Primary School",2365,"Mainstream","O"]
[null,null,null,null,null,null,null,null,null,919,"The Giles Infant and Nursery School",2394,"Mainstream","O"]
[null,null,null,null,null,null,null,null,null,919,"Garston Manor School",7008,"Special","O"]
[null,null,null,null,null,null,null,null,null,919,"The Valley School",7010,"Special","O"]
[null,null,null,null,null,null,null,null,null,919,"Colnbrook School",7011,"Special","O"]
[null,null,null,null,null,null,null,null,null,919,"St Luke's School",7012,"Special","O"]
[null,null,null,null,null,null,null,null,null,919,"The Collett School",7013,"Special","O"]
[null,null,null,null,null,null,null,null,null,919,"Batchwood School",7016,"Special","O"]
[null,null,null,null,null,null,null,null,null,919,"Middleton School",7019,"Special","O"]
[null,null,null,null,null,null,null,null,null,919,"Lonsdale School",7022,"Special","O"]
[null,null,null,null,null,null,null,null,null,919,"Lakeside School",7023,"Special","O"]
[null,null,null,null,null,null,null,null,null,919,"Breakspeare School",7024,"Special","O"]
[null,null,null,null,null,null,null,null,null,919,"Woodfield School",7025,"Special","O"]
[null,null,null,null,null,null,null,null,null,919,"Watling View School",7026,"Special","O"]
[null,null,null,null,null,null,null,null,null,919,"Amwell View School",7028,"Special","O"]
[null,null,null,null,null,null,null,null,null,919,"Heathlands School",7032,"Special","O"]
[null,null,null,null,null,null,null,null,null,919,"Falconer School",7033,"Special","O"]
[null,null,null,null,null,null,null,null,null,919,"Greenside School",7042,"Special","O"]
[null,null,null,null,null,null,null,null,null,919,"Meadow Wood School",7043,"Special","O"]
[null,null,null,null,null,null,null,null,null,919,"Southfield School",7044,"Special","O","1995-09-01"]
[null,null,null,null,null,null,null,null,null,919,"Haywood Grove School",7047,"Special","O","1996-02-20"]
[null,null,null,null,null,null,null,null,null,921,"Island Learning Centre",1102,"Pupil Referral Unit","O","2002-09-02"]
[null,null,null,null,null,null,null,null,null,921,"Hunnyhill Primary School",2018,"Mainstream","O"]
[null,null,null,null,null,null,null,null,null,921,"Greenmount Primary School",2039,"Mainstream","O"]
[null,null,null,null,null,null,null,null,null,921,"The Bay Church of England School",2044,"Mainstream","O","2010-09-01"]
[null,null,null,null,null,null,null,null,null,921,"Brading Church of England Controlled Primary School",3003,"Mainstream","O"]
[null,null,null,null,null,null,null,null,null,921,"St George's School",7001,"Special","O"]
[null,null,null,null,null,null,null,null,null,921,"Medina House School",7003,"Special","O"]
[null,null,null,null,null,null,null,null,null,925,"The Cowbit St Mary's (Endowed) CofE Primary",3337,"Mainstream","O"]
[null,null,null,null,null,null,null,null,null,925,"The Pilgrim School",7012,"Special","O"]
[null,null,null,null,null,null,null,null,null,925,"The Lincoln St Christopher's School",7015,"Special","O"]
[null,null,null,null,null,null,null,null,null,925,"The St Francis Special School, Lincoln",7016,"Special","O"]
[null,null,null,null,null,null,null,null,null,925,"Fortuna School",7031,"Special","O","2003-09-01"]
[null,null,null,null,null,null,null,null,null,925,"Athena School",7032,"Special","O","2006-04-01"]
[null,null,null,null,null,null,null,null,null,926,"Mundesley Infant School",2115,"Mainstream","O"]
[null,null,null,null,null,null,null,null,null,926,"Millfield Primary School",2121,"Mainstream","O"]
[null,null,null,null,null,null,null,null,null,926,"Sprowston Infant School",2147,"Mainstream","O"]
[null,null,null,null,null,null,null,null,null,926,"Browick Road Primary and Nursery School",2184,"Mainstream","O"]
[null,null,null,null,null,null,null,null,null,926,"Redcastle Family School",2252,"Mainstream","O"]
[null,null,null,null,null,null,null,null,null,926,"Suffield Park Infant and Nursery School, Cromer",2259,"Mainstream","O"]
[null,null,null,null,null,null,null,null,null,926,"White Woman Lane Junior School",2267,"Mainstream","O"]
[null,null,null,null,null,null,null,null,null,926,"Hillside Primary School",2357,"Mainstream","O"]
[null,null,null,null,null,null,null,null,null,926,"Drake Primary School",2377,"Mainstream","O"]
[null,null,null,null,null,null,null,null,null,926,"Downham Market, Hillcrest Primary School",2411,"Mainstream","O"]
[null,null,null,null,null,null,null,null,null,926,"Terrington St Clement Community School",2420,"Mainstream","O"]
[null,null,null,null,null,null,null,null,null,926,"St Michael's Church of England VA Primary and Nursery School",3004,"Mainstream","O"]
[null,null,null,null,null,null,null,null,null,926,"Happisburgh Primary and Early Years School",3037,"Mainstream","O"]
[null,null,null,null,null,null,null,null,null,926,"Mile Cross Primary School",3424,"Mainstream","O","2007-09-01"]
[null,null,null,null,null,null,null,null,null,926,"Sidestrand Hall School",7001,"Special","O"]
[null,null,null,null,null,null,null,null,null,926,"Fred Nicholson School",7004,"Special","O","1900-01-01"]
[null,null,null,null,null,null,null,null,null,926,"Hall School",7006,"Special","O"]
[null,null,null,null,null,null,null,null,null,926,"Sheringham Woodfields School",7007,"Special","O"]
[null,null,null,null,null,null,null,null,null,926,"Chapel Green School",7010,"Special","O"]
[null,null,null,null,null,null,null,null,null,926,"The Clare School",7013,"Special","O"]
[null,null,null,null,null,null,null,null,null,926,"The Parkside School, Norwich",7014,"Special","O","1900-01-01"]
[null,null,null,null,null,null,null,null,null,926,"Harford Manor School, Norwich",7016,"Special","O"]
[null,null,null,null,null,null,null,null,null,926,"John Grant School, Caister-on-Sea",7020,"Special","O","1900-01-01"]
[null,null,null,null,null,null,null,null,null,929,"Northumberland Pupil Referral Unit",1100,"Pupil Referral Unit","O","1998-09-01"]
[null,null,null,null,null,null,null,null,null,929,"Seaton Sluice First School",2268,"Mainstream","O"]
[null,null,null,null,null,null,null,null,null,929,"Astley Community High School",5400,"Mainstream","O"]
[null,null,null,null,null,null,null,null,null,929,"Cleaswell Hill School",7003,"Special","O"]
[null,null,null,null,null,null,null,null,null,929,"Cramlington Hillcrest School",7006,"Special","O"]
[null,null,null,null,null,null,null,null,null,929,"Barndale House School",7010,"Special","O"]
[null,null,null,null,null,null,null,null,null,929,"The Grove Special School",7012,"Special","O"]
[null,null,null,null,null,null,null,null,null,929,"The Dales School",7021,"Special","O"]
[null,null,null,null,null,null,null,null,null,929,"Collingwood School & Media Arts College",7022,"Special","O"]
[null,null,null,null,null,null,null,null,null,929,"Atkinson House School",7024,"Special","O","2000-09-01"]
[null,null,null,null,null,null,null,null,null,931,"St Nicholas' Primary and Nursery School",2352,"Mainstream","O"]
[null,null,null,null,null,null,null,null,null,931,"St Andrew's Church of England Primary School",3182,"Mainstream","O"]
[null,null,null,null,null,null,null,null,null,931,"Sacred Heart Catholic Primary School, Henley-on-Thames",3820,"Mainstream","O"]
[null,null,null,null,null,null,null,null,null,931,"Woodeaton Manor School",7002,"Special","O"]
[null,null,null,null,null,null,null,null,null,931,"Frank Wise School",7010,"Special","O"]
[null,null,null,null,null,null,null,null,null,931,"John Watson School",7011,"Special","O"]
[null,null,null,null,null,null,null,null,null,931,"Oxfordshire Hospital School",7017,"Hospital ","O","1900-01-01"]
[null,null,null,null,null,null,null,null,null,931,"Bishopswood School",7030,"Special","O"]
[null,null,null,null,null,null,null,null,null,933,"Tor School",1109,"Pupil Referral Unit","O","2004-04-01"]
[null,null,null,null,null,null,null,null,null,933,"South Somerset Partnership School",1112,"Pupil Referral Unit","O","2004-04-01"]
[null,null,null,null,null,null,null,null,null,933,"Taunton Deane Partnership College",1114,"Pupil Referral Unit","O","2004-04-01"]
[null,null,null,null,null,null,null,null,null,933,"The Bridge School Sedgemoor",1115,"Pupil Referral Unit","O","2004-04-01"]
[null,null,null,null,null,null,null,null,null,933,"Holway Park Community Primary School",2332,"Mainstream","O"]
[null,null,null,null,null,null,null,null,null,933,"Oaklands Primary School",3494,"Mainstream","O","2010-01-01"]
[null,null,null,null,null,null,null,null,null,933,"Frome Community College",4000,"Mainstream","O"]
[null,null,null,null,null,null,null,null,null,933,"Heathfield Community School",4354,"Mainstream","O","1900-01-01"]
[null,null,null,null,null,null,null,null,null,933,"Polden Bower School",7003,"Special","O"]
[null,null,null,null,null,null,null,null,null,933,"Fairmead School",7007,"Special","O"]
[null,null,null,null,null,null,null,null,null,933,"Fiveways Special School",7016,"Special","O"]
[null,null,null,null,null,null,null,null,null,933,"Avalon School",7018,"Special","O"]
[null,null,null,null,null,null,null,null,null,935,"Horizon School",1113,"Pupil Referral Unit","O","2013-09-01"]
[null,null,null,null,null,null,null,null,null,935,"Bildeston Primary School",2002,"Mainstream","O"]
[null,null,null,null,null,null,null,null,null,935,"Exning Primary School",2021,"Mainstream","O"]
[null,null,null,null,null,null,null,null,null,935,"Westgate Community Primary School and Nursery",2034,"Mainstream","O"]
[null,null,null,null,null,null,null,null,null,935,"Gorseland Primary School",2132,"Mainstream","O"]
[null,null,null,null,null,null,null,null,null,935,"St Gregory Church of England Voluntary Controlled Primary School",3124,"Mainstream","O"]
[null,null,null,null,null,null,null,null,null,935,"King Edward VI Church of England Voluntary Controlled Upper School",4500,"Mainstream","O"]
[null,null,null,null,null,null,null,null,null,935,"Hillside Special School",7002,"Special","O"]
[null,null,null,null,null,null,null,null,null,936,"Chertsey Nursery School",1001,"Mainstream","O"]
[null,null,null,null,null,null,null,null,null,936,"Dorking Nursery School",1004,"Mainstream","O"]
[null,null,null,null,null,null,null,null,null,936,"The Wharf Nursery School & Children's Centre",1006,"Mainstream","O"]
[null,null,null,null,null,null,null,null,null,936,"Guildford Nursery School and Family Centre",1009,"Mainstream","O","2002-09-01"]
[null,null,null,null,null,null,null,null,null,936,"The Surrey Teaching Centre",1120,"Pupil Referral Unit","O","2003-04-01"]
[null,null,null,null,null,null,null,null,null,936,"St Peter's Centre",1121,"Pupil Referral Unit","O","2003-04-01"]
[null,null,null,null,null,null,null,null,null,936,"The Hope Service",1122,"Pupil Referral Unit","O","2005-01-01"]
[null,null,null,null,null,null,null,null,null,936,"North East Surrey Secondary Short Stay School",1126,"Pupil Referral Unit","O","2009-09-01"]
[null,null,null,null,null,null,null,null,null,936,"North West Surrey Short Stay School",1128,"Pupil Referral Unit","O","2009-09-01"]
[null,null,null,null,null,null,null,null,null,936,"The Mead Infant and Nursery School",2091,"Mainstream","O"]
[null,null,null,null,null,null,null,null,null,936,"The Orchard Infant School",2099,"Mainstream","O"]
[null,null,null,null,null,null,null,null,null,936,"Thames Ditton Junior School",2102,"Mainstream","O"]
[null,null,null,null,null,null,null,null,null,936,"Bagshot Infant School",2268,"Mainstream","O"]
[null,null,null,null,null,null,null,null,null,936,"Oakfield Junior School",2335,"Mainstream","O"]
[null,null,null,null,null,null,null,null,null,936,"Worplesdon Primary School",2349,"Mainstream","O"]
[null,null,null,null,null,null,null,null,null,936,"Badshot Lea Village Infant School",2415,"Mainstream","O"]
[null,null,null,null,null,null,null,null,null,936,"Bell Farm Primary School",2430,"Mainstream","O"]
[null,null,null,null,null,null,null,null,null,936,"William Cobbett Primary School",2478,"Mainstream","O"]
[null,null,null,null,null,null,null,null,null,936,"Hythe Primary School",2928,"Mainstream","O"]
[null,null,null,null,null,null,null,null,null,936,"Ashford Park Primary School",2937,"Mainstream","O"]
[null,null,null,null,null,null,null,null,null,936,"Stepgates Community School",2946,"Mainstream","O"]
[null,null,null,null,null,null,null,null,null,936,"Chandlers Field Primary School",2949,"Mainstream","O"]
[null,null,null,null,null,null,null,null,null,936,"Furzefield Primary School",2954,"Mainstream","O"]
[null,null,null,null,null,null,null,null,null,936,"Walsh CofE Junior School",3054,"Mainstream","O"]
[null,null,null,null,null,null,null,null,null,936,"Leatherhead Trinity School and Nursery",3940,"Mainstream","O","2006-09-01"]
[null,null,null,null,null,null,null,null,null,936,"Cranleigh Church of England Primary School",3944,"Mainstream","O","2008-09-01"]
[null,null,null,null,null,null,null,null,null,936,"Oakwood School",4465,"Mainstream","O"]
[null,null,null,null,null,null,null,null,null,936,"Burpham Foundation Primary School",5217,"Mainstream","O"]
[null,null,null,null,null,null,null,null,null,936,"Gosden House School",7003,"Special","O","1900-01-01"]
[null,null,null,null,null,null,null,null,null,936,"Sunnydown School",7014,"Special","O"]
[null,null,null,null,null,null,null,null,null,936,"Limpsfield Grange School",7019,"Special","O"]
[null,null,null,null,null,null,null,null,null,936,"Walton Leigh School",7043,"Special","O"]
[null,null,null,null,null,null,null,null,null,936,"Woodlands School",7048,"Special","O"]
[null,null,null,null,null,null,null,null,null,936,"Clifton Hill School",7049,"Special","O"]
[null,null,null,null,null,null,null,null,null,936,"Brooklands School - Split Site",7051,"Special","O"]
[null,null,null,null,null,null,null,null,null,936,"Manor Mead School",7053,"Special","O"]
[null,null,null,null,null,null,null,null,null,936,"Portesbery School",7056,"Special","O"]
[null,null,null,null,null,null,null,null,null,936,"Freemantles School",7062,"Special","O","1900-01-01"]
[null,null,null,null,null,null,null,null,null,936,"Philip Southcote School",7065,"Special","O"]
[null,null,null,null,null,null,null,null,null,936,"Woodfield School",7066,"Special","O"]
[null,null,null,null,null,null,null,null,null,937,"Welford-on-Avon Primary School",2058,"Mainstream","O"]
[null,null,null,null,null,null,null,null,null,937,"Outwoods Primary School",2083,"Mainstream","O","2010-09-01"]
[null,null,null,null,null,null,null,null,null,937,"Boughton Leigh Junior School",2590,"Mainstream","O"]
[null,null,null,null,null,null,null,null,null,937,"Water Orton Primary School",2618,"Mainstream","O"]
[null,null,null,null,null,null,null,null,null,937,"Paddox Primary School",2625,"Mainstream","O","1996-09-01"]
[null,null,null,null,null,null,null,null,null,937,"Middlemarch School",5202,"Mainstream","O"]
[null,null,null,null,null,null,null,null,null,937,"Exhall Grange Specialist School",7000,"Special","O"]
[null,null,null,null,null,null,null,null,null,937,"Evergreen School",7028,"Special","O"]
[null,null,null,null,null,null,null,null,null,938,"Bognor Regis Nursery School",1000,"Mainstream","O"]
[null,null,null,null,null,null,null,null,null,938,"Chichester Nursery School",1001,"Mainstream","O"]
[null,null,null,null,null,null,null,null,null,938,"Horsham Nursery School",1003,"Mainstream","O"]
[null,null,null,null,null,null,null,null,null,938,"Boundstone Nursery School",1004,"Mainstream","O"]
[null,null,null,null,null,null,null,null,null,938,"Chalkhill Education Centre, Chalkhill Hospital",1109,"Pupil Referral Unit","O","2006-01-03"]
[null,null,null,null,null,null,null,null,null,938,"West Sussex Alternative Provision College",1110,"Pupil Referral Unit","O","2013-09-03"]
[null,null,null,null,null,null,null,null,null,938,"Field Place Infant School",2080,"Mainstream","O"]
[null,null,null,null,null,null,null,null,null,938,"Three Bridges Primary School",2153,"Mainstream","O"]
[null,null,null,null,null,null,null,null,null,938,"Parklands Community Primary School",2185,"Mainstream","O"]
[null,null,null,null,null,null,null,null,null,938,"London Meed Community Primary School",2202,"Mainstream","O"]
[null,null,null,null,null,null,null,null,null,938,"Durrington Junior School",2229,"Mainstream","O"]
[null,null,null,null,null,null,null,null,null,938,"Lyndhurst Infant School",2238,"Mainstream","O"]
[null,null,null,null,null,null,null,null,null,938,"Maidenbower Junior School",2255,"Mainstream","O","1999-09-01"]
[null,null,null,null,null,null,null,null,null,938,"Fittleworth CofE Village School",3018,"Mainstream","O"]
[null,null,null,null,null,null,null,null,null,938,"Steyning CofE Primary School",3033,"Mainstream","O"]
[null,null,null,null,null,null,null,null,null,938,"West Park CofE Primary (Controlled) School",3062,"Mainstream","O"]
[null,null,null,null,null,null,null,null,null,938,"St Margaret's CofE Primary School",3335,"Mainstream","O"]
[null,null,null,null,null,null,null,null,null,938,"Northgate Primary School",3364,"Mainstream","O","2004-09-01"]
[null,null,null,null,null,null,null,null,null,938,"Oriel High School",4003,"Mainstream","O","2004-09-01"]
[null,null,null,null,null,null,null,null,null,938,"Bourne Community College",4028,"Mainstream","O"]
[null,null,null,null,null,null,null,null,null,938,"Felpham Community College",4059,"Mainstream","O"]
[null,null,null,null,null,null,null,null,null,938,"The Angmering School",4060,"Mainstream","O"]
[null,null,null,null,null,null,null,null,null,938,"St Anthony's School",7004,"Special","O"]
[null,null,null,null,null,null,null,null,null,938,"Manor Green College",7006,"Special","O"]
[null,null,null,null,null,null,null,null,null,938,"Palatine Primary School",7008,"Special","O"]
[null,null,null,null,null,null,null,null,null,938,"Queen Elizabeth II Silver Jubilee School, Horsham",7009,"Special","O"]
[null,null,null,null,null,null,null,null,null,938,"Oak Grove College",7010,"Special","O"]
[null,null,null,null,null,null,null,null,null,938,"Manor Green Primary School",7011,"Special","O"]
[null,null,null,null,null,null,null,null,null,938,"Fordwater School, Chichester",7012,"Special","O"]
[null,null,null,null,null,null,null,null,null,938,"Woodlands Meed",7013,"Special","O","2012-09-01"]
[null,null,null,null,null,null,null,null,null,938,"Herons Dale School",7021,"Special","O"]
[null,null,null,null,null,null,null,null,null,938,"Cornfield School, Littlehampton",7022,"Special","O"]
[null,null,null,null,null,null,null,null,null,940,"Ronald Tree Nursery School",1000,"Mainstream","O"]
[null,null,null,null,null,null,null,null,null,940,"Park Junior School, Wellingborough",2099,"Mainstream","O"]
[null,null,null,null,null,null,null,null,null,940,"Denfield Park Primary School",2206,"Mainstream","O"]
[null,null,null,null,null,null,null,null,null,940,"Croyland Primary School",2231,"Mainstream","O","2002-09-01"]
[null,null,null,null,null,null,null,null,null,940,"The Latimer Arts College",4055,"Mainstream","O"]
[null,null,null,null,null,null,null,null,null,940,"Rowan Gate Primary School -Two Sites and Satellite",7031,"Special","O","1998-01-09"]
[null,null,null,null,null,null,null,null,null,941,"Vernon Terrace Primary School",2174,"Mainstream","O"]
[null,null,null,null,null,null,null,null,null,941,"Kingsthorpe Grove Primary School",2208,"Mainstream","O","1900-01-01"]
[null,null,null,null,null,null,null,null,null,941,"Hunsbury Park Primary School",2218,"Mainstream","O"]
[null,null,null,null,null,null,null,null,null,941,"Fairfields School",7014,"Special","O"]
[null,null,null,null,null,null,null,null,null,941,"The Gateway School",7018,"Special","O"]
[null,null,null,null,null,null,null,null,null,941,"Kings Meadow School",7028,"Special","O"]

{"sheet":"Admin-MissingRowCheck","index":6,"n_rows":129,"n_cols":14,"rows_kept":129,"cut":false,"hidden":true,"merged":[]}
["LA Table - Error 1033 information for error message",null,null,"Missing rows",null,null,null,"EY table - Error 1043",null,null,"Missing rows",null,"1011 Error","1010 Value"]
["Required Row Numbers","Are they present? If not output the number in column C to add to end of 1033 error message","Check for isna",{"$f":"_xlfn.CONCAT(C3:C149)","v":""},null,null,null,"Required Rows","Are they present? If not output the number in column C to add to end of 1033 error message","Check for isna",{"$f":"_xlfn.CONCAT(J3:J150)","v":""},null,{"$f":"IF(ISERR(ABS('LA Table'!M73 - 'LA Table'!K88)), \"\", IF(ABS('LA Table'!M73 - 'LA Table'!K88) > 10000, \"Y\", \"\"))","v":""},{"$f":"IF(ISERR(ABS('LA Table'!M73-'LA Table'!K88)),\"\",ABS('LA Table'!M73-'LA Table'!K88))","v":0}]
[1,{"$f":"VLOOKUP(A3,LARowCount,1,FALSE)","v":1},{"$f":"IF(ISNA(B3),\", \"&A3,\"\")","v":""},null,null,null,null,"EY1",{"$f":"VLOOKUP(H3,'Early Years Proforma'!A:A,1,FALSE)","v":"EY1"},{"$f":"IF(ISNA(I3),\", \"&MID(H3,3,10),\"\")","v":""}]
[2,{"$f":"VLOOKUP(A4,LARowCount,1,FALSE)","v":2},{"$f":"IF(ISNA(B4),\", \"&A4,\"\")","v":""},null,null,null,null,"EY2a",{"$f":"VLOOKUP(H4,'Early Years Proforma'!A:A,1,FALSE)","v":"EY2a"},{"$f":"IF(ISNA(I4),\", \"&MID(H4,3,10),\"\")","v":""}]
[3,3,"",null,null,null,null,"EY2b",{"$f":"VLOOKUP(H5,'Early Years Proforma'!A:A,1,FALSE)","v":"EY2b"},""]
[6,6,"",null,null,null,null,"EY2c",{"$f":"VLOOKUP(H6,'Early Years Proforma'!A:A,1,FALSE)","v":"EY2c"},""]
[7,7,"",null,null,null,null,"EY2d",{"$f":"VLOOKUP(H7,'Early Years Proforma'!A:A,1,FALSE)","v":"EY2d"},""]
[8,8,"",null,null,null,null,"EY2e",{"$f":"VLOOKUP(H8,'Early Years Proforma'!A:A,1,FALSE)","v":"EY2e"},""]
["1.0.1","1.0.1","",null,null,null,null,"EY3",{"$f":"VLOOKUP(H9,'Early Years Proforma'!A:A,1,FALSE)","v":"EY3"},""]
["1.0.2","1.0.2","",null,null,null,null,"EY4",{"$f":"VLOOKUP(H10,'Early Years Proforma'!A:A,1,FALSE)","v":"EY4"},""]
["1.1.1","1.1.1","",null,null,null,null,"EY5",{"$f":"VLOOKUP(H11,'Early Years Proforma'!A:A,1,FALSE)","v":"EY5"},""]
["1.1.2","1.1.2","",null,null,null,null,"EY6a",{"$f":"VLOOKUP(H12,'Early Years Proforma'!A:A,1,FALSE)","v":"EY6a"},""]
["1.1.3","1.1.3","",null,null,null,null,"EY6b",{"$f":"VLOOKUP(H13,'Early Years Proforma'!A:A,1,FALSE)","v":"EY6b"},""]
["1.1.4","1.1.4","",null,null,null,null,"EY7ai",{"$f":"VLOOKUP(H14,'Early Years Proforma'!A:A,1,FALSE)","v":"EY7ai"},""]
["1.1.5","1.1.5","",null,null,null,null,"EY7aii",{"$f":"VLOOKUP(H15,'Early Years Proforma'!A:A,1,FALSE)","v":"EY7aii"},""]
["1.1.6","1.1.6","",null,null,null,null,"EY7bi",{"$f":"VLOOKUP(H16,'Early Years Proforma'!A:A,1,FALSE)","v":"EY7bi"},""]
["1.1.7","1.1.7","",null,null,null,null,"EY7bii",{"$f":"VLOOKUP(H17,'Early Years Proforma'!A:A,1,FALSE)","v":"EY7bii"},""]
["1.1.8","1.1.8","",null,null,null,null,"EY8a",{"$f":"VLOOKUP(H18,'Early Years Proforma'!A:A,1,FALSE)","v":"EY8a"},""]
["1.1.9","1.1.9","",null,null,null,null,"EY8b",{"$f":"VLOOKUP(H19,'Early Years Proforma'!A:A,1,FALSE)","v":"EY8b"},""]
["1.10.1","1.10.1","",null,null,null,null,"EY9a",{"$f":"VLOOKUP(H20,'Early Years Proforma'!A:A,1,FALSE)","v":"EY9a"},""]
["1.10.2","1.10.2","",null,null,null,null,"EY9b",{"$f":"VLOOKUP(H21,'Early Years Proforma'!A:A,1,FALSE)","v":"EY9b"},""]
["1.2.1","1.2.1","",null,null,null,null,"EY10",{"$f":"VLOOKUP(H22,'Early Years Proforma'!A:A,1,FALSE)","v":"EY10"},""]
["1.2.10","1.2.10","",null,null,null,null,"EY11",{"$f":"VLOOKUP(H23,'Early Years Proforma'!A:A,1,FALSE)","v":"EY11"},""]
["1.2.11","1.2.11",""]
["1.2.12","1.2.12",""]
["1.2.13","1.2.13",""]
["1.2.2","1.2.2",""]
["1.2.3","1.2.3",""]
["1.2.4","1.2.4",""]
["1.2.5","1.2.5",""]
["1.2.6","1.2.6",""]
["1.2.7","1.2.7",""]
["1.2.8","1.2.8",""]
["1.2.9",{"$f":"VLOOKUP(A34,LARowCount,1,FALSE)","v":"1.2.9"},""]
["1.3.1","1.3.1",""]
["1.4.1","1.4.1",""]
["1.4.10","1.4.10",""]
["1.4.11","1.4.11",""]
["1.4.12","1.4.12",""]
["1.4.13","1.4.13",""]
["1.4.14","1.4.14",""]
["1.4.2","1.4.2",""]
["1.4.3","1.4.3",""]
["1.4.4","1.4.4",""]
["1.4.5","1.4.5",""]
["1.4.6","1.4.6",""]
["1.4.7","1.4.7",""]
["1.4.8","1.4.8",""]
["1.4.9","1.4.9",""]
["1.5.1","1.5.1",""]
["1.5.2","1.5.2",""]
["1.5.3","1.5.3",""]
["1.6.1","1.6.1",""]
["1.6.2","1.6.2",""]
["1.6.3","1.6.3",""]
["1.6.4","1.6.4",""]
["1.6.5","1.6.5",""]
["1.6.6","1.6.6",""]
["1.6.7","1.6.7",""]
["1.7.1","1.7.1",""]
["1.8.1","1.8.1",""]
["1.8.1a","1.8.1a",""]
["1.9.1","1.9.1",""]
["1.9.2","1.9.2",""]
["1.9.3","1.9.3",""]
["1.9.4","1.9.4",""]
["1.9.5","1.9.5",""]
["1.9.6","1.9.6",{"$f":"IF(ISNA(B68),\", \"&A68,\"\")","v":""}]
["2.0.1","2.0.1",""]
["2.0.2","2.0.2",""]
["2.0.3","2.0.3",""]
["2.0.4","2.0.4",""]
["2.0.5","2.0.5",""]
["2.0.6","2.0.6",""]
["2.0.7","2.0.7",""]
["2.1.1","2.1.1",""]
["2.1.2","2.1.2",""]
["2.1.3","2.1.3",""]
["2.1.4","2.1.4",""]
["2.1.5","2.1.5",""]
["2.1.6","2.1.6",""]
["2.1.7","2.1.7",""]
["2.1.8","2.1.8",""]
["2.1.9","2.1.9",""]
["2.2.1","2.2.1",""]
["2.3.1","2.3.1",""]
["2.3.2","2.3.2",""]
["2.3.3","2.3.3",""]
["2.3.4","2.3.4",""]
["2.3.5","2.3.5",""]
["2.4.1","2.4.1",""]
["2.5.1","2.5.1",""]
["3.0.1","3.0.1",""]
["3.0.2","3.0.2",""]
["3.0.3","3.0.3",""]
["3.0.4","3.0.4",""]
["3.0.5","3.0.5",""]
["3.1.1",{"$f":"VLOOKUP(A98,LARowCount,1,FALSE)","v":"3.1.1"},""]
["3.1.10","3.1.10",""]
["3.1.11","3.1.11",""]
["3.1.2a","3.1.2a",""]
["3.1.2b","3.1.2b",""]
["3.1.3","3.1.3",""]
["3.1.4","3.1.4",""]
["3.1.5","3.1.5",""]
["3.1.6","3.1.6",""]
["3.1.7","3.1.7",""]
["3.1.8","3.1.8",""]
["3.1.9","3.1.9",""]
["3.2.1","3.2.1",""]
["3.3.1","3.3.1",""]
["3.3.2","3.3.2",""]
["3.3.3","3.3.3",""]
["3.3.4","3.3.4",""]
["3.4.1","3.4.1",""]
["3.4.2","3.4.2",""]
["3.4.3","3.4.3",""]
["3.4.4","3.4.4",""]
["3.4.5","3.4.5",""]
["3.4.6","3.4.6",""]
["3.5.1","3.5.1",""]
["3.5.2","3.5.2",""]
["3.5.3","3.5.3",""]
["3.6.1","3.6.1",""]
["4.0.1","4.0.1",""]
["5.0.1","5.0.1",""]
["5.0.2","5.0.2",""]
["8a.1","8a.1",""]
["8a.2","8a.2",""]